Workbook

Sheet Notes
A9: High Needs place numbers for the 2015/16 academic year by institution location
A10: This publication describes the high needs place numbers for institutions funded by the Education Funding Agency (EFA) for the 2015/16 academic year.
A11: There are three spreadsheets contained in this publication: 1. 'INSTITUTION_TOTALS' records the high needs place numbers for the 2015/16 academic year, by institution location. 2.' INST_TOTALS_WITH_EXCLUSIONS' records the high needs place numbers for the 2015/16 academic year by institution location, after the removal of all Alternative provision (AP) places and places allocated to Specialist Post-16 Institutions and Non-Maintained Special Schools (NMSS). 3. 'LA_TOTALS_WITH_EXCLUSIONS' records the total high needs place numbers for the 2015/16 academic year by local authority after the removal of all AP places and places allocated to Specialist Post-16 Institutions and NMSS.
A12: As confirmed in July, | C12: Fairer schools funding arrangements for 2015 to 2016
A13: in the academic year 2015/16, the EFA will roll forward the published academic year 2014/15 high needs place numbers as the basis for 2015/16 allocations
A14: Although we will roll forward the published 2014/15 academic year high needs place numbers as the basis for the 2015/16 academic year, we are changing the way local authorities report post-16 places. Local authorities have previously reported post-16 places on a 'residency' basis but for the 2015/16 academic year these places must be reported on an 'institution location basis', to align with pre-16.
A15: For further information please read the 'High Needs Funding' section in the
A16: Schools revenue funding 2015 to 2016 operational guide
A18: We have published this data to inform the discussions between local authorities and institutions to agree the place numbers required across institutions, both pre and post-16, and how local authorities’ high needs budgets may be used to fund actual pupils and students in excess of the funded places at a local level in the 2015/16 academic year.
A19: We recognise that moving from collecting place numbers based upon 'residency' to collecting data by 'institution location' is a significant change for post-16 institutions, but one that makes further progress towards delivering simplification and progression towards the implementation of an allocations process based upon lagged data.
A20: 1. High Needs place numbers for the 2015/16 academic year, by institution location (1).
A21: The spreadsheet shows the allocated high needs place numbers by institution location for pre-16, 16 to 18 and 19 to 24 high needs places in:
A22: 1. Post schools - Further Education colleges, Commercial and Charitable Providers, Higher Education Institutions, Sixth Form Colleges, Specialist Post-16 Institutions and local authority direct delivery of post-16; 2. Schools - Maintained schools and Maintained Special Schools, SEN units, Resourced Provision and Alternative Provision; Academies and special academy schools, SEN units, Resourced Provision and Alternative provision; Free schools, alternative provision and special free schools
A23: All LAs and institutions are advised to use the filters and look at their data recorded in this page and use it to inform their discussions regarding the 2015/16 academic year. By filtering on column G local authorities will be able to see the total places and the institution distribution of places within their boundary. Institutions can filter on column A in order to select their name and see the total volume of places allocated for the 2015/16 academic year.
A24: In the case of Free Schools the place numbers shown are those funded by the EFA
A25: These numbers are the same as the allocated volumes for the 2014/15 academic year and are based upon the places recorded by local authorities in their High Needs Templates (HNTs) (with the exception of Free Schools) and are the places eligible for EFA funding. The 2014/15 academic year for post-16 allocations covers the period 01 August 2014 to 31 July 2015. The 2014/15 academic year for pre-16 allocations covers the period 01 September 2014 to 31 August 2015. Institution details are correct as at 01 August 2014.
A26: It is important to recognise that these are allocated place volumes places rather than individual placements for the academic year.
A27: Technical notes
A28: You can easily filter the data to any of the fields in the data file . The header row (row 5) shows the column descriptors with the data directly under. In the bottom right of each field descriptor you can see a small downward pointing arrow - this is the button to activate the drop-down for the filter. When you press this button a filter list will appear. This will allow you to select all data, or any combination (whether single or multiple items). When you have made your selection - press OK. Each filter is cumulative - so when you have set one filter, the other filters may have a smaller selection. It is important to reset the filters when you want to make a new selection otherwise you may not see all of the data.
A29: In the example on the next page you can see the 'Institution location local authority' column is filtered to Birmingham LA and that the institution category column is filtered to 'Further Education provider'. The sub-total for each column is displayed above the header row (in row 4) - this total will change based on how the data is filtered but it will not change the overall column totals which are displayed in row 3.
A49: Each Institution has an associated 'Category' (column D), indicating the type of institution.
A50: Column M shows the total allocated pre-16 places.
A51: Column Q shows the total allocated post-16 places.
A52: Column R shows the overall number of allocated places.
A53: Column N shows the post-16 places at Schools.
A54: Columns O and P show post-16 places at Further Education colleges, Commercial and Charitable Providers, Higher Education Institutions, Sixth Form Colleges, local authority direct delivery of post-16 and Specialist Post-16 Institutions.
A55: The Unique Provider Identification Number (UPIN), is used by the EFA to identify an institution on internal systems and databases.
A56: 2. High Needs place numbers for the 2015/16 academic year, by institution location (2).
A57: The spreadsheet shows the allocated high needs place numbers by institution location for pre-16, 16 to 18 and 19 to 24 high needs places after the removal of all AP places (and places allocated to NMSS and Specialist Post-16 Institutions), in:
A58: 1. Post schools - Further Education colleges, Commercial and Charitable Providers, Higher Education Institutions, Sixth Form Colleges and local authority direct delivery of post-16; 2. Schools - Maintained schools and Maintained Special Schools, SEN units, Resourced Provision; Academies and special academy schools, SEN units, Resourced Provision; Free schools and special free schools.
A60: This data has been used to populate the 2015/16 Academic Year Local Authority High Needs Exception spreadsheet which can be found on our website on the following webpage:
A61: https://www.gov.uk/government/publications/high-needs-2015-to-2016-place-number-exceptional-case-process
A62: The recording of places and the functionality are the same as the '1. High Needs place numbers for the 2015/16 academic year, by institution location (1)' spreadsheet (as described in the notes above). An explanation of the column headings follows:
A63: Column L shows the allocated pre-16 places after the removal of all AP places.
A64: Column P shows the allocated post-16 places after the removal of all places allocated to NMSS and Specialist Post-16 Institutions.
A65: Column Q shows the overall number of allocated places.
A66: Column M shows the Post-16 places at Schools after the removal of all places allocated to non-maintained special schools (NMSS).
A67: Columns N and O show post-16 places at Further Education colleges, Commercial and Charitable Providers, Higher Education Institutions, Sixth Form Colleges and local authority direct delivery of post-16 after the removal of all places allocated to specialist post-16 institutions.
A68: 3. Total High Needs place numbers for the 2015/16 academic year by local authority.
A69: This sheet should be useful for local authorities to view. It provides a single line total per local authority of the place data used to populate the LA 2015/16 academic year exception template after the removal of all AP places, places allocated to Specialist Post 16 institutions and places allocated to NMSS.
A70: By using the filter in cells A7 and B7 local authorities can select their own name/number and view their totals. By using the filter in cell B4 local authorities can filter the totals by institution type.
A71: Regions and EFA Territories
A72: Region | C72: Descriptor | F72: EFA Territory
A73: EE | C73: East of England | F73: South
A74: EM | C74: East Midlands | F74: Central & SW
A75: GL | C75: Greater London | F75: South
A76: NE | C76: North East | F76: North
A77: NW | C77: North West | F77: North
A78: SE | C78: South East | F78: South
A79: SW | C79: South West | F79: Central & SW
A80: WM | C80: West Midlands | F80: Central & SW
A81: YH | C81: Yorkshire and the Humber | F81: North
A82: Should you have any queries regarding the data or these instructions, please e-mail us at the EFA mailboxes listed on the next page as appropriate to your location as described in 'Regions and EFA Territories' above:
A85: For Pre 16 related enquiries:
B86: HighNeeds.SOUTHERN@education.gsi.gov.uk
B87: HighNeeds.CENTRAL@education.gsi.gov.uk
B88: HighNeeds.NORTHERN@education.gsi.gov.uk
A90: For Post 16 related enquiries:
B91: YPSouthern.EFA@education.gsi.gov.uk
B92: YPCentralSW.EFA@education.gsi.gov.uk
B93: YPNorthern.EFA@education.gsi.gov.uk
H94: © Crown copyright 2014

Sheet INSTITUTION_TOTALS
A1: 1. High Needs place numbers for the 2015/16 academic year, by institution location (1).
G3: Overall Total | I3: =SUM(Table2[Pre-16 SEN Units - 2014 to 2015]) -> 9700.2 | J3: =SUM(Table2[Pre-16 Resourced Provision - 2014 to 2015]) -> 13216 | K3: =SUM(Table2[Pre-16 Alternative Provision - 2014 to 2016]) -> 24252.8 | L3: =SUM(Table2[Pre-16 SEN Places - 2014 to 2015]) -> 90931.6 | M3: =SUM(Table2[Total Pre-16]) -> 138100.6 | N3: =SUM(Table2[Post-16 Schools 16-18]) -> 17357 | O3: =SUM(Table2[Post-16 Post School 16-18]) -> 12642 | P3: =SUM(Table2[Post-16 Post School 19-25]) -> 9623 | Q3: =SUM(Table2[Total Post 16]) -> 39622 | R3: =SUM(Table2[Total High Needs Places]) -> 177722.6
G4: Sub-Total | I4: =SUBTOTAL(109,Table2[Pre-16 SEN Units - 2014 to 2015]) -> 9700.2 | J4: =SUBTOTAL(109,Table2[Pre-16 Resourced Provision - 2014 to 2015]) -> 13216 | K4: =SUBTOTAL(109,Table2[Pre-16 Alternative Provision - 2014 to 2016]) -> 24252.8 | L4: =SUBTOTAL(109,Table2[Pre-16 SEN Places - 2014 to 2015]) -> 90931.6 | M4: =SUBTOTAL(109,Table2[Total Pre-16]) -> 138100.6 | N4: =SUBTOTAL(109,Table2[Post-16 Schools 16-18]) -> 17357 | O4: =SUBTOTAL(109,Table2[Post-16 Post School 16-18]) -> 12642 | P4: =SUBTOTAL(109,Table2[Post-16 Post School 19-25]) -> 9623 | Q4: =SUBTOTAL(109,Table2[Total Post 16]) -> 39622 | R4: =SUBTOTAL(109,Table2[Total High Needs Places]) -> 177722.6
A5: Establishment name | B5: LAEstab | C5: UPIN | D5: Category | E5: Institution location - Territory | F5: Institution location - Region | G5: Institution location - Local Authority | H5: LA No. | I5: Pre-16 SEN Units - 2014 to 2015 | J5: Pre-16 Resourced Provision - 2014 to 2015 | K5: Pre-16 Alternative Provision - 2014 to 2016 | L5: Pre-16 SEN Places - 2014 to 2015 | M5: Total Pre-16 | N5: Post-16 Schools 16-18 | O5: Post-16 Post School 16-18 | P5: Post-16 Post School 19-25 | Q5: Total Post 16 | R5: Total High Needs Places
A6: A.C.E - ALTERNATIVE COMPLEMENTARY EDUCATION | B6: 8791106 | C6: 0 | D6: MAINTAINED ALTERNATIVE PROVISION (AP) - PRU | E6: CentralSW | F6: South West | G6: Plymouth | H6: 879 | I6: 0 | J6: 0 | K6: 255 | L6: 0 | M6: =Table2[[#This Row],[Pre-16 SEN Units - 2014 to 2015]]+Table2[[#This Row],[Pre-16 Resourced Provision - 2014 to 2015]]+Table2[[#This Row],[Pre-16 Alternative Provision - 2014 to 2016]]+Table2[[#This Row],[Pre-16 SEN Places - 2014 to 2015]] -> 255 | N6: 0 | O6: 0 | P6: 0 | Q6: =Table2[[#This Row],[Post-16 Schools 16-18]]+Table2[[#This Row],[Post-16 Post School 16-18]]+Table2[[#This Row],[Post-16 Post School 19-25]] -> 0 | R6: =Table2[[#This Row],[Total Pre-16]]+Table2[[#This Row],[Total Post 16]] -> 255
A7: ABBEY COLLEGE, RAMSEYS | B7: 8734603 | C7: 120322 | D7: ACADEMY - MAINSTREAM | E7: South | F7: East of England | G7: Cambridgeshire | H7: 873 | I7: 0 | J7: 0 | K7: 0 | L7: 0 | M7: =Table2[[#This Row],[Pre-16 SEN Units - 2014 to 2015]]+Table2[[#This Row],[Pre-16 Resourced Provision - 2014 to 2015]]+Table2[[#This Row],[Pre-16 Alternative Provision - 2014 to 2016]]+Table2[[#This Row],[Pre-16 SEN Places - 2014 to 2015]] -> 0 | N7: 2 | O7: 0 | P7: 0 | Q7: =Table2[[#This Row],[Post-16 Schools 16-18]]+Table2[[#This Row],[Post-16 Post School 16-18]]+Table2[[#This Row],[Post-16 Post School 19-25]] -> 2 | R7: =Table2[[#This Row],[Total Pre-16]]+Table2[[#This Row],[Total Post 16]] -> 2
A8: ABBEY COURT COMMUNITY SPECIAL SCHOOL | B8: 8877053 | C8: 124000 | D8: MAINTAINED SPECIAL SCHOOL | E8: South | F8: South East | G8: Medway | H8: 887 | I8: 0 | J8: 0 | K8: 0 | L8: 123 | M8: =Table2[[#This Row],[Pre-16 SEN Units - 2014 to 2015]]+Table2[[#This Row],[Pre-16 Resourced Provision - 2014 to 2015]]+Table2[[#This Row],[Pre-16 Alternative Provision - 2014 to 2016]]+Table2[[#This Row],[Pre-16 SEN Places - 2014 to 2015]] -> 123 | N8: 22 | O8: 0 | P8: 0 | Q8: =Table2[[#This Row],[Post-16 Schools 16-18]]+Table2[[#This Row],[Post-16 Post School 16-18]]+Table2[[#This Row],[Post-16 Post School 19-25]] -> 22 | R8: =Table2[[#This Row],[Total Pre-16]]+Table2[[#This Row],[Total Post 16]] -> 145
A9: ABBEY GRANGE CHURCH OF ENGLAND HIGH SCHOOL | B9: 3835400 | C9: 120083 | D9: ACADEMY - MAINSTREAM | E9: North | F9: Yorkshire and the Humber | G9: Leeds | H9: 383 | I9: 0 | J9: 0 | K9: 0 | L9: 0 | M9: =Table2[[#This Row],[Pre-16 SEN Units - 2014 to 2015]]+Table2[[#This Row],[Pre-16 Resourced Provision - 2014 to 2015]]+Table2[[#This Row],[Pre-16 Alternative Provision - 2014 to 2016]]+Table2[[#This Row],[Pre-16 SEN Places - 2014 to 2015]] -> 0 | N9: 1 | O9: 0 | P9: 0 | Q9: =Table2[[#This Row],[Post-16 Schools 16-18]]+Table2[[#This Row],[Post-16 Post School 16-18]]+Table2[[#This Row],[Post-16 Post School 19-25]] -> 1 | R9: =Table2[[#This Row],[Total Pre-16]]+Table2[[#This Row],[Total Post 16]] -> 1
A10: ABBEY HILL SCHOOL AND PERFORMING ARTS COLLEGE | B10: 8617007 | C10: 123500 | D10: MAINTAINED SPECIAL SCHOOL | E10: CentralSW | F10: West Midlands | G10: Stoke-on-Trent | H10: 861 | I10: 0 | J10: 0 | K10: 0 | L10: 194 | M10: =Table2[[#This Row],[Pre-16 SEN Units - 2014 to 2015]]+Table2[[#This Row],[Pre-16 Resourced Provision - 2014 to 2015]]+Table2[[#This Row],[Pre-16 Alternative Provision - 2014 to 2016]]+Table2[[#This Row],[Pre-16 SEN Places - 2014 to 2015]] -> 194 | N10: 25 | O10: 0 | P10: 0 | Q10: =Table2[[#This Row],[Post-16 Schools 16-18]]+Table2[[#This Row],[Post-16 Post School 16-18]]+Table2[[#This Row],[Post-16 Post School 19-25]] -> 25 | R10: =Table2[[#This Row],[Total Pre-16]]+Table2[[#This Row],[Total Post 16]] -> 219
A11: ABBEY HILL SCHOOL AND TECHNOLOGY COLLEGE | B11: 8087029 | C11: 124569 | D11: ACADEMY - SPECIAL | E11: North | F11: North East | G11: Stockton-on-Tees | H11: 808 | I11: 0 | J11: 0 | K11: 0 | L11: 215 | M11: =Table2[[#This Row],[Pre-16 SEN Units - 2014 to 2015]]+Table2[[#This Row],[Pre-16 Resourced Provision - 2014 to 2015]]+Table2[[#This Row],[Pre-16 Alternative Provision - 2014 to 2016]]+Table2[[#This Row],[Pre-16 SEN Places - 2014 to 2015]] -> 215 | N11: 96 | O11: 0 | P11: 0 | Q11: =Table2[[#This Row],[Post-16 Schools 16-18]]+Table2[[#This Row],[Post-16 Post School 16-18]]+Table2[[#This Row],[Post-16 Post School 19-25]] -> 96 | R11: =Table2[[#This Row],[Total Pre-16]]+Table2[[#This Row],[Total Post 16]] -> 311
A12: ABBEY MANOR COLLEGE | B12: 2091103 | C12: 0 | D12: MAINTAINED ALTERNATIVE PROVISION (AP) - PRU | E12: South | F12: London | G12: Lewisham | H12: 209 | I12: 0 | J12: 0 | K12: 206 | L12: 0 | M12: =Table2[[#This Row],[Pre-16 SEN Units - 2014 to 2015]]+Table2[[#This Row],[Pre-16 Resourced Provision - 2014 to 2015]]+Table2[[#This Row],[Pre-16 Alternative Provision - 2014 to 2016]]+Table2[[#This Row],[Pre-16 SEN Places - 2014 to 2015]] -> 206 | N12: 0 | O12: 0 | P12: 0 | Q12: =Table2[[#This Row],[Post-16 Schools 16-18]]+Table2[[#This Row],[Post-16 Post School 16-18]]+Table2[[#This Row],[Post-16 Post School 19-25]] -> 0 | R12: =Table2[[#This Row],[Total Pre-16]]+Table2[[#This Row],[Total Post 16]] -> 206
A13: ABBEY PARK MIDDLE SCHOOL | B13: 8852906 | C13: 0 | D13: MAINTAINED SCHOOL - MAINSTREAM | E13: CentralSW | F13: West Midlands | G13: Worcestershire | H13: 885 | I13: 0 | J13: 10 | K13: 0 | L13: 0 | M13: =Table2[[#This Row],[Pre-16 SEN Units - 2014 to 2015]]+Table2[[#This Row],[Pre-16 Resourced Provision - 2014 to 2015]]+Table2[[#This Row],[Pre-16 Alternative Provision - 2014 to 2016]]+Table2[[#This Row],[Pre-16 SEN Places - 2014 to 2015]] -> 10 | N13: 0 | O13: 0 | P13: 0 | Q13: =Table2[[#This Row],[Post-16 Schools 16-18]]+Table2[[#This Row],[Post-16 Post School 16-18]]+Table2[[#This Row],[Post-16 Post School 19-25]] -> 0 | R13: =Table2[[#This Row],[Total Pre-16]]+Table2[[#This Row],[Total Post 16]] -> 10
A14: ABBEY SCHOOL | B14: 3727001 | C14: 0 | D14: MAINTAINED SPECIAL SCHOOL | E14: North | F14: Yorkshire and the Humber | G14: Rotherham | H14: 372 | I14: 0 | J14: 0 | K14: 0 | L14: 110 | M14: =Table2[[#This Row],[Pre-16 SEN Units - 2014 to 2015]]+Table2[[#This Row],[Pre-16 Resourced Provision - 2014 to 2015]]+Table2[[#This Row],[Pre-16 Alternative Provision - 2014 to 2016]]+Table2[[#This Row],[Pre-16 SEN Places - 2014 to 2015]] -> 110 | N14: 0 | O14: 0 | P14: 0 | Q14: =Table2[[#This Row],[Post-16 Schools 16-18]]+Table2[[#This Row],[Post-16 Post School 16-18]]+Table2[[#This Row],[Post-16 Post School 19-25]] -> 0 | R14: =Table2[[#This Row],[Total Pre-16]]+Table2[[#This Row],[Total Post 16]] -> 110
A15: ABBEY VIEW SCHOOL | B15: 9161108 | C15: 123404 | D15: FREE SCHOOL - AP | E15: CentralSW | F15: South West | G15: Gloucestershire | H15: 916 | I15: 0 | J15: 0 | K15: 40 | L15: 0 | M15: =Table2[[#This Row],[Pre-16 SEN Units - 2014 to 2015]]+Table2[[#This Row],[Pre-16 Resourced Provision - 2014 to 2015]]+Table2[[#This Row],[Pre-16 Alternative Provision - 2014 to 2016]]+Table2[[#This Row],[Pre-16 SEN Places - 2014 to 2015]] -> 40 | N15: 0 | O15: 0 | P15: 0 | Q15: =Table2[[#This Row],[Post-16 Schools 16-18]]+Table2[[#This Row],[Post-16 Post School 16-18]]+Table2[[#This Row],[Post-16 Post School 19-25]] -> 0 | R15: =Table2[[#This Row],[Total Pre-16]]+Table2[[#This Row],[Total Post 16]] -> 40
A16: ABBEYFIELD SCHOOL | B16: 8654000 | C16: 117685 | D16: MAINTAINED SCHOOL - MAINSTREAM | E16: CentralSW | F16: South West | G16: Wiltshire | H16: 865 | I16: 0 | J16: 11 | K16: 0 | L16: 0 | M16: =Table2[[#This Row],[Pre-16 SEN Units - 2014 to 2015]]+Table2[[#This Row],[Pre-16 Resourced Provision - 2014 to 2015]]+Table2[[#This Row],[Pre-16 Alternative Provision - 2014 to 2016]]+Table2[[#This Row],[Pre-16 SEN Places - 2014 to 2015]] -> 11 | N16: 1 | O16: 0 | P16: 0 | Q16: =Table2[[#This Row],[Post-16 Schools 16-18]]+Table2[[#This Row],[Post-16 Post School 16-18]]+Table2[[#This Row],[Post-16 Post School 19-25]] -> 1 | R16: =Table2[[#This Row],[Total Pre-16]]+Table2[[#This Row],[Total Post 16]] -> 12
A17: ABBEYFIELD SCHOOL | B17: 9284007 | C17: 122250 | D17: ACADEMY - MAINSTREAM | E17: CentralSW | F17: East Midlands | G17: Northamptonshire | H17: 928 | I17: 0 | J17: 0 | K17: 0 | L17: 0 | M17: =Table2[[#This Row],[Pre-16 SEN Units - 2014 to 2015]]+Table2[[#This Row],[Pre-16 Resourced Provision - 2014 to 2015]]+Table2[[#This Row],[Pre-16 Alternative Provision - 2014 to 2016]]+Table2[[#This Row],[Pre-16 SEN Places - 2014 to 2015]] -> 0 | N17: 2 | O17: 0 | P17: 0 | Q17: =Table2[[#This Row],[Post-16 Schools 16-18]]+Table2[[#This Row],[Post-16 Post School 16-18]]+Table2[[#This Row],[Post-16 Post School 19-25]] -> 2 | R17: =Table2[[#This Row],[Total Pre-16]]+Table2[[#This Row],[Total Post 16]] -> 2
A18: ABBEYWOOD COMMUNITY SCHOOL | B18: 8034000 | C18: 122309 | D18: ACADEMY - MAINSTREAM | E18: CentralSW | F18: South West | G18: South Gloucestershire | H18: 803 | I18: 24 | J18: 0 | K18: 0 | L18: 0 | M18: =Table2[[#This Row],[Pre-16 SEN Units - 2014 to 2015]]+Table2[[#This Row],[Pre-16 Resourced Provision - 2014 to 2015]]+Table2[[#This Row],[Pre-16 Alternative Provision - 2014 to 2016]]+Table2[[#This Row],[Pre-16 SEN Places - 2014 to 2015]] -> 24 | N18: 2 | O18: 0 | P18: 0 | Q18: =Table2[[#This Row],[Post-16 Schools 16-18]]+Table2[[#This Row],[Post-16 Post School 16-18]]+Table2[[#This Row],[Post-16 Post School 19-25]] -> 2 | R18: =Table2[[#This Row],[Total Pre-16]]+Table2[[#This Row],[Total Post 16]] -> 26
A19: ABBOT'S LEA SCHOOL | B19: 3417025 | C19: 123756 | D19: MAINTAINED SPECIAL SCHOOL | E19: North | F19: North West | G19: Liverpool | H19: 341 | I19: 0 | J19: 0 | K19: 0 | L19: 185 | M19: =Table2[[#This Row],[Pre-16 SEN Units - 2014 to 2015]]+Table2[[#This Row],[Pre-16 Resourced Provision - 2014 to 2015]]+Table2[[#This Row],[Pre-16 Alternative Provision - 2014 to 2016]]+Table2[[#This Row],[Pre-16 SEN Places - 2014 to 2015]] -> 185 | N19: 43 | O19: 0 | P19: 0 | Q19: =Table2[[#This Row],[Post-16 Schools 16-18]]+Table2[[#This Row],[Post-16 Post School 16-18]]+Table2[[#This Row],[Post-16 Post School 19-25]] -> 43 | R19: =Table2[[#This Row],[Total Pre-16]]+Table2[[#This Row],[Total Post 16]] -> 228
A20: ABBOTSFIELD SCHOOL | B20: 3125409 | C20: 113769 | D20: MAINTAINED SCHOOL - MAINSTREAM | E20: South | F20: London | G20: Hillingdon | H20: 312 | I20: 0 | J20: 4 | K20: 0 | L20: 0 | M20: =Table2[[#This Row],[Pre-16 SEN Units - 2014 to 2015]]+Table2[[#This Row],[Pre-16 Resourced Provision - 2014 to 2015]]+Table2[[#This Row],[Pre-16 Alternative Provision - 2014 to 2016]]+Table2[[#This Row],[Pre-16 SEN Places - 2014 to 2015]] -> 4 | N20: 0 | O20: 0 | P20: 0 | Q20: =Table2[[#This Row],[Post-16 Schools 16-18]]+Table2[[#This Row],[Post-16 Post School 16-18]]+Table2[[#This Row],[Post-16 Post School 19-25]] -> 0 | R20: =Table2[[#This Row],[Total Pre-16]]+Table2[[#This Row],[Total Post 16]] -> 4
A21: ABINGDON AND WITNEY COLLEGE | B21: 9318007 | C21: 112314 | D21: FURTHER EDUCATION PROVIDER | E21: South | F21: South East | G21: Oxfordshire | H21: 931 | I21: 0 | J21: 0 | K21: 0 | L21: 0 | M21: =Table2[[#This Row],[Pre-16 SEN Units - 2014 to 2015]]+Table2[[#This Row],[Pre-16 Resourced Provision - 2014 to 2015]]+Table2[[#This Row],[Pre-16 Alternative Provision - 2014 to 2016]]+Table2[[#This Row],[Pre-16 SEN Places - 2014 to 2015]] -> 0 | N21: 0 | O21: 157 | P21: 55 | Q21: =Table2[[#This Row],[Post-16 Schools 16-18]]+Table2[[#This Row],[Post-16 Post School 16-18]]+Table2[[#This Row],[Post-16 Post School 19-25]] -> 212 | R21: =Table2[[#This Row],[Total Pre-16]]+Table2[[#This Row],[Total Post 16]] -> 212
A22: ABINGTON ACADEMY | B22: 8555403 | C22: 121203 | D22: ACADEMY - MAINSTREAM | E22: CentralSW | F22: East Midlands | G22: Leicestershire | H22: 855 | I22: 0 | J22: 6 | K22: 0 | L22: 0 | M22: =Table2[[#This Row],[Pre-16 SEN Units - 2014 to 2015]]+Table2[[#This Row],[Pre-16 Resourced Provision - 2014 to 2015]]+Table2[[#This Row],[Pre-16 Alternative Provision - 2014 to 2016]]+Table2[[#This Row],[Pre-16 SEN Places - 2014 to 2015]] -> 6 | N22: 0 | O22: 0 | P22: 0 | Q22: =Table2[[#This Row],[Post-16 Schools 16-18]]+Table2[[#This Row],[Post-16 Post School 16-18]]+Table2[[#This Row],[Post-16 Post School 19-25]] -> 0 | R22: =Table2[[#This Row],[Total Pre-16]]+Table2[[#This Row],[Total Post 16]] -> 6
A23: ABRAHAM MOSS COMMUNITY SCHOOL | B23: 3524271 | C23: 0 | D23: MAINTAINED SCHOOL - MAINSTREAM | E23: North | F23: North West | G23: Manchester | H23: 352 | I23: 0 | J23: 34 | K23: 0 | L23: 0 | M23: =Table2[[#This Row],[Pre-16 SEN Units - 2014 to 2015]]+Table2[[#This Row],[Pre-16 Resourced Provision - 2014 to 2015]]+Table2[[#This Row],[Pre-16 Alternative Provision - 2014 to 2016]]+Table2[[#This Row],[Pre-16 SEN Places - 2014 to 2015]] -> 34 | N23: 0 | O23: 0 | P23: 0 | Q23: =Table2[[#This Row],[Post-16 Schools 16-18]]+Table2[[#This Row],[Post-16 Post School 16-18]]+Table2[[#This Row],[Post-16 Post School 19-25]] -> 0 | R23: =Table2[[#This Row],[Total Pre-16]]+Table2[[#This Row],[Total Post 16]] -> 34
A24: ACADEMY 360 | B24: 3946905 | C24: 119119 | D24: ACADEMY - MAINSTREAM | E24: North | F24: North East | G24: Sunderland | H24: 394 | I24: 0 | J24: 30 | K24: 0 | L24: 0 | M24: =Table2[[#This Row],[Pre-16 SEN Units - 2014 to 2015]]+Table2[[#This Row],[Pre-16 Resourced Provision - 2014 to 2015]]+Table2[[#This Row],[Pre-16 Alternative Provision - 2014 to 2016]]+Table2[[#This Row],[Pre-16 SEN Places - 2014 to 2015]] -> 30 | N24: 0 | O24: 0 | P24: 0 | Q24: =Table2[[#This Row],[Post-16 Schools 16-18]]+Table2[[#This Row],[Post-16 Post School 16-18]]+Table2[[#This Row],[Post-16 Post School 19-25]] -> 0 | R24: =Table2[[#This Row],[Total Pre-16]]+Table2[[#This Row],[Total Post 16]] -> 30
A25: ACCRINGTON AND ROSSENDALE COLLEGE | B25: 8888000 | C25: 106762 | D25: FURTHER EDUCATION PROVIDER | E25: North | F25: North West | G25: Lancashire | H25: 888 | I25: 0 | J25: 0 | K25: 0 | L25: 0 | M25: =Table2[[#This Row],[Pre-16 SEN Units - 2014 to 2015]]+Table2[[#This Row],[Pre-16 Resourced Provision - 2014 to 2015]]+Table2[[#This Row],[Pre-16 Alternative Provision - 2014 to 2016]]+Table2[[#This Row],[Pre-16 SEN Places - 2014 to 2015]] -> 0 | N25: 0 | O25: 22 | P25: 3 | Q25: =Table2[[#This Row],[Post-16 Schools 16-18]]+Table2[[#This Row],[Post-16 Post School 16-18]]+Table2[[#This Row],[Post-16 Post School 19-25]] -> 25 | R25: =Table2[[#This Row],[Total Pre-16]]+Table2[[#This Row],[Total Post 16]] -> 25
A26: ACCRINGTON ST CHRISTOPHER'S CHURCH OF ENGLAND HIGH SCHOOL | B26: 8884630 | C26: 120359 | D26: ACADEMY - MAINSTREAM | E26: North | F26: North West | G26: Lancashire | H26: 888 | I26: 0 | J26: 0 | K26: 0 | L26: 0 | M26: =Table2[[#This Row],[Pre-16 SEN Units - 2014 to 2015]]+Table2[[#This Row],[Pre-16 Resourced Provision - 2014 to 2015]]+Table2[[#This Row],[Pre-16 Alternative Provision - 2014 to 2016]]+Table2[[#This Row],[Pre-16 SEN Places - 2014 to 2015]] -> 0 | N26: 6 | O26: 0 | P26: 0 | Q26: =Table2[[#This Row],[Post-16 Schools 16-18]]+Table2[[#This Row],[Post-16 Post School 16-18]]+Table2[[#This Row],[Post-16 Post School 19-25]] -> 6 | R26: =Table2[[#This Row],[Total Pre-16]]+Table2[[#This Row],[Total Post 16]] -> 6
A27: Acers East Lancs Campus - Burnley and Pendle Centre | B27: 8881119 | C27: 0 | D27: MAINTAINED ALTERNATIVE PROVISION (AP) - PRU | E27: North | F27: North West | G27: Lancashire | H27: 888 | I27: 0 | J27: 0 | K27: 113 | L27: 0 | M27: =Table2[[#This Row],[Pre-16 SEN Units - 2014 to 2015]]+Table2[[#This Row],[Pre-16 Resourced Provision - 2014 to 2015]]+Table2[[#This Row],[Pre-16 Alternative Provision - 2014 to 2016]]+Table2[[#This Row],[Pre-16 SEN Places - 2014 to 2015]] -> 113 | N27: 0 | O27: 0 | P27: 0 | Q27: =Table2[[#This Row],[Post-16 Schools 16-18]]+Table2[[#This Row],[Post-16 Post School 16-18]]+Table2[[#This Row],[Post-16 Post School 19-25]] -> 0 | R27: =Table2[[#This Row],[Total Pre-16]]+Table2[[#This Row],[Total Post 16]] -> 113
A28: ACLAND BURGHLEY SCHOOL | B28: 2024285 | C28: 113861 | D28: MAINTAINED SCHOOL - MAINSTREAM | E28: South | F28: London | G28: Camden | H28: 202 | I28: 0 | J28: 16 | K28: 0 | L28: 0 | M28: =Table2[[#This Row],[Pre-16 SEN Units - 2014 to 2015]]+Table2[[#This Row],[Pre-16 Resourced Provision - 2014 to 2015]]+Table2[[#This Row],[Pre-16 Alternative Provision - 2014 to 2016]]+Table2[[#This Row],[Pre-16 SEN Places - 2014 to 2015]] -> 16 | N28: 7 | O28: 0 | P28: 0 | Q28: =Table2[[#This Row],[Post-16 Schools 16-18]]+Table2[[#This Row],[Post-16 Post School 16-18]]+Table2[[#This Row],[Post-16 Post School 19-25]] -> 7 | R28: =Table2[[#This Row],[Total Pre-16]]+Table2[[#This Row],[Total Post 16]] -> 23
A29: ACORNS PRIMARY SCHOOL | B29: 8887119 | C29: 0 | D29: MAINTAINED SPECIAL SCHOOL | E29: North | F29: North West | G29: Lancashire | H29: 888 | I29: 0 | J29: 0 | K29: 0 | L29: 68 | M29: =Table2[[#This Row],[Pre-16 SEN Units - 2014 to 2015]]+Table2[[#This Row],[Pre-16 Resourced Provision - 2014 to 2015]]+Table2[[#This Row],[Pre-16 Alternative Provision - 2014 to 2016]]+Table2[[#This Row],[Pre-16 SEN Places - 2014 to 2015]] -> 68 | N29: 0 | O29: 0 | P29: 0 | Q29: =Table2[[#This Row],[Post-16 Schools 16-18]]+Table2[[#This Row],[Post-16 Post School 16-18]]+Table2[[#This Row],[Post-16 Post School 19-25]] -> 0 | R29: =Table2[[#This Row],[Total Pre-16]]+Table2[[#This Row],[Total Post 16]] -> 68
A30: ACRE HALL ACADEMY | B30: 3582015 | C30: 122311 | D30: ACADEMY - MAINSTREAM | E30: North | F30: North West | G30: Trafford | H30: 358 | I30: 30 | J30: 0 | K30: 0 | L30: 0 | M30: =Table2[[#This Row],[Pre-16 SEN Units - 2014 to 2015]]+Table2[[#This Row],[Pre-16 Resourced Provision - 2014 to 2015]]+Table2[[#This Row],[Pre-16 Alternative Provision - 2014 to 2016]]+Table2[[#This Row],[Pre-16 SEN Places - 2014 to 2015]] -> 30 | N30: 0 | O30: 0 | P30: 0 | Q30: =Table2[[#This Row],[Post-16 Schools 16-18]]+Table2[[#This Row],[Post-16 Post School 16-18]]+Table2[[#This Row],[Post-16 Post School 19-25]] -> 0 | R30: =Table2[[#This Row],[Total Pre-16]]+Table2[[#This Row],[Total Post 16]] -> 30
A31: ACRESFIELD COMMUNITY PRIMARY SCHOOL | B31: 8962678 | C31: 0 | D31: MAINTAINED SCHOOL - MAINSTREAM | E31: North | F31: North West | G31: Cheshire West and Chester | H31: 896 | I31: 0 | J31: 7 | K31: 0 | L31: 0 | M31: =Table2[[#This Row],[Pre-16 SEN Units - 2014 to 2015]]+Table2[[#This Row],[Pre-16 Resourced Provision - 2014 to 2015]]+Table2[[#This Row],[Pre-16 Alternative Provision - 2014 to 2016]]+Table2[[#This Row],[Pre-16 SEN Places - 2014 to 2015]] -> 7 | N31: 0 | O31: 0 | P31: 0 | Q31: =Table2[[#This Row],[Post-16 Schools 16-18]]+Table2[[#This Row],[Post-16 Post School 16-18]]+Table2[[#This Row],[Post-16 Post School 19-25]] -> 0 | R31: =Table2[[#This Row],[Total Pre-16]]+Table2[[#This Row],[Total Post 16]] -> 7
A32: ACTION FOR CHILDREN, SPIRES SCHOOL - PARKLANDS CAMPUS | B32: 9317026 | C32: 123727 | D32: NON MAINTAINED SPECIAL SCHOOL | E32: South | F32: South East | G32: Oxfordshire | H32: 931 | I32: 0 | J32: 0 | K32: 0 | L32: 8 | M32: =Table2[[#This Row],[Pre-16 SEN Units - 2014 to 2015]]+Table2[[#This Row],[Pre-16 Resourced Provision - 2014 to 2015]]+Table2[[#This Row],[Pre-16 Alternative Provision - 2014 to 2016]]+Table2[[#This Row],[Pre-16 SEN Places - 2014 to 2015]] -> 8 | N32: 8 | O32: 0 | P32: 0 | Q32: =Table2[[#This Row],[Post-16 Schools 16-18]]+Table2[[#This Row],[Post-16 Post School 16-18]]+Table2[[#This Row],[Post-16 Post School 19-25]] -> 8 | R32: =Table2[[#This Row],[Total Pre-16]]+Table2[[#This Row],[Total Post 16]] -> 16
A33: ACTIVATE ARTS LTD | B33: 0 | C33: 124167 | D33: POST-16 CHARITABLE AND COMMERCIAL PROVIDER | E33: North | F33: North West | G33: Knowsley | H33: 340 | I33: 0 | J33: 0 | K33: 0 | L33: 0 | M33: =Table2[[#This Row],[Pre-16 SEN Units - 2014 to 2015]]+Table2[[#This Row],[Pre-16 Resourced Provision - 2014 to 2015]]+Table2[[#This Row],[Pre-16 Alternative Provision - 2014 to 2016]]+Table2[[#This Row],[Pre-16 SEN Places - 2014 to 2015]] -> 0 | N33: 0 | O33: 10 | P33: 36 | Q33: =Table2[[#This Row],[Post-16 Schools 16-18]]+Table2[[#This Row],[Post-16 Post School 16-18]]+Table2[[#This Row],[Post-16 Post School 19-25]] -> 46 | R33: =Table2[[#This Row],[Total Pre-16]]+Table2[[#This Row],[Total Post 16]] -> 46
A34: ACTIVATE LEARNING | B34: 9318004 | C34: 116105 | D34: FURTHER EDUCATION PROVIDER | E34: South | F34: South East | G34: Oxfordshire | H34: 931 | I34: 0 | J34: 0 | K34: 0 | L34: 0 | M34: =Table2[[#This Row],[Pre-16 SEN Units - 2014 to 2015]]+Table2[[#This Row],[Pre-16 Resourced Provision - 2014 to 2015]]+Table2[[#This Row],[Pre-16 Alternative Provision - 2014 to 2016]]+Table2[[#This Row],[Pre-16 SEN Places - 2014 to 2015]] -> 0 | N34: 0 | O34: 77 | P34: 66 | Q34: =Table2[[#This Row],[Post-16 Schools 16-18]]+Table2[[#This Row],[Post-16 Post School 16-18]]+Table2[[#This Row],[Post-16 Post School 19-25]] -> 143 | R34: =Table2[[#This Row],[Total Pre-16]]+Table2[[#This Row],[Total Post 16]] -> 143
A35: ACTON HIGH SCHOOL | B35: 3074035 | C35: 122226 | D35: MAINTAINED SCHOOL - MAINSTREAM | E35: South | F35: London | G35: Ealing | H35: 307 | I35: 0 | J35: 0 | K35: 0 | L35: 0 | M35: =Table2[[#This Row],[Pre-16 SEN Units - 2014 to 2015]]+Table2[[#This Row],[Pre-16 Resourced Provision - 2014 to 2015]]+Table2[[#This Row],[Pre-16 Alternative Provision - 2014 to 2016]]+Table2[[#This Row],[Pre-16 SEN Places - 2014 to 2015]] -> 0 | N35: 1 | O35: 0 | P35: 0 | Q35: =Table2[[#This Row],[Post-16 Schools 16-18]]+Table2[[#This Row],[Post-16 Post School 16-18]]+Table2[[#This Row],[Post-16 Post School 19-25]] -> 1 | R35: =Table2[[#This Row],[Total Pre-16]]+Table2[[#This Row],[Total Post 16]] -> 1
A36: ADDEY AND STANHOPE SCHOOL | B36: 2094600 | C36: 0 | D36: MAINTAINED SCHOOL - MAINSTREAM | E36: South | F36: London | G36: Lewisham | H36: 209 | I36: 0 | J36: 25 | K36: 0 | L36: 0 | M36: =Table2[[#This Row],[Pre-16 SEN Units - 2014 to 2015]]+Table2[[#This Row],[Pre-16 Resourced Provision - 2014 to 2015]]+Table2[[#This Row],[Pre-16 Alternative Provision - 2014 to 2016]]+Table2[[#This Row],[Pre-16 SEN Places - 2014 to 2015]] -> 25 | N36: 0 | O36: 0 | P36: 0 | Q36: =Table2[[#This Row],[Post-16 Schools 16-18]]+Table2[[#This Row],[Post-16 Post School 16-18]]+Table2[[#This Row],[Post-16 Post School 19-25]] -> 0 | R36: =Table2[[#This Row],[Total Pre-16]]+Table2[[#This Row],[Total Post 16]] -> 25
A37: ADDINGTON HIGH SCHOOL | B37: 3064000 | C37: 122641 | D37: ACADEMY - MAINSTREAM | E37: South | F37: London | G37: Croydon | H37: 306 | I37: 30 | J37: 0 | K37: 0 | L37: 0 | M37: =Table2[[#This Row],[Pre-16 SEN Units - 2014 to 2015]]+Table2[[#This Row],[Pre-16 Resourced Provision - 2014 to 2015]]+Table2[[#This Row],[Pre-16 Alternative Provision - 2014 to 2016]]+Table2[[#This Row],[Pre-16 SEN Places - 2014 to 2015]] -> 30 | N37: 5 | O37: 0 | P37: 0 | Q37: =Table2[[#This Row],[Post-16 Schools 16-18]]+Table2[[#This Row],[Post-16 Post School 16-18]]+Table2[[#This Row],[Post-16 Post School 19-25]] -> 5 | R37: =Table2[[#This Row],[Total Pre-16]]+Table2[[#This Row],[Total Post 16]] -> 35
A38: ADDINGTON SCHOOL | B38: 8727029 | C38: 123987 | D38: MAINTAINED SPECIAL SCHOOL | E38: South | F38: South East | G38: Wokingham | H38: 872 | I38: 0 | J38: 0 | K38: 0 | L38: 155 | M38: =Table2[[#This Row],[Pre-16 SEN Units - 2014 to 2015]]+Table2[[#This Row],[Pre-16 Resourced Provision - 2014 to 2015]]+Table2[[#This Row],[Pre-16 Alternative Provision - 2014 to 2016]]+Table2[[#This Row],[Pre-16 SEN Places - 2014 to 2015]] -> 155 | N38: 43 | O38: 0 | P38: 0 | Q38: =Table2[[#This Row],[Post-16 Schools 16-18]]+Table2[[#This Row],[Post-16 Post School 16-18]]+Table2[[#This Row],[Post-16 Post School 19-25]] -> 43 | R38: =Table2[[#This Row],[Total Pre-16]]+Table2[[#This Row],[Total Post 16]] -> 198
A39: ADELAIDE SCHOOL | B39: 8957209 | C39: 129409 | D39: ACADEMY - SPECIAL | E39: North | F39: North West | G39: Cheshire East | H39: 895 | I39: 0 | J39: 0 | K39: 0 | L39: 36 | M39: =Table2[[#This Row],[Pre-16 SEN Units - 2014 to 2015]]+Table2[[#This Row],[Pre-16 Resourced Provision - 2014 to 2015]]+Table2[[#This Row],[Pre-16 Alternative Provision - 2014 to 2016]]+Table2[[#This Row],[Pre-16 SEN Places - 2014 to 2015]] -> 36 | N39: 2 | O39: 0 | P39: 0 | Q39: =Table2[[#This Row],[Post-16 Schools 16-18]]+Table2[[#This Row],[Post-16 Post School 16-18]]+Table2[[#This Row],[Post-16 Post School 19-25]] -> 2 | R39: =Table2[[#This Row],[Total Pre-16]]+Table2[[#This Row],[Total Post 16]] -> 38
A40: ADULT EDUCATION COLLEGE FOR BEXLEY | B40: 0 | C40: 108155 | D40: FURTHER EDUCATION PROVIDER | E40: South | F40: London | G40: Bexley | H40: 303 | I40: 0 | J40: 0 | K40: 0 | L40: 0 | M40: =Table2[[#This Row],[Pre-16 SEN Units - 2014 to 2015]]+Table2[[#This Row],[Pre-16 Resourced Provision - 2014 to 2015]]+Table2[[#This Row],[Pre-16 Alternative Provision - 2014 to 2016]]+Table2[[#This Row],[Pre-16 SEN Places - 2014 to 2015]] -> 0 | N40: 0 | O40: 5 | P40: 0 | Q40: =Table2[[#This Row],[Post-16 Schools 16-18]]+Table2[[#This Row],[Post-16 Post School 16-18]]+Table2[[#This Row],[Post-16 Post School 19-25]] -> 5 | R40: =Table2[[#This Row],[Total Pre-16]]+Table2[[#This Row],[Total Post 16]] -> 5
A41: AEGIR COMMUNITY SCHOOL | B41: 9257034 | C41: 123634 | D41: MAINTAINED SPECIAL SCHOOL | E41: CentralSW | F41: East Midlands | G41: Lincolnshire | H41: 925 | I41: 0 | J41: 0 | K41: 0 | L41: 96 | M41: =Table2[[#This Row],[Pre-16 SEN Units - 2014 to 2015]]+Table2[[#This Row],[Pre-16 Resourced Provision - 2014 to 2015]]+Table2[[#This Row],[Pre-16 Alternative Provision - 2014 to 2016]]+Table2[[#This Row],[Pre-16 SEN Places - 2014 to 2015]] -> 96 | N41: 32 | O41: 0 | P41: 0 | Q41: =Table2[[#This Row],[Post-16 Schools 16-18]]+Table2[[#This Row],[Post-16 Post School 16-18]]+Table2[[#This Row],[Post-16 Post School 19-25]] -> 32 | R41: =Table2[[#This Row],[Total Pre-16]]+Table2[[#This Row],[Total Post 16]] -> 128
A42: AERODROME PRIMARY ACADEMY | B42: 3063417 | C42: 123037 | D42: ACADEMY - MAINSTREAM | E42: South | F42: London | G42: Croydon | H42: 306 | I42: 14 | J42: 0 | K42: 0 | L42: 0 | M42: =Table2[[#This Row],[Pre-16 SEN Units - 2014 to 2015]]+Table2[[#This Row],[Pre-16 Resourced Provision - 2014 to 2015]]+Table2[[#This Row],[Pre-16 Alternative Provision - 2014 to 2016]]+Table2[[#This Row],[Pre-16 SEN Places - 2014 to 2015]] -> 14 | N42: 0 | O42: 0 | P42: 0 | Q42: =Table2[[#This Row],[Post-16 Schools 16-18]]+Table2[[#This Row],[Post-16 Post School 16-18]]+Table2[[#This Row],[Post-16 Post School 19-25]] -> 0 | R42: =Table2[[#This Row],[Total Pre-16]]+Table2[[#This Row],[Total Post 16]] -> 14
A43: AIGBURTH HIGH SCHOOL | B43: 3417069 | C43: 123830 | D43: MAINTAINED SPECIAL SCHOOL | E43: North | F43: North West | G43: Liverpool | H43: 341 | I43: 0 | J43: 0 | K43: 0 | L43: 100 | M43: =Table2[[#This Row],[Pre-16 SEN Units - 2014 to 2015]]+Table2[[#This Row],[Pre-16 Resourced Provision - 2014 to 2015]]+Table2[[#This Row],[Pre-16 Alternative Provision - 2014 to 2016]]+Table2[[#This Row],[Pre-16 SEN Places - 2014 to 2015]] -> 100 | N43: 20 | O43: 0 | P43: 0 | Q43: =Table2[[#This Row],[Post-16 Schools 16-18]]+Table2[[#This Row],[Post-16 Post School 16-18]]+Table2[[#This Row],[Post-16 Post School 19-25]] -> 20 | R43: =Table2[[#This Row],[Total Pre-16]]+Table2[[#This Row],[Total Post 16]] -> 120
A44: ALBANY CENTRE | B44: 9351103 | C44: 0 | D44: MAINTAINED ALTERNATIVE PROVISION (AP) - PRU | E44: South | F44: East of England | G44: Suffolk | H44: 935 | I44: 0 | J44: 0 | K44: 27 | L44: 0 | M44: =Table2[[#This Row],[Pre-16 SEN Units - 2014 to 2015]]+Table2[[#This Row],[Pre-16 Resourced Provision - 2014 to 2015]]+Table2[[#This Row],[Pre-16 Alternative Provision - 2014 to 2016]]+Table2[[#This Row],[Pre-16 SEN Places - 2014 to 2015]] -> 27 | N44: 0 | O44: 0 | P44: 0 | Q44: =Table2[[#This Row],[Post-16 Schools 16-18]]+Table2[[#This Row],[Post-16 Post School 16-18]]+Table2[[#This Row],[Post-16 Post School 19-25]] -> 0 | R44: =Table2[[#This Row],[Total Pre-16]]+Table2[[#This Row],[Total Post 16]] -> 27
A45: ALBERT PRITCHARD INFANT SCHOOL | B45: 3332042 | C45: 0 | D45: MAINTAINED SCHOOL - MAINSTREAM | E45: CentralSW | F45: West Midlands | G45: Sandwell | H45: 333 | I45: 0 | J45: 6 | K45: 0 | L45: 0 | M45: =Table2[[#This Row],[Pre-16 SEN Units - 2014 to 2015]]+Table2[[#This Row],[Pre-16 Resourced Provision - 2014 to 2015]]+Table2[[#This Row],[Pre-16 Alternative Provision - 2014 to 2016]]+Table2[[#This Row],[Pre-16 SEN Places - 2014 to 2015]] -> 6 | N45: 0 | O45: 0 | P45: 0 | Q45: =Table2[[#This Row],[Post-16 Schools 16-18]]+Table2[[#This Row],[Post-16 Post School 16-18]]+Table2[[#This Row],[Post-16 Post School 19-25]] -> 0 | R45: =Table2[[#This Row],[Total Pre-16]]+Table2[[#This Row],[Total Post 16]] -> 6
A46: ALDER BROOK PRIMARY PARTNERSHIP CENTRE | B46: 3551103 | C46: 0 | D46: MAINTAINED ALTERNATIVE PROVISION (AP) - PRU | E46: North | F46: North West | G46: Salford | H46: 355 | I46: 0 | J46: 0 | K46: 40 | L46: 0 | M46: =Table2[[#This Row],[Pre-16 SEN Units - 2014 to 2015]]+Table2[[#This Row],[Pre-16 Resourced Provision - 2014 to 2015]]+Table2[[#This Row],[Pre-16 Alternative Provision - 2014 to 2016]]+Table2[[#This Row],[Pre-16 SEN Places - 2014 to 2015]] -> 40 | N46: 0 | O46: 0 | P46: 0 | Q46: =Table2[[#This Row],[Post-16 Schools 16-18]]+Table2[[#This Row],[Post-16 Post School 16-18]]+Table2[[#This Row],[Post-16 Post School 19-25]] -> 0 | R46: =Table2[[#This Row],[Total Pre-16]]+Table2[[#This Row],[Total Post 16]] -> 40
A47: ALDERBROOK LEADING EDGE SCHOOL AND ARTS COLLEGE | B47: 3344015 | C47: 119994 | D47: ACADEMY - MAINSTREAM | E47: CentralSW | F47: West Midlands | G47: Solihull | H47: 334 | I47: 40 | J47: 0 | K47: 0 | L47: 0 | M47: =Table2[[#This Row],[Pre-16 SEN Units - 2014 to 2015]]+Table2[[#This Row],[Pre-16 Resourced Provision - 2014 to 2015]]+Table2[[#This Row],[Pre-16 Alternative Provision - 2014 to 2016]]+Table2[[#This Row],[Pre-16 SEN Places - 2014 to 2015]] -> 40 | N47: 0 | O47: 0 | P47: 0 | Q47: =Table2[[#This Row],[Post-16 Schools 16-18]]+Table2[[#This Row],[Post-16 Post School 16-18]]+Table2[[#This Row],[Post-16 Post School 19-25]] -> 0 | R47: =Table2[[#This Row],[Total Pre-16]]+Table2[[#This Row],[Total Post 16]] -> 40
A48: ALDERCAR COMMUNITY LANGUAGE COLLEGE | B48: 8304089 | C48: 118227 | D48: MAINTAINED SCHOOL - MAINSTREAM | E48: CentralSW | F48: East Midlands | G48: Derbyshire | H48: 830 | I48: 0 | J48: 7 | K48: 0 | L48: 0 | M48: =Table2[[#This Row],[Pre-16 SEN Units - 2014 to 2015]]+Table2[[#This Row],[Pre-16 Resourced Provision - 2014 to 2015]]+Table2[[#This Row],[Pre-16 Alternative Provision - 2014 to 2016]]+Table2[[#This Row],[Pre-16 SEN Places - 2014 to 2015]] -> 7 | N48: 11 | O48: 0 | P48: 0 | Q48: =Table2[[#This Row],[Post-16 Schools 16-18]]+Table2[[#This Row],[Post-16 Post School 16-18]]+Table2[[#This Row],[Post-16 Post School 19-25]] -> 11 | R48: =Table2[[#This Row],[Total Pre-16]]+Table2[[#This Row],[Total Post 16]] -> 18
A49: ALDERCAR INFANT SCHOOL | B49: 8302116 | C49: 0 | D49: MAINTAINED SCHOOL - MAINSTREAM | E49: CentralSW | F49: East Midlands | G49: Derbyshire | H49: 830 | I49: 0 | J49: 8 | K49: 0 | L49: 0 | M49: =Table2[[#This Row],[Pre-16 SEN Units - 2014 to 2015]]+Table2[[#This Row],[Pre-16 Resourced Provision - 2014 to 2015]]+Table2[[#This Row],[Pre-16 Alternative Provision - 2014 to 2016]]+Table2[[#This Row],[Pre-16 SEN Places - 2014 to 2015]] -> 8 | N49: 0 | O49: 0 | P49: 0 | Q49: =Table2[[#This Row],[Post-16 Schools 16-18]]+Table2[[#This Row],[Post-16 Post School 16-18]]+Table2[[#This Row],[Post-16 Post School 19-25]] -> 0 | R49: =Table2[[#This Row],[Total Pre-16]]+Table2[[#This Row],[Total Post 16]] -> 8
A50: ALDERMAN KNIGHT SCHOOL | B50: 9167019 | C50: 0 | D50: MAINTAINED SPECIAL SCHOOL | E50: CentralSW | F50: South West | G50: Gloucestershire | H50: 916 | I50: 0 | J50: 0 | K50: 0 | L50: 114 | M50: =Table2[[#This Row],[Pre-16 SEN Units - 2014 to 2015]]+Table2[[#This Row],[Pre-16 Resourced Provision - 2014 to 2015]]+Table2[[#This Row],[Pre-16 Alternative Provision - 2014 to 2016]]+Table2[[#This Row],[Pre-16 SEN Places - 2014 to 2015]] -> 114 | N50: 0 | O50: 0 | P50: 0 | Q50: =Table2[[#This Row],[Post-16 Schools 16-18]]+Table2[[#This Row],[Post-16 Post School 16-18]]+Table2[[#This Row],[Post-16 Post School 19-25]] -> 0 | R50: =Table2[[#This Row],[Total Pre-16]]+Table2[[#This Row],[Total Post 16]] -> 114
A51: ALDERMAN'S GREEN COMMUNITY PRIMARY SCHOOL | B51: 3312000 | C51: 0 | D51: MAINTAINED SCHOOL - MAINSTREAM | E51: CentralSW | F51: West Midlands | G51: Coventry | H51: 331 | I51: 0 | J51: 12 | K51: 0 | L51: 0 | M51: =Table2[[#This Row],[Pre-16 SEN Units - 2014 to 2015]]+Table2[[#This Row],[Pre-16 Resourced Provision - 2014 to 2015]]+Table2[[#This Row],[Pre-16 Alternative Provision - 2014 to 2016]]+Table2[[#This Row],[Pre-16 SEN Places - 2014 to 2015]] -> 12 | N51: 0 | O51: 0 | P51: 0 | Q51: =Table2[[#This Row],[Post-16 Schools 16-18]]+Table2[[#This Row],[Post-16 Post School 16-18]]+Table2[[#This Row],[Post-16 Post School 19-25]] -> 0 | R51: =Table2[[#This Row],[Total Pre-16]]+Table2[[#This Row],[Total Post 16]] -> 12
A52: ALDERMOOR FARM PRIMARY SCHOOL | B52: 3312131 | C52: 0 | D52: MAINTAINED SCHOOL - MAINSTREAM | E52: CentralSW | F52: West Midlands | G52: Coventry | H52: 331 | I52: 0 | J52: 8 | K52: 0 | L52: 0 | M52: =Table2[[#This Row],[Pre-16 SEN Units - 2014 to 2015]]+Table2[[#This Row],[Pre-16 Resourced Provision - 2014 to 2015]]+Table2[[#This Row],[Pre-16 Alternative Provision - 2014 to 2016]]+Table2[[#This Row],[Pre-16 SEN Places - 2014 to 2015]] -> 8 | N52: 0 | O52: 0 | P52: 0 | Q52: =Table2[[#This Row],[Post-16 Schools 16-18]]+Table2[[#This Row],[Post-16 Post School 16-18]]+Table2[[#This Row],[Post-16 Post School 19-25]] -> 0 | R52: =Table2[[#This Row],[Total Pre-16]]+Table2[[#This Row],[Total Post 16]] -> 8
A53: ALDERSLEY HIGH SCHOOL | B53: 3365402 | C53: 122992 | D53: ACADEMY - MAINSTREAM | E53: CentralSW | F53: West Midlands | G53: Wolverhampton | H53: 336 | I53: 0 | J53: 15 | K53: 0 | L53: 0 | M53: =Table2[[#This Row],[Pre-16 SEN Units - 2014 to 2015]]+Table2[[#This Row],[Pre-16 Resourced Provision - 2014 to 2015]]+Table2[[#This Row],[Pre-16 Alternative Provision - 2014 to 2016]]+Table2[[#This Row],[Pre-16 SEN Places - 2014 to 2015]] -> 15 | N53: 2 | O53: 0 | P53: 0 | Q53: =Table2[[#This Row],[Post-16 Schools 16-18]]+Table2[[#This Row],[Post-16 Post School 16-18]]+Table2[[#This Row],[Post-16 Post School 19-25]] -> 2 | R53: =Table2[[#This Row],[Total Pre-16]]+Table2[[#This Row],[Total Post 16]] -> 17
A54: ALDERWOOD | B54: 9351111 | C54: 0 | D54: MAINTAINED ALTERNATIVE PROVISION (AP) - PRU | E54: South | F54: East of England | G54: Suffolk | H54: 935 | I54: 0 | J54: 0 | K54: 20 | L54: 0 | M54: =Table2[[#This Row],[Pre-16 SEN Units - 2014 to 2015]]+Table2[[#This Row],[Pre-16 Resourced Provision - 2014 to 2015]]+Table2[[#This Row],[Pre-16 Alternative Provision - 2014 to 2016]]+Table2[[#This Row],[Pre-16 SEN Places - 2014 to 2015]] -> 20 | N54: 0 | O54: 0 | P54: 0 | Q54: =Table2[[#This Row],[Post-16 Schools 16-18]]+Table2[[#This Row],[Post-16 Post School 16-18]]+Table2[[#This Row],[Post-16 Post School 19-25]] -> 0 | R54: =Table2[[#This Row],[Total Pre-16]]+Table2[[#This Row],[Total Post 16]] -> 20
A55: ALDERWOOD PRIMARY SCHOOL | B55: 2032024 | C55: 0 | D55: MAINTAINED SCHOOL - MAINSTREAM | E55: South | F55: London | G55: Greenwich | H55: 203 | I55: 0 | J55: 6 | K55: 0 | L55: 0 | M55: =Table2[[#This Row],[Pre-16 SEN Units - 2014 to 2015]]+Table2[[#This Row],[Pre-16 Resourced Provision - 2014 to 2015]]+Table2[[#This Row],[Pre-16 Alternative Provision - 2014 to 2016]]+Table2[[#This Row],[Pre-16 SEN Places - 2014 to 2015]] -> 6 | N55: 0 | O55: 0 | P55: 0 | Q55: =Table2[[#This Row],[Post-16 Schools 16-18]]+Table2[[#This Row],[Post-16 Post School 16-18]]+Table2[[#This Row],[Post-16 Post School 19-25]] -> 0 | R55: =Table2[[#This Row],[Total Pre-16]]+Table2[[#This Row],[Total Post 16]] -> 6
A56: ALEXANDRA INFANT SCHOOL | B56: 3052001 | C56: 125230 | D56: ACADEMY - MAINSTREAM | E56: South | F56: London | G56: Bromley | H56: 305 | I56: 18 | J56: 0 | K56: 0 | L56: 0 | M56: =Table2[[#This Row],[Pre-16 SEN Units - 2014 to 2015]]+Table2[[#This Row],[Pre-16 Resourced Provision - 2014 to 2015]]+Table2[[#This Row],[Pre-16 Alternative Provision - 2014 to 2016]]+Table2[[#This Row],[Pre-16 SEN Places - 2014 to 2015]] -> 18 | N56: 0 | O56: 0 | P56: 0 | Q56: =Table2[[#This Row],[Post-16 Schools 16-18]]+Table2[[#This Row],[Post-16 Post School 16-18]]+Table2[[#This Row],[Post-16 Post School 19-25]] -> 0 | R56: =Table2[[#This Row],[Total Pre-16]]+Table2[[#This Row],[Total Post 16]] -> 18
A57: ALEXANDRA NURSERY SCHOOL | B57: 3501002 | C57: 0 | D57: MAINTAINED SCHOOL - MAINSTREAM | E57: North | F57: North West | G57: Bolton | H57: 350 | I57: 0 | J57: 4 | K57: 0 | L57: 0 | M57: =Table2[[#This Row],[Pre-16 SEN Units - 2014 to 2015]]+Table2[[#This Row],[Pre-16 Resourced Provision - 2014 to 2015]]+Table2[[#This Row],[Pre-16 Alternative Provision - 2014 to 2016]]+Table2[[#This Row],[Pre-16 SEN Places - 2014 to 2015]] -> 4 | N57: 0 | O57: 0 | P57: 0 | Q57: =Table2[[#This Row],[Post-16 Schools 16-18]]+Table2[[#This Row],[Post-16 Post School 16-18]]+Table2[[#This Row],[Post-16 Post School 19-25]] -> 0 | R57: =Table2[[#This Row],[Total Pre-16]]+Table2[[#This Row],[Total Post 16]] -> 4
A58: ALEXANDRA PARK SCHOOL | B58: 3094036 | C58: 120567 | D58: ACADEMY - MAINSTREAM | E58: South | F58: London | G58: Haringey | H58: 309 | I58: 0 | J58: 0 | K58: 0 | L58: 0 | M58: =Table2[[#This Row],[Pre-16 SEN Units - 2014 to 2015]]+Table2[[#This Row],[Pre-16 Resourced Provision - 2014 to 2015]]+Table2[[#This Row],[Pre-16 Alternative Provision - 2014 to 2016]]+Table2[[#This Row],[Pre-16 SEN Places - 2014 to 2015]] -> 0 | N58: 1 | O58: 0 | P58: 0 | Q58: =Table2[[#This Row],[Post-16 Schools 16-18]]+Table2[[#This Row],[Post-16 Post School 16-18]]+Table2[[#This Row],[Post-16 Post School 19-25]] -> 1 | R58: =Table2[[#This Row],[Total Pre-16]]+Table2[[#This Row],[Total Post 16]] -> 1
A59: ALEXANDRA SCHOOL | B59: 3107004 | C59: 124171 | D59: ACADEMY - SPECIAL | E59: South | F59: London | G59: Harrow | H59: 310 | I59: 0 | J59: 0 | K59: 0 | L59: 80 | M59: =Table2[[#This Row],[Pre-16 SEN Units - 2014 to 2015]]+Table2[[#This Row],[Pre-16 Resourced Provision - 2014 to 2015]]+Table2[[#This Row],[Pre-16 Alternative Provision - 2014 to 2016]]+Table2[[#This Row],[Pre-16 SEN Places - 2014 to 2015]] -> 80 | N59: 0 | O59: 0 | P59: 0 | Q59: =Table2[[#This Row],[Post-16 Schools 16-18]]+Table2[[#This Row],[Post-16 Post School 16-18]]+Table2[[#This Row],[Post-16 Post School 19-25]] -> 0 | R59: =Table2[[#This Row],[Total Pre-16]]+Table2[[#This Row],[Total Post 16]] -> 80
A60: ALFRETON GRANGE ARTS COLLEGE | B60: 8304001 | C60: 113137 | D60: MAINTAINED SCHOOL - MAINSTREAM | E60: CentralSW | F60: East Midlands | G60: Derbyshire | H60: 830 | I60: 0 | J60: 0 | K60: 0 | L60: 0 | M60: =Table2[[#This Row],[Pre-16 SEN Units - 2014 to 2015]]+Table2[[#This Row],[Pre-16 Resourced Provision - 2014 to 2015]]+Table2[[#This Row],[Pre-16 Alternative Provision - 2014 to 2016]]+Table2[[#This Row],[Pre-16 SEN Places - 2014 to 2015]] -> 0 | N60: 1 | O60: 0 | P60: 0 | Q60: =Table2[[#This Row],[Post-16 Schools 16-18]]+Table2[[#This Row],[Post-16 Post School 16-18]]+Table2[[#This Row],[Post-16 Post School 19-25]] -> 1 | R60: =Table2[[#This Row],[Total Pre-16]]+Table2[[#This Row],[Total Post 16]] -> 1
A61: ALFRETON PARK COMMUNITY SPECIAL SCHOOL | B61: 8307018 | C61: 123740 | D61: MAINTAINED SPECIAL SCHOOL | E61: CentralSW | F61: East Midlands | G61: Derbyshire | H61: 830 | I61: 0 | J61: 0 | K61: 0 | L61: 61 | M61: =Table2[[#This Row],[Pre-16 SEN Units - 2014 to 2015]]+Table2[[#This Row],[Pre-16 Resourced Provision - 2014 to 2015]]+Table2[[#This Row],[Pre-16 Alternative Provision - 2014 to 2016]]+Table2[[#This Row],[Pre-16 SEN Places - 2014 to 2015]] -> 61 | N61: 17 | O61: 0 | P61: 0 | Q61: =Table2[[#This Row],[Post-16 Schools 16-18]]+Table2[[#This Row],[Post-16 Post School 16-18]]+Table2[[#This Row],[Post-16 Post School 19-25]] -> 17 | R61: =Table2[[#This Row],[Total Pre-16]]+Table2[[#This Row],[Total Post 16]] -> 78
A62: ALFRISTON SCHOOL | B62: 8257003 | C62: 120753 | D62: ACADEMY - SPECIAL | E62: South | F62: South East | G62: Buckinghamshire | H62: 825 | I62: 0 | J62: 0 | K62: 0 | L62: 114 | M62: =Table2[[#This Row],[Pre-16 SEN Units - 2014 to 2015]]+Table2[[#This Row],[Pre-16 Resourced Provision - 2014 to 2015]]+Table2[[#This Row],[Pre-16 Alternative Provision - 2014 to 2016]]+Table2[[#This Row],[Pre-16 SEN Places - 2014 to 2015]] -> 114 | N62: 24 | O62: 0 | P62: 0 | Q62: =Table2[[#This Row],[Post-16 Schools 16-18]]+Table2[[#This Row],[Post-16 Post School 16-18]]+Table2[[#This Row],[Post-16 Post School 19-25]] -> 24 | R62: =Table2[[#This Row],[Total Pre-16]]+Table2[[#This Row],[Total Post 16]] -> 138
A63: ALICE STEVENS SCHOOL | B63: 3317004 | C63: 123556 | D63: MAINTAINED SPECIAL SCHOOL | E63: CentralSW | F63: West Midlands | G63: Coventry | H63: 331 | I63: 0 | J63: 0 | K63: 0 | L63: 140 | M63: =Table2[[#This Row],[Pre-16 SEN Units - 2014 to 2015]]+Table2[[#This Row],[Pre-16 Resourced Provision - 2014 to 2015]]+Table2[[#This Row],[Pre-16 Alternative Provision - 2014 to 2016]]+Table2[[#This Row],[Pre-16 SEN Places - 2014 to 2015]] -> 140 | N63: 20 | O63: 0 | P63: 0 | Q63: =Table2[[#This Row],[Post-16 Schools 16-18]]+Table2[[#This Row],[Post-16 Post School 16-18]]+Table2[[#This Row],[Post-16 Post School 19-25]] -> 20 | R63: =Table2[[#This Row],[Total Pre-16]]+Table2[[#This Row],[Total Post 16]] -> 160
A64: ALL FAITHS' CHILDREN'S COMMUNITY SCHOOL | B64: 8872600 | C64: 121000 | D64: ACADEMY - MAINSTREAM | E64: South | F64: South East | G64: Medway | H64: 887 | I64: 0 | J64: 34 | K64: 0 | L64: 0 | M64: =Table2[[#This Row],[Pre-16 SEN Units - 2014 to 2015]]+Table2[[#This Row],[Pre-16 Resourced Provision - 2014 to 2015]]+Table2[[#This Row],[Pre-16 Alternative Provision - 2014 to 2016]]+Table2[[#This Row],[Pre-16 SEN Places - 2014 to 2015]] -> 34 | N64: 0 | O64: 0 | P64: 0 | Q64: =Table2[[#This Row],[Post-16 Schools 16-18]]+Table2[[#This Row],[Post-16 Post School 16-18]]+Table2[[#This Row],[Post-16 Post School 19-25]] -> 0 | R64: =Table2[[#This Row],[Total Pre-16]]+Table2[[#This Row],[Total Post 16]] -> 34
A65: ALL HALLOWS CATHOLIC COLLEGE | B65: 8954801 | C65: 123111 | D65: ACADEMY - MAINSTREAM | E65: North | F65: North West | G65: Cheshire East | H65: 895 | I65: 0 | J65: 0 | K65: 0 | L65: 0 | M65: =Table2[[#This Row],[Pre-16 SEN Units - 2014 to 2015]]+Table2[[#This Row],[Pre-16 Resourced Provision - 2014 to 2015]]+Table2[[#This Row],[Pre-16 Alternative Provision - 2014 to 2016]]+Table2[[#This Row],[Pre-16 SEN Places - 2014 to 2015]] -> 0 | N65: 2 | O65: 0 | P65: 0 | Q65: =Table2[[#This Row],[Post-16 Schools 16-18]]+Table2[[#This Row],[Post-16 Post School 16-18]]+Table2[[#This Row],[Post-16 Post School 19-25]] -> 2 | R65: =Table2[[#This Row],[Total Pre-16]]+Table2[[#This Row],[Total Post 16]] -> 2
A66: ALL HALLOWS CATHOLIC SCHOOL | B66: 9365415 | C66: 113315 | D66: MAINTAINED SCHOOL - MAINSTREAM | E66: South | F66: South East | G66: Surrey | H66: 936 | I66: 0 | J66: 0 | K66: 0 | L66: 0 | M66: =Table2[[#This Row],[Pre-16 SEN Units - 2014 to 2015]]+Table2[[#This Row],[Pre-16 Resourced Provision - 2014 to 2015]]+Table2[[#This Row],[Pre-16 Alternative Provision - 2014 to 2016]]+Table2[[#This Row],[Pre-16 SEN Places - 2014 to 2015]] -> 0 | N66: 1 | O66: 0 | P66: 0 | Q66: =Table2[[#This Row],[Post-16 Schools 16-18]]+Table2[[#This Row],[Post-16 Post School 16-18]]+Table2[[#This Row],[Post-16 Post School 19-25]] -> 1 | R66: =Table2[[#This Row],[Total Pre-16]]+Table2[[#This Row],[Total Post 16]] -> 1
A67: ALL HALLOWS RC BUSINESS AND ENTERPRISE COLLEGE | B67: 3554620 | C67: 0 | D67: MAINTAINED SCHOOL - MAINSTREAM | E67: North | F67: North West | G67: Salford | H67: 355 | I67: 0 | J67: 0 | K67: 0 | L67: 2 | M67: =Table2[[#This Row],[Pre-16 SEN Units - 2014 to 2015]]+Table2[[#This Row],[Pre-16 Resourced Provision - 2014 to 2015]]+Table2[[#This Row],[Pre-16 Alternative Provision - 2014 to 2016]]+Table2[[#This Row],[Pre-16 SEN Places - 2014 to 2015]] -> 2 | N67: 0 | O67: 0 | P67: 0 | Q67: =Table2[[#This Row],[Post-16 Schools 16-18]]+Table2[[#This Row],[Post-16 Post School 16-18]]+Table2[[#This Row],[Post-16 Post School 19-25]] -> 0 | R67: =Table2[[#This Row],[Total Pre-16]]+Table2[[#This Row],[Total Post 16]] -> 2
A68: ALL SAINTS CATHOLIC COLLEGE | B68: 3574604 | C68: 124644 | D68: ACADEMY - MAINSTREAM | E68: North | F68: North West | G68: Tameside | H68: 357 | I68: 0 | J68: 0 | K68: 0 | L68: 0 | M68: =Table2[[#This Row],[Pre-16 SEN Units - 2014 to 2015]]+Table2[[#This Row],[Pre-16 Resourced Provision - 2014 to 2015]]+Table2[[#This Row],[Pre-16 Alternative Provision - 2014 to 2016]]+Table2[[#This Row],[Pre-16 SEN Places - 2014 to 2015]] -> 0 | N68: 2 | O68: 0 | P68: 0 | Q68: =Table2[[#This Row],[Post-16 Schools 16-18]]+Table2[[#This Row],[Post-16 Post School 16-18]]+Table2[[#This Row],[Post-16 Post School 19-25]] -> 2 | R68: =Table2[[#This Row],[Total Pre-16]]+Table2[[#This Row],[Total Post 16]] -> 2
A69: ALL SAINTS' CATHOLIC HIGH SCHOOL | B69: 3735401 | C69: 121197 | D69: ACADEMY - MAINSTREAM | E69: North | F69: Yorkshire and the Humber | G69: Sheffield | H69: 373 | I69: 0 | J69: 6 | K69: 0 | L69: 0 | M69: =Table2[[#This Row],[Pre-16 SEN Units - 2014 to 2015]]+Table2[[#This Row],[Pre-16 Resourced Provision - 2014 to 2015]]+Table2[[#This Row],[Pre-16 Alternative Provision - 2014 to 2016]]+Table2[[#This Row],[Pre-16 SEN Places - 2014 to 2015]] -> 6 | N69: 0 | O69: 0 | P69: 0 | Q69: =Table2[[#This Row],[Post-16 Schools 16-18]]+Table2[[#This Row],[Post-16 Post School 16-18]]+Table2[[#This Row],[Post-16 Post School 19-25]] -> 0 | R69: =Table2[[#This Row],[Total Pre-16]]+Table2[[#This Row],[Total Post 16]] -> 6
A70: ALL SAINTS CATHOLIC SCHOOL AND TECHNOLOGY COLLEGE | B70: 3014703 | C70: 114136 | D70: MAINTAINED SCHOOL - MAINSTREAM | E70: South | F70: London | G70: Barking and Dagenham | H70: 301 | I70: 0 | J70: 0 | K70: 0 | L70: 0 | M70: =Table2[[#This Row],[Pre-16 SEN Units - 2014 to 2015]]+Table2[[#This Row],[Pre-16 Resourced Provision - 2014 to 2015]]+Table2[[#This Row],[Pre-16 Alternative Provision - 2014 to 2016]]+Table2[[#This Row],[Pre-16 SEN Places - 2014 to 2015]] -> 0 | N70: 2 | O70: 0 | P70: 0 | Q70: =Table2[[#This Row],[Post-16 Schools 16-18]]+Table2[[#This Row],[Post-16 Post School 16-18]]+Table2[[#This Row],[Post-16 Post School 19-25]] -> 2 | R70: =Table2[[#This Row],[Total Pre-16]]+Table2[[#This Row],[Total Post 16]] -> 2
A71: ALL SAINTS' CATHOLIC VOLUNTARY AIDED PRIMARY SCHOOL | B71: 3412006 | C71: 0 | D71: MAINTAINED SCHOOL - MAINSTREAM | E71: North | F71: North West | G71: Liverpool | H71: 341 | I71: 0 | J71: 20 | K71: 0 | L71: 0 | M71: =Table2[[#This Row],[Pre-16 SEN Units - 2014 to 2015]]+Table2[[#This Row],[Pre-16 Resourced Provision - 2014 to 2015]]+Table2[[#This Row],[Pre-16 Alternative Provision - 2014 to 2016]]+Table2[[#This Row],[Pre-16 SEN Places - 2014 to 2015]] -> 20 | N71: 0 | O71: 0 | P71: 0 | Q71: =Table2[[#This Row],[Post-16 Schools 16-18]]+Table2[[#This Row],[Post-16 Post School 16-18]]+Table2[[#This Row],[Post-16 Post School 19-25]] -> 0 | R71: =Table2[[#This Row],[Total Pre-16]]+Table2[[#This Row],[Total Post 16]] -> 20
A72: ALL SAINTS CHURCH OF ENGLAND ACADEMY, PLYMOUTH | B72: 8796905 | C72: 119199 | D72: ACADEMY - MAINSTREAM | E72: CentralSW | F72: South West | G72: Plymouth | H72: 879 | I72: 0 | J72: 0 | K72: 0 | L72: 0 | M72: =Table2[[#This Row],[Pre-16 SEN Units - 2014 to 2015]]+Table2[[#This Row],[Pre-16 Resourced Provision - 2014 to 2015]]+Table2[[#This Row],[Pre-16 Alternative Provision - 2014 to 2016]]+Table2[[#This Row],[Pre-16 SEN Places - 2014 to 2015]] -> 0 | N72: 1 | O72: 0 | P72: 0 | Q72: =Table2[[#This Row],[Post-16 Schools 16-18]]+Table2[[#This Row],[Post-16 Post School 16-18]]+Table2[[#This Row],[Post-16 Post School 19-25]] -> 1 | R72: =Table2[[#This Row],[Total Pre-16]]+Table2[[#This Row],[Total Post 16]] -> 1
A73: ALL SAINTS' CHURCH OF ENGLAND SCHOOL, WEYMOUTH | B73: 8354801 | C73: 0 | D73: MAINTAINED SCHOOL - MAINSTREAM | E73: CentralSW | F73: South West | G73: Dorset | H73: 835 | I73: 0 | J73: 10 | K73: 0 | L73: 0 | M73: =Table2[[#This Row],[Pre-16 SEN Units - 2014 to 2015]]+Table2[[#This Row],[Pre-16 Resourced Provision - 2014 to 2015]]+Table2[[#This Row],[Pre-16 Alternative Provision - 2014 to 2016]]+Table2[[#This Row],[Pre-16 SEN Places - 2014 to 2015]] -> 10 | N73: 0 | O73: 0 | P73: 0 | Q73: =Table2[[#This Row],[Post-16 Schools 16-18]]+Table2[[#This Row],[Post-16 Post School 16-18]]+Table2[[#This Row],[Post-16 Post School 19-25]] -> 0 | R73: =Table2[[#This Row],[Total Pre-16]]+Table2[[#This Row],[Total Post 16]] -> 10
A74: ALL SAINTS COFE (AIDED) PRIMARY SCHOOL | B74: 8723372 | C74: 0 | D74: MAINTAINED SCHOOL - MAINSTREAM | E74: South | F74: South East | G74: Wokingham | H74: 872 | I74: 0 | J74: 14 | K74: 0 | L74: 0 | M74: =Table2[[#This Row],[Pre-16 SEN Units - 2014 to 2015]]+Table2[[#This Row],[Pre-16 Resourced Provision - 2014 to 2015]]+Table2[[#This Row],[Pre-16 Alternative Provision - 2014 to 2016]]+Table2[[#This Row],[Pre-16 SEN Places - 2014 to 2015]] -> 14 | N74: 0 | O74: 0 | P74: 0 | Q74: =Table2[[#This Row],[Post-16 Schools 16-18]]+Table2[[#This Row],[Post-16 Post School 16-18]]+Table2[[#This Row],[Post-16 Post School 19-25]] -> 0 | R74: =Table2[[#This Row],[Total Pre-16]]+Table2[[#This Row],[Total Post 16]] -> 14
A75: ALL SAINTS' COFE SCHOOL | B75: 9093102 | C75: 0 | D75: MAINTAINED SCHOOL - MAINSTREAM | E75: North | F75: North West | G75: Cumbria | H75: 909 | I75: 0 | J75: 20 | K75: 0 | L75: 0 | M75: =Table2[[#This Row],[Pre-16 SEN Units - 2014 to 2015]]+Table2[[#This Row],[Pre-16 Resourced Provision - 2014 to 2015]]+Table2[[#This Row],[Pre-16 Alternative Provision - 2014 to 2016]]+Table2[[#This Row],[Pre-16 SEN Places - 2014 to 2015]] -> 20 | N75: 0 | O75: 0 | P75: 0 | Q75: =Table2[[#This Row],[Post-16 Schools 16-18]]+Table2[[#This Row],[Post-16 Post School 16-18]]+Table2[[#This Row],[Post-16 Post School 19-25]] -> 0 | R75: =Table2[[#This Row],[Total Pre-16]]+Table2[[#This Row],[Total Post 16]] -> 20
A76: ALLEN EDWARDS PRIMARY SCHOOL | B76: 2082808 | C76: 500292 | D76: MAINTAINED SCHOOL - MAINSTREAM | E76: South | F76: London | G76: Lambeth | H76: 208 | I76: 3 | J76: 0 | K76: 0 | L76: 0 | M76: =Table2[[#This Row],[Pre-16 SEN Units - 2014 to 2015]]+Table2[[#This Row],[Pre-16 Resourced Provision - 2014 to 2015]]+Table2[[#This Row],[Pre-16 Alternative Provision - 2014 to 2016]]+Table2[[#This Row],[Pre-16 SEN Places - 2014 to 2015]] -> 3 | N76: 0 | O76: 0 | P76: 0 | Q76: =Table2[[#This Row],[Post-16 Schools 16-18]]+Table2[[#This Row],[Post-16 Post School 16-18]]+Table2[[#This Row],[Post-16 Post School 19-25]] -> 0 | R76: =Table2[[#This Row],[Total Pre-16]]+Table2[[#This Row],[Total Post 16]] -> 3
A77: ALLENBOURN MIDDLE SCHOOL | B77: 8354029 | C77: 0 | D77: MAINTAINED SCHOOL - MAINSTREAM | E77: CentralSW | F77: South West | G77: Dorset | H77: 835 | I77: 0 | J77: 10 | K77: 0 | L77: 0 | M77: =Table2[[#This Row],[Pre-16 SEN Units - 2014 to 2015]]+Table2[[#This Row],[Pre-16 Resourced Provision - 2014 to 2015]]+Table2[[#This Row],[Pre-16 Alternative Provision - 2014 to 2016]]+Table2[[#This Row],[Pre-16 SEN Places - 2014 to 2015]] -> 10 | N77: 0 | O77: 0 | P77: 0 | Q77: =Table2[[#This Row],[Post-16 Schools 16-18]]+Table2[[#This Row],[Post-16 Post School 16-18]]+Table2[[#This Row],[Post-16 Post School 19-25]] -> 0 | R77: =Table2[[#This Row],[Total Pre-16]]+Table2[[#This Row],[Total Post 16]] -> 10
A78: ALLENBY PRIMARY SCHOOL | B78: 3072161 | C78: 0 | D78: MAINTAINED SCHOOL - MAINSTREAM | E78: South | F78: London | G78: Ealing | H78: 307 | I78: 12 | J78: 0 | K78: 0 | L78: 0 | M78: =Table2[[#This Row],[Pre-16 SEN Units - 2014 to 2015]]+Table2[[#This Row],[Pre-16 Resourced Provision - 2014 to 2015]]+Table2[[#This Row],[Pre-16 Alternative Provision - 2014 to 2016]]+Table2[[#This Row],[Pre-16 SEN Places - 2014 to 2015]] -> 12 | N78: 0 | O78: 0 | P78: 0 | Q78: =Table2[[#This Row],[Post-16 Schools 16-18]]+Table2[[#This Row],[Post-16 Post School 16-18]]+Table2[[#This Row],[Post-16 Post School 19-25]] -> 0 | R78: =Table2[[#This Row],[Total Pre-16]]+Table2[[#This Row],[Total Post 16]] -> 12
A79: ALLERTON GRANGE SCHOOL | B79: 3834040 | C79: 114518 | D79: MAINTAINED SCHOOL - MAINSTREAM | E79: North | F79: Yorkshire and the Humber | G79: Leeds | H79: 383 | I79: 0 | J79: 12 | K79: 0 | L79: 0 | M79: =Table2[[#This Row],[Pre-16 SEN Units - 2014 to 2015]]+Table2[[#This Row],[Pre-16 Resourced Provision - 2014 to 2015]]+Table2[[#This Row],[Pre-16 Alternative Provision - 2014 to 2016]]+Table2[[#This Row],[Pre-16 SEN Places - 2014 to 2015]] -> 12 | N79: 2 | O79: 0 | P79: 0 | Q79: =Table2[[#This Row],[Post-16 Schools 16-18]]+Table2[[#This Row],[Post-16 Post School 16-18]]+Table2[[#This Row],[Post-16 Post School 19-25]] -> 2 | R79: =Table2[[#This Row],[Total Pre-16]]+Table2[[#This Row],[Total Post 16]] -> 14
A80: ALLERTON HIGH SCHOOL | B80: 3834032 | C80: 114519 | D80: MAINTAINED SCHOOL - MAINSTREAM | E80: North | F80: Yorkshire and the Humber | G80: Leeds | H80: 383 | I80: 0 | J80: 11 | K80: 0 | L80: 0 | M80: =Table2[[#This Row],[Pre-16 SEN Units - 2014 to 2015]]+Table2[[#This Row],[Pre-16 Resourced Provision - 2014 to 2015]]+Table2[[#This Row],[Pre-16 Alternative Provision - 2014 to 2016]]+Table2[[#This Row],[Pre-16 SEN Places - 2014 to 2015]] -> 11 | N80: 2 | O80: 0 | P80: 0 | Q80: =Table2[[#This Row],[Post-16 Schools 16-18]]+Table2[[#This Row],[Post-16 Post School 16-18]]+Table2[[#This Row],[Post-16 Post School 19-25]] -> 2 | R80: =Table2[[#This Row],[Total Pre-16]]+Table2[[#This Row],[Total Post 16]] -> 13
A81: ALLESTREE WOODLANDS SCHOOL | B81: 8315414 | C81: 121014 | D81: ACADEMY - MAINSTREAM | E81: CentralSW | F81: East Midlands | G81: Derby | H81: 831 | I81: 0 | J81: 14 | K81: 0 | L81: 0 | M81: =Table2[[#This Row],[Pre-16 SEN Units - 2014 to 2015]]+Table2[[#This Row],[Pre-16 Resourced Provision - 2014 to 2015]]+Table2[[#This Row],[Pre-16 Alternative Provision - 2014 to 2016]]+Table2[[#This Row],[Pre-16 SEN Places - 2014 to 2015]] -> 14 | N81: 0 | O81: 0 | P81: 0 | Q81: =Table2[[#This Row],[Post-16 Schools 16-18]]+Table2[[#This Row],[Post-16 Post School 16-18]]+Table2[[#This Row],[Post-16 Post School 19-25]] -> 0 | R81: =Table2[[#This Row],[Total Pre-16]]+Table2[[#This Row],[Total Post 16]] -> 14
A82: ALLEYNE'S ACADEMY | B82: 8604112 | C82: 123084 | D82: ACADEMY - MAINSTREAM | E82: CentralSW | F82: West Midlands | G82: Staffordshire | H82: 860 | I82: 0 | J82: 0 | K82: 0 | L82: 0 | M82: =Table2[[#This Row],[Pre-16 SEN Units - 2014 to 2015]]+Table2[[#This Row],[Pre-16 Resourced Provision - 2014 to 2015]]+Table2[[#This Row],[Pre-16 Alternative Provision - 2014 to 2016]]+Table2[[#This Row],[Pre-16 SEN Places - 2014 to 2015]] -> 0 | N82: 1 | O82: 0 | P82: 0 | Q82: =Table2[[#This Row],[Post-16 Schools 16-18]]+Table2[[#This Row],[Post-16 Post School 16-18]]+Table2[[#This Row],[Post-16 Post School 19-25]] -> 1 | R82: =Table2[[#This Row],[Total Pre-16]]+Table2[[#This Row],[Total Post 16]] -> 1
A83: ALMA PARK PRIMARY SCHOOL | B83: 3522006 | C83: 0 | D83: MAINTAINED SCHOOL - MAINSTREAM | E83: North | F83: North West | G83: Manchester | H83: 352 | I83: 0 | J83: 10 | K83: 0 | L83: 0 | M83: =Table2[[#This Row],[Pre-16 SEN Units - 2014 to 2015]]+Table2[[#This Row],[Pre-16 Resourced Provision - 2014 to 2015]]+Table2[[#This Row],[Pre-16 Alternative Provision - 2014 to 2016]]+Table2[[#This Row],[Pre-16 SEN Places - 2014 to 2015]] -> 10 | N83: 0 | O83: 0 | P83: 0 | Q83: =Table2[[#This Row],[Post-16 Schools 16-18]]+Table2[[#This Row],[Post-16 Post School 16-18]]+Table2[[#This Row],[Post-16 Post School 19-25]] -> 0 | R83: =Table2[[#This Row],[Total Pre-16]]+Table2[[#This Row],[Total Post 16]] -> 10
A84: ALPERTON COMMUNITY SCHOOL | B84: 3045405 | C84: 122325 | D84: ACADEMY - MAINSTREAM | E84: South | F84: London | G84: Brent | H84: 304 | I84: 0 | J84: 16 | K84: 0 | L84: 0 | M84: =Table2[[#This Row],[Pre-16 SEN Units - 2014 to 2015]]+Table2[[#This Row],[Pre-16 Resourced Provision - 2014 to 2015]]+Table2[[#This Row],[Pre-16 Alternative Provision - 2014 to 2016]]+Table2[[#This Row],[Pre-16 SEN Places - 2014 to 2015]] -> 16 | N84: 6 | O84: 0 | P84: 0 | Q84: =Table2[[#This Row],[Post-16 Schools 16-18]]+Table2[[#This Row],[Post-16 Post School 16-18]]+Table2[[#This Row],[Post-16 Post School 19-25]] -> 6 | R84: =Table2[[#This Row],[Total Pre-16]]+Table2[[#This Row],[Total Post 16]] -> 22
A85: ALSAGER SCHOOL | B85: 8954121 | C85: 124251 | D85: ACADEMY - MAINSTREAM | E85: North | F85: North West | G85: Cheshire East | H85: 895 | I85: 0 | J85: 0 | K85: 0 | L85: 0 | M85: =Table2[[#This Row],[Pre-16 SEN Units - 2014 to 2015]]+Table2[[#This Row],[Pre-16 Resourced Provision - 2014 to 2015]]+Table2[[#This Row],[Pre-16 Alternative Provision - 2014 to 2016]]+Table2[[#This Row],[Pre-16 SEN Places - 2014 to 2015]] -> 0 | N85: 1 | O85: 0 | P85: 0 | Q85: =Table2[[#This Row],[Post-16 Schools 16-18]]+Table2[[#This Row],[Post-16 Post School 16-18]]+Table2[[#This Row],[Post-16 Post School 19-25]] -> 1 | R85: =Table2[[#This Row],[Total Pre-16]]+Table2[[#This Row],[Total Post 16]] -> 1
A86: ALSOP HIGH SCHOOL TECHNOLOGY & APPLIED LEARNING SPECIALIST COLLEGE | B86: 3414421 | C86: 113460 | D86: MAINTAINED SCHOOL - MAINSTREAM | E86: North | F86: North West | G86: Liverpool | H86: 341 | I86: 0 | J86: 5 | K86: 0 | L86: 0 | M86: =Table2[[#This Row],[Pre-16 SEN Units - 2014 to 2015]]+Table2[[#This Row],[Pre-16 Resourced Provision - 2014 to 2015]]+Table2[[#This Row],[Pre-16 Alternative Provision - 2014 to 2016]]+Table2[[#This Row],[Pre-16 SEN Places - 2014 to 2015]] -> 5 | N86: 3 | O86: 0 | P86: 0 | Q86: =Table2[[#This Row],[Post-16 Schools 16-18]]+Table2[[#This Row],[Post-16 Post School 16-18]]+Table2[[#This Row],[Post-16 Post School 19-25]] -> 3 | R86: =Table2[[#This Row],[Total Pre-16]]+Table2[[#This Row],[Total Post 16]] -> 8
A87: ALT BRIDGE SECONDARY SUPPORT CENTRE | B87: 3407013 | C87: 123498 | D87: MAINTAINED SPECIAL SCHOOL | E87: North | F87: North West | G87: Knowsley | H87: 340 | I87: 0 | J87: 0 | K87: 0 | L87: 101 | M87: =Table2[[#This Row],[Pre-16 SEN Units - 2014 to 2015]]+Table2[[#This Row],[Pre-16 Resourced Provision - 2014 to 2015]]+Table2[[#This Row],[Pre-16 Alternative Provision - 2014 to 2016]]+Table2[[#This Row],[Pre-16 SEN Places - 2014 to 2015]] -> 101 | N87: 0 | O87: 0 | P87: 0 | Q87: =Table2[[#This Row],[Post-16 Schools 16-18]]+Table2[[#This Row],[Post-16 Post School 16-18]]+Table2[[#This Row],[Post-16 Post School 19-25]] -> 0 | R87: =Table2[[#This Row],[Total Pre-16]]+Table2[[#This Row],[Total Post 16]] -> 101
A88: ALTERNATIVE CURRICULUM 14-19 | B88: 8691111 | C88: 0 | D88: MAINTAINED ALTERNATIVE PROVISION (AP) - PRU | E88: South | F88: South East | G88: West Berkshire | H88: 869 | I88: 0 | J88: 0 | K88: 48 | L88: 0 | M88: =Table2[[#This Row],[Pre-16 SEN Units - 2014 to 2015]]+Table2[[#This Row],[Pre-16 Resourced Provision - 2014 to 2015]]+Table2[[#This Row],[Pre-16 Alternative Provision - 2014 to 2016]]+Table2[[#This Row],[Pre-16 SEN Places - 2014 to 2015]] -> 48 | N88: 0 | O88: 0 | P88: 0 | Q88: =Table2[[#This Row],[Post-16 Schools 16-18]]+Table2[[#This Row],[Post-16 Post School 16-18]]+Table2[[#This Row],[Post-16 Post School 19-25]] -> 0 | R88: =Table2[[#This Row],[Total Pre-16]]+Table2[[#This Row],[Total Post 16]] -> 48
A89: ALTERNATIVE EDUCATION SERVICE - THE BEACON CENTRE | B89: 3931100 | C89: 0 | D89: MAINTAINED ALTERNATIVE PROVISION (AP) - PRU | E89: North | F89: North East | G89: South Tyneside | H89: 393 | I89: 0 | J89: 0 | K89: 35 | L89: 0 | M89: =Table2[[#This Row],[Pre-16 SEN Units - 2014 to 2015]]+Table2[[#This Row],[Pre-16 Resourced Provision - 2014 to 2015]]+Table2[[#This Row],[Pre-16 Alternative Provision - 2014 to 2016]]+Table2[[#This Row],[Pre-16 SEN Places - 2014 to 2015]] -> 35 | N89: 0 | O89: 0 | P89: 0 | Q89: =Table2[[#This Row],[Post-16 Schools 16-18]]+Table2[[#This Row],[Post-16 Post School 16-18]]+Table2[[#This Row],[Post-16 Post School 19-25]] -> 0 | R89: =Table2[[#This Row],[Total Pre-16]]+Table2[[#This Row],[Total Post 16]] -> 35
A90: Alternative Provision | B90: 333X001 | C90: 0 | D90: HNT Funded - Pre-16 Alternate Provision | E90: CentralSW | F90: West Midlands | G90: Sandwell | H90: 333 | I90: 0 | J90: 0 | K90: 35 | L90: 0 | M90: =Table2[[#This Row],[Pre-16 SEN Units - 2014 to 2015]]+Table2[[#This Row],[Pre-16 Resourced Provision - 2014 to 2015]]+Table2[[#This Row],[Pre-16 Alternative Provision - 2014 to 2016]]+Table2[[#This Row],[Pre-16 SEN Places - 2014 to 2015]] -> 35 | N90: 0 | O90: 0 | P90: 0 | Q90: =Table2[[#This Row],[Post-16 Schools 16-18]]+Table2[[#This Row],[Post-16 Post School 16-18]]+Table2[[#This Row],[Post-16 Post School 19-25]] -> 0 | R90: =Table2[[#This Row],[Total Pre-16]]+Table2[[#This Row],[Total Post 16]] -> 35
A91: Alternative Provision | B91: 320X001 | C91: 0 | D91: HNT Funded - Pre-16 Alternate Provision | E91: South | F91: London | G91: Waltham Forest | H91: 320 | I91: 0 | J91: 0 | K91: 160 | L91: 0 | M91: =Table2[[#This Row],[Pre-16 SEN Units - 2014 to 2015]]+Table2[[#This Row],[Pre-16 Resourced Provision - 2014 to 2015]]+Table2[[#This Row],[Pre-16 Alternative Provision - 2014 to 2016]]+Table2[[#This Row],[Pre-16 SEN Places - 2014 to 2015]] -> 160 | N91: 0 | O91: 0 | P91: 0 | Q91: =Table2[[#This Row],[Post-16 Schools 16-18]]+Table2[[#This Row],[Post-16 Post School 16-18]]+Table2[[#This Row],[Post-16 Post School 19-25]] -> 0 | R91: =Table2[[#This Row],[Total Pre-16]]+Table2[[#This Row],[Total Post 16]] -> 160
A92: ALTERNATIVE PROVISION CENTRE | B92: 9331121 | C92: 0 | D92: MAINTAINED ALTERNATIVE PROVISION (AP) - PRU | E92: CentralSW | F92: South West | G92: Somerset | H92: 933 | I92: 0 | J92: 0 | K92: 40 | L92: 0 | M92: =Table2[[#This Row],[Pre-16 SEN Units - 2014 to 2015]]+Table2[[#This Row],[Pre-16 Resourced Provision - 2014 to 2015]]+Table2[[#This Row],[Pre-16 Alternative Provision - 2014 to 2016]]+Table2[[#This Row],[Pre-16 SEN Places - 2014 to 2015]] -> 40 | N92: 0 | O92: 0 | P92: 0 | Q92: =Table2[[#This Row],[Post-16 Schools 16-18]]+Table2[[#This Row],[Post-16 Post School 16-18]]+Table2[[#This Row],[Post-16 Post School 19-25]] -> 0 | R92: =Table2[[#This Row],[Total Pre-16]]+Table2[[#This Row],[Total Post 16]] -> 40
A93: ALTON COLLEGE | B93: 8508605 | C93: 108469 | D93: FURTHER EDUCATION PROVIDER | E93: South | F93: South East | G93: Hampshire | H93: 850 | I93: 0 | J93: 0 | K93: 0 | L93: 0 | M93: =Table2[[#This Row],[Pre-16 SEN Units - 2014 to 2015]]+Table2[[#This Row],[Pre-16 Resourced Provision - 2014 to 2015]]+Table2[[#This Row],[Pre-16 Alternative Provision - 2014 to 2016]]+Table2[[#This Row],[Pre-16 SEN Places - 2014 to 2015]] -> 0 | N93: 0 | O93: 17 | P93: 4 | Q93: =Table2[[#This Row],[Post-16 Schools 16-18]]+Table2[[#This Row],[Post-16 Post School 16-18]]+Table2[[#This Row],[Post-16 Post School 19-25]] -> 21 | R93: =Table2[[#This Row],[Total Pre-16]]+Table2[[#This Row],[Total Post 16]] -> 21
A94: ALTRINCHAM COLLEGE OF ARTS | B94: 3584024 | C94: 122124 | D94: ACADEMY - MAINSTREAM | E94: North | F94: North West | G94: Trafford | H94: 358 | I94: 0 | J94: 6 | K94: 0 | L94: 0 | M94: =Table2[[#This Row],[Pre-16 SEN Units - 2014 to 2015]]+Table2[[#This Row],[Pre-16 Resourced Provision - 2014 to 2015]]+Table2[[#This Row],[Pre-16 Alternative Provision - 2014 to 2016]]+Table2[[#This Row],[Pre-16 SEN Places - 2014 to 2015]] -> 6 | N94: 0 | O94: 0 | P94: 0 | Q94: =Table2[[#This Row],[Post-16 Schools 16-18]]+Table2[[#This Row],[Post-16 Post School 16-18]]+Table2[[#This Row],[Post-16 Post School 19-25]] -> 0 | R94: =Table2[[#This Row],[Total Pre-16]]+Table2[[#This Row],[Total Post 16]] -> 6
A95: ALTWOOD COFE SECONDARY SCHOOL | B95: 8684506 | C95: 122326 | D95: ACADEMY - MAINSTREAM | E95: South | F95: South East | G95: Windsor and Maidenhead | H95: 868 | I95: 0 | J95: 2 | K95: 0 | L95: 0 | M95: =Table2[[#This Row],[Pre-16 SEN Units - 2014 to 2015]]+Table2[[#This Row],[Pre-16 Resourced Provision - 2014 to 2015]]+Table2[[#This Row],[Pre-16 Alternative Provision - 2014 to 2016]]+Table2[[#This Row],[Pre-16 SEN Places - 2014 to 2015]] -> 2 | N95: 4 | O95: 0 | P95: 0 | Q95: =Table2[[#This Row],[Post-16 Schools 16-18]]+Table2[[#This Row],[Post-16 Post School 16-18]]+Table2[[#This Row],[Post-16 Post School 19-25]] -> 4 | R95: =Table2[[#This Row],[Total Pre-16]]+Table2[[#This Row],[Total Post 16]] -> 6
A96: ALVASTON JUNIOR SCHOOL | B96: 8312442 | C96: 0 | D96: MAINTAINED SCHOOL - MAINSTREAM | E96: CentralSW | F96: East Midlands | G96: Derby | H96: 831 | I96: 0 | J96: 12 | K96: 0 | L96: 0 | M96: =Table2[[#This Row],[Pre-16 SEN Units - 2014 to 2015]]+Table2[[#This Row],[Pre-16 Resourced Provision - 2014 to 2015]]+Table2[[#This Row],[Pre-16 Alternative Provision - 2014 to 2016]]+Table2[[#This Row],[Pre-16 SEN Places - 2014 to 2015]] -> 12 | N96: 0 | O96: 0 | P96: 0 | Q96: =Table2[[#This Row],[Post-16 Schools 16-18]]+Table2[[#This Row],[Post-16 Post School 16-18]]+Table2[[#This Row],[Post-16 Post School 19-25]] -> 0 | R96: =Table2[[#This Row],[Total Pre-16]]+Table2[[#This Row],[Total Post 16]] -> 12
A97: AMBER VALLEY & EREWASH SUPPORT CENTRE | B97: 8301102 | C97: 0 | D97: MAINTAINED ALTERNATIVE PROVISION (AP) - PRU | E97: CentralSW | F97: East Midlands | G97: Derbyshire | H97: 830 | I97: 0 | J97: 0 | K97: 104 | L97: 0 | M97: =Table2[[#This Row],[Pre-16 SEN Units - 2014 to 2015]]+Table2[[#This Row],[Pre-16 Resourced Provision - 2014 to 2015]]+Table2[[#This Row],[Pre-16 Alternative Provision - 2014 to 2016]]+Table2[[#This Row],[Pre-16 SEN Places - 2014 to 2015]] -> 104 | N97: 0 | O97: 0 | P97: 0 | Q97: =Table2[[#This Row],[Post-16 Schools 16-18]]+Table2[[#This Row],[Post-16 Post School 16-18]]+Table2[[#This Row],[Post-16 Post School 19-25]] -> 0 | R97: =Table2[[#This Row],[Total Pre-16]]+Table2[[#This Row],[Total Post 16]] -> 104
A98: AMBERGATE SPORTS COLLEGE | B98: 9257002 | C98: 0 | D98: MAINTAINED SPECIAL SCHOOL | E98: CentralSW | F98: East Midlands | G98: Lincolnshire | H98: 925 | I98: 0 | J98: 0 | K98: 0 | L98: 122 | M98: =Table2[[#This Row],[Pre-16 SEN Units - 2014 to 2015]]+Table2[[#This Row],[Pre-16 Resourced Provision - 2014 to 2015]]+Table2[[#This Row],[Pre-16 Alternative Provision - 2014 to 2016]]+Table2[[#This Row],[Pre-16 SEN Places - 2014 to 2015]] -> 122 | N98: 0 | O98: 0 | P98: 0 | Q98: =Table2[[#This Row],[Post-16 Schools 16-18]]+Table2[[#This Row],[Post-16 Post School 16-18]]+Table2[[#This Row],[Post-16 Post School 19-25]] -> 0 | R98: =Table2[[#This Row],[Total Pre-16]]+Table2[[#This Row],[Total Post 16]] -> 122
A99: AMBITIOUS ABOUT AUTISM (TREEHOUSE SCHOOL) | B99: 3097008 | C99: 122219 | D99: NON MAINTAINED SPECIAL SCHOOL | E99: South | F99: London | G99: Haringey | H99: 309 | I99: 0 | J99: 0 | K99: 0 | L99: 45 | M99: =Table2[[#This Row],[Pre-16 SEN Units - 2014 to 2015]]+Table2[[#This Row],[Pre-16 Resourced Provision - 2014 to 2015]]+Table2[[#This Row],[Pre-16 Alternative Provision - 2014 to 2016]]+Table2[[#This Row],[Pre-16 SEN Places - 2014 to 2015]] -> 45 | N99: 28 | O99: 0 | P99: 0 | Q99: =Table2[[#This Row],[Post-16 Schools 16-18]]+Table2[[#This Row],[Post-16 Post School 16-18]]+Table2[[#This Row],[Post-16 Post School 19-25]] -> 28 | R99: =Table2[[#This Row],[Total Pre-16]]+Table2[[#This Row],[Total Post 16]] -> 73
A100: AMERSHAM AND WYCOMBE COLLEGE | B100: 8258001 | C100: 105019 | D100: FURTHER EDUCATION PROVIDER | E100: South | F100: South East | G100: Buckinghamshire | H100: 825 | I100: 0 | J100: 0 | K100: 0 | L100: 0 | M100: =Table2[[#This Row],[Pre-16 SEN Units - 2014 to 2015]]+Table2[[#This Row],[Pre-16 Resourced Provision - 2014 to 2015]]+Table2[[#This Row],[Pre-16 Alternative Provision - 2014 to 2016]]+Table2[[#This Row],[Pre-16 SEN Places - 2014 to 2015]] -> 0 | N100: 0 | O100: 7 | P100: 36 | Q100: =Table2[[#This Row],[Post-16 Schools 16-18]]+Table2[[#This Row],[Post-16 Post School 16-18]]+Table2[[#This Row],[Post-16 Post School 19-25]] -> 43 | R100: =Table2[[#This Row],[Total Pre-16]]+Table2[[#This Row],[Total Post 16]] -> 43
A101: AMERSHAM SCHOOL | B101: 8254095 | C101: 120372 | D101: ACADEMY - MAINSTREAM | E101: South | F101: South East | G101: Buckinghamshire | H101: 825 | I101: 0 | J101: 0 | K101: 0 | L101: 0 | M101: =Table2[[#This Row],[Pre-16 SEN Units - 2014 to 2015]]+Table2[[#This Row],[Pre-16 Resourced Provision - 2014 to 2015]]+Table2[[#This Row],[Pre-16 Alternative Provision - 2014 to 2016]]+Table2[[#This Row],[Pre-16 SEN Places - 2014 to 2015]] -> 0 | N101: 4 | O101: 0 | P101: 0 | Q101: =Table2[[#This Row],[Post-16 Schools 16-18]]+Table2[[#This Row],[Post-16 Post School 16-18]]+Table2[[#This Row],[Post-16 Post School 19-25]] -> 4 | R101: =Table2[[#This Row],[Total Pre-16]]+Table2[[#This Row],[Total Post 16]] -> 4
A102: AMWELL VIEW SCHOOL | B102: 9197028 | C102: 123684 | D102: MAINTAINED SPECIAL SCHOOL | E102: South | F102: East of England | G102: Hertfordshire | H102: 919 | I102: 0 | J102: 0 | K102: 0 | L102: 87 | M102: =Table2[[#This Row],[Pre-16 SEN Units - 2014 to 2015]]+Table2[[#This Row],[Pre-16 Resourced Provision - 2014 to 2015]]+Table2[[#This Row],[Pre-16 Alternative Provision - 2014 to 2016]]+Table2[[#This Row],[Pre-16 SEN Places - 2014 to 2015]] -> 87 | N102: 28 | O102: 0 | P102: 0 | Q102: =Table2[[#This Row],[Post-16 Schools 16-18]]+Table2[[#This Row],[Post-16 Post School 16-18]]+Table2[[#This Row],[Post-16 Post School 19-25]] -> 28 | R102: =Table2[[#This Row],[Total Pre-16]]+Table2[[#This Row],[Total Post 16]] -> 115
A103: AMY JOHNSON PRIMARY SCHOOL | B103: 3192046 | C103: 0 | D103: MAINTAINED SCHOOL - MAINSTREAM | E103: South | F103: London | G103: Sutton | H103: 319 | I103: 10 | J103: 0 | K103: 0 | L103: 0 | M103: =Table2[[#This Row],[Pre-16 SEN Units - 2014 to 2015]]+Table2[[#This Row],[Pre-16 Resourced Provision - 2014 to 2015]]+Table2[[#This Row],[Pre-16 Alternative Provision - 2014 to 2016]]+Table2[[#This Row],[Pre-16 SEN Places - 2014 to 2015]] -> 10 | N103: 0 | O103: 0 | P103: 0 | Q103: =Table2[[#This Row],[Post-16 Schools 16-18]]+Table2[[#This Row],[Post-16 Post School 16-18]]+Table2[[#This Row],[Post-16 Post School 19-25]] -> 0 | R103: =Table2[[#This Row],[Total Pre-16]]+Table2[[#This Row],[Total Post 16]] -> 10
A104: ANDOVER EDUCATION CENTRE | B104: 8501104 | C104: 0 | D104: MAINTAINED ALTERNATIVE PROVISION (AP) - PRU | E104: South | F104: South East | G104: Hampshire | H104: 850 | I104: 0 | J104: 0 | K104: 34 | L104: 0 | M104: =Table2[[#This Row],[Pre-16 SEN Units - 2014 to 2015]]+Table2[[#This Row],[Pre-16 Resourced Provision - 2014 to 2015]]+Table2[[#This Row],[Pre-16 Alternative Provision - 2014 to 2016]]+Table2[[#This Row],[Pre-16 SEN Places - 2014 to 2015]] -> 34 | N104: 0 | O104: 0 | P104: 0 | Q104: =Table2[[#This Row],[Post-16 Schools 16-18]]+Table2[[#This Row],[Post-16 Post School 16-18]]+Table2[[#This Row],[Post-16 Post School 19-25]] -> 0 | R104: =Table2[[#This Row],[Total Pre-16]]+Table2[[#This Row],[Total Post 16]] -> 34
A105: ANGLESEY PRIMARY SCHOOL | B105: 3302479 | C105: 0 | D105: MAINTAINED SCHOOL - MAINSTREAM | E105: CentralSW | F105: West Midlands | G105: Birmingham | H105: 330 | I105: 0 | J105: 10 | K105: 0 | L105: 0 | M105: =Table2[[#This Row],[Pre-16 SEN Units - 2014 to 2015]]+Table2[[#This Row],[Pre-16 Resourced Provision - 2014 to 2015]]+Table2[[#This Row],[Pre-16 Alternative Provision - 2014 to 2016]]+Table2[[#This Row],[Pre-16 SEN Places - 2014 to 2015]] -> 10 | N105: 0 | O105: 0 | P105: 0 | Q105: =Table2[[#This Row],[Post-16 Schools 16-18]]+Table2[[#This Row],[Post-16 Post School 16-18]]+Table2[[#This Row],[Post-16 Post School 19-25]] -> 0 | R105: =Table2[[#This Row],[Total Pre-16]]+Table2[[#This Row],[Total Post 16]] -> 10
A106: ANSTON HILLCREST PRIMARY SCHOOL | B106: 3722130 | C106: 0 | D106: MAINTAINED SCHOOL - MAINSTREAM | E106: North | F106: Yorkshire and the Humber | G106: Rotherham | H106: 372 | I106: 20 | J106: 0 | K106: 0 | L106: 0 | M106: =Table2[[#This Row],[Pre-16 SEN Units - 2014 to 2015]]+Table2[[#This Row],[Pre-16 Resourced Provision - 2014 to 2015]]+Table2[[#This Row],[Pre-16 Alternative Provision - 2014 to 2016]]+Table2[[#This Row],[Pre-16 SEN Places - 2014 to 2015]] -> 20 | N106: 0 | O106: 0 | P106: 0 | Q106: =Table2[[#This Row],[Post-16 Schools 16-18]]+Table2[[#This Row],[Post-16 Post School 16-18]]+Table2[[#This Row],[Post-16 Post School 19-25]] -> 0 | R106: =Table2[[#This Row],[Total Pre-16]]+Table2[[#This Row],[Total Post 16]] -> 20
A107: APPLEBY GRAMMAR SCHOOL | B107: 9095407 | C107: 120251 | D107: ACADEMY - MAINSTREAM | E107: North | F107: North West | G107: Cumbria | H107: 909 | I107: 0 | J107: 0 | K107: 0 | L107: 0 | M107: =Table2[[#This Row],[Pre-16 SEN Units - 2014 to 2015]]+Table2[[#This Row],[Pre-16 Resourced Provision - 2014 to 2015]]+Table2[[#This Row],[Pre-16 Alternative Provision - 2014 to 2016]]+Table2[[#This Row],[Pre-16 SEN Places - 2014 to 2015]] -> 0 | N107: 2 | O107: 0 | P107: 0 | Q107: =Table2[[#This Row],[Post-16 Schools 16-18]]+Table2[[#This Row],[Post-16 Post School 16-18]]+Table2[[#This Row],[Post-16 Post School 19-25]] -> 2 | R107: =Table2[[#This Row],[Total Pre-16]]+Table2[[#This Row],[Total Post 16]] -> 2
A108: APPLEFIELDS SCHOOL | B108: 8167032 | C108: 123732 | D108: MAINTAINED SPECIAL SCHOOL | E108: North | F108: Yorkshire and the Humber | G108: York | H108: 816 | I108: 0 | J108: 0 | K108: 0 | L108: 90 | M108: =Table2[[#This Row],[Pre-16 SEN Units - 2014 to 2015]]+Table2[[#This Row],[Pre-16 Resourced Provision - 2014 to 2015]]+Table2[[#This Row],[Pre-16 Alternative Provision - 2014 to 2016]]+Table2[[#This Row],[Pre-16 SEN Places - 2014 to 2015]] -> 90 | N108: 66 | O108: 0 | P108: 0 | Q108: =Table2[[#This Row],[Post-16 Schools 16-18]]+Table2[[#This Row],[Post-16 Post School 16-18]]+Table2[[#This Row],[Post-16 Post School 19-25]] -> 66 | R108: =Table2[[#This Row],[Total Pre-16]]+Table2[[#This Row],[Total Post 16]] -> 156
A109: APPLEGARTH ACADEMY | B109: 3062016 | C109: 123941 | D109: ACADEMY - MAINSTREAM | E109: South | F109: London | G109: Croydon | H109: 306 | I109: 18 | J109: 0 | K109: 0 | L109: 0 | M109: =Table2[[#This Row],[Pre-16 SEN Units - 2014 to 2015]]+Table2[[#This Row],[Pre-16 Resourced Provision - 2014 to 2015]]+Table2[[#This Row],[Pre-16 Alternative Provision - 2014 to 2016]]+Table2[[#This Row],[Pre-16 SEN Places - 2014 to 2015]] -> 18 | N109: 0 | O109: 0 | P109: 0 | Q109: =Table2[[#This Row],[Post-16 Schools 16-18]]+Table2[[#This Row],[Post-16 Post School 16-18]]+Table2[[#This Row],[Post-16 Post School 19-25]] -> 0 | R109: =Table2[[#This Row],[Total Pre-16]]+Table2[[#This Row],[Total Post 16]] -> 18
A110: APPLEMORE COLLEGE | B110: 8505412 | C110: 0 | D110: MAINTAINED SCHOOL - MAINSTREAM | E110: South | F110: South East | G110: Hampshire | H110: 850 | I110: 20 | J110: 0 | K110: 0 | L110: 0 | M110: =Table2[[#This Row],[Pre-16 SEN Units - 2014 to 2015]]+Table2[[#This Row],[Pre-16 Resourced Provision - 2014 to 2015]]+Table2[[#This Row],[Pre-16 Alternative Provision - 2014 to 2016]]+Table2[[#This Row],[Pre-16 SEN Places - 2014 to 2015]] -> 20 | N110: 0 | O110: 0 | P110: 0 | Q110: =Table2[[#This Row],[Post-16 Schools 16-18]]+Table2[[#This Row],[Post-16 Post School 16-18]]+Table2[[#This Row],[Post-16 Post School 19-25]] -> 0 | R110: =Table2[[#This Row],[Total Pre-16]]+Table2[[#This Row],[Total Post 16]] -> 20
A111: AQUINAS COLLEGE | B111: 3568603 | C111: 108372 | D111: FURTHER EDUCATION PROVIDER | E111: North | F111: North West | G111: Stockport | H111: 356 | I111: 0 | J111: 0 | K111: 0 | L111: 0 | M111: =Table2[[#This Row],[Pre-16 SEN Units - 2014 to 2015]]+Table2[[#This Row],[Pre-16 Resourced Provision - 2014 to 2015]]+Table2[[#This Row],[Pre-16 Alternative Provision - 2014 to 2016]]+Table2[[#This Row],[Pre-16 SEN Places - 2014 to 2015]] -> 0 | N111: 0 | O111: 40 | P111: 0 | Q111: =Table2[[#This Row],[Post-16 Schools 16-18]]+Table2[[#This Row],[Post-16 Post School 16-18]]+Table2[[#This Row],[Post-16 Post School 19-25]] -> 40 | R111: =Table2[[#This Row],[Total Pre-16]]+Table2[[#This Row],[Total Post 16]] -> 40
A112: ARBORETUM PRIMARY SCHOOL | B112: 8312629 | C112: 0 | D112: MAINTAINED SCHOOL - MAINSTREAM | E112: CentralSW | F112: East Midlands | G112: Derby | H112: 831 | I112: 0 | J112: 5 | K112: 0 | L112: 0 | M112: =Table2[[#This Row],[Pre-16 SEN Units - 2014 to 2015]]+Table2[[#This Row],[Pre-16 Resourced Provision - 2014 to 2015]]+Table2[[#This Row],[Pre-16 Alternative Provision - 2014 to 2016]]+Table2[[#This Row],[Pre-16 SEN Places - 2014 to 2015]] -> 5 | N112: 0 | O112: 0 | P112: 0 | Q112: =Table2[[#This Row],[Post-16 Schools 16-18]]+Table2[[#This Row],[Post-16 Post School 16-18]]+Table2[[#This Row],[Post-16 Post School 19-25]] -> 0 | R112: =Table2[[#This Row],[Total Pre-16]]+Table2[[#This Row],[Total Post 16]] -> 5
A113: ARBOUR VALE SCHOOL | B113: 8717035 | C113: 123985 | D113: MAINTAINED SPECIAL SCHOOL | E113: South | F113: South East | G113: Slough | H113: 871 | I113: 0 | J113: 0 | K113: 0 | L113: 256 | M113: =Table2[[#This Row],[Pre-16 SEN Units - 2014 to 2015]]+Table2[[#This Row],[Pre-16 Resourced Provision - 2014 to 2015]]+Table2[[#This Row],[Pre-16 Alternative Provision - 2014 to 2016]]+Table2[[#This Row],[Pre-16 SEN Places - 2014 to 2015]] -> 256 | N113: 34 | O113: 0 | P113: 0 | Q113: =Table2[[#This Row],[Post-16 Schools 16-18]]+Table2[[#This Row],[Post-16 Post School 16-18]]+Table2[[#This Row],[Post-16 Post School 19-25]] -> 34 | R113: =Table2[[#This Row],[Total Pre-16]]+Table2[[#This Row],[Total Post 16]] -> 290
A114: ARBOURTHORNE COMMUNITY PRIMARY SCHOOL | B114: 3733429 | C114: 0 | D114: MAINTAINED SCHOOL - MAINSTREAM | E114: North | F114: Yorkshire and the Humber | G114: Sheffield | H114: 373 | I114: 0 | J114: 12 | K114: 0 | L114: 0 | M114: =Table2[[#This Row],[Pre-16 SEN Units - 2014 to 2015]]+Table2[[#This Row],[Pre-16 Resourced Provision - 2014 to 2015]]+Table2[[#This Row],[Pre-16 Alternative Provision - 2014 to 2016]]+Table2[[#This Row],[Pre-16 SEN Places - 2014 to 2015]] -> 12 | N114: 0 | O114: 0 | P114: 0 | Q114: =Table2[[#This Row],[Post-16 Schools 16-18]]+Table2[[#This Row],[Post-16 Post School 16-18]]+Table2[[#This Row],[Post-16 Post School 19-25]] -> 0 | R114: =Table2[[#This Row],[Total Pre-16]]+Table2[[#This Row],[Total Post 16]] -> 12
A115: ARCHBISHOP HOLGATE'S SCHOOL, A CHURCH OF ENGLAND ACADEMY | B115: 8164500 | C115: 119523 | D115: ACADEMY - MAINSTREAM | E115: North | F115: Yorkshire and the Humber | G115: York | H115: 816 | I115: 0 | J115: 0 | K115: 0 | L115: 0 | M115: =Table2[[#This Row],[Pre-16 SEN Units - 2014 to 2015]]+Table2[[#This Row],[Pre-16 Resourced Provision - 2014 to 2015]]+Table2[[#This Row],[Pre-16 Alternative Provision - 2014 to 2016]]+Table2[[#This Row],[Pre-16 SEN Places - 2014 to 2015]] -> 0 | N115: 3 | O115: 0 | P115: 0 | Q115: =Table2[[#This Row],[Post-16 Schools 16-18]]+Table2[[#This Row],[Post-16 Post School 16-18]]+Table2[[#This Row],[Post-16 Post School 19-25]] -> 3 | R115: =Table2[[#This Row],[Total Pre-16]]+Table2[[#This Row],[Total Post 16]] -> 3
A116: ARCHBISHOP SENTAMU ACADEMY | B116: 8106905 | C116: 119095 | D116: ACADEMY - MAINSTREAM | E116: North | F116: Yorkshire and the Humber | G116: Kingston upon Hull, City of | H116: 810 | I116: 0 | J116: 0 | K116: 0 | L116: 0 | M116: =Table2[[#This Row],[Pre-16 SEN Units - 2014 to 2015]]+Table2[[#This Row],[Pre-16 Resourced Provision - 2014 to 2015]]+Table2[[#This Row],[Pre-16 Alternative Provision - 2014 to 2016]]+Table2[[#This Row],[Pre-16 SEN Places - 2014 to 2015]] -> 0 | N116: 6 | O116: 0 | P116: 0 | Q116: =Table2[[#This Row],[Post-16 Schools 16-18]]+Table2[[#This Row],[Post-16 Post School 16-18]]+Table2[[#This Row],[Post-16 Post School 19-25]] -> 6 | R116: =Table2[[#This Row],[Total Pre-16]]+Table2[[#This Row],[Total Post 16]] -> 6
A117: ARCHBISHOP SUMNER CHURCH OF ENGLAND PRIMARY SCHOOL | B117: 2083307 | C117: 500305 | D117: MAINTAINED SCHOOL - MAINSTREAM | E117: South | F117: London | G117: Lambeth | H117: 208 | I117: 3 | J117: 0 | K117: 0 | L117: 0 | M117: =Table2[[#This Row],[Pre-16 SEN Units - 2014 to 2015]]+Table2[[#This Row],[Pre-16 Resourced Provision - 2014 to 2015]]+Table2[[#This Row],[Pre-16 Alternative Provision - 2014 to 2016]]+Table2[[#This Row],[Pre-16 SEN Places - 2014 to 2015]] -> 3 | N117: 0 | O117: 0 | P117: 0 | Q117: =Table2[[#This Row],[Post-16 Schools 16-18]]+Table2[[#This Row],[Post-16 Post School 16-18]]+Table2[[#This Row],[Post-16 Post School 19-25]] -> 0 | R117: =Table2[[#This Row],[Total Pre-16]]+Table2[[#This Row],[Total Post 16]] -> 3
A118: ARCHBISHOP TENISON'S COFE HIGH SCHOOL | B118: 3064600 | C118: 113030 | D118: MAINTAINED SCHOOL - MAINSTREAM | E118: South | F118: London | G118: Croydon | H118: 306 | I118: 0 | J118: 0 | K118: 0 | L118: 0 | M118: =Table2[[#This Row],[Pre-16 SEN Units - 2014 to 2015]]+Table2[[#This Row],[Pre-16 Resourced Provision - 2014 to 2015]]+Table2[[#This Row],[Pre-16 Alternative Provision - 2014 to 2016]]+Table2[[#This Row],[Pre-16 SEN Places - 2014 to 2015]] -> 0 | N118: 1 | O118: 0 | P118: 0 | Q118: =Table2[[#This Row],[Post-16 Schools 16-18]]+Table2[[#This Row],[Post-16 Post School 16-18]]+Table2[[#This Row],[Post-16 Post School 19-25]] -> 1 | R118: =Table2[[#This Row],[Total Pre-16]]+Table2[[#This Row],[Total Post 16]] -> 1
A119: ARCHERS BROOK SEBD RESIDENTIAL SCHOOL | B119: 8967208 | C119: 0 | D119: MAINTAINED SPECIAL SCHOOL | E119: North | F119: North West | G119: Cheshire West and Chester | H119: 896 | I119: 0 | J119: 0 | K119: 0 | L119: 55 | M119: =Table2[[#This Row],[Pre-16 SEN Units - 2014 to 2015]]+Table2[[#This Row],[Pre-16 Resourced Provision - 2014 to 2015]]+Table2[[#This Row],[Pre-16 Alternative Provision - 2014 to 2016]]+Table2[[#This Row],[Pre-16 SEN Places - 2014 to 2015]] -> 55 | N119: 0 | O119: 0 | P119: 0 | Q119: =Table2[[#This Row],[Post-16 Schools 16-18]]+Table2[[#This Row],[Post-16 Post School 16-18]]+Table2[[#This Row],[Post-16 Post School 19-25]] -> 0 | R119: =Table2[[#This Row],[Total Pre-16]]+Table2[[#This Row],[Total Post 16]] -> 55
A120: ARDEN COLLEGE (SPECIALITY CARE REST HOMES LIMITED) | B120: 3438220 | C120: 114840 | D120: SPECIALIST POST-16 INSTITUTION | E120: North | F120: North West | G120: Sefton | H120: 343 | I120: 0 | J120: 0 | K120: 0 | L120: 0 | M120: =Table2[[#This Row],[Pre-16 SEN Units - 2014 to 2015]]+Table2[[#This Row],[Pre-16 Resourced Provision - 2014 to 2015]]+Table2[[#This Row],[Pre-16 Alternative Provision - 2014 to 2016]]+Table2[[#This Row],[Pre-16 SEN Places - 2014 to 2015]] -> 0 | N120: 0 | O120: 0 | P120: 27 | Q120: =Table2[[#This Row],[Post-16 Schools 16-18]]+Table2[[#This Row],[Post-16 Post School 16-18]]+Table2[[#This Row],[Post-16 Post School 19-25]] -> 27 | R120: =Table2[[#This Row],[Total Pre-16]]+Table2[[#This Row],[Total Post 16]] -> 27
A121: AREA 51 EDUCATION LIMITED | B121: 3097904 | C121: 123034 | D121: SPECIALIST POST-16 INSTITUTION | E121: South | F121: London | G121: Haringey | H121: 309 | I121: 0 | J121: 0 | K121: 0 | L121: 0 | M121: =Table2[[#This Row],[Pre-16 SEN Units - 2014 to 2015]]+Table2[[#This Row],[Pre-16 Resourced Provision - 2014 to 2015]]+Table2[[#This Row],[Pre-16 Alternative Provision - 2014 to 2016]]+Table2[[#This Row],[Pre-16 SEN Places - 2014 to 2015]] -> 0 | N121: 0 | O121: 0 | P121: 18 | Q121: =Table2[[#This Row],[Post-16 Schools 16-18]]+Table2[[#This Row],[Post-16 Post School 16-18]]+Table2[[#This Row],[Post-16 Post School 19-25]] -> 18 | R121: =Table2[[#This Row],[Total Pre-16]]+Table2[[#This Row],[Total Post 16]] -> 18
A122: ARK BRUNEL PRIMARY ACADEMY | B122: 2072000 | C122: 124488 | D122: ACADEMY - MAINSTREAM | E122: South | F122: London | G122: Kensington and Chelsea | H122: 207 | I122: 16 | J122: 0 | K122: 0 | L122: 0 | M122: =Table2[[#This Row],[Pre-16 SEN Units - 2014 to 2015]]+Table2[[#This Row],[Pre-16 Resourced Provision - 2014 to 2015]]+Table2[[#This Row],[Pre-16 Alternative Provision - 2014 to 2016]]+Table2[[#This Row],[Pre-16 SEN Places - 2014 to 2015]] -> 16 | N122: 0 | O122: 0 | P122: 0 | Q122: =Table2[[#This Row],[Post-16 Schools 16-18]]+Table2[[#This Row],[Post-16 Post School 16-18]]+Table2[[#This Row],[Post-16 Post School 19-25]] -> 0 | R122: =Table2[[#This Row],[Total Pre-16]]+Table2[[#This Row],[Total Post 16]] -> 16
A123: ARK PUTNEY ACADEMY | B123: 2125402 | C123: 122388 | D123: ACADEMY - MAINSTREAM | E123: South | F123: London | G123: Wandsworth | H123: 212 | I123: 0 | J123: 0 | K123: 0 | L123: 0 | M123: =Table2[[#This Row],[Pre-16 SEN Units - 2014 to 2015]]+Table2[[#This Row],[Pre-16 Resourced Provision - 2014 to 2015]]+Table2[[#This Row],[Pre-16 Alternative Provision - 2014 to 2016]]+Table2[[#This Row],[Pre-16 SEN Places - 2014 to 2015]] -> 0 | N123: 4 | O123: 0 | P123: 0 | Q123: =Table2[[#This Row],[Post-16 Schools 16-18]]+Table2[[#This Row],[Post-16 Post School 16-18]]+Table2[[#This Row],[Post-16 Post School 19-25]] -> 4 | R123: =Table2[[#This Row],[Total Pre-16]]+Table2[[#This Row],[Total Post 16]] -> 4
A124: ARMTHORPE ACADEMY | B124: 3714021 | C124: 121002 | D124: ACADEMY - MAINSTREAM | E124: North | F124: Yorkshire and the Humber | G124: Doncaster | H124: 371 | I124: 0 | J124: 0 | K124: 0 | L124: 0 | M124: =Table2[[#This Row],[Pre-16 SEN Units - 2014 to 2015]]+Table2[[#This Row],[Pre-16 Resourced Provision - 2014 to 2015]]+Table2[[#This Row],[Pre-16 Alternative Provision - 2014 to 2016]]+Table2[[#This Row],[Pre-16 SEN Places - 2014 to 2015]] -> 0 | N124: 1 | O124: 0 | P124: 0 | Q124: =Table2[[#This Row],[Post-16 Schools 16-18]]+Table2[[#This Row],[Post-16 Post School 16-18]]+Table2[[#This Row],[Post-16 Post School 19-25]] -> 1 | R124: =Table2[[#This Row],[Total Pre-16]]+Table2[[#This Row],[Total Post 16]] -> 1
A125: ARNOLD ACADEMY | B125: 8234040 | C125: 119841 | D125: ACADEMY - MAINSTREAM | E125: South | F125: East of England | G125: Central Bedfordshire | H125: 823 | I125: 6 | J125: 0 | K125: 0 | L125: 0 | M125: =Table2[[#This Row],[Pre-16 SEN Units - 2014 to 2015]]+Table2[[#This Row],[Pre-16 Resourced Provision - 2014 to 2015]]+Table2[[#This Row],[Pre-16 Alternative Provision - 2014 to 2016]]+Table2[[#This Row],[Pre-16 SEN Places - 2014 to 2015]] -> 6 | N125: 0 | O125: 0 | P125: 0 | Q125: =Table2[[#This Row],[Post-16 Schools 16-18]]+Table2[[#This Row],[Post-16 Post School 16-18]]+Table2[[#This Row],[Post-16 Post School 19-25]] -> 0 | R125: =Table2[[#This Row],[Total Pre-16]]+Table2[[#This Row],[Total Post 16]] -> 6
A126: ARNOT ST MARY COFE PRIMARY SCHOOL | B126: 3413965 | C126: 0 | D126: MAINTAINED SCHOOL - MAINSTREAM | E126: North | F126: North West | G126: Liverpool | H126: 341 | I126: 0 | J126: 8 | K126: 0 | L126: 0 | M126: =Table2[[#This Row],[Pre-16 SEN Units - 2014 to 2015]]+Table2[[#This Row],[Pre-16 Resourced Provision - 2014 to 2015]]+Table2[[#This Row],[Pre-16 Alternative Provision - 2014 to 2016]]+Table2[[#This Row],[Pre-16 SEN Places - 2014 to 2015]] -> 8 | N126: 0 | O126: 0 | P126: 0 | Q126: =Table2[[#This Row],[Post-16 Schools 16-18]]+Table2[[#This Row],[Post-16 Post School 16-18]]+Table2[[#This Row],[Post-16 Post School 19-25]] -> 0 | R126: =Table2[[#This Row],[Total Pre-16]]+Table2[[#This Row],[Total Post 16]] -> 8
A127: ARTHUR MELLOWS VILLAGE COLLEGE | B127: 8745417 | C127: 119274 | D127: ACADEMY - MAINSTREAM | E127: South | F127: East of England | G127: Peterborough | H127: 874 | I127: 0 | J127: 0 | K127: 0 | L127: 0 | M127: =Table2[[#This Row],[Pre-16 SEN Units - 2014 to 2015]]+Table2[[#This Row],[Pre-16 Resourced Provision - 2014 to 2015]]+Table2[[#This Row],[Pre-16 Alternative Provision - 2014 to 2016]]+Table2[[#This Row],[Pre-16 SEN Places - 2014 to 2015]] -> 0 | N127: 1 | O127: 0 | P127: 0 | Q127: =Table2[[#This Row],[Post-16 Schools 16-18]]+Table2[[#This Row],[Post-16 Post School 16-18]]+Table2[[#This Row],[Post-16 Post School 19-25]] -> 1 | R127: =Table2[[#This Row],[Total Pre-16]]+Table2[[#This Row],[Total Post 16]] -> 1
A128: ASH FIELD ACADEMY | B128: 8567003 | C128: 121036 | D128: ACADEMY - SPECIAL | E128: CentralSW | F128: East Midlands | G128: Leicester | H128: 856 | I128: 0 | J128: 0 | K128: 0 | L128: 99 | M128: =Table2[[#This Row],[Pre-16 SEN Units - 2014 to 2015]]+Table2[[#This Row],[Pre-16 Resourced Provision - 2014 to 2015]]+Table2[[#This Row],[Pre-16 Alternative Provision - 2014 to 2016]]+Table2[[#This Row],[Pre-16 SEN Places - 2014 to 2015]] -> 99 | N128: 24 | O128: 0 | P128: 0 | Q128: =Table2[[#This Row],[Post-16 Schools 16-18]]+Table2[[#This Row],[Post-16 Post School 16-18]]+Table2[[#This Row],[Post-16 Post School 19-25]] -> 24 | R128: =Table2[[#This Row],[Total Pre-16]]+Table2[[#This Row],[Total Post 16]] -> 123
A129: ASH LEA SCHOOL | B129: 8917023 | C129: 123757 | D129: MAINTAINED SPECIAL SCHOOL | E129: CentralSW | F129: East Midlands | G129: Nottinghamshire | H129: 891 | I129: 0 | J129: 0 | K129: 0 | L129: 67 | M129: =Table2[[#This Row],[Pre-16 SEN Units - 2014 to 2015]]+Table2[[#This Row],[Pre-16 Resourced Provision - 2014 to 2015]]+Table2[[#This Row],[Pre-16 Alternative Provision - 2014 to 2016]]+Table2[[#This Row],[Pre-16 SEN Places - 2014 to 2015]] -> 67 | N129: 22 | O129: 0 | P129: 0 | Q129: =Table2[[#This Row],[Post-16 Schools 16-18]]+Table2[[#This Row],[Post-16 Post School 16-18]]+Table2[[#This Row],[Post-16 Post School 19-25]] -> 22 | R129: =Table2[[#This Row],[Total Pre-16]]+Table2[[#This Row],[Total Post 16]] -> 89
A130: ASH TREES SCHOOL | B130: 8087028 | C130: 0 | D130: MAINTAINED SPECIAL SCHOOL | E130: North | F130: North East | G130: Stockton-on-Tees | H130: 808 | I130: 0 | J130: 0 | K130: 0 | L130: 123.5 | M130: =Table2[[#This Row],[Pre-16 SEN Units - 2014 to 2015]]+Table2[[#This Row],[Pre-16 Resourced Provision - 2014 to 2015]]+Table2[[#This Row],[Pre-16 Alternative Provision - 2014 to 2016]]+Table2[[#This Row],[Pre-16 SEN Places - 2014 to 2015]] -> 123.5 | N130: 0 | O130: 0 | P130: 0 | Q130: =Table2[[#This Row],[Post-16 Schools 16-18]]+Table2[[#This Row],[Post-16 Post School 16-18]]+Table2[[#This Row],[Post-16 Post School 19-25]] -> 0 | R130: =Table2[[#This Row],[Total Pre-16]]+Table2[[#This Row],[Total Post 16]] -> 123.5
A131: ASHBROW SCHOOL | B131: 3822043 | C131: 0 | D131: MAINTAINED SCHOOL - MAINSTREAM | E131: North | F131: Yorkshire and the Humber | G131: Kirklees | H131: 382 | I131: 0 | J131: 12 | K131: 0 | L131: 0 | M131: =Table2[[#This Row],[Pre-16 SEN Units - 2014 to 2015]]+Table2[[#This Row],[Pre-16 Resourced Provision - 2014 to 2015]]+Table2[[#This Row],[Pre-16 Alternative Provision - 2014 to 2016]]+Table2[[#This Row],[Pre-16 SEN Places - 2014 to 2015]] -> 12 | N131: 0 | O131: 0 | P131: 0 | Q131: =Table2[[#This Row],[Post-16 Schools 16-18]]+Table2[[#This Row],[Post-16 Post School 16-18]]+Table2[[#This Row],[Post-16 Post School 19-25]] -> 0 | R131: =Table2[[#This Row],[Total Pre-16]]+Table2[[#This Row],[Total Post 16]] -> 12
A132: ASHBY SCHOOL | B132: 8554508 | C132: 122080 | D132: ACADEMY - MAINSTREAM | E132: CentralSW | F132: East Midlands | G132: Leicestershire | H132: 855 | I132: 0 | J132: 0 | K132: 0 | L132: 0 | M132: =Table2[[#This Row],[Pre-16 SEN Units - 2014 to 2015]]+Table2[[#This Row],[Pre-16 Resourced Provision - 2014 to 2015]]+Table2[[#This Row],[Pre-16 Alternative Provision - 2014 to 2016]]+Table2[[#This Row],[Pre-16 SEN Places - 2014 to 2015]] -> 0 | N132: 1 | O132: 0 | P132: 0 | Q132: =Table2[[#This Row],[Post-16 Schools 16-18]]+Table2[[#This Row],[Post-16 Post School 16-18]]+Table2[[#This Row],[Post-16 Post School 19-25]] -> 1 | R132: =Table2[[#This Row],[Total Pre-16]]+Table2[[#This Row],[Total Post 16]] -> 1
A133: ASHCROFT TECHNOLOGY ACADEMY | B133: 2126905 | C133: 118598 | D133: ACADEMY - MAINSTREAM | E133: South | F133: London | G133: Wandsworth | H133: 212 | I133: 19 | J133: 0 | K133: 0 | L133: 0 | M133: =Table2[[#This Row],[Pre-16 SEN Units - 2014 to 2015]]+Table2[[#This Row],[Pre-16 Resourced Provision - 2014 to 2015]]+Table2[[#This Row],[Pre-16 Alternative Provision - 2014 to 2016]]+Table2[[#This Row],[Pre-16 SEN Places - 2014 to 2015]] -> 19 | N133: 3 | O133: 0 | P133: 0 | Q133: =Table2[[#This Row],[Post-16 Schools 16-18]]+Table2[[#This Row],[Post-16 Post School 16-18]]+Table2[[#This Row],[Post-16 Post School 19-25]] -> 3 | R133: =Table2[[#This Row],[Total Pre-16]]+Table2[[#This Row],[Total Post 16]] -> 22
A134: ASHDALE | B134: 8061102 | C134: 0 | D134: MAINTAINED ALTERNATIVE PROVISION (AP) - PRU | E134: North | F134: North East | G134: Middlesbrough | H134: 806 | I134: 0 | J134: 0 | K134: 40 | L134: 0 | M134: =Table2[[#This Row],[Pre-16 SEN Units - 2014 to 2015]]+Table2[[#This Row],[Pre-16 Resourced Provision - 2014 to 2015]]+Table2[[#This Row],[Pre-16 Alternative Provision - 2014 to 2016]]+Table2[[#This Row],[Pre-16 SEN Places - 2014 to 2015]] -> 40 | N134: 0 | O134: 0 | P134: 0 | Q134: =Table2[[#This Row],[Post-16 Schools 16-18]]+Table2[[#This Row],[Post-16 Post School 16-18]]+Table2[[#This Row],[Post-16 Post School 19-25]] -> 0 | R134: =Table2[[#This Row],[Total Pre-16]]+Table2[[#This Row],[Total Post 16]] -> 40
A135: ASHFIELD COMPREHENSIVE SCHOOL | B135: 8914009 | C135: 121097 | D135: ACADEMY - MAINSTREAM | E135: CentralSW | F135: East Midlands | G135: Nottinghamshire | H135: 891 | I135: 0 | J135: 0 | K135: 0 | L135: 0 | M135: =Table2[[#This Row],[Pre-16 SEN Units - 2014 to 2015]]+Table2[[#This Row],[Pre-16 Resourced Provision - 2014 to 2015]]+Table2[[#This Row],[Pre-16 Alternative Provision - 2014 to 2016]]+Table2[[#This Row],[Pre-16 SEN Places - 2014 to 2015]] -> 0 | N135: 1 | O135: 0 | P135: 0 | Q135: =Table2[[#This Row],[Post-16 Schools 16-18]]+Table2[[#This Row],[Post-16 Post School 16-18]]+Table2[[#This Row],[Post-16 Post School 19-25]] -> 1 | R135: =Table2[[#This Row],[Total Pre-16]]+Table2[[#This Row],[Total Post 16]] -> 1
A136: ASHFIELD JUNIOR SCHOOL | B136: 9092148 | C136: 0 | D136: MAINTAINED SCHOOL - MAINSTREAM | E136: North | F136: North West | G136: Cumbria | H136: 909 | I136: 0 | J136: 3 | K136: 0 | L136: 0 | M136: =Table2[[#This Row],[Pre-16 SEN Units - 2014 to 2015]]+Table2[[#This Row],[Pre-16 Resourced Provision - 2014 to 2015]]+Table2[[#This Row],[Pre-16 Alternative Provision - 2014 to 2016]]+Table2[[#This Row],[Pre-16 SEN Places - 2014 to 2015]] -> 3 | N136: 0 | O136: 0 | P136: 0 | Q136: =Table2[[#This Row],[Post-16 Schools 16-18]]+Table2[[#This Row],[Post-16 Post School 16-18]]+Table2[[#This Row],[Post-16 Post School 19-25]] -> 0 | R136: =Table2[[#This Row],[Total Pre-16]]+Table2[[#This Row],[Total Post 16]] -> 3
A137: ASHFORD OAKS COMMUNITY PRIMARY SCHOOL | B137: 8863909 | C137: 0 | D137: MAINTAINED SCHOOL - MAINSTREAM | E137: South | F137: South East | G137: Kent | H137: 886 | I137: 0 | J137: 6 | K137: 0 | L137: 0 | M137: =Table2[[#This Row],[Pre-16 SEN Units - 2014 to 2015]]+Table2[[#This Row],[Pre-16 Resourced Provision - 2014 to 2015]]+Table2[[#This Row],[Pre-16 Alternative Provision - 2014 to 2016]]+Table2[[#This Row],[Pre-16 SEN Places - 2014 to 2015]] -> 6 | N137: 0 | O137: 0 | P137: 0 | Q137: =Table2[[#This Row],[Post-16 Schools 16-18]]+Table2[[#This Row],[Post-16 Post School 16-18]]+Table2[[#This Row],[Post-16 Post School 19-25]] -> 0 | R137: =Table2[[#This Row],[Total Pre-16]]+Table2[[#This Row],[Total Post 16]] -> 6
A138: ASHFORD PARK PRIMARY SCHOOL | B138: 9362937 | C138: 0 | D138: MAINTAINED SCHOOL - MAINSTREAM | E138: South | F138: South East | G138: Surrey | H138: 936 | I138: 16 | J138: 0 | K138: 0 | L138: 0 | M138: =Table2[[#This Row],[Pre-16 SEN Units - 2014 to 2015]]+Table2[[#This Row],[Pre-16 Resourced Provision - 2014 to 2015]]+Table2[[#This Row],[Pre-16 Alternative Provision - 2014 to 2016]]+Table2[[#This Row],[Pre-16 SEN Places - 2014 to 2015]] -> 16 | N138: 0 | O138: 0 | P138: 0 | Q138: =Table2[[#This Row],[Post-16 Schools 16-18]]+Table2[[#This Row],[Post-16 Post School 16-18]]+Table2[[#This Row],[Post-16 Post School 19-25]] -> 0 | R138: =Table2[[#This Row],[Total Pre-16]]+Table2[[#This Row],[Total Post 16]] -> 16
A139: ASHGATE CROFT SCHOOL | B139: 8307006 | C139: 123632 | D139: MAINTAINED SPECIAL SCHOOL | E139: CentralSW | F139: East Midlands | G139: Derbyshire | H139: 830 | I139: 0 | J139: 0 | K139: 0 | L139: 119 | M139: =Table2[[#This Row],[Pre-16 SEN Units - 2014 to 2015]]+Table2[[#This Row],[Pre-16 Resourced Provision - 2014 to 2015]]+Table2[[#This Row],[Pre-16 Alternative Provision - 2014 to 2016]]+Table2[[#This Row],[Pre-16 SEN Places - 2014 to 2015]] -> 119 | N139: 38 | O139: 0 | P139: 0 | Q139: =Table2[[#This Row],[Post-16 Schools 16-18]]+Table2[[#This Row],[Post-16 Post School 16-18]]+Table2[[#This Row],[Post-16 Post School 19-25]] -> 38 | R139: =Table2[[#This Row],[Total Pre-16]]+Table2[[#This Row],[Total Post 16]] -> 157
A140: ASHGATE SPECIALIST SUPPORT PRIMARY SCHOOL | B140: 3527749 | C140: 0 | D140: MAINTAINED SPECIAL SCHOOL | E140: North | F140: North West | G140: Manchester | H140: 352 | I140: 0 | J140: 0 | K140: 0 | L140: 93 | M140: =Table2[[#This Row],[Pre-16 SEN Units - 2014 to 2015]]+Table2[[#This Row],[Pre-16 Resourced Provision - 2014 to 2015]]+Table2[[#This Row],[Pre-16 Alternative Provision - 2014 to 2016]]+Table2[[#This Row],[Pre-16 SEN Places - 2014 to 2015]] -> 93 | N140: 0 | O140: 0 | P140: 0 | Q140: =Table2[[#This Row],[Post-16 Schools 16-18]]+Table2[[#This Row],[Post-16 Post School 16-18]]+Table2[[#This Row],[Post-16 Post School 19-25]] -> 0 | R140: =Table2[[#This Row],[Total Pre-16]]+Table2[[#This Row],[Total Post 16]] -> 93
A141: ASHLAWN SCHOOL ACADEMY TRUST | B141: 9374241 | C141: 119553 | D141: ACADEMY - MAINSTREAM | E141: CentralSW | F141: West Midlands | G141: Warwickshire | H141: 937 | I141: 0 | J141: 0 | K141: 0 | L141: 0 | M141: =Table2[[#This Row],[Pre-16 SEN Units - 2014 to 2015]]+Table2[[#This Row],[Pre-16 Resourced Provision - 2014 to 2015]]+Table2[[#This Row],[Pre-16 Alternative Provision - 2014 to 2016]]+Table2[[#This Row],[Pre-16 SEN Places - 2014 to 2015]] -> 0 | N141: 2 | O141: 0 | P141: 0 | Q141: =Table2[[#This Row],[Post-16 Schools 16-18]]+Table2[[#This Row],[Post-16 Post School 16-18]]+Table2[[#This Row],[Post-16 Post School 19-25]] -> 2 | R141: =Table2[[#This Row],[Total Pre-16]]+Table2[[#This Row],[Total Post 16]] -> 2
A142: ASHLEY INFANT SCHOOL | B142: 8502005 | C142: 0 | D142: MAINTAINED SCHOOL - MAINSTREAM | E142: South | F142: South East | G142: Hampshire | H142: 850 | I142: 16 | J142: 0 | K142: 0 | L142: 0 | M142: =Table2[[#This Row],[Pre-16 SEN Units - 2014 to 2015]]+Table2[[#This Row],[Pre-16 Resourced Provision - 2014 to 2015]]+Table2[[#This Row],[Pre-16 Alternative Provision - 2014 to 2016]]+Table2[[#This Row],[Pre-16 SEN Places - 2014 to 2015]] -> 16 | N142: 0 | O142: 0 | P142: 0 | Q142: =Table2[[#This Row],[Post-16 Schools 16-18]]+Table2[[#This Row],[Post-16 Post School 16-18]]+Table2[[#This Row],[Post-16 Post School 19-25]] -> 0 | R142: =Table2[[#This Row],[Total Pre-16]]+Table2[[#This Row],[Total Post 16]] -> 16
A143: ASHLEY JUNIOR SCHOOL | B143: 8505208 | C143: 0 | D143: MAINTAINED SCHOOL - MAINSTREAM | E143: South | F143: South East | G143: Hampshire | H143: 850 | I143: 10 | J143: 0 | K143: 0 | L143: 0 | M143: =Table2[[#This Row],[Pre-16 SEN Units - 2014 to 2015]]+Table2[[#This Row],[Pre-16 Resourced Provision - 2014 to 2015]]+Table2[[#This Row],[Pre-16 Alternative Provision - 2014 to 2016]]+Table2[[#This Row],[Pre-16 SEN Places - 2014 to 2015]] -> 10 | N143: 0 | O143: 0 | P143: 0 | Q143: =Table2[[#This Row],[Post-16 Schools 16-18]]+Table2[[#This Row],[Post-16 Post School 16-18]]+Table2[[#This Row],[Post-16 Post School 19-25]] -> 0 | R143: =Table2[[#This Row],[Total Pre-16]]+Table2[[#This Row],[Total Post 16]] -> 10
A144: ASHLEY PRIMARY SCHOOL | B144: 3932038 | C144: 0 | D144: MAINTAINED SCHOOL - MAINSTREAM | E144: North | F144: North East | G144: South Tyneside | H144: 393 | I144: 7 | J144: 0 | K144: 0 | L144: 0 | M144: =Table2[[#This Row],[Pre-16 SEN Units - 2014 to 2015]]+Table2[[#This Row],[Pre-16 Resourced Provision - 2014 to 2015]]+Table2[[#This Row],[Pre-16 Alternative Provision - 2014 to 2016]]+Table2[[#This Row],[Pre-16 SEN Places - 2014 to 2015]] -> 7 | N144: 0 | O144: 0 | P144: 0 | Q144: =Table2[[#This Row],[Post-16 Schools 16-18]]+Table2[[#This Row],[Post-16 Post School 16-18]]+Table2[[#This Row],[Post-16 Post School 19-25]] -> 0 | R144: =Table2[[#This Row],[Total Pre-16]]+Table2[[#This Row],[Total Post 16]] -> 7
A145: ASHLEY SCHOOL | B145: 8767202 | C145: 123832 | D145: MAINTAINED SPECIAL SCHOOL | E145: North | F145: North West | G145: Halton | H145: 876 | I145: 0 | J145: 0 | K145: 0 | L145: 70 | M145: =Table2[[#This Row],[Pre-16 SEN Units - 2014 to 2015]]+Table2[[#This Row],[Pre-16 Resourced Provision - 2014 to 2015]]+Table2[[#This Row],[Pre-16 Alternative Provision - 2014 to 2016]]+Table2[[#This Row],[Pre-16 SEN Places - 2014 to 2015]] -> 70 | N145: 14 | O145: 0 | P145: 0 | Q145: =Table2[[#This Row],[Post-16 Schools 16-18]]+Table2[[#This Row],[Post-16 Post School 16-18]]+Table2[[#This Row],[Post-16 Post School 19-25]] -> 14 | R145: =Table2[[#This Row],[Total Pre-16]]+Table2[[#This Row],[Total Post 16]] -> 84
A146: ASHLYNS SCHOOL | B146: 9195406 | C146: 113902 | D146: MAINTAINED SCHOOL - MAINSTREAM | E146: South | F146: East of England | G146: Hertfordshire | H146: 919 | I146: 0 | J146: 0 | K146: 0 | L146: 0 | M146: =Table2[[#This Row],[Pre-16 SEN Units - 2014 to 2015]]+Table2[[#This Row],[Pre-16 Resourced Provision - 2014 to 2015]]+Table2[[#This Row],[Pre-16 Alternative Provision - 2014 to 2016]]+Table2[[#This Row],[Pre-16 SEN Places - 2014 to 2015]] -> 0 | N146: 1 | O146: 0 | P146: 0 | Q146: =Table2[[#This Row],[Post-16 Schools 16-18]]+Table2[[#This Row],[Post-16 Post School 16-18]]+Table2[[#This Row],[Post-16 Post School 19-25]] -> 1 | R146: =Table2[[#This Row],[Total Pre-16]]+Table2[[#This Row],[Total Post 16]] -> 1
A147: ASHMOLE ACADEMY | B147: 3025406 | C147: 119277 | D147: ACADEMY - MAINSTREAM | E147: South | F147: London | G147: Barnet | H147: 302 | I147: 0 | J147: 0 | K147: 0 | L147: 0 | M147: =Table2[[#This Row],[Pre-16 SEN Units - 2014 to 2015]]+Table2[[#This Row],[Pre-16 Resourced Provision - 2014 to 2015]]+Table2[[#This Row],[Pre-16 Alternative Provision - 2014 to 2016]]+Table2[[#This Row],[Pre-16 SEN Places - 2014 to 2015]] -> 0 | N147: 2 | O147: 0 | P147: 0 | Q147: =Table2[[#This Row],[Post-16 Schools 16-18]]+Table2[[#This Row],[Post-16 Post School 16-18]]+Table2[[#This Row],[Post-16 Post School 19-25]] -> 2 | R147: =Table2[[#This Row],[Total Pre-16]]+Table2[[#This Row],[Total Post 16]] -> 2
A148: ASHMOUNT SCHOOL | B148: 8557006 | C148: 123706 | D148: MAINTAINED SPECIAL SCHOOL | E148: CentralSW | F148: East Midlands | G148: Leicestershire | H148: 855 | I148: 0 | J148: 0 | K148: 0 | L148: 84 | M148: =Table2[[#This Row],[Pre-16 SEN Units - 2014 to 2015]]+Table2[[#This Row],[Pre-16 Resourced Provision - 2014 to 2015]]+Table2[[#This Row],[Pre-16 Alternative Provision - 2014 to 2016]]+Table2[[#This Row],[Pre-16 SEN Places - 2014 to 2015]] -> 84 | N148: 16 | O148: 0 | P148: 0 | Q148: =Table2[[#This Row],[Post-16 Schools 16-18]]+Table2[[#This Row],[Post-16 Post School 16-18]]+Table2[[#This Row],[Post-16 Post School 19-25]] -> 16 | R148: =Table2[[#This Row],[Total Pre-16]]+Table2[[#This Row],[Total Post 16]] -> 100
A149: ASHTON COMMUNITY SCIENCE COLLEGE | B149: 8884000 | C149: 119180 | D149: MAINTAINED SCHOOL - MAINSTREAM | E149: North | F149: North West | G149: Lancashire | H149: 888 | I149: 0 | J149: 20 | K149: 0 | L149: 0 | M149: =Table2[[#This Row],[Pre-16 SEN Units - 2014 to 2015]]+Table2[[#This Row],[Pre-16 Resourced Provision - 2014 to 2015]]+Table2[[#This Row],[Pre-16 Alternative Provision - 2014 to 2016]]+Table2[[#This Row],[Pre-16 SEN Places - 2014 to 2015]] -> 20 | N149: 0 | O149: 0 | P149: 0 | Q149: =Table2[[#This Row],[Post-16 Schools 16-18]]+Table2[[#This Row],[Post-16 Post School 16-18]]+Table2[[#This Row],[Post-16 Post School 19-25]] -> 0 | R149: =Table2[[#This Row],[Total Pre-16]]+Table2[[#This Row],[Total Post 16]] -> 20
A150: ASHTON PARK SCHOOL | B150: 8014030 | C150: 114492 | D150: MAINTAINED SCHOOL - MAINSTREAM | E150: CentralSW | F150: South West | G150: Bristol, City of | H150: 801 | I150: 10 | J150: 0 | K150: 0 | L150: 0 | M150: =Table2[[#This Row],[Pre-16 SEN Units - 2014 to 2015]]+Table2[[#This Row],[Pre-16 Resourced Provision - 2014 to 2015]]+Table2[[#This Row],[Pre-16 Alternative Provision - 2014 to 2016]]+Table2[[#This Row],[Pre-16 SEN Places - 2014 to 2015]] -> 10 | N150: 16 | O150: 0 | P150: 0 | Q150: =Table2[[#This Row],[Post-16 Schools 16-18]]+Table2[[#This Row],[Post-16 Post School 16-18]]+Table2[[#This Row],[Post-16 Post School 19-25]] -> 16 | R150: =Table2[[#This Row],[Total Pre-16]]+Table2[[#This Row],[Total Post 16]] -> 26
A151: ASHTON PRIMARY SCHOOL | B151: 8882198 | C151: 0 | D151: MAINTAINED SCHOOL - MAINSTREAM | E151: North | F151: North West | G151: Lancashire | H151: 888 | I151: 0 | J151: 6 | K151: 0 | L151: 0 | M151: =Table2[[#This Row],[Pre-16 SEN Units - 2014 to 2015]]+Table2[[#This Row],[Pre-16 Resourced Provision - 2014 to 2015]]+Table2[[#This Row],[Pre-16 Alternative Provision - 2014 to 2016]]+Table2[[#This Row],[Pre-16 SEN Places - 2014 to 2015]] -> 6 | N151: 0 | O151: 0 | P151: 0 | Q151: =Table2[[#This Row],[Post-16 Schools 16-18]]+Table2[[#This Row],[Post-16 Post School 16-18]]+Table2[[#This Row],[Post-16 Post School 19-25]] -> 0 | R151: =Table2[[#This Row],[Total Pre-16]]+Table2[[#This Row],[Total Post 16]] -> 6
A152: ASHTON-ON-MERSEY SCHOOL | B152: 3585401 | C152: 122001 | D152: ACADEMY - MAINSTREAM | E152: North | F152: North West | G152: Trafford | H152: 358 | I152: 0 | J152: 0 | K152: 0 | L152: 0 | M152: =Table2[[#This Row],[Pre-16 SEN Units - 2014 to 2015]]+Table2[[#This Row],[Pre-16 Resourced Provision - 2014 to 2015]]+Table2[[#This Row],[Pre-16 Alternative Provision - 2014 to 2016]]+Table2[[#This Row],[Pre-16 SEN Places - 2014 to 2015]] -> 0 | N152: 2 | O152: 0 | P152: 0 | Q152: =Table2[[#This Row],[Post-16 Schools 16-18]]+Table2[[#This Row],[Post-16 Post School 16-18]]+Table2[[#This Row],[Post-16 Post School 19-25]] -> 2 | R152: =Table2[[#This Row],[Total Pre-16]]+Table2[[#This Row],[Total Post 16]] -> 2
A153: ASHTON-UNDER-LYNE SIXTH FORM COLLEGE | B153: 3578601 | C153: 108439 | D153: FURTHER EDUCATION PROVIDER | E153: North | F153: North West | G153: Tameside | H153: 357 | I153: 0 | J153: 0 | K153: 0 | L153: 0 | M153: =Table2[[#This Row],[Pre-16 SEN Units - 2014 to 2015]]+Table2[[#This Row],[Pre-16 Resourced Provision - 2014 to 2015]]+Table2[[#This Row],[Pre-16 Alternative Provision - 2014 to 2016]]+Table2[[#This Row],[Pre-16 SEN Places - 2014 to 2015]] -> 0 | N153: 0 | O153: 3 | P153: 0 | Q153: =Table2[[#This Row],[Post-16 Schools 16-18]]+Table2[[#This Row],[Post-16 Post School 16-18]]+Table2[[#This Row],[Post-16 Post School 19-25]] -> 3 | R153: =Table2[[#This Row],[Total Pre-16]]+Table2[[#This Row],[Total Post 16]] -> 3
A154: ASHWELL ACADEMY | B154: 8101103 | C154: 123233 | D154: ACADEMY - AP | E154: North | F154: Yorkshire and the Humber | G154: Kingston upon Hull, City of | H154: 810 | I154: 0 | J154: 0 | K154: 40 | L154: 0 | M154: =Table2[[#This Row],[Pre-16 SEN Units - 2014 to 2015]]+Table2[[#This Row],[Pre-16 Resourced Provision - 2014 to 2015]]+Table2[[#This Row],[Pre-16 Alternative Provision - 2014 to 2016]]+Table2[[#This Row],[Pre-16 SEN Places - 2014 to 2015]] -> 40 | N154: 0 | O154: 0 | P154: 0 | Q154: =Table2[[#This Row],[Post-16 Schools 16-18]]+Table2[[#This Row],[Post-16 Post School 16-18]]+Table2[[#This Row],[Post-16 Post School 19-25]] -> 0 | R154: =Table2[[#This Row],[Total Pre-16]]+Table2[[#This Row],[Total Post 16]] -> 40
A155: ASHWOOD PARK PRIMARY SCHOOL | B155: 3322141 | C155: 0 | D155: MAINTAINED SCHOOL - MAINSTREAM | E155: CentralSW | F155: West Midlands | G155: Dudley | H155: 332 | I155: 0 | J155: 20 | K155: 0 | L155: 0 | M155: =Table2[[#This Row],[Pre-16 SEN Units - 2014 to 2015]]+Table2[[#This Row],[Pre-16 Resourced Provision - 2014 to 2015]]+Table2[[#This Row],[Pre-16 Alternative Provision - 2014 to 2016]]+Table2[[#This Row],[Pre-16 SEN Places - 2014 to 2015]] -> 20 | N155: 0 | O155: 0 | P155: 0 | Q155: =Table2[[#This Row],[Post-16 Schools 16-18]]+Table2[[#This Row],[Post-16 Post School 16-18]]+Table2[[#This Row],[Post-16 Post School 19-25]] -> 0 | R155: =Table2[[#This Row],[Total Pre-16]]+Table2[[#This Row],[Total Post 16]] -> 20
A156: ASKHAM BRYAN COLLEGE | B156: 8168300 | C156: 105948 | D156: FURTHER EDUCATION PROVIDER | E156: North | F156: Yorkshire and the Humber | G156: York | H156: 816 | I156: 0 | J156: 0 | K156: 0 | L156: 0 | M156: =Table2[[#This Row],[Pre-16 SEN Units - 2014 to 2015]]+Table2[[#This Row],[Pre-16 Resourced Provision - 2014 to 2015]]+Table2[[#This Row],[Pre-16 Alternative Provision - 2014 to 2016]]+Table2[[#This Row],[Pre-16 SEN Places - 2014 to 2015]] -> 0 | N156: 0 | O156: 26 | P156: 29 | Q156: =Table2[[#This Row],[Post-16 Schools 16-18]]+Table2[[#This Row],[Post-16 Post School 16-18]]+Table2[[#This Row],[Post-16 Post School 19-25]] -> 55 | R156: =Table2[[#This Row],[Total Pre-16]]+Table2[[#This Row],[Total Post 16]] -> 55
A157: ASPIRE ACADEMY | B157: 8007000 | C157: 128037 | D157: MAINTAINED SPECIAL SCHOOL | E157: CentralSW | F157: South West | G157: Bath and North East Somerset | H157: 800 | I157: 0 | J157: 0 | K157: 0 | L157: 22 | M157: =Table2[[#This Row],[Pre-16 SEN Units - 2014 to 2015]]+Table2[[#This Row],[Pre-16 Resourced Provision - 2014 to 2015]]+Table2[[#This Row],[Pre-16 Alternative Provision - 2014 to 2016]]+Table2[[#This Row],[Pre-16 SEN Places - 2014 to 2015]] -> 22 | N157: 0 | O157: 0 | P157: 0 | Q157: =Table2[[#This Row],[Post-16 Schools 16-18]]+Table2[[#This Row],[Post-16 Post School 16-18]]+Table2[[#This Row],[Post-16 Post School 19-25]] -> 0 | R157: =Table2[[#This Row],[Total Pre-16]]+Table2[[#This Row],[Total Post 16]] -> 22
A158: ASPIRE ACADEMY | B158: 8101104 | C158: 0 | D158: NEW - FREE SCHOOL - AP | E158: North | F158: Yorkshire and the Humber | G158: Kingston upon Hull, City of | H158: 810 | I158: 0 | J158: 0 | K158: 100 | L158: 0 | M158: =Table2[[#This Row],[Pre-16 SEN Units - 2014 to 2015]]+Table2[[#This Row],[Pre-16 Resourced Provision - 2014 to 2015]]+Table2[[#This Row],[Pre-16 Alternative Provision - 2014 to 2016]]+Table2[[#This Row],[Pre-16 SEN Places - 2014 to 2015]] -> 100 | N158: 0 | O158: 0 | P158: 0 | Q158: =Table2[[#This Row],[Post-16 Schools 16-18]]+Table2[[#This Row],[Post-16 Post School 16-18]]+Table2[[#This Row],[Post-16 Post School 19-25]] -> 0 | R158: =Table2[[#This Row],[Total Pre-16]]+Table2[[#This Row],[Total Post 16]] -> 100
A159: ASTLEY COMMUNITY HIGH SCHOOL | B159: 9295400 | C159: 113215 | D159: MAINTAINED SCHOOL - MAINSTREAM | E159: North | F159: North East | G159: Northumberland | H159: 929 | I159: 0 | J159: 0 | K159: 0 | L159: 0 | M159: =Table2[[#This Row],[Pre-16 SEN Units - 2014 to 2015]]+Table2[[#This Row],[Pre-16 Resourced Provision - 2014 to 2015]]+Table2[[#This Row],[Pre-16 Alternative Provision - 2014 to 2016]]+Table2[[#This Row],[Pre-16 SEN Places - 2014 to 2015]] -> 0 | N159: 5 | O159: 0 | P159: 0 | Q159: =Table2[[#This Row],[Post-16 Schools 16-18]]+Table2[[#This Row],[Post-16 Post School 16-18]]+Table2[[#This Row],[Post-16 Post School 19-25]] -> 5 | R159: =Table2[[#This Row],[Total Pre-16]]+Table2[[#This Row],[Total Post 16]] -> 5
A160: ASTON CLINTON SCHOOL | B160: 8252250 | C160: 0 | D160: MAINTAINED SCHOOL - MAINSTREAM | E160: South | F160: South East | G160: Buckinghamshire | H160: 825 | I160: 0 | J160: 10 | K160: 0 | L160: 0 | M160: =Table2[[#This Row],[Pre-16 SEN Units - 2014 to 2015]]+Table2[[#This Row],[Pre-16 Resourced Provision - 2014 to 2015]]+Table2[[#This Row],[Pre-16 Alternative Provision - 2014 to 2016]]+Table2[[#This Row],[Pre-16 SEN Places - 2014 to 2015]] -> 10 | N160: 0 | O160: 0 | P160: 0 | Q160: =Table2[[#This Row],[Post-16 Schools 16-18]]+Table2[[#This Row],[Post-16 Post School 16-18]]+Table2[[#This Row],[Post-16 Post School 19-25]] -> 0 | R160: =Table2[[#This Row],[Total Pre-16]]+Table2[[#This Row],[Total Post 16]] -> 10
A161: ATHELNEY PRIMARY SCHOOL | B161: 2092023 | C161: 0 | D161: MAINTAINED SCHOOL - MAINSTREAM | E161: South | F161: London | G161: Lewisham | H161: 209 | I161: 0 | J161: 16 | K161: 0 | L161: 0 | M161: =Table2[[#This Row],[Pre-16 SEN Units - 2014 to 2015]]+Table2[[#This Row],[Pre-16 Resourced Provision - 2014 to 2015]]+Table2[[#This Row],[Pre-16 Alternative Provision - 2014 to 2016]]+Table2[[#This Row],[Pre-16 SEN Places - 2014 to 2015]] -> 16 | N161: 0 | O161: 0 | P161: 0 | Q161: =Table2[[#This Row],[Post-16 Schools 16-18]]+Table2[[#This Row],[Post-16 Post School 16-18]]+Table2[[#This Row],[Post-16 Post School 19-25]] -> 0 | R161: =Table2[[#This Row],[Total Pre-16]]+Table2[[#This Row],[Total Post 16]] -> 16
A162: ATKINSON HOUSE SCHOOL | B162: 9297024 | C162: 123829 | D162: MAINTAINED SPECIAL SCHOOL | E162: North | F162: North East | G162: Northumberland | H162: 929 | I162: 0 | J162: 0 | K162: 0 | L162: 58 | M162: =Table2[[#This Row],[Pre-16 SEN Units - 2014 to 2015]]+Table2[[#This Row],[Pre-16 Resourced Provision - 2014 to 2015]]+Table2[[#This Row],[Pre-16 Alternative Provision - 2014 to 2016]]+Table2[[#This Row],[Pre-16 SEN Places - 2014 to 2015]] -> 58 | N162: 7 | O162: 0 | P162: 0 | Q162: =Table2[[#This Row],[Post-16 Schools 16-18]]+Table2[[#This Row],[Post-16 Post School 16-18]]+Table2[[#This Row],[Post-16 Post School 19-25]] -> 7 | R162: =Table2[[#This Row],[Total Pre-16]]+Table2[[#This Row],[Total Post 16]] -> 65
A163: ATKINSON ROAD PRIMARY SCHOOL | B163: 3912010 | C163: 121210 | D163: ACADEMY - MAINSTREAM | E163: North | F163: North East | G163: Newcastle upon Tyne | H163: 391 | I163: 24 | J163: 0 | K163: 0 | L163: 0 | M163: =Table2[[#This Row],[Pre-16 SEN Units - 2014 to 2015]]+Table2[[#This Row],[Pre-16 Resourced Provision - 2014 to 2015]]+Table2[[#This Row],[Pre-16 Alternative Provision - 2014 to 2016]]+Table2[[#This Row],[Pre-16 SEN Places - 2014 to 2015]] -> 24 | N163: 0 | O163: 0 | P163: 0 | Q163: =Table2[[#This Row],[Post-16 Schools 16-18]]+Table2[[#This Row],[Post-16 Post School 16-18]]+Table2[[#This Row],[Post-16 Post School 19-25]] -> 0 | R163: =Table2[[#This Row],[Total Pre-16]]+Table2[[#This Row],[Total Post 16]] -> 24
A164: ATTLEBOROUGH HIGH SCHOOL | B164: 9264052 | C164: 127652 | D164: ACADEMY - MAINSTREAM | E164: South | F164: East of England | G164: Norfolk | H164: 926 | I164: 0 | J164: 10 | K164: 0 | L164: 0 | M164: =Table2[[#This Row],[Pre-16 SEN Units - 2014 to 2015]]+Table2[[#This Row],[Pre-16 Resourced Provision - 2014 to 2015]]+Table2[[#This Row],[Pre-16 Alternative Provision - 2014 to 2016]]+Table2[[#This Row],[Pre-16 SEN Places - 2014 to 2015]] -> 10 | N164: 0 | O164: 0 | P164: 0 | Q164: =Table2[[#This Row],[Post-16 Schools 16-18]]+Table2[[#This Row],[Post-16 Post School 16-18]]+Table2[[#This Row],[Post-16 Post School 19-25]] -> 0 | R164: =Table2[[#This Row],[Total Pre-16]]+Table2[[#This Row],[Total Post 16]] -> 10
A165: AUCKLAND EDUCATION CENTRE | B165: 3341105 | C165: 0 | D165: MAINTAINED ALTERNATIVE PROVISION (AP) - PRU | E165: CentralSW | F165: West Midlands | G165: Solihull | H165: 334 | I165: 0 | J165: 0 | K165: 40 | L165: 0 | M165: =Table2[[#This Row],[Pre-16 SEN Units - 2014 to 2015]]+Table2[[#This Row],[Pre-16 Resourced Provision - 2014 to 2015]]+Table2[[#This Row],[Pre-16 Alternative Provision - 2014 to 2016]]+Table2[[#This Row],[Pre-16 SEN Places - 2014 to 2015]] -> 40 | N165: 0 | O165: 0 | P165: 0 | Q165: =Table2[[#This Row],[Post-16 Schools 16-18]]+Table2[[#This Row],[Post-16 Post School 16-18]]+Table2[[#This Row],[Post-16 Post School 19-25]] -> 0 | R165: =Table2[[#This Row],[Total Pre-16]]+Table2[[#This Row],[Total Post 16]] -> 40
A166: AURIOL JUNIOR SCHOOL | B166: 9362090 | C166: 0 | D166: MAINTAINED SCHOOL - MAINSTREAM | E166: South | F166: South East | G166: Surrey | H166: 936 | I166: 12 | J166: 0 | K166: 0 | L166: 0 | M166: =Table2[[#This Row],[Pre-16 SEN Units - 2014 to 2015]]+Table2[[#This Row],[Pre-16 Resourced Provision - 2014 to 2015]]+Table2[[#This Row],[Pre-16 Alternative Provision - 2014 to 2016]]+Table2[[#This Row],[Pre-16 SEN Places - 2014 to 2015]] -> 12 | N166: 0 | O166: 0 | P166: 0 | Q166: =Table2[[#This Row],[Post-16 Schools 16-18]]+Table2[[#This Row],[Post-16 Post School 16-18]]+Table2[[#This Row],[Post-16 Post School 19-25]] -> 0 | R166: =Table2[[#This Row],[Total Pre-16]]+Table2[[#This Row],[Total Post 16]] -> 12
A167: Autism Outreach - 2 X Peripatetic Teachers - Claire Nunn/Jill Groutage | B167: 874X001 | C167: 0 | D167: HNT Funded - Pre-16 SEN Institution | E167: South | F167: East of England | G167: Peterborough | H167: 874 | I167: 12 | J167: 0 | K167: 0 | L167: 0 | M167: =Table2[[#This Row],[Pre-16 SEN Units - 2014 to 2015]]+Table2[[#This Row],[Pre-16 Resourced Provision - 2014 to 2015]]+Table2[[#This Row],[Pre-16 Alternative Provision - 2014 to 2016]]+Table2[[#This Row],[Pre-16 SEN Places - 2014 to 2015]] -> 12 | N167: 0 | O167: 0 | P167: 0 | Q167: =Table2[[#This Row],[Post-16 Schools 16-18]]+Table2[[#This Row],[Post-16 Post School 16-18]]+Table2[[#This Row],[Post-16 Post School 19-25]] -> 0 | R167: =Table2[[#This Row],[Total Pre-16]]+Table2[[#This Row],[Total Post 16]] -> 12
A168: AVALON SCHOOL | B168: 9337018 | C168: 123783 | D168: MAINTAINED SPECIAL SCHOOL | E168: CentralSW | F168: South West | G168: Somerset | H168: 933 | I168: 0 | J168: 0 | K168: 0 | L168: 26 | M168: =Table2[[#This Row],[Pre-16 SEN Units - 2014 to 2015]]+Table2[[#This Row],[Pre-16 Resourced Provision - 2014 to 2015]]+Table2[[#This Row],[Pre-16 Alternative Provision - 2014 to 2016]]+Table2[[#This Row],[Pre-16 SEN Places - 2014 to 2015]] -> 26 | N168: 18 | O168: 0 | P168: 0 | Q168: =Table2[[#This Row],[Post-16 Schools 16-18]]+Table2[[#This Row],[Post-16 Post School 16-18]]+Table2[[#This Row],[Post-16 Post School 19-25]] -> 18 | R168: =Table2[[#This Row],[Total Pre-16]]+Table2[[#This Row],[Total Post 16]] -> 44
A169: AVENUE CENTRE FOR EDUCATION | B169: 8211102 | C169: 0 | D169: MAINTAINED ALTERNATIVE PROVISION (AP) - PRU | E169: South | F169: East of England | G169: Luton | H169: 821 | I169: 0 | J169: 0 | K169: 26 | L169: 0 | M169: =Table2[[#This Row],[Pre-16 SEN Units - 2014 to 2015]]+Table2[[#This Row],[Pre-16 Resourced Provision - 2014 to 2015]]+Table2[[#This Row],[Pre-16 Alternative Provision - 2014 to 2016]]+Table2[[#This Row],[Pre-16 SEN Places - 2014 to 2015]] -> 26 | N169: 0 | O169: 0 | P169: 0 | Q169: =Table2[[#This Row],[Post-16 Schools 16-18]]+Table2[[#This Row],[Post-16 Post School 16-18]]+Table2[[#This Row],[Post-16 Post School 19-25]] -> 0 | R169: =Table2[[#This Row],[Total Pre-16]]+Table2[[#This Row],[Total Post 16]] -> 26
A170: AVENUE PRIMARY SCHOOL | B170: 3192003 | C170: 0 | D170: MAINTAINED SCHOOL - MAINSTREAM | E170: South | F170: London | G170: Sutton | H170: 319 | I170: 12 | J170: 0 | K170: 0 | L170: 0 | M170: =Table2[[#This Row],[Pre-16 SEN Units - 2014 to 2015]]+Table2[[#This Row],[Pre-16 Resourced Provision - 2014 to 2015]]+Table2[[#This Row],[Pre-16 Alternative Provision - 2014 to 2016]]+Table2[[#This Row],[Pre-16 SEN Places - 2014 to 2015]] -> 12 | N170: 0 | O170: 0 | P170: 0 | Q170: =Table2[[#This Row],[Post-16 Schools 16-18]]+Table2[[#This Row],[Post-16 Post School 16-18]]+Table2[[#This Row],[Post-16 Post School 19-25]] -> 0 | R170: =Table2[[#This Row],[Total Pre-16]]+Table2[[#This Row],[Total Post 16]] -> 12
A171: AVON VALLEY COLLEGE | B171: 8654071 | C171: 114301 | D171: MAINTAINED SCHOOL - MAINSTREAM | E171: CentralSW | F171: South West | G171: Wiltshire | H171: 865 | I171: 0 | J171: 20 | K171: 0 | L171: 0 | M171: =Table2[[#This Row],[Pre-16 SEN Units - 2014 to 2015]]+Table2[[#This Row],[Pre-16 Resourced Provision - 2014 to 2015]]+Table2[[#This Row],[Pre-16 Alternative Provision - 2014 to 2016]]+Table2[[#This Row],[Pre-16 SEN Places - 2014 to 2015]] -> 20 | N171: 0 | O171: 0 | P171: 0 | Q171: =Table2[[#This Row],[Post-16 Schools 16-18]]+Table2[[#This Row],[Post-16 Post School 16-18]]+Table2[[#This Row],[Post-16 Post School 19-25]] -> 0 | R171: =Table2[[#This Row],[Total Pre-16]]+Table2[[#This Row],[Total Post 16]] -> 20
A172: AYLANDS SCHOOL | B172: 3087004 | C172: 0 | D172: MAINTAINED SPECIAL SCHOOL | E172: South | F172: London | G172: Enfield | H172: 308 | I172: 0 | J172: 0 | K172: 0 | L172: 44 | M172: =Table2[[#This Row],[Pre-16 SEN Units - 2014 to 2015]]+Table2[[#This Row],[Pre-16 Resourced Provision - 2014 to 2015]]+Table2[[#This Row],[Pre-16 Alternative Provision - 2014 to 2016]]+Table2[[#This Row],[Pre-16 SEN Places - 2014 to 2015]] -> 44 | N172: 0 | O172: 0 | P172: 0 | Q172: =Table2[[#This Row],[Post-16 Schools 16-18]]+Table2[[#This Row],[Post-16 Post School 16-18]]+Table2[[#This Row],[Post-16 Post School 19-25]] -> 0 | R172: =Table2[[#This Row],[Total Pre-16]]+Table2[[#This Row],[Total Post 16]] -> 44
A173: AYLESBURY COLLEGE | B173: 8258000 | C173: 108983 | D173: FURTHER EDUCATION PROVIDER | E173: South | F173: South East | G173: Buckinghamshire | H173: 825 | I173: 0 | J173: 0 | K173: 0 | L173: 0 | M173: =Table2[[#This Row],[Pre-16 SEN Units - 2014 to 2015]]+Table2[[#This Row],[Pre-16 Resourced Provision - 2014 to 2015]]+Table2[[#This Row],[Pre-16 Alternative Provision - 2014 to 2016]]+Table2[[#This Row],[Pre-16 SEN Places - 2014 to 2015]] -> 0 | N173: 0 | O173: 4 | P173: 39 | Q173: =Table2[[#This Row],[Post-16 Schools 16-18]]+Table2[[#This Row],[Post-16 Post School 16-18]]+Table2[[#This Row],[Post-16 Post School 19-25]] -> 43 | R173: =Table2[[#This Row],[Total Pre-16]]+Table2[[#This Row],[Total Post 16]] -> 43
A174: AYLESBURY GRAMMAR SCHOOL | B174: 8254500 | C174: 119884 | D174: ACADEMY - MAINSTREAM | E174: South | F174: South East | G174: Buckinghamshire | H174: 825 | I174: 0 | J174: 0 | K174: 0 | L174: 0 | M174: =Table2[[#This Row],[Pre-16 SEN Units - 2014 to 2015]]+Table2[[#This Row],[Pre-16 Resourced Provision - 2014 to 2015]]+Table2[[#This Row],[Pre-16 Alternative Provision - 2014 to 2016]]+Table2[[#This Row],[Pre-16 SEN Places - 2014 to 2015]] -> 0 | N174: 2 | O174: 0 | P174: 0 | Q174: =Table2[[#This Row],[Post-16 Schools 16-18]]+Table2[[#This Row],[Post-16 Post School 16-18]]+Table2[[#This Row],[Post-16 Post School 19-25]] -> 2 | R174: =Table2[[#This Row],[Total Pre-16]]+Table2[[#This Row],[Total Post 16]] -> 2
A175: AYLESFORD SCHOOL & SIXTH FORM COLLEGE | B175: 9374190 | C175: 120810 | D175: ACADEMY - MAINSTREAM | E175: CentralSW | F175: West Midlands | G175: Warwickshire | H175: 937 | I175: 0 | J175: 0 | K175: 0 | L175: 0 | M175: =Table2[[#This Row],[Pre-16 SEN Units - 2014 to 2015]]+Table2[[#This Row],[Pre-16 Resourced Provision - 2014 to 2015]]+Table2[[#This Row],[Pre-16 Alternative Provision - 2014 to 2016]]+Table2[[#This Row],[Pre-16 SEN Places - 2014 to 2015]] -> 0 | N175: 1 | O175: 0 | P175: 0 | Q175: =Table2[[#This Row],[Post-16 Schools 16-18]]+Table2[[#This Row],[Post-16 Post School 16-18]]+Table2[[#This Row],[Post-16 Post School 19-25]] -> 1 | R175: =Table2[[#This Row],[Total Pre-16]]+Table2[[#This Row],[Total Post 16]] -> 1
A176: AYLWARD PRIMARY SCHOOL | B176: 3102001 | C176: 130326 | D176: ACADEMY - MAINSTREAM | E176: South | F176: London | G176: Harrow | H176: 310 | I176: 0 | J176: 12 | K176: 0 | L176: 0 | M176: =Table2[[#This Row],[Pre-16 SEN Units - 2014 to 2015]]+Table2[[#This Row],[Pre-16 Resourced Provision - 2014 to 2015]]+Table2[[#This Row],[Pre-16 Alternative Provision - 2014 to 2016]]+Table2[[#This Row],[Pre-16 SEN Places - 2014 to 2015]] -> 12 | N176: 0 | O176: 0 | P176: 0 | Q176: =Table2[[#This Row],[Post-16 Schools 16-18]]+Table2[[#This Row],[Post-16 Post School 16-18]]+Table2[[#This Row],[Post-16 Post School 19-25]] -> 0 | R176: =Table2[[#This Row],[Total Pre-16]]+Table2[[#This Row],[Total Post 16]] -> 12
A177: AZURE CHARITABLE ENTERPRISES | B177: 0 | C177: 115824 | D177: POST-16 CHARITABLE AND COMMERCIAL PROVIDER | E177: North | F177: North East | G177: Northumberland | H177: 929 | I177: 0 | J177: 0 | K177: 0 | L177: 0 | M177: =Table2[[#This Row],[Pre-16 SEN Units - 2014 to 2015]]+Table2[[#This Row],[Pre-16 Resourced Provision - 2014 to 2015]]+Table2[[#This Row],[Pre-16 Alternative Provision - 2014 to 2016]]+Table2[[#This Row],[Pre-16 SEN Places - 2014 to 2015]] -> 0 | N177: 0 | O177: 7 | P177: 7 | Q177: =Table2[[#This Row],[Post-16 Schools 16-18]]+Table2[[#This Row],[Post-16 Post School 16-18]]+Table2[[#This Row],[Post-16 Post School 19-25]] -> 14 | R177: =Table2[[#This Row],[Total Pre-16]]+Table2[[#This Row],[Total Post 16]] -> 14
A178: BABINGTON COMMUNITY COLLEGE | B178: 8564270 | C178: 0 | D178: MAINTAINED SCHOOL - MAINSTREAM | E178: CentralSW | F178: East Midlands | G178: Leicester | H178: 856 | I178: 0 | J178: 15 | K178: 0 | L178: 0 | M178: =Table2[[#This Row],[Pre-16 SEN Units - 2014 to 2015]]+Table2[[#This Row],[Pre-16 Resourced Provision - 2014 to 2015]]+Table2[[#This Row],[Pre-16 Alternative Provision - 2014 to 2016]]+Table2[[#This Row],[Pre-16 SEN Places - 2014 to 2015]] -> 15 | N178: 0 | O178: 0 | P178: 0 | Q178: =Table2[[#This Row],[Post-16 Schools 16-18]]+Table2[[#This Row],[Post-16 Post School 16-18]]+Table2[[#This Row],[Post-16 Post School 19-25]] -> 0 | R178: =Table2[[#This Row],[Total Pre-16]]+Table2[[#This Row],[Total Post 16]] -> 15
A179: BACON'S COLLEGE | B179: 2106911 | C179: 118383 | D179: ACADEMY - MAINSTREAM | E179: South | F179: London | G179: Southwark | H179: 210 | I179: 0 | J179: 0 | K179: 0 | L179: 0 | M179: =Table2[[#This Row],[Pre-16 SEN Units - 2014 to 2015]]+Table2[[#This Row],[Pre-16 Resourced Provision - 2014 to 2015]]+Table2[[#This Row],[Pre-16 Alternative Provision - 2014 to 2016]]+Table2[[#This Row],[Pre-16 SEN Places - 2014 to 2015]] -> 0 | N179: 2 | O179: 0 | P179: 0 | Q179: =Table2[[#This Row],[Post-16 Schools 16-18]]+Table2[[#This Row],[Post-16 Post School 16-18]]+Table2[[#This Row],[Post-16 Post School 19-25]] -> 2 | R179: =Table2[[#This Row],[Total Pre-16]]+Table2[[#This Row],[Total Post 16]] -> 2
A180: BADSHOT LEA VILLAGE INFANT SCHOOL | B180: 9362415 | C180: 0 | D180: MAINTAINED SCHOOL - MAINSTREAM | E180: South | F180: South East | G180: Surrey | H180: 936 | I180: 13 | J180: 0 | K180: 0 | L180: 0 | M180: =Table2[[#This Row],[Pre-16 SEN Units - 2014 to 2015]]+Table2[[#This Row],[Pre-16 Resourced Provision - 2014 to 2015]]+Table2[[#This Row],[Pre-16 Alternative Provision - 2014 to 2016]]+Table2[[#This Row],[Pre-16 SEN Places - 2014 to 2015]] -> 13 | N180: 0 | O180: 0 | P180: 0 | Q180: =Table2[[#This Row],[Post-16 Schools 16-18]]+Table2[[#This Row],[Post-16 Post School 16-18]]+Table2[[#This Row],[Post-16 Post School 19-25]] -> 0 | R180: =Table2[[#This Row],[Total Pre-16]]+Table2[[#This Row],[Total Post 16]] -> 13
A181: BAGINTON FIELDS SCHOOL | B181: 3317019 | C181: 123419 | D181: MAINTAINED SPECIAL SCHOOL | E181: CentralSW | F181: West Midlands | G181: Coventry | H181: 331 | I181: 0 | J181: 0 | K181: 0 | L181: 62 | M181: =Table2[[#This Row],[Pre-16 SEN Units - 2014 to 2015]]+Table2[[#This Row],[Pre-16 Resourced Provision - 2014 to 2015]]+Table2[[#This Row],[Pre-16 Alternative Provision - 2014 to 2016]]+Table2[[#This Row],[Pre-16 SEN Places - 2014 to 2015]] -> 62 | N181: 38 | O181: 0 | P181: 0 | Q181: =Table2[[#This Row],[Post-16 Schools 16-18]]+Table2[[#This Row],[Post-16 Post School 16-18]]+Table2[[#This Row],[Post-16 Post School 19-25]] -> 38 | R181: =Table2[[#This Row],[Total Pre-16]]+Table2[[#This Row],[Total Post 16]] -> 100
A182: BAGSHOT INFANT SCHOOL | B182: 9362268 | C182: 0 | D182: MAINTAINED SCHOOL - MAINSTREAM | E182: South | F182: South East | G182: Surrey | H182: 936 | I182: 7 | J182: 0 | K182: 0 | L182: 0 | M182: =Table2[[#This Row],[Pre-16 SEN Units - 2014 to 2015]]+Table2[[#This Row],[Pre-16 Resourced Provision - 2014 to 2015]]+Table2[[#This Row],[Pre-16 Alternative Provision - 2014 to 2016]]+Table2[[#This Row],[Pre-16 SEN Places - 2014 to 2015]] -> 7 | N182: 0 | O182: 0 | P182: 0 | Q182: =Table2[[#This Row],[Post-16 Schools 16-18]]+Table2[[#This Row],[Post-16 Post School 16-18]]+Table2[[#This Row],[Post-16 Post School 19-25]] -> 0 | R182: =Table2[[#This Row],[Total Pre-16]]+Table2[[#This Row],[Total Post 16]] -> 7
A183: BALBY CARR COMMUNITY SPORTS AND SCIENCE COLLEGE | B183: 3714002 | C183: 124987 | D183: ACADEMY - MAINSTREAM | E183: North | F183: Yorkshire and the Humber | G183: Doncaster | H183: 371 | I183: 0 | J183: 0 | K183: 18 | L183: 0 | M183: =Table2[[#This Row],[Pre-16 SEN Units - 2014 to 2015]]+Table2[[#This Row],[Pre-16 Resourced Provision - 2014 to 2015]]+Table2[[#This Row],[Pre-16 Alternative Provision - 2014 to 2016]]+Table2[[#This Row],[Pre-16 SEN Places - 2014 to 2015]] -> 18 | N183: 2 | O183: 0 | P183: 0 | Q183: =Table2[[#This Row],[Post-16 Schools 16-18]]+Table2[[#This Row],[Post-16 Post School 16-18]]+Table2[[#This Row],[Post-16 Post School 19-25]] -> 2 | R183: =Table2[[#This Row],[Total Pre-16]]+Table2[[#This Row],[Total Post 16]] -> 20
A184: BAMBURGH SCHOOL | B184: 3937000 | C184: 123737 | D184: MAINTAINED SPECIAL SCHOOL | E184: North | F184: North East | G184: South Tyneside | H184: 393 | I184: 0 | J184: 0 | K184: 0 | L184: 150 | M184: =Table2[[#This Row],[Pre-16 SEN Units - 2014 to 2015]]+Table2[[#This Row],[Pre-16 Resourced Provision - 2014 to 2015]]+Table2[[#This Row],[Pre-16 Alternative Provision - 2014 to 2016]]+Table2[[#This Row],[Pre-16 SEN Places - 2014 to 2015]] -> 150 | N184: 0 | O184: 0 | P184: 0 | Q184: =Table2[[#This Row],[Post-16 Schools 16-18]]+Table2[[#This Row],[Post-16 Post School 16-18]]+Table2[[#This Row],[Post-16 Post School 19-25]] -> 0 | R184: =Table2[[#This Row],[Total Pre-16]]+Table2[[#This Row],[Total Post 16]] -> 150
A185: BANBURY ACADEMY | B185: 9314000 | C185: 120641 | D185: ACADEMY - MAINSTREAM | E185: South | F185: South East | G185: Oxfordshire | H185: 931 | I185: 0 | J185: 0 | K185: 0 | L185: 0 | M185: =Table2[[#This Row],[Pre-16 SEN Units - 2014 to 2015]]+Table2[[#This Row],[Pre-16 Resourced Provision - 2014 to 2015]]+Table2[[#This Row],[Pre-16 Alternative Provision - 2014 to 2016]]+Table2[[#This Row],[Pre-16 SEN Places - 2014 to 2015]] -> 0 | N185: 1 | O185: 0 | P185: 0 | Q185: =Table2[[#This Row],[Post-16 Schools 16-18]]+Table2[[#This Row],[Post-16 Post School 16-18]]+Table2[[#This Row],[Post-16 Post School 19-25]] -> 1 | R185: =Table2[[#This Row],[Total Pre-16]]+Table2[[#This Row],[Total Post 16]] -> 1
A186: BANDON HILL PRIMARY SCHOOL | B186: 3192000 | C186: 0 | D186: MAINTAINED SCHOOL - MAINSTREAM | E186: South | F186: London | G186: Sutton | H186: 319 | I186: 18 | J186: 0 | K186: 0 | L186: 0 | M186: =Table2[[#This Row],[Pre-16 SEN Units - 2014 to 2015]]+Table2[[#This Row],[Pre-16 Resourced Provision - 2014 to 2015]]+Table2[[#This Row],[Pre-16 Alternative Provision - 2014 to 2016]]+Table2[[#This Row],[Pre-16 SEN Places - 2014 to 2015]] -> 18 | N186: 0 | O186: 0 | P186: 0 | Q186: =Table2[[#This Row],[Post-16 Schools 16-18]]+Table2[[#This Row],[Post-16 Post School 16-18]]+Table2[[#This Row],[Post-16 Post School 19-25]] -> 0 | R186: =Table2[[#This Row],[Total Pre-16]]+Table2[[#This Row],[Total Post 16]] -> 18
A187: BANGABANDHU PRIMARY SCHOOL | B187: 2112912 | C187: 0 | D187: MAINTAINED SCHOOL - MAINSTREAM | E187: South | F187: London | G187: Tower Hamlets | H187: 211 | I187: 0 | J187: 15 | K187: 0 | L187: 0 | M187: =Table2[[#This Row],[Pre-16 SEN Units - 2014 to 2015]]+Table2[[#This Row],[Pre-16 Resourced Provision - 2014 to 2015]]+Table2[[#This Row],[Pre-16 Alternative Provision - 2014 to 2016]]+Table2[[#This Row],[Pre-16 SEN Places - 2014 to 2015]] -> 15 | N187: 0 | O187: 0 | P187: 0 | Q187: =Table2[[#This Row],[Post-16 Schools 16-18]]+Table2[[#This Row],[Post-16 Post School 16-18]]+Table2[[#This Row],[Post-16 Post School 19-25]] -> 0 | R187: =Table2[[#This Row],[Total Pre-16]]+Table2[[#This Row],[Total Post 16]] -> 15
A188: BANK VIEW HIGH SCHOOL | B188: 3417070 | C188: 123439 | D188: MAINTAINED SPECIAL SCHOOL | E188: North | F188: North West | G188: Liverpool | H188: 341 | I188: 0 | J188: 0 | K188: 0 | L188: 124 | M188: =Table2[[#This Row],[Pre-16 SEN Units - 2014 to 2015]]+Table2[[#This Row],[Pre-16 Resourced Provision - 2014 to 2015]]+Table2[[#This Row],[Pre-16 Alternative Provision - 2014 to 2016]]+Table2[[#This Row],[Pre-16 SEN Places - 2014 to 2015]] -> 124 | N188: 27 | O188: 0 | P188: 0 | Q188: =Table2[[#This Row],[Post-16 Schools 16-18]]+Table2[[#This Row],[Post-16 Post School 16-18]]+Table2[[#This Row],[Post-16 Post School 19-25]] -> 27 | R188: =Table2[[#This Row],[Total Pre-16]]+Table2[[#This Row],[Total Post 16]] -> 151
A189: BARBARA PRIESTMAN SCHOOL | B189: 3947004 | C189: 122338 | D189: ACADEMY - SPECIAL | E189: North | F189: North East | G189: Sunderland | H189: 394 | I189: 0 | J189: 0 | K189: 0 | L189: 70 | M189: =Table2[[#This Row],[Pre-16 SEN Units - 2014 to 2015]]+Table2[[#This Row],[Pre-16 Resourced Provision - 2014 to 2015]]+Table2[[#This Row],[Pre-16 Alternative Provision - 2014 to 2016]]+Table2[[#This Row],[Pre-16 SEN Places - 2014 to 2015]] -> 70 | N189: 53 | O189: 0 | P189: 0 | Q189: =Table2[[#This Row],[Post-16 Schools 16-18]]+Table2[[#This Row],[Post-16 Post School 16-18]]+Table2[[#This Row],[Post-16 Post School 19-25]] -> 53 | R189: =Table2[[#This Row],[Total Pre-16]]+Table2[[#This Row],[Total Post 16]] -> 123
A190: BARDWELL SCHOOL | B190: 9317029 | C190: 124029 | D190: MAINTAINED SPECIAL SCHOOL | E190: South | F190: South East | G190: Oxfordshire | H190: 931 | I190: 0 | J190: 0 | K190: 0 | L190: 43.2 | M190: =Table2[[#This Row],[Pre-16 SEN Units - 2014 to 2015]]+Table2[[#This Row],[Pre-16 Resourced Provision - 2014 to 2015]]+Table2[[#This Row],[Pre-16 Alternative Provision - 2014 to 2016]]+Table2[[#This Row],[Pre-16 SEN Places - 2014 to 2015]] -> 43.2 | N190: 11 | O190: 0 | P190: 0 | Q190: =Table2[[#This Row],[Post-16 Schools 16-18]]+Table2[[#This Row],[Post-16 Post School 16-18]]+Table2[[#This Row],[Post-16 Post School 19-25]] -> 11 | R190: =Table2[[#This Row],[Total Pre-16]]+Table2[[#This Row],[Total Post 16]] -> 54.2
A191: BARKING AND DAGENHAM COLLEGE | B191: 3018000 | C191: 106542 | D191: FURTHER EDUCATION PROVIDER | E191: South | F191: London | G191: Barking and Dagenham | H191: 301 | I191: 0 | J191: 0 | K191: 0 | L191: 0 | M191: =Table2[[#This Row],[Pre-16 SEN Units - 2014 to 2015]]+Table2[[#This Row],[Pre-16 Resourced Provision - 2014 to 2015]]+Table2[[#This Row],[Pre-16 Alternative Provision - 2014 to 2016]]+Table2[[#This Row],[Pre-16 SEN Places - 2014 to 2015]] -> 0 | N191: 0 | O191: 99 | P191: 49 | Q191: =Table2[[#This Row],[Post-16 Schools 16-18]]+Table2[[#This Row],[Post-16 Post School 16-18]]+Table2[[#This Row],[Post-16 Post School 19-25]] -> 148 | R191: =Table2[[#This Row],[Total Pre-16]]+Table2[[#This Row],[Total Post 16]] -> 148
A192: BARKING AND DAGENHAM TUITION SERVICE | B192: 3011100 | C192: 0 | D192: MAINTAINED ALTERNATIVE PROVISION (AP) - PRU | E192: South | F192: London | G192: Barking and Dagenham | H192: 301 | I192: 0 | J192: 0 | K192: 156 | L192: 0 | M192: =Table2[[#This Row],[Pre-16 SEN Units - 2014 to 2015]]+Table2[[#This Row],[Pre-16 Resourced Provision - 2014 to 2015]]+Table2[[#This Row],[Pre-16 Alternative Provision - 2014 to 2016]]+Table2[[#This Row],[Pre-16 SEN Places - 2014 to 2015]] -> 156 | N192: 0 | O192: 0 | P192: 0 | Q192: =Table2[[#This Row],[Post-16 Schools 16-18]]+Table2[[#This Row],[Post-16 Post School 16-18]]+Table2[[#This Row],[Post-16 Post School 19-25]] -> 0 | R192: =Table2[[#This Row],[Total Pre-16]]+Table2[[#This Row],[Total Post 16]] -> 156
A193: BARLBY PRIMARY SCHOOL | B193: 2072030 | C193: 0 | D193: MAINTAINED SCHOOL - MAINSTREAM | E193: South | F193: London | G193: Kensington and Chelsea | H193: 207 | I193: 16 | J193: 0 | K193: 0 | L193: 0 | M193: =Table2[[#This Row],[Pre-16 SEN Units - 2014 to 2015]]+Table2[[#This Row],[Pre-16 Resourced Provision - 2014 to 2015]]+Table2[[#This Row],[Pre-16 Alternative Provision - 2014 to 2016]]+Table2[[#This Row],[Pre-16 SEN Places - 2014 to 2015]] -> 16 | N193: 0 | O193: 0 | P193: 0 | Q193: =Table2[[#This Row],[Post-16 Schools 16-18]]+Table2[[#This Row],[Post-16 Post School 16-18]]+Table2[[#This Row],[Post-16 Post School 19-25]] -> 0 | R193: =Table2[[#This Row],[Total Pre-16]]+Table2[[#This Row],[Total Post 16]] -> 16
A194: BARLEY CROFT PRIMARY SCHOOL | B194: 8562320 | C194: 0 | D194: MAINTAINED SCHOOL - MAINSTREAM | E194: CentralSW | F194: East Midlands | G194: Leicester | H194: 856 | I194: 0 | J194: 15 | K194: 0 | L194: 0 | M194: =Table2[[#This Row],[Pre-16 SEN Units - 2014 to 2015]]+Table2[[#This Row],[Pre-16 Resourced Provision - 2014 to 2015]]+Table2[[#This Row],[Pre-16 Alternative Provision - 2014 to 2016]]+Table2[[#This Row],[Pre-16 SEN Places - 2014 to 2015]] -> 15 | N194: 0 | O194: 0 | P194: 0 | Q194: =Table2[[#This Row],[Post-16 Schools 16-18]]+Table2[[#This Row],[Post-16 Post School 16-18]]+Table2[[#This Row],[Post-16 Post School 19-25]] -> 0 | R194: =Table2[[#This Row],[Total Pre-16]]+Table2[[#This Row],[Total Post 16]] -> 15
A195: BARLEY LANE SCHOOL | B195: 8787008 | C195: 0 | D195: MAINTAINED SPECIAL SCHOOL | E195: CentralSW | F195: South West | G195: Devon | H195: 878 | I195: 0 | J195: 0 | K195: 0 | L195: 59 | M195: =Table2[[#This Row],[Pre-16 SEN Units - 2014 to 2015]]+Table2[[#This Row],[Pre-16 Resourced Provision - 2014 to 2015]]+Table2[[#This Row],[Pre-16 Alternative Provision - 2014 to 2016]]+Table2[[#This Row],[Pre-16 SEN Places - 2014 to 2015]] -> 59 | N195: 0 | O195: 0 | P195: 0 | Q195: =Table2[[#This Row],[Post-16 Schools 16-18]]+Table2[[#This Row],[Post-16 Post School 16-18]]+Table2[[#This Row],[Post-16 Post School 19-25]] -> 0 | R195: =Table2[[#This Row],[Total Pre-16]]+Table2[[#This Row],[Total Post 16]] -> 59
A196: BARLOW HALL PRIMARY SCHOOL | B196: 3522325 | C196: 0 | D196: MAINTAINED SCHOOL - MAINSTREAM | E196: North | F196: North West | G196: Manchester | H196: 352 | I196: 0 | J196: 7 | K196: 0 | L196: 0 | M196: =Table2[[#This Row],[Pre-16 SEN Units - 2014 to 2015]]+Table2[[#This Row],[Pre-16 Resourced Provision - 2014 to 2015]]+Table2[[#This Row],[Pre-16 Alternative Provision - 2014 to 2016]]+Table2[[#This Row],[Pre-16 SEN Places - 2014 to 2015]] -> 7 | N196: 0 | O196: 0 | P196: 0 | Q196: =Table2[[#This Row],[Post-16 Schools 16-18]]+Table2[[#This Row],[Post-16 Post School 16-18]]+Table2[[#This Row],[Post-16 Post School 19-25]] -> 0 | R196: =Table2[[#This Row],[Total Pre-16]]+Table2[[#This Row],[Total Post 16]] -> 7
A197: BARLOWS PRIMARY SCHOOL | B197: 3412010 | C197: 0 | D197: MAINTAINED SCHOOL - MAINSTREAM | E197: North | F197: North West | G197: Liverpool | H197: 341 | I197: 33 | J197: 0 | K197: 0 | L197: 0 | M197: =Table2[[#This Row],[Pre-16 SEN Units - 2014 to 2015]]+Table2[[#This Row],[Pre-16 Resourced Provision - 2014 to 2015]]+Table2[[#This Row],[Pre-16 Alternative Provision - 2014 to 2016]]+Table2[[#This Row],[Pre-16 SEN Places - 2014 to 2015]] -> 33 | N197: 0 | O197: 0 | P197: 0 | Q197: =Table2[[#This Row],[Post-16 Schools 16-18]]+Table2[[#This Row],[Post-16 Post School 16-18]]+Table2[[#This Row],[Post-16 Post School 19-25]] -> 0 | R197: =Table2[[#This Row],[Total Pre-16]]+Table2[[#This Row],[Total Post 16]] -> 33
A198: BARNDALE HOUSE SCHOOL | B198: 9297010 | C198: 123784 | D198: MAINTAINED SPECIAL SCHOOL | E198: North | F198: North East | G198: Northumberland | H198: 929 | I198: 0 | J198: 0 | K198: 0 | L198: 33 | M198: =Table2[[#This Row],[Pre-16 SEN Units - 2014 to 2015]]+Table2[[#This Row],[Pre-16 Resourced Provision - 2014 to 2015]]+Table2[[#This Row],[Pre-16 Alternative Provision - 2014 to 2016]]+Table2[[#This Row],[Pre-16 SEN Places - 2014 to 2015]] -> 33 | N198: 12 | O198: 0 | P198: 0 | Q198: =Table2[[#This Row],[Post-16 Schools 16-18]]+Table2[[#This Row],[Post-16 Post School 16-18]]+Table2[[#This Row],[Post-16 Post School 19-25]] -> 12 | R198: =Table2[[#This Row],[Total Pre-16]]+Table2[[#This Row],[Total Post 16]] -> 45
A199: BARNET AND SOUTHGATE COLLEGE | B199: 3028000 | C199: 108532 | D199: FURTHER EDUCATION PROVIDER | E199: South | F199: London | G199: Barnet | H199: 302 | I199: 0 | J199: 0 | K199: 0 | L199: 0 | M199: =Table2[[#This Row],[Pre-16 SEN Units - 2014 to 2015]]+Table2[[#This Row],[Pre-16 Resourced Provision - 2014 to 2015]]+Table2[[#This Row],[Pre-16 Alternative Provision - 2014 to 2016]]+Table2[[#This Row],[Pre-16 SEN Places - 2014 to 2015]] -> 0 | N199: 0 | O199: 73 | P199: 106 | Q199: =Table2[[#This Row],[Post-16 Schools 16-18]]+Table2[[#This Row],[Post-16 Post School 16-18]]+Table2[[#This Row],[Post-16 Post School 19-25]] -> 179 | R199: =Table2[[#This Row],[Total Pre-16]]+Table2[[#This Row],[Total Post 16]] -> 179
A200: BARNFIELD BUSINESS AND ENTERPRISE STUDIO ACADEMY | B200: 8216907 | C200: 119325 | D200: ACADEMY - STUDIO SCHOOL | E200: South | F200: East of England | G200: Luton | H200: 821 | I200: 0 | J200: 0 | K200: 0 | L200: 0 | M200: =Table2[[#This Row],[Pre-16 SEN Units - 2014 to 2015]]+Table2[[#This Row],[Pre-16 Resourced Provision - 2014 to 2015]]+Table2[[#This Row],[Pre-16 Alternative Provision - 2014 to 2016]]+Table2[[#This Row],[Pre-16 SEN Places - 2014 to 2015]] -> 0 | N200: 1 | O200: 0 | P200: 0 | Q200: =Table2[[#This Row],[Post-16 Schools 16-18]]+Table2[[#This Row],[Post-16 Post School 16-18]]+Table2[[#This Row],[Post-16 Post School 19-25]] -> 1 | R200: =Table2[[#This Row],[Total Pre-16]]+Table2[[#This Row],[Total Post 16]] -> 1
A201: BARNFIELD COLLEGE | B201: 8218006 | C201: 105000 | D201: FURTHER EDUCATION PROVIDER | E201: South | F201: East of England | G201: Luton | H201: 821 | I201: 0 | J201: 0 | K201: 0 | L201: 0 | M201: =Table2[[#This Row],[Pre-16 SEN Units - 2014 to 2015]]+Table2[[#This Row],[Pre-16 Resourced Provision - 2014 to 2015]]+Table2[[#This Row],[Pre-16 Alternative Provision - 2014 to 2016]]+Table2[[#This Row],[Pre-16 SEN Places - 2014 to 2015]] -> 0 | N201: 0 | O201: 51 | P201: 7 | Q201: =Table2[[#This Row],[Post-16 Schools 16-18]]+Table2[[#This Row],[Post-16 Post School 16-18]]+Table2[[#This Row],[Post-16 Post School 19-25]] -> 58 | R201: =Table2[[#This Row],[Total Pre-16]]+Table2[[#This Row],[Total Post 16]] -> 58
... 3896 more rows

Sheet INST_TOTALS_WITH_EXCLUSIONS
A1: 2. High Needs place numbers for the 2015/16 academic year, by institution location (2).
A2: All Alternative Provision (AP) places, places allocated to Specialist Post-16 Institutions and places allocated to Non-Maintained Special Schools (NMSS) have been removed. This data has been used to populate the 2015/16 Academic Year Local Authority High Needs Exception spreadsheet
G3: Overall Total | I3: =SUM(Table24[Pre-16 SEN Units - 2014 to 2015]) -> 9642.2 | J3: =SUM(Table24[Pre-16 Resourced Provision - 2014 to 2015]) -> 13216 | K3: =SUM(Table24[Pre-16 SEN Places - 2014 to 2015]) -> 88469.6 | L3: =SUM(Table24[Total Pre-16 (excl. AP)]) -> 111327.8 | M3: =SUM(Table24[Post-16 Schools (excl. NMSS) 16-18]) -> 16244 | N3: =SUM(Table24[Post-16 Post School (excl. specialist Post 16 institutions) 16-18]) -> 11954 | O3: =SUM(Table24[Post-16 Post School (excl. specialist Post 16 institutions) 19-25]) -> 7143 | P3: =SUM(Table24[Total Post 16 (excl. NMSS and specialist Post 16 institutions)]) -> 35341 | Q3: =SUM(Table24[Total High Needs Places]) -> 146668.8
G4: Sub-Total | I4: =SUBTOTAL(109,Table24[Pre-16 SEN Units - 2014 to 2015]) -> 9642.2 | J4: =SUBTOTAL(109,Table24[Pre-16 Resourced Provision - 2014 to 2015]) -> 13216 | K4: =SUBTOTAL(109,Table24[Pre-16 SEN Places - 2014 to 2015]) -> 88469.6 | L4: =SUBTOTAL(109,Table24[Total Pre-16 (excl. AP)]) -> 111327.8 | M4: =SUBTOTAL(109,Table24[Post-16 Schools (excl. NMSS) 16-18]) -> 16244 | N4: =SUBTOTAL(109,Table24[Post-16 Post School (excl. specialist Post 16 institutions) 16-18]) -> 11954 | O4: =SUBTOTAL(109,Table24[Post-16 Post School (excl. specialist Post 16 institutions) 19-25]) -> 7143 | P4: =SUBTOTAL(109,Table24[Total Post 16 (excl. NMSS and specialist Post 16 institutions)]) -> 35341 | Q4: =SUBTOTAL(109,Table24[Total High Needs Places]) -> 146668.8
A5: Establishment name | B5: LAEstab | C5: UPIN | D5: Category | E5: Institution location - Territory | F5: Institution location - Region | G5: Institution location - Local Authority | H5: LA No. | I5: Pre-16 SEN Units - 2014 to 2015 | J5: Pre-16 Resourced Provision - 2014 to 2015 | K5: Pre-16 SEN Places - 2014 to 2015 | L5: Total Pre-16 (excl. AP) | M5: Post-16 Schools (excl. NMSS) 16-18 | N5: Post-16 Post School (excl. specialist Post 16 institutions) 16-18 | O5: Post-16 Post School (excl. specialist Post 16 institutions) 19-25 | P5: Total Post 16 (excl. NMSS and specialist Post 16 institutions) | Q5: Total High Needs Places | R5: MAINSTREAM Post-16 Schools (excl. NMSS) 16-18 | S5: SPECIALS Post-16 Schools (excl. NMSS) 16-182 | T5: POST SCHOOLS Totals | V5: INST_TYPE | W5: INST_GROUP
A6: A.C.E - ALTERNATIVE COMPLEMENTARY EDUCATION | B6: 8791106 | C6: 0 | D6: MAINTAINED ALTERNATIVE PROVISION (AP) - PRU | E6: CentralSW | F6: South West | G6: Plymouth | H6: 879 | I6: 0 | J6: 0 | K6: 0 | L6: =Table24[[#This Row],[Pre-16 SEN Units - 2014 to 2015]]+Table24[[#This Row],[Pre-16 Resourced Provision - 2014 to 2015]]+Table24[[#This Row],[Pre-16 SEN Places - 2014 to 2015]] -> 0 | M6: 0 | N6: 0 | O6: 0 | P6: =Table24[[#This Row],[Post-16 Schools (excl. NMSS) 16-18]]+Table24[[#This Row],[Post-16 Post School (excl. specialist Post 16 institutions) 16-18]]+Table24[[#This Row],[Post-16 Post School (excl. specialist Post 16 institutions) 19-25]] -> 0 | Q6: =Table24[[#This Row],[Total Pre-16 (excl. AP)]]+Table24[[#This Row],[Total Post 16 (excl. NMSS and specialist Post 16 institutions)]] -> 0 | R6: =IF(VLOOKUP(Table24[[#This Row],[Category]],$V$6:$W$37,2,FALSE)="Mainstream",Table24[[#This Row],[Post-16 Schools (excl. NMSS) 16-18]],0) -> 0 | S6: =IF(VLOOKUP(Table24[[#This Row],[Category]],$V$6:$W$37,2,FALSE)="Special",Table24[[#This Row],[Post-16 Schools (excl. NMSS) 16-18]],0) -> 0 | T6: =Table24[[#This Row],[Post-16 Post School (excl. specialist Post 16 institutions) 16-18]]+Table24[[#This Row],[Post-16 Post School (excl. specialist Post 16 institutions) 19-25]] -> 0 | V6: ACADEMY - AP | W6: Mainstream
A7: ABBEY COLLEGE, RAMSEYS | B7: 8734603 | C7: 120322 | D7: ACADEMY - MAINSTREAM | E7: South | F7: East of England | G7: Cambridgeshire | H7: 873 | I7: 0 | J7: 0 | K7: 0 | L7: =Table24[[#This Row],[Pre-16 SEN Units - 2014 to 2015]]+Table24[[#This Row],[Pre-16 Resourced Provision - 2014 to 2015]]+Table24[[#This Row],[Pre-16 SEN Places - 2014 to 2015]] -> 0 | M7: 2 | N7: 0 | O7: 0 | P7: =Table24[[#This Row],[Post-16 Schools (excl. NMSS) 16-18]]+Table24[[#This Row],[Post-16 Post School (excl. specialist Post 16 institutions) 16-18]]+Table24[[#This Row],[Post-16 Post School (excl. specialist Post 16 institutions) 19-25]] -> 2 | Q7: =Table24[[#This Row],[Total Pre-16 (excl. AP)]]+Table24[[#This Row],[Total Post 16 (excl. NMSS and specialist Post 16 institutions)]] -> 2 | R7: =IF(VLOOKUP(Table24[[#This Row],[Category]],$V$6:$W$37,2,FALSE)="Mainstream",Table24[[#This Row],[Post-16 Schools (excl. NMSS) 16-18]],0) -> 2 | S7: =IF(VLOOKUP(Table24[[#This Row],[Category]],$V$6:$W$37,2,FALSE)="Special",Table24[[#This Row],[Post-16 Schools (excl. NMSS) 16-18]],0) -> 0 | T7: =Table24[[#This Row],[Post-16 Post School (excl. specialist Post 16 institutions) 16-18]]+Table24[[#This Row],[Post-16 Post School (excl. specialist Post 16 institutions) 19-25]] -> 0 | V7: ACADEMY - MAINSTREAM | W7: Mainstream
A8: ABBEY COURT COMMUNITY SPECIAL SCHOOL | B8: 8877053 | C8: 124000 | D8: MAINTAINED SPECIAL SCHOOL | E8: South | F8: South East | G8: Medway | H8: 887 | I8: 0 | J8: 0 | K8: 123 | L8: =Table24[[#This Row],[Pre-16 SEN Units - 2014 to 2015]]+Table24[[#This Row],[Pre-16 Resourced Provision - 2014 to 2015]]+Table24[[#This Row],[Pre-16 SEN Places - 2014 to 2015]] -> 123 | M8: 22 | N8: 0 | O8: 0 | P8: =Table24[[#This Row],[Post-16 Schools (excl. NMSS) 16-18]]+Table24[[#This Row],[Post-16 Post School (excl. specialist Post 16 institutions) 16-18]]+Table24[[#This Row],[Post-16 Post School (excl. specialist Post 16 institutions) 19-25]] -> 22 | Q8: =Table24[[#This Row],[Total Pre-16 (excl. AP)]]+Table24[[#This Row],[Total Post 16 (excl. NMSS and specialist Post 16 institutions)]] -> 145 | R8: =IF(VLOOKUP(Table24[[#This Row],[Category]],$V$6:$W$37,2,FALSE)="Mainstream",Table24[[#This Row],[Post-16 Schools (excl. NMSS) 16-18]],0) -> 0 | S8: =IF(VLOOKUP(Table24[[#This Row],[Category]],$V$6:$W$37,2,FALSE)="Special",Table24[[#This Row],[Post-16 Schools (excl. NMSS) 16-18]],0) -> 22 | T8: =Table24[[#This Row],[Post-16 Post School (excl. specialist Post 16 institutions) 16-18]]+Table24[[#This Row],[Post-16 Post School (excl. specialist Post 16 institutions) 19-25]] -> 0 | V8: ACADEMY - SPECIAL | W8: Special
A9: ABBEY GRANGE CHURCH OF ENGLAND HIGH SCHOOL | B9: 3835400 | C9: 120083 | D9: ACADEMY - MAINSTREAM | E9: North | F9: Yorkshire and the Humber | G9: Leeds | H9: 383 | I9: 0 | J9: 0 | K9: 0 | L9: =Table24[[#This Row],[Pre-16 SEN Units - 2014 to 2015]]+Table24[[#This Row],[Pre-16 Resourced Provision - 2014 to 2015]]+Table24[[#This Row],[Pre-16 SEN Places - 2014 to 2015]] -> 0 | M9: 1 | N9: 0 | O9: 0 | P9: =Table24[[#This Row],[Post-16 Schools (excl. NMSS) 16-18]]+Table24[[#This Row],[Post-16 Post School (excl. specialist Post 16 institutions) 16-18]]+Table24[[#This Row],[Post-16 Post School (excl. specialist Post 16 institutions) 19-25]] -> 1 | Q9: =Table24[[#This Row],[Total Pre-16 (excl. AP)]]+Table24[[#This Row],[Total Post 16 (excl. NMSS and specialist Post 16 institutions)]] -> 1 | R9: =IF(VLOOKUP(Table24[[#This Row],[Category]],$V$6:$W$37,2,FALSE)="Mainstream",Table24[[#This Row],[Post-16 Schools (excl. NMSS) 16-18]],0) -> 1 | S9: =IF(VLOOKUP(Table24[[#This Row],[Category]],$V$6:$W$37,2,FALSE)="Special",Table24[[#This Row],[Post-16 Schools (excl. NMSS) 16-18]],0) -> 0 | T9: =Table24[[#This Row],[Post-16 Post School (excl. specialist Post 16 institutions) 16-18]]+Table24[[#This Row],[Post-16 Post School (excl. specialist Post 16 institutions) 19-25]] -> 0 | V9: ACADEMY - STUDIO SCHOOL | W9: Mainstream
A10: ABBEY HILL SCHOOL AND PERFORMING ARTS COLLEGE | B10: 8617007 | C10: 123500 | D10: MAINTAINED SPECIAL SCHOOL | E10: CentralSW | F10: West Midlands | G10: Stoke-on-Trent | H10: 861 | I10: 0 | J10: 0 | K10: 194 | L10: =Table24[[#This Row],[Pre-16 SEN Units - 2014 to 2015]]+Table24[[#This Row],[Pre-16 Resourced Provision - 2014 to 2015]]+Table24[[#This Row],[Pre-16 SEN Places - 2014 to 2015]] -> 194 | M10: 25 | N10: 0 | O10: 0 | P10: =Table24[[#This Row],[Post-16 Schools (excl. NMSS) 16-18]]+Table24[[#This Row],[Post-16 Post School (excl. specialist Post 16 institutions) 16-18]]+Table24[[#This Row],[Post-16 Post School (excl. specialist Post 16 institutions) 19-25]] -> 25 | Q10: =Table24[[#This Row],[Total Pre-16 (excl. AP)]]+Table24[[#This Row],[Total Post 16 (excl. NMSS and specialist Post 16 institutions)]] -> 219 | R10: =IF(VLOOKUP(Table24[[#This Row],[Category]],$V$6:$W$37,2,FALSE)="Mainstream",Table24[[#This Row],[Post-16 Schools (excl. NMSS) 16-18]],0) -> 0 | S10: =IF(VLOOKUP(Table24[[#This Row],[Category]],$V$6:$W$37,2,FALSE)="Special",Table24[[#This Row],[Post-16 Schools (excl. NMSS) 16-18]],0) -> 25 | T10: =Table24[[#This Row],[Post-16 Post School (excl. specialist Post 16 institutions) 16-18]]+Table24[[#This Row],[Post-16 Post School (excl. specialist Post 16 institutions) 19-25]] -> 0 | V10: ACADEMY - UNIVERSITY TECHNICAL COLLEGE | W10: Mainstream
A11: ABBEY HILL SCHOOL AND TECHNOLOGY COLLEGE | B11: 8087029 | C11: 124569 | D11: ACADEMY - SPECIAL | E11: North | F11: North East | G11: Stockton-on-Tees | H11: 808 | I11: 0 | J11: 0 | K11: 215 | L11: =Table24[[#This Row],[Pre-16 SEN Units - 2014 to 2015]]+Table24[[#This Row],[Pre-16 Resourced Provision - 2014 to 2015]]+Table24[[#This Row],[Pre-16 SEN Places - 2014 to 2015]] -> 215 | M11: 96 | N11: 0 | O11: 0 | P11: =Table24[[#This Row],[Post-16 Schools (excl. NMSS) 16-18]]+Table24[[#This Row],[Post-16 Post School (excl. specialist Post 16 institutions) 16-18]]+Table24[[#This Row],[Post-16 Post School (excl. specialist Post 16 institutions) 19-25]] -> 96 | Q11: =Table24[[#This Row],[Total Pre-16 (excl. AP)]]+Table24[[#This Row],[Total Post 16 (excl. NMSS and specialist Post 16 institutions)]] -> 311 | R11: =IF(VLOOKUP(Table24[[#This Row],[Category]],$V$6:$W$37,2,FALSE)="Mainstream",Table24[[#This Row],[Post-16 Schools (excl. NMSS) 16-18]],0) -> 0 | S11: =IF(VLOOKUP(Table24[[#This Row],[Category]],$V$6:$W$37,2,FALSE)="Special",Table24[[#This Row],[Post-16 Schools (excl. NMSS) 16-18]],0) -> 96 | T11: =Table24[[#This Row],[Post-16 Post School (excl. specialist Post 16 institutions) 16-18]]+Table24[[#This Row],[Post-16 Post School (excl. specialist Post 16 institutions) 19-25]] -> 0 | V11: FREE SCHOOL - AP | W11: Mainstream
A12: ABBEY MANOR COLLEGE | B12: 2091103 | C12: 0 | D12: MAINTAINED ALTERNATIVE PROVISION (AP) - PRU | E12: South | F12: London | G12: Lewisham | H12: 209 | I12: 0 | J12: 0 | K12: 0 | L12: =Table24[[#This Row],[Pre-16 SEN Units - 2014 to 2015]]+Table24[[#This Row],[Pre-16 Resourced Provision - 2014 to 2015]]+Table24[[#This Row],[Pre-16 SEN Places - 2014 to 2015]] -> 0 | M12: 0 | N12: 0 | O12: 0 | P12: =Table24[[#This Row],[Post-16 Schools (excl. NMSS) 16-18]]+Table24[[#This Row],[Post-16 Post School (excl. specialist Post 16 institutions) 16-18]]+Table24[[#This Row],[Post-16 Post School (excl. specialist Post 16 institutions) 19-25]] -> 0 | Q12: =Table24[[#This Row],[Total Pre-16 (excl. AP)]]+Table24[[#This Row],[Total Post 16 (excl. NMSS and specialist Post 16 institutions)]] -> 0 | R12: =IF(VLOOKUP(Table24[[#This Row],[Category]],$V$6:$W$37,2,FALSE)="Mainstream",Table24[[#This Row],[Post-16 Schools (excl. NMSS) 16-18]],0) -> 0 | S12: =IF(VLOOKUP(Table24[[#This Row],[Category]],$V$6:$W$37,2,FALSE)="Special",Table24[[#This Row],[Post-16 Schools (excl. NMSS) 16-18]],0) -> 0 | T12: =Table24[[#This Row],[Post-16 Post School (excl. specialist Post 16 institutions) 16-18]]+Table24[[#This Row],[Post-16 Post School (excl. specialist Post 16 institutions) 19-25]] -> 0 | V12: FREE SCHOOL - MAINSTREAM | W12: Mainstream
A13: ABBEY PARK MIDDLE SCHOOL | B13: 8852906 | C13: 0 | D13: MAINTAINED SCHOOL - MAINSTREAM | E13: CentralSW | F13: West Midlands | G13: Worcestershire | H13: 885 | I13: 0 | J13: 10 | K13: 0 | L13: =Table24[[#This Row],[Pre-16 SEN Units - 2014 to 2015]]+Table24[[#This Row],[Pre-16 Resourced Provision - 2014 to 2015]]+Table24[[#This Row],[Pre-16 SEN Places - 2014 to 2015]] -> 10 | M13: 0 | N13: 0 | O13: 0 | P13: =Table24[[#This Row],[Post-16 Schools (excl. NMSS) 16-18]]+Table24[[#This Row],[Post-16 Post School (excl. specialist Post 16 institutions) 16-18]]+Table24[[#This Row],[Post-16 Post School (excl. specialist Post 16 institutions) 19-25]] -> 0 | Q13: =Table24[[#This Row],[Total Pre-16 (excl. AP)]]+Table24[[#This Row],[Total Post 16 (excl. NMSS and specialist Post 16 institutions)]] -> 10 | R13: =IF(VLOOKUP(Table24[[#This Row],[Category]],$V$6:$W$37,2,FALSE)="Mainstream",Table24[[#This Row],[Post-16 Schools (excl. NMSS) 16-18]],0) -> 0 | S13: =IF(VLOOKUP(Table24[[#This Row],[Category]],$V$6:$W$37,2,FALSE)="Special",Table24[[#This Row],[Post-16 Schools (excl. NMSS) 16-18]],0) -> 0 | T13: =Table24[[#This Row],[Post-16 Post School (excl. specialist Post 16 institutions) 16-18]]+Table24[[#This Row],[Post-16 Post School (excl. specialist Post 16 institutions) 19-25]] -> 0 | V13: FREE SCHOOL - SPECIAL | W13: Special
A14: ABBEY SCHOOL | B14: 3727001 | C14: 0 | D14: MAINTAINED SPECIAL SCHOOL | E14: North | F14: Yorkshire and the Humber | G14: Rotherham | H14: 372 | I14: 0 | J14: 0 | K14: 110 | L14: =Table24[[#This Row],[Pre-16 SEN Units - 2014 to 2015]]+Table24[[#This Row],[Pre-16 Resourced Provision - 2014 to 2015]]+Table24[[#This Row],[Pre-16 SEN Places - 2014 to 2015]] -> 110 | M14: 0 | N14: 0 | O14: 0 | P14: =Table24[[#This Row],[Post-16 Schools (excl. NMSS) 16-18]]+Table24[[#This Row],[Post-16 Post School (excl. specialist Post 16 institutions) 16-18]]+Table24[[#This Row],[Post-16 Post School (excl. specialist Post 16 institutions) 19-25]] -> 0 | Q14: =Table24[[#This Row],[Total Pre-16 (excl. AP)]]+Table24[[#This Row],[Total Post 16 (excl. NMSS and specialist Post 16 institutions)]] -> 110 | R14: =IF(VLOOKUP(Table24[[#This Row],[Category]],$V$6:$W$37,2,FALSE)="Mainstream",Table24[[#This Row],[Post-16 Schools (excl. NMSS) 16-18]],0) -> 0 | S14: =IF(VLOOKUP(Table24[[#This Row],[Category]],$V$6:$W$37,2,FALSE)="Special",Table24[[#This Row],[Post-16 Schools (excl. NMSS) 16-18]],0) -> 0 | T14: =Table24[[#This Row],[Post-16 Post School (excl. specialist Post 16 institutions) 16-18]]+Table24[[#This Row],[Post-16 Post School (excl. specialist Post 16 institutions) 19-25]] -> 0 | V14: FURTHER EDUCATION PROVIDER | W14: Post
A15: ABBEY VIEW SCHOOL | B15: 9161108 | C15: 123404 | D15: FREE SCHOOL - AP | E15: CentralSW | F15: South West | G15: Gloucestershire | H15: 916 | I15: 0 | J15: 0 | K15: 0 | L15: =Table24[[#This Row],[Pre-16 SEN Units - 2014 to 2015]]+Table24[[#This Row],[Pre-16 Resourced Provision - 2014 to 2015]]+Table24[[#This Row],[Pre-16 SEN Places - 2014 to 2015]] -> 0 | M15: 0 | N15: 0 | O15: 0 | P15: =Table24[[#This Row],[Post-16 Schools (excl. NMSS) 16-18]]+Table24[[#This Row],[Post-16 Post School (excl. specialist Post 16 institutions) 16-18]]+Table24[[#This Row],[Post-16 Post School (excl. specialist Post 16 institutions) 19-25]] -> 0 | Q15: =Table24[[#This Row],[Total Pre-16 (excl. AP)]]+Table24[[#This Row],[Total Post 16 (excl. NMSS and specialist Post 16 institutions)]] -> 0 | R15: =IF(VLOOKUP(Table24[[#This Row],[Category]],$V$6:$W$37,2,FALSE)="Mainstream",Table24[[#This Row],[Post-16 Schools (excl. NMSS) 16-18]],0) -> 0 | S15: =IF(VLOOKUP(Table24[[#This Row],[Category]],$V$6:$W$37,2,FALSE)="Special",Table24[[#This Row],[Post-16 Schools (excl. NMSS) 16-18]],0) -> 0 | T15: =Table24[[#This Row],[Post-16 Post School (excl. specialist Post 16 institutions) 16-18]]+Table24[[#This Row],[Post-16 Post School (excl. specialist Post 16 institutions) 19-25]] -> 0 | V15: MAINTAINED ALTERNATIVE PROVISION (AP) - PRU | W15: Mainstream
A16: ABBEYFIELD SCHOOL | B16: 8654000 | C16: 117685 | D16: MAINTAINED SCHOOL - MAINSTREAM | E16: CentralSW | F16: South West | G16: Wiltshire | H16: 865 | I16: 0 | J16: 11 | K16: 0 | L16: =Table24[[#This Row],[Pre-16 SEN Units - 2014 to 2015]]+Table24[[#This Row],[Pre-16 Resourced Provision - 2014 to 2015]]+Table24[[#This Row],[Pre-16 SEN Places - 2014 to 2015]] -> 11 | M16: 1 | N16: 0 | O16: 0 | P16: =Table24[[#This Row],[Post-16 Schools (excl. NMSS) 16-18]]+Table24[[#This Row],[Post-16 Post School (excl. specialist Post 16 institutions) 16-18]]+Table24[[#This Row],[Post-16 Post School (excl. specialist Post 16 institutions) 19-25]] -> 1 | Q16: =Table24[[#This Row],[Total Pre-16 (excl. AP)]]+Table24[[#This Row],[Total Post 16 (excl. NMSS and specialist Post 16 institutions)]] -> 12 | R16: =IF(VLOOKUP(Table24[[#This Row],[Category]],$V$6:$W$37,2,FALSE)="Mainstream",Table24[[#This Row],[Post-16 Schools (excl. NMSS) 16-18]],0) -> 1 | S16: =IF(VLOOKUP(Table24[[#This Row],[Category]],$V$6:$W$37,2,FALSE)="Special",Table24[[#This Row],[Post-16 Schools (excl. NMSS) 16-18]],0) -> 0 | T16: =Table24[[#This Row],[Post-16 Post School (excl. specialist Post 16 institutions) 16-18]]+Table24[[#This Row],[Post-16 Post School (excl. specialist Post 16 institutions) 19-25]] -> 0 | V16: MAINTAINED SCHOOL - MAINSTREAM | W16: Mainstream
A17: ABBEYFIELD SCHOOL | B17: 9284007 | C17: 122250 | D17: ACADEMY - MAINSTREAM | E17: CentralSW | F17: East Midlands | G17: Northamptonshire | H17: 928 | I17: 0 | J17: 0 | K17: 0 | L17: =Table24[[#This Row],[Pre-16 SEN Units - 2014 to 2015]]+Table24[[#This Row],[Pre-16 Resourced Provision - 2014 to 2015]]+Table24[[#This Row],[Pre-16 SEN Places - 2014 to 2015]] -> 0 | M17: 2 | N17: 0 | O17: 0 | P17: =Table24[[#This Row],[Post-16 Schools (excl. NMSS) 16-18]]+Table24[[#This Row],[Post-16 Post School (excl. specialist Post 16 institutions) 16-18]]+Table24[[#This Row],[Post-16 Post School (excl. specialist Post 16 institutions) 19-25]] -> 2 | Q17: =Table24[[#This Row],[Total Pre-16 (excl. AP)]]+Table24[[#This Row],[Total Post 16 (excl. NMSS and specialist Post 16 institutions)]] -> 2 | R17: =IF(VLOOKUP(Table24[[#This Row],[Category]],$V$6:$W$37,2,FALSE)="Mainstream",Table24[[#This Row],[Post-16 Schools (excl. NMSS) 16-18]],0) -> 2 | S17: =IF(VLOOKUP(Table24[[#This Row],[Category]],$V$6:$W$37,2,FALSE)="Special",Table24[[#This Row],[Post-16 Schools (excl. NMSS) 16-18]],0) -> 0 | T17: =Table24[[#This Row],[Post-16 Post School (excl. specialist Post 16 institutions) 16-18]]+Table24[[#This Row],[Post-16 Post School (excl. specialist Post 16 institutions) 19-25]] -> 0 | V17: MAINTAINED SPECIAL SCHOOL | W17: Special
A18: ABBEYWOOD COMMUNITY SCHOOL | B18: 8034000 | C18: 122309 | D18: ACADEMY - MAINSTREAM | E18: CentralSW | F18: South West | G18: South Gloucestershire | H18: 803 | I18: 24 | J18: 0 | K18: 0 | L18: =Table24[[#This Row],[Pre-16 SEN Units - 2014 to 2015]]+Table24[[#This Row],[Pre-16 Resourced Provision - 2014 to 2015]]+Table24[[#This Row],[Pre-16 SEN Places - 2014 to 2015]] -> 24 | M18: 2 | N18: 0 | O18: 0 | P18: =Table24[[#This Row],[Post-16 Schools (excl. NMSS) 16-18]]+Table24[[#This Row],[Post-16 Post School (excl. specialist Post 16 institutions) 16-18]]+Table24[[#This Row],[Post-16 Post School (excl. specialist Post 16 institutions) 19-25]] -> 2 | Q18: =Table24[[#This Row],[Total Pre-16 (excl. AP)]]+Table24[[#This Row],[Total Post 16 (excl. NMSS and specialist Post 16 institutions)]] -> 26 | R18: =IF(VLOOKUP(Table24[[#This Row],[Category]],$V$6:$W$37,2,FALSE)="Mainstream",Table24[[#This Row],[Post-16 Schools (excl. NMSS) 16-18]],0) -> 2 | S18: =IF(VLOOKUP(Table24[[#This Row],[Category]],$V$6:$W$37,2,FALSE)="Special",Table24[[#This Row],[Post-16 Schools (excl. NMSS) 16-18]],0) -> 0 | T18: =Table24[[#This Row],[Post-16 Post School (excl. specialist Post 16 institutions) 16-18]]+Table24[[#This Row],[Post-16 Post School (excl. specialist Post 16 institutions) 19-25]] -> 0 | V18: POST-16 CHARITABLE AND COMMERCIAL PROVIDER | W18: Post
A19: ABBOT'S LEA SCHOOL | B19: 3417025 | C19: 123756 | D19: MAINTAINED SPECIAL SCHOOL | E19: North | F19: North West | G19: Liverpool | H19: 341 | I19: 0 | J19: 0 | K19: 185 | L19: =Table24[[#This Row],[Pre-16 SEN Units - 2014 to 2015]]+Table24[[#This Row],[Pre-16 Resourced Provision - 2014 to 2015]]+Table24[[#This Row],[Pre-16 SEN Places - 2014 to 2015]] -> 185 | M19: 43 | N19: 0 | O19: 0 | P19: =Table24[[#This Row],[Post-16 Schools (excl. NMSS) 16-18]]+Table24[[#This Row],[Post-16 Post School (excl. specialist Post 16 institutions) 16-18]]+Table24[[#This Row],[Post-16 Post School (excl. specialist Post 16 institutions) 19-25]] -> 43 | Q19: =Table24[[#This Row],[Total Pre-16 (excl. AP)]]+Table24[[#This Row],[Total Post 16 (excl. NMSS and specialist Post 16 institutions)]] -> 228 | R19: =IF(VLOOKUP(Table24[[#This Row],[Category]],$V$6:$W$37,2,FALSE)="Mainstream",Table24[[#This Row],[Post-16 Schools (excl. NMSS) 16-18]],0) -> 0 | S19: =IF(VLOOKUP(Table24[[#This Row],[Category]],$V$6:$W$37,2,FALSE)="Special",Table24[[#This Row],[Post-16 Schools (excl. NMSS) 16-18]],0) -> 43 | T19: =Table24[[#This Row],[Post-16 Post School (excl. specialist Post 16 institutions) 16-18]]+Table24[[#This Row],[Post-16 Post School (excl. specialist Post 16 institutions) 19-25]] -> 0 | V19: HNT Funded - Pre-16 Alternate Provision | W19: Mainstream
A20: ABBOTSFIELD SCHOOL | B20: 3125409 | C20: 113769 | D20: MAINTAINED SCHOOL - MAINSTREAM | E20: South | F20: London | G20: Hillingdon | H20: 312 | I20: 0 | J20: 4 | K20: 0 | L20: =Table24[[#This Row],[Pre-16 SEN Units - 2014 to 2015]]+Table24[[#This Row],[Pre-16 Resourced Provision - 2014 to 2015]]+Table24[[#This Row],[Pre-16 SEN Places - 2014 to 2015]] -> 4 | M20: 0 | N20: 0 | O20: 0 | P20: =Table24[[#This Row],[Post-16 Schools (excl. NMSS) 16-18]]+Table24[[#This Row],[Post-16 Post School (excl. specialist Post 16 institutions) 16-18]]+Table24[[#This Row],[Post-16 Post School (excl. specialist Post 16 institutions) 19-25]] -> 0 | Q20: =Table24[[#This Row],[Total Pre-16 (excl. AP)]]+Table24[[#This Row],[Total Post 16 (excl. NMSS and specialist Post 16 institutions)]] -> 4 | R20: =IF(VLOOKUP(Table24[[#This Row],[Category]],$V$6:$W$37,2,FALSE)="Mainstream",Table24[[#This Row],[Post-16 Schools (excl. NMSS) 16-18]],0) -> 0 | S20: =IF(VLOOKUP(Table24[[#This Row],[Category]],$V$6:$W$37,2,FALSE)="Special",Table24[[#This Row],[Post-16 Schools (excl. NMSS) 16-18]],0) -> 0 | T20: =Table24[[#This Row],[Post-16 Post School (excl. specialist Post 16 institutions) 16-18]]+Table24[[#This Row],[Post-16 Post School (excl. specialist Post 16 institutions) 19-25]] -> 0 | V20: HNT Funded - Pre-16 Alternate Provision | W20: Mainstream
A21: ABINGDON AND WITNEY COLLEGE | B21: 9318007 | C21: 112314 | D21: FURTHER EDUCATION PROVIDER | E21: South | F21: South East | G21: Oxfordshire | H21: 931 | I21: 0 | J21: 0 | K21: 0 | L21: =Table24[[#This Row],[Pre-16 SEN Units - 2014 to 2015]]+Table24[[#This Row],[Pre-16 Resourced Provision - 2014 to 2015]]+Table24[[#This Row],[Pre-16 SEN Places - 2014 to 2015]] -> 0 | M21: 0 | N21: 157 | O21: 55 | P21: =Table24[[#This Row],[Post-16 Schools (excl. NMSS) 16-18]]+Table24[[#This Row],[Post-16 Post School (excl. specialist Post 16 institutions) 16-18]]+Table24[[#This Row],[Post-16 Post School (excl. specialist Post 16 institutions) 19-25]] -> 212 | Q21: =Table24[[#This Row],[Total Pre-16 (excl. AP)]]+Table24[[#This Row],[Total Post 16 (excl. NMSS and specialist Post 16 institutions)]] -> 212 | R21: =IF(VLOOKUP(Table24[[#This Row],[Category]],$V$6:$W$37,2,FALSE)="Mainstream",Table24[[#This Row],[Post-16 Schools (excl. NMSS) 16-18]],0) -> 0 | S21: =IF(VLOOKUP(Table24[[#This Row],[Category]],$V$6:$W$37,2,FALSE)="Special",Table24[[#This Row],[Post-16 Schools (excl. NMSS) 16-18]],0) -> 0 | T21: =Table24[[#This Row],[Post-16 Post School (excl. specialist Post 16 institutions) 16-18]]+Table24[[#This Row],[Post-16 Post School (excl. specialist Post 16 institutions) 19-25]] -> 212 | V21: NEW - FREE SCHOOL - AP | W21: Mainstream
A22: ABINGTON ACADEMY | B22: 8555403 | C22: 121203 | D22: ACADEMY - MAINSTREAM | E22: CentralSW | F22: East Midlands | G22: Leicestershire | H22: 855 | I22: 0 | J22: 6 | K22: 0 | L22: =Table24[[#This Row],[Pre-16 SEN Units - 2014 to 2015]]+Table24[[#This Row],[Pre-16 Resourced Provision - 2014 to 2015]]+Table24[[#This Row],[Pre-16 SEN Places - 2014 to 2015]] -> 6 | M22: 0 | N22: 0 | O22: 0 | P22: =Table24[[#This Row],[Post-16 Schools (excl. NMSS) 16-18]]+Table24[[#This Row],[Post-16 Post School (excl. specialist Post 16 institutions) 16-18]]+Table24[[#This Row],[Post-16 Post School (excl. specialist Post 16 institutions) 19-25]] -> 0 | Q22: =Table24[[#This Row],[Total Pre-16 (excl. AP)]]+Table24[[#This Row],[Total Post 16 (excl. NMSS and specialist Post 16 institutions)]] -> 6 | R22: =IF(VLOOKUP(Table24[[#This Row],[Category]],$V$6:$W$37,2,FALSE)="Mainstream",Table24[[#This Row],[Post-16 Schools (excl. NMSS) 16-18]],0) -> 0 | S22: =IF(VLOOKUP(Table24[[#This Row],[Category]],$V$6:$W$37,2,FALSE)="Special",Table24[[#This Row],[Post-16 Schools (excl. NMSS) 16-18]],0) -> 0 | T22: =Table24[[#This Row],[Post-16 Post School (excl. specialist Post 16 institutions) 16-18]]+Table24[[#This Row],[Post-16 Post School (excl. specialist Post 16 institutions) 19-25]] -> 0 | V22: HNT Funded - Pre-16 SEN Institution | W22: Mainstream
A23: ABRAHAM MOSS COMMUNITY SCHOOL | B23: 3524271 | C23: 0 | D23: MAINTAINED SCHOOL - MAINSTREAM | E23: North | F23: North West | G23: Manchester | H23: 352 | I23: 0 | J23: 34 | K23: 0 | L23: =Table24[[#This Row],[Pre-16 SEN Units - 2014 to 2015]]+Table24[[#This Row],[Pre-16 Resourced Provision - 2014 to 2015]]+Table24[[#This Row],[Pre-16 SEN Places - 2014 to 2015]] -> 34 | M23: 0 | N23: 0 | O23: 0 | P23: =Table24[[#This Row],[Post-16 Schools (excl. NMSS) 16-18]]+Table24[[#This Row],[Post-16 Post School (excl. specialist Post 16 institutions) 16-18]]+Table24[[#This Row],[Post-16 Post School (excl. specialist Post 16 institutions) 19-25]] -> 0 | Q23: =Table24[[#This Row],[Total Pre-16 (excl. AP)]]+Table24[[#This Row],[Total Post 16 (excl. NMSS and specialist Post 16 institutions)]] -> 34 | R23: =IF(VLOOKUP(Table24[[#This Row],[Category]],$V$6:$W$37,2,FALSE)="Mainstream",Table24[[#This Row],[Post-16 Schools (excl. NMSS) 16-18]],0) -> 0 | S23: =IF(VLOOKUP(Table24[[#This Row],[Category]],$V$6:$W$37,2,FALSE)="Special",Table24[[#This Row],[Post-16 Schools (excl. NMSS) 16-18]],0) -> 0 | T23: =Table24[[#This Row],[Post-16 Post School (excl. specialist Post 16 institutions) 16-18]]+Table24[[#This Row],[Post-16 Post School (excl. specialist Post 16 institutions) 19-25]] -> 0 | V23: HNT Funded - Pre-16 Alternate Provision | W23: Mainstream
A24: ACADEMY 360 | B24: 3946905 | C24: 119119 | D24: ACADEMY - MAINSTREAM | E24: North | F24: North East | G24: Sunderland | H24: 394 | I24: 0 | J24: 30 | K24: 0 | L24: =Table24[[#This Row],[Pre-16 SEN Units - 2014 to 2015]]+Table24[[#This Row],[Pre-16 Resourced Provision - 2014 to 2015]]+Table24[[#This Row],[Pre-16 SEN Places - 2014 to 2015]] -> 30 | M24: 0 | N24: 0 | O24: 0 | P24: =Table24[[#This Row],[Post-16 Schools (excl. NMSS) 16-18]]+Table24[[#This Row],[Post-16 Post School (excl. specialist Post 16 institutions) 16-18]]+Table24[[#This Row],[Post-16 Post School (excl. specialist Post 16 institutions) 19-25]] -> 0 | Q24: =Table24[[#This Row],[Total Pre-16 (excl. AP)]]+Table24[[#This Row],[Total Post 16 (excl. NMSS and specialist Post 16 institutions)]] -> 30 | R24: =IF(VLOOKUP(Table24[[#This Row],[Category]],$V$6:$W$37,2,FALSE)="Mainstream",Table24[[#This Row],[Post-16 Schools (excl. NMSS) 16-18]],0) -> 0 | S24: =IF(VLOOKUP(Table24[[#This Row],[Category]],$V$6:$W$37,2,FALSE)="Special",Table24[[#This Row],[Post-16 Schools (excl. NMSS) 16-18]],0) -> 0 | T24: =Table24[[#This Row],[Post-16 Post School (excl. specialist Post 16 institutions) 16-18]]+Table24[[#This Row],[Post-16 Post School (excl. specialist Post 16 institutions) 19-25]] -> 0 | V24: NEW - FREE SCHOOL - AP | W24: Mainstream
A25: ACCRINGTON AND ROSSENDALE COLLEGE | B25: 8888000 | C25: 106762 | D25: FURTHER EDUCATION PROVIDER | E25: North | F25: North West | G25: Lancashire | H25: 888 | I25: 0 | J25: 0 | K25: 0 | L25: =Table24[[#This Row],[Pre-16 SEN Units - 2014 to 2015]]+Table24[[#This Row],[Pre-16 Resourced Provision - 2014 to 2015]]+Table24[[#This Row],[Pre-16 SEN Places - 2014 to 2015]] -> 0 | M25: 0 | N25: 22 | O25: 3 | P25: =Table24[[#This Row],[Post-16 Schools (excl. NMSS) 16-18]]+Table24[[#This Row],[Post-16 Post School (excl. specialist Post 16 institutions) 16-18]]+Table24[[#This Row],[Post-16 Post School (excl. specialist Post 16 institutions) 19-25]] -> 25 | Q25: =Table24[[#This Row],[Total Pre-16 (excl. AP)]]+Table24[[#This Row],[Total Post 16 (excl. NMSS and specialist Post 16 institutions)]] -> 25 | R25: =IF(VLOOKUP(Table24[[#This Row],[Category]],$V$6:$W$37,2,FALSE)="Mainstream",Table24[[#This Row],[Post-16 Schools (excl. NMSS) 16-18]],0) -> 0 | S25: =IF(VLOOKUP(Table24[[#This Row],[Category]],$V$6:$W$37,2,FALSE)="Special",Table24[[#This Row],[Post-16 Schools (excl. NMSS) 16-18]],0) -> 0 | T25: =Table24[[#This Row],[Post-16 Post School (excl. specialist Post 16 institutions) 16-18]]+Table24[[#This Row],[Post-16 Post School (excl. specialist Post 16 institutions) 19-25]] -> 25 | V25: HNT Funded - Pre-16 Resourced Provision | W25: Mainstream
A26: ACCRINGTON ST CHRISTOPHER'S CHURCH OF ENGLAND HIGH SCHOOL | B26: 8884630 | C26: 120359 | D26: ACADEMY - MAINSTREAM | E26: North | F26: North West | G26: Lancashire | H26: 888 | I26: 0 | J26: 0 | K26: 0 | L26: =Table24[[#This Row],[Pre-16 SEN Units - 2014 to 2015]]+Table24[[#This Row],[Pre-16 Resourced Provision - 2014 to 2015]]+Table24[[#This Row],[Pre-16 SEN Places - 2014 to 2015]] -> 0 | M26: 6 | N26: 0 | O26: 0 | P26: =Table24[[#This Row],[Post-16 Schools (excl. NMSS) 16-18]]+Table24[[#This Row],[Post-16 Post School (excl. specialist Post 16 institutions) 16-18]]+Table24[[#This Row],[Post-16 Post School (excl. specialist Post 16 institutions) 19-25]] -> 6 | Q26: =Table24[[#This Row],[Total Pre-16 (excl. AP)]]+Table24[[#This Row],[Total Post 16 (excl. NMSS and specialist Post 16 institutions)]] -> 6 | R26: =IF(VLOOKUP(Table24[[#This Row],[Category]],$V$6:$W$37,2,FALSE)="Mainstream",Table24[[#This Row],[Post-16 Schools (excl. NMSS) 16-18]],0) -> 6 | S26: =IF(VLOOKUP(Table24[[#This Row],[Category]],$V$6:$W$37,2,FALSE)="Special",Table24[[#This Row],[Post-16 Schools (excl. NMSS) 16-18]],0) -> 0 | T26: =Table24[[#This Row],[Post-16 Post School (excl. specialist Post 16 institutions) 16-18]]+Table24[[#This Row],[Post-16 Post School (excl. specialist Post 16 institutions) 19-25]] -> 0 | V26: HNT Funded - Pre-16 Alternate Provision | W26: Mainstream
A27: Acers East Lancs Campus - Burnley and Pendle Centre | B27: 8881119 | C27: 0 | D27: MAINTAINED ALTERNATIVE PROVISION (AP) - PRU | E27: North | F27: North West | G27: Lancashire | H27: 888 | I27: 0 | J27: 0 | K27: 0 | L27: =Table24[[#This Row],[Pre-16 SEN Units - 2014 to 2015]]+Table24[[#This Row],[Pre-16 Resourced Provision - 2014 to 2015]]+Table24[[#This Row],[Pre-16 SEN Places - 2014 to 2015]] -> 0 | M27: 0 | N27: 0 | O27: 0 | P27: =Table24[[#This Row],[Post-16 Schools (excl. NMSS) 16-18]]+Table24[[#This Row],[Post-16 Post School (excl. specialist Post 16 institutions) 16-18]]+Table24[[#This Row],[Post-16 Post School (excl. specialist Post 16 institutions) 19-25]] -> 0 | Q27: =Table24[[#This Row],[Total Pre-16 (excl. AP)]]+Table24[[#This Row],[Total Post 16 (excl. NMSS and specialist Post 16 institutions)]] -> 0 | R27: =IF(VLOOKUP(Table24[[#This Row],[Category]],$V$6:$W$37,2,FALSE)="Mainstream",Table24[[#This Row],[Post-16 Schools (excl. NMSS) 16-18]],0) -> 0 | S27: =IF(VLOOKUP(Table24[[#This Row],[Category]],$V$6:$W$37,2,FALSE)="Special",Table24[[#This Row],[Post-16 Schools (excl. NMSS) 16-18]],0) -> 0 | T27: =Table24[[#This Row],[Post-16 Post School (excl. specialist Post 16 institutions) 16-18]]+Table24[[#This Row],[Post-16 Post School (excl. specialist Post 16 institutions) 19-25]] -> 0 | V27: HNT Funded - Pre-16 Alternate Provision | W27: Mainstream
A28: ACLAND BURGHLEY SCHOOL | B28: 2024285 | C28: 113861 | D28: MAINTAINED SCHOOL - MAINSTREAM | E28: South | F28: London | G28: Camden | H28: 202 | I28: 0 | J28: 16 | K28: 0 | L28: =Table24[[#This Row],[Pre-16 SEN Units - 2014 to 2015]]+Table24[[#This Row],[Pre-16 Resourced Provision - 2014 to 2015]]+Table24[[#This Row],[Pre-16 SEN Places - 2014 to 2015]] -> 16 | M28: 7 | N28: 0 | O28: 0 | P28: =Table24[[#This Row],[Post-16 Schools (excl. NMSS) 16-18]]+Table24[[#This Row],[Post-16 Post School (excl. specialist Post 16 institutions) 16-18]]+Table24[[#This Row],[Post-16 Post School (excl. specialist Post 16 institutions) 19-25]] -> 7 | Q28: =Table24[[#This Row],[Total Pre-16 (excl. AP)]]+Table24[[#This Row],[Total Post 16 (excl. NMSS and specialist Post 16 institutions)]] -> 23 | R28: =IF(VLOOKUP(Table24[[#This Row],[Category]],$V$6:$W$37,2,FALSE)="Mainstream",Table24[[#This Row],[Post-16 Schools (excl. NMSS) 16-18]],0) -> 7 | S28: =IF(VLOOKUP(Table24[[#This Row],[Category]],$V$6:$W$37,2,FALSE)="Special",Table24[[#This Row],[Post-16 Schools (excl. NMSS) 16-18]],0) -> 0 | T28: =Table24[[#This Row],[Post-16 Post School (excl. specialist Post 16 institutions) 16-18]]+Table24[[#This Row],[Post-16 Post School (excl. specialist Post 16 institutions) 19-25]] -> 0 | V28: HNT Funded - Pre-16 Alternate Provision | W28: Mainstream
A29: ACORNS PRIMARY SCHOOL | B29: 8887119 | C29: 0 | D29: MAINTAINED SPECIAL SCHOOL | E29: North | F29: North West | G29: Lancashire | H29: 888 | I29: 0 | J29: 0 | K29: 68 | L29: =Table24[[#This Row],[Pre-16 SEN Units - 2014 to 2015]]+Table24[[#This Row],[Pre-16 Resourced Provision - 2014 to 2015]]+Table24[[#This Row],[Pre-16 SEN Places - 2014 to 2015]] -> 68 | M29: 0 | N29: 0 | O29: 0 | P29: =Table24[[#This Row],[Post-16 Schools (excl. NMSS) 16-18]]+Table24[[#This Row],[Post-16 Post School (excl. specialist Post 16 institutions) 16-18]]+Table24[[#This Row],[Post-16 Post School (excl. specialist Post 16 institutions) 19-25]] -> 0 | Q29: =Table24[[#This Row],[Total Pre-16 (excl. AP)]]+Table24[[#This Row],[Total Post 16 (excl. NMSS and specialist Post 16 institutions)]] -> 68 | R29: =IF(VLOOKUP(Table24[[#This Row],[Category]],$V$6:$W$37,2,FALSE)="Mainstream",Table24[[#This Row],[Post-16 Schools (excl. NMSS) 16-18]],0) -> 0 | S29: =IF(VLOOKUP(Table24[[#This Row],[Category]],$V$6:$W$37,2,FALSE)="Special",Table24[[#This Row],[Post-16 Schools (excl. NMSS) 16-18]],0) -> 0 | T29: =Table24[[#This Row],[Post-16 Post School (excl. specialist Post 16 institutions) 16-18]]+Table24[[#This Row],[Post-16 Post School (excl. specialist Post 16 institutions) 19-25]] -> 0 | V29: HNT Funded - Pre-16 Resourced Provision | W29: Mainstream
A30: ACRE HALL ACADEMY | B30: 3582015 | C30: 122311 | D30: ACADEMY - MAINSTREAM | E30: North | F30: North West | G30: Trafford | H30: 358 | I30: 30 | J30: 0 | K30: 0 | L30: =Table24[[#This Row],[Pre-16 SEN Units - 2014 to 2015]]+Table24[[#This Row],[Pre-16 Resourced Provision - 2014 to 2015]]+Table24[[#This Row],[Pre-16 SEN Places - 2014 to 2015]] -> 30 | M30: 0 | N30: 0 | O30: 0 | P30: =Table24[[#This Row],[Post-16 Schools (excl. NMSS) 16-18]]+Table24[[#This Row],[Post-16 Post School (excl. specialist Post 16 institutions) 16-18]]+Table24[[#This Row],[Post-16 Post School (excl. specialist Post 16 institutions) 19-25]] -> 0 | Q30: =Table24[[#This Row],[Total Pre-16 (excl. AP)]]+Table24[[#This Row],[Total Post 16 (excl. NMSS and specialist Post 16 institutions)]] -> 30 | R30: =IF(VLOOKUP(Table24[[#This Row],[Category]],$V$6:$W$37,2,FALSE)="Mainstream",Table24[[#This Row],[Post-16 Schools (excl. NMSS) 16-18]],0) -> 0 | S30: =IF(VLOOKUP(Table24[[#This Row],[Category]],$V$6:$W$37,2,FALSE)="Special",Table24[[#This Row],[Post-16 Schools (excl. NMSS) 16-18]],0) -> 0 | T30: =Table24[[#This Row],[Post-16 Post School (excl. specialist Post 16 institutions) 16-18]]+Table24[[#This Row],[Post-16 Post School (excl. specialist Post 16 institutions) 19-25]] -> 0 | V30: HNT Funded - Pre-16 Resourced Provision | W30: Mainstream
A31: ACRESFIELD COMMUNITY PRIMARY SCHOOL | B31: 8962678 | C31: 0 | D31: MAINTAINED SCHOOL - MAINSTREAM | E31: North | F31: North West | G31: Cheshire West and Chester | H31: 896 | I31: 0 | J31: 7 | K31: 0 | L31: =Table24[[#This Row],[Pre-16 SEN Units - 2014 to 2015]]+Table24[[#This Row],[Pre-16 Resourced Provision - 2014 to 2015]]+Table24[[#This Row],[Pre-16 SEN Places - 2014 to 2015]] -> 7 | M31: 0 | N31: 0 | O31: 0 | P31: =Table24[[#This Row],[Post-16 Schools (excl. NMSS) 16-18]]+Table24[[#This Row],[Post-16 Post School (excl. specialist Post 16 institutions) 16-18]]+Table24[[#This Row],[Post-16 Post School (excl. specialist Post 16 institutions) 19-25]] -> 0 | Q31: =Table24[[#This Row],[Total Pre-16 (excl. AP)]]+Table24[[#This Row],[Total Post 16 (excl. NMSS and specialist Post 16 institutions)]] -> 7 | R31: =IF(VLOOKUP(Table24[[#This Row],[Category]],$V$6:$W$37,2,FALSE)="Mainstream",Table24[[#This Row],[Post-16 Schools (excl. NMSS) 16-18]],0) -> 0 | S31: =IF(VLOOKUP(Table24[[#This Row],[Category]],$V$6:$W$37,2,FALSE)="Special",Table24[[#This Row],[Post-16 Schools (excl. NMSS) 16-18]],0) -> 0 | T31: =Table24[[#This Row],[Post-16 Post School (excl. specialist Post 16 institutions) 16-18]]+Table24[[#This Row],[Post-16 Post School (excl. specialist Post 16 institutions) 19-25]] -> 0 | V31: HNT Funded - Pre-16 Resourced Provision | W31: Mainstream
A32: ACTIVATE ARTS LTD | B32: 0 | C32: 124167 | D32: POST-16 CHARITABLE AND COMMERCIAL PROVIDER | E32: North | F32: North West | G32: Knowsley | H32: 340 | I32: 0 | J32: 0 | K32: 0 | L32: =Table24[[#This Row],[Pre-16 SEN Units - 2014 to 2015]]+Table24[[#This Row],[Pre-16 Resourced Provision - 2014 to 2015]]+Table24[[#This Row],[Pre-16 SEN Places - 2014 to 2015]] -> 0 | M32: 0 | N32: 10 | O32: 36 | P32: =Table24[[#This Row],[Post-16 Schools (excl. NMSS) 16-18]]+Table24[[#This Row],[Post-16 Post School (excl. specialist Post 16 institutions) 16-18]]+Table24[[#This Row],[Post-16 Post School (excl. specialist Post 16 institutions) 19-25]] -> 46 | Q32: =Table24[[#This Row],[Total Pre-16 (excl. AP)]]+Table24[[#This Row],[Total Post 16 (excl. NMSS and specialist Post 16 institutions)]] -> 46 | R32: =IF(VLOOKUP(Table24[[#This Row],[Category]],$V$6:$W$37,2,FALSE)="Mainstream",Table24[[#This Row],[Post-16 Schools (excl. NMSS) 16-18]],0) -> 0 | S32: =IF(VLOOKUP(Table24[[#This Row],[Category]],$V$6:$W$37,2,FALSE)="Special",Table24[[#This Row],[Post-16 Schools (excl. NMSS) 16-18]],0) -> 0 | T32: =Table24[[#This Row],[Post-16 Post School (excl. specialist Post 16 institutions) 16-18]]+Table24[[#This Row],[Post-16 Post School (excl. specialist Post 16 institutions) 19-25]] -> 46 | V32: HNT Funded - Pre-16 Alternate Provision | W32: Mainstream
A33: ACTIVATE LEARNING | B33: 9318004 | C33: 116105 | D33: FURTHER EDUCATION PROVIDER | E33: South | F33: South East | G33: Oxfordshire | H33: 931 | I33: 0 | J33: 0 | K33: 0 | L33: =Table24[[#This Row],[Pre-16 SEN Units - 2014 to 2015]]+Table24[[#This Row],[Pre-16 Resourced Provision - 2014 to 2015]]+Table24[[#This Row],[Pre-16 SEN Places - 2014 to 2015]] -> 0 | M33: 0 | N33: 77 | O33: 66 | P33: =Table24[[#This Row],[Post-16 Schools (excl. NMSS) 16-18]]+Table24[[#This Row],[Post-16 Post School (excl. specialist Post 16 institutions) 16-18]]+Table24[[#This Row],[Post-16 Post School (excl. specialist Post 16 institutions) 19-25]] -> 143 | Q33: =Table24[[#This Row],[Total Pre-16 (excl. AP)]]+Table24[[#This Row],[Total Post 16 (excl. NMSS and specialist Post 16 institutions)]] -> 143 | R33: =IF(VLOOKUP(Table24[[#This Row],[Category]],$V$6:$W$37,2,FALSE)="Mainstream",Table24[[#This Row],[Post-16 Schools (excl. NMSS) 16-18]],0) -> 0 | S33: =IF(VLOOKUP(Table24[[#This Row],[Category]],$V$6:$W$37,2,FALSE)="Special",Table24[[#This Row],[Post-16 Schools (excl. NMSS) 16-18]],0) -> 0 | T33: =Table24[[#This Row],[Post-16 Post School (excl. specialist Post 16 institutions) 16-18]]+Table24[[#This Row],[Post-16 Post School (excl. specialist Post 16 institutions) 19-25]] -> 143 | V33: HNT Funded - Pre-16 Alternate Provision | W33: Mainstream
A34: ACTON HIGH SCHOOL | B34: 3074035 | C34: 122226 | D34: MAINTAINED SCHOOL - MAINSTREAM | E34: South | F34: London | G34: Ealing | H34: 307 | I34: 0 | J34: 0 | K34: 0 | L34: =Table24[[#This Row],[Pre-16 SEN Units - 2014 to 2015]]+Table24[[#This Row],[Pre-16 Resourced Provision - 2014 to 2015]]+Table24[[#This Row],[Pre-16 SEN Places - 2014 to 2015]] -> 0 | M34: 1 | N34: 0 | O34: 0 | P34: =Table24[[#This Row],[Post-16 Schools (excl. NMSS) 16-18]]+Table24[[#This Row],[Post-16 Post School (excl. specialist Post 16 institutions) 16-18]]+Table24[[#This Row],[Post-16 Post School (excl. specialist Post 16 institutions) 19-25]] -> 1 | Q34: =Table24[[#This Row],[Total Pre-16 (excl. AP)]]+Table24[[#This Row],[Total Post 16 (excl. NMSS and specialist Post 16 institutions)]] -> 1 | R34: =IF(VLOOKUP(Table24[[#This Row],[Category]],$V$6:$W$37,2,FALSE)="Mainstream",Table24[[#This Row],[Post-16 Schools (excl. NMSS) 16-18]],0) -> 1 | S34: =IF(VLOOKUP(Table24[[#This Row],[Category]],$V$6:$W$37,2,FALSE)="Special",Table24[[#This Row],[Post-16 Schools (excl. NMSS) 16-18]],0) -> 0 | T34: =Table24[[#This Row],[Post-16 Post School (excl. specialist Post 16 institutions) 16-18]]+Table24[[#This Row],[Post-16 Post School (excl. specialist Post 16 institutions) 19-25]] -> 0 | V34: HNT Funded - Pre-16 Alternate Provision | W34: Mainstream
A35: ADDEY AND STANHOPE SCHOOL | B35: 2094600 | C35: 0 | D35: MAINTAINED SCHOOL - MAINSTREAM | E35: South | F35: London | G35: Lewisham | H35: 209 | I35: 0 | J35: 25 | K35: 0 | L35: =Table24[[#This Row],[Pre-16 SEN Units - 2014 to 2015]]+Table24[[#This Row],[Pre-16 Resourced Provision - 2014 to 2015]]+Table24[[#This Row],[Pre-16 SEN Places - 2014 to 2015]] -> 25 | M35: 0 | N35: 0 | O35: 0 | P35: =Table24[[#This Row],[Post-16 Schools (excl. NMSS) 16-18]]+Table24[[#This Row],[Post-16 Post School (excl. specialist Post 16 institutions) 16-18]]+Table24[[#This Row],[Post-16 Post School (excl. specialist Post 16 institutions) 19-25]] -> 0 | Q35: =Table24[[#This Row],[Total Pre-16 (excl. AP)]]+Table24[[#This Row],[Total Post 16 (excl. NMSS and specialist Post 16 institutions)]] -> 25 | R35: =IF(VLOOKUP(Table24[[#This Row],[Category]],$V$6:$W$37,2,FALSE)="Mainstream",Table24[[#This Row],[Post-16 Schools (excl. NMSS) 16-18]],0) -> 0 | S35: =IF(VLOOKUP(Table24[[#This Row],[Category]],$V$6:$W$37,2,FALSE)="Special",Table24[[#This Row],[Post-16 Schools (excl. NMSS) 16-18]],0) -> 0 | T35: =Table24[[#This Row],[Post-16 Post School (excl. specialist Post 16 institutions) 16-18]]+Table24[[#This Row],[Post-16 Post School (excl. specialist Post 16 institutions) 19-25]] -> 0 | V35: HNT Funded - Pre-16 SEN Institution | W35: Mainstream
A36: ADDINGTON HIGH SCHOOL | B36: 3064000 | C36: 122641 | D36: ACADEMY - MAINSTREAM | E36: South | F36: London | G36: Croydon | H36: 306 | I36: 30 | J36: 0 | K36: 0 | L36: =Table24[[#This Row],[Pre-16 SEN Units - 2014 to 2015]]+Table24[[#This Row],[Pre-16 Resourced Provision - 2014 to 2015]]+Table24[[#This Row],[Pre-16 SEN Places - 2014 to 2015]] -> 30 | M36: 5 | N36: 0 | O36: 0 | P36: =Table24[[#This Row],[Post-16 Schools (excl. NMSS) 16-18]]+Table24[[#This Row],[Post-16 Post School (excl. specialist Post 16 institutions) 16-18]]+Table24[[#This Row],[Post-16 Post School (excl. specialist Post 16 institutions) 19-25]] -> 5 | Q36: =Table24[[#This Row],[Total Pre-16 (excl. AP)]]+Table24[[#This Row],[Total Post 16 (excl. NMSS and specialist Post 16 institutions)]] -> 35 | R36: =IF(VLOOKUP(Table24[[#This Row],[Category]],$V$6:$W$37,2,FALSE)="Mainstream",Table24[[#This Row],[Post-16 Schools (excl. NMSS) 16-18]],0) -> 5 | S36: =IF(VLOOKUP(Table24[[#This Row],[Category]],$V$6:$W$37,2,FALSE)="Special",Table24[[#This Row],[Post-16 Schools (excl. NMSS) 16-18]],0) -> 0 | T36: =Table24[[#This Row],[Post-16 Post School (excl. specialist Post 16 institutions) 16-18]]+Table24[[#This Row],[Post-16 Post School (excl. specialist Post 16 institutions) 19-25]] -> 0 | V36: HNT Funded - Pre-16 SEN Institution | W36: Mainstream
A37: ADDINGTON SCHOOL | B37: 8727029 | C37: 123987 | D37: MAINTAINED SPECIAL SCHOOL | E37: South | F37: South East | G37: Wokingham | H37: 872 | I37: 0 | J37: 0 | K37: 155 | L37: =Table24[[#This Row],[Pre-16 SEN Units - 2014 to 2015]]+Table24[[#This Row],[Pre-16 Resourced Provision - 2014 to 2015]]+Table24[[#This Row],[Pre-16 SEN Places - 2014 to 2015]] -> 155 | M37: 43 | N37: 0 | O37: 0 | P37: =Table24[[#This Row],[Post-16 Schools (excl. NMSS) 16-18]]+Table24[[#This Row],[Post-16 Post School (excl. specialist Post 16 institutions) 16-18]]+Table24[[#This Row],[Post-16 Post School (excl. specialist Post 16 institutions) 19-25]] -> 43 | Q37: =Table24[[#This Row],[Total Pre-16 (excl. AP)]]+Table24[[#This Row],[Total Post 16 (excl. NMSS and specialist Post 16 institutions)]] -> 198 | R37: =IF(VLOOKUP(Table24[[#This Row],[Category]],$V$6:$W$37,2,FALSE)="Mainstream",Table24[[#This Row],[Post-16 Schools (excl. NMSS) 16-18]],0) -> 0 | S37: =IF(VLOOKUP(Table24[[#This Row],[Category]],$V$6:$W$37,2,FALSE)="Special",Table24[[#This Row],[Post-16 Schools (excl. NMSS) 16-18]],0) -> 43 | T37: =Table24[[#This Row],[Post-16 Post School (excl. specialist Post 16 institutions) 16-18]]+Table24[[#This Row],[Post-16 Post School (excl. specialist Post 16 institutions) 19-25]] -> 0 | V37: HNT Funded - Pre-16 Alternate Provision | W37: Mainstream
A38: ADELAIDE SCHOOL | B38: 8957209 | C38: 129409 | D38: ACADEMY - SPECIAL | E38: North | F38: North West | G38: Cheshire East | H38: 895 | I38: 0 | J38: 0 | K38: 36 | L38: =Table24[[#This Row],[Pre-16 SEN Units - 2014 to 2015]]+Table24[[#This Row],[Pre-16 Resourced Provision - 2014 to 2015]]+Table24[[#This Row],[Pre-16 SEN Places - 2014 to 2015]] -> 36 | M38: 2 | N38: 0 | O38: 0 | P38: =Table24[[#This Row],[Post-16 Schools (excl. NMSS) 16-18]]+Table24[[#This Row],[Post-16 Post School (excl. specialist Post 16 institutions) 16-18]]+Table24[[#This Row],[Post-16 Post School (excl. specialist Post 16 institutions) 19-25]] -> 2 | Q38: =Table24[[#This Row],[Total Pre-16 (excl. AP)]]+Table24[[#This Row],[Total Post 16 (excl. NMSS and specialist Post 16 institutions)]] -> 38 | R38: =IF(VLOOKUP(Table24[[#This Row],[Category]],$V$6:$W$37,2,FALSE)="Mainstream",Table24[[#This Row],[Post-16 Schools (excl. NMSS) 16-18]],0) -> 0 | S38: =IF(VLOOKUP(Table24[[#This Row],[Category]],$V$6:$W$37,2,FALSE)="Special",Table24[[#This Row],[Post-16 Schools (excl. NMSS) 16-18]],0) -> 2 | T38: =Table24[[#This Row],[Post-16 Post School (excl. specialist Post 16 institutions) 16-18]]+Table24[[#This Row],[Post-16 Post School (excl. specialist Post 16 institutions) 19-25]] -> 0
A39: ADULT EDUCATION COLLEGE FOR BEXLEY | B39: 0 | C39: 108155 | D39: FURTHER EDUCATION PROVIDER | E39: South | F39: London | G39: Bexley | H39: 303 | I39: 0 | J39: 0 | K39: 0 | L39: =Table24[[#This Row],[Pre-16 SEN Units - 2014 to 2015]]+Table24[[#This Row],[Pre-16 Resourced Provision - 2014 to 2015]]+Table24[[#This Row],[Pre-16 SEN Places - 2014 to 2015]] -> 0 | M39: 0 | N39: 5 | O39: 0 | P39: =Table24[[#This Row],[Post-16 Schools (excl. NMSS) 16-18]]+Table24[[#This Row],[Post-16 Post School (excl. specialist Post 16 institutions) 16-18]]+Table24[[#This Row],[Post-16 Post School (excl. specialist Post 16 institutions) 19-25]] -> 5 | Q39: =Table24[[#This Row],[Total Pre-16 (excl. AP)]]+Table24[[#This Row],[Total Post 16 (excl. NMSS and specialist Post 16 institutions)]] -> 5 | R39: =IF(VLOOKUP(Table24[[#This Row],[Category]],$V$6:$W$37,2,FALSE)="Mainstream",Table24[[#This Row],[Post-16 Schools (excl. NMSS) 16-18]],0) -> 0 | S39: =IF(VLOOKUP(Table24[[#This Row],[Category]],$V$6:$W$37,2,FALSE)="Special",Table24[[#This Row],[Post-16 Schools (excl. NMSS) 16-18]],0) -> 0 | T39: =Table24[[#This Row],[Post-16 Post School (excl. specialist Post 16 institutions) 16-18]]+Table24[[#This Row],[Post-16 Post School (excl. specialist Post 16 institutions) 19-25]] -> 5
A40: AEGIR COMMUNITY SCHOOL | B40: 9257034 | C40: 123634 | D40: MAINTAINED SPECIAL SCHOOL | E40: CentralSW | F40: East Midlands | G40: Lincolnshire | H40: 925 | I40: 0 | J40: 0 | K40: 96 | L40: =Table24[[#This Row],[Pre-16 SEN Units - 2014 to 2015]]+Table24[[#This Row],[Pre-16 Resourced Provision - 2014 to 2015]]+Table24[[#This Row],[Pre-16 SEN Places - 2014 to 2015]] -> 96 | M40: 32 | N40: 0 | O40: 0 | P40: =Table24[[#This Row],[Post-16 Schools (excl. NMSS) 16-18]]+Table24[[#This Row],[Post-16 Post School (excl. specialist Post 16 institutions) 16-18]]+Table24[[#This Row],[Post-16 Post School (excl. specialist Post 16 institutions) 19-25]] -> 32 | Q40: =Table24[[#This Row],[Total Pre-16 (excl. AP)]]+Table24[[#This Row],[Total Post 16 (excl. NMSS and specialist Post 16 institutions)]] -> 128 | R40: =IF(VLOOKUP(Table24[[#This Row],[Category]],$V$6:$W$37,2,FALSE)="Mainstream",Table24[[#This Row],[Post-16 Schools (excl. NMSS) 16-18]],0) -> 0 | S40: =IF(VLOOKUP(Table24[[#This Row],[Category]],$V$6:$W$37,2,FALSE)="Special",Table24[[#This Row],[Post-16 Schools (excl. NMSS) 16-18]],0) -> 32 | T40: =Table24[[#This Row],[Post-16 Post School (excl. specialist Post 16 institutions) 16-18]]+Table24[[#This Row],[Post-16 Post School (excl. specialist Post 16 institutions) 19-25]] -> 0
A41: AERODROME PRIMARY ACADEMY | B41: 3063417 | C41: 123037 | D41: ACADEMY - MAINSTREAM | E41: South | F41: London | G41: Croydon | H41: 306 | I41: 14 | J41: 0 | K41: 0 | L41: =Table24[[#This Row],[Pre-16 SEN Units - 2014 to 2015]]+Table24[[#This Row],[Pre-16 Resourced Provision - 2014 to 2015]]+Table24[[#This Row],[Pre-16 SEN Places - 2014 to 2015]] -> 14 | M41: 0 | N41: 0 | O41: 0 | P41: =Table24[[#This Row],[Post-16 Schools (excl. NMSS) 16-18]]+Table24[[#This Row],[Post-16 Post School (excl. specialist Post 16 institutions) 16-18]]+Table24[[#This Row],[Post-16 Post School (excl. specialist Post 16 institutions) 19-25]] -> 0 | Q41: =Table24[[#This Row],[Total Pre-16 (excl. AP)]]+Table24[[#This Row],[Total Post 16 (excl. NMSS and specialist Post 16 institutions)]] -> 14 | R41: =IF(VLOOKUP(Table24[[#This Row],[Category]],$V$6:$W$37,2,FALSE)="Mainstream",Table24[[#This Row],[Post-16 Schools (excl. NMSS) 16-18]],0) -> 0 | S41: =IF(VLOOKUP(Table24[[#This Row],[Category]],$V$6:$W$37,2,FALSE)="Special",Table24[[#This Row],[Post-16 Schools (excl. NMSS) 16-18]],0) -> 0 | T41: =Table24[[#This Row],[Post-16 Post School (excl. specialist Post 16 institutions) 16-18]]+Table24[[#This Row],[Post-16 Post School (excl. specialist Post 16 institutions) 19-25]] -> 0
A42: AIGBURTH HIGH SCHOOL | B42: 3417069 | C42: 123830 | D42: MAINTAINED SPECIAL SCHOOL | E42: North | F42: North West | G42: Liverpool | H42: 341 | I42: 0 | J42: 0 | K42: 100 | L42: =Table24[[#This Row],[Pre-16 SEN Units - 2014 to 2015]]+Table24[[#This Row],[Pre-16 Resourced Provision - 2014 to 2015]]+Table24[[#This Row],[Pre-16 SEN Places - 2014 to 2015]] -> 100 | M42: 20 | N42: 0 | O42: 0 | P42: =Table24[[#This Row],[Post-16 Schools (excl. NMSS) 16-18]]+Table24[[#This Row],[Post-16 Post School (excl. specialist Post 16 institutions) 16-18]]+Table24[[#This Row],[Post-16 Post School (excl. specialist Post 16 institutions) 19-25]] -> 20 | Q42: =Table24[[#This Row],[Total Pre-16 (excl. AP)]]+Table24[[#This Row],[Total Post 16 (excl. NMSS and specialist Post 16 institutions)]] -> 120 | R42: =IF(VLOOKUP(Table24[[#This Row],[Category]],$V$6:$W$37,2,FALSE)="Mainstream",Table24[[#This Row],[Post-16 Schools (excl. NMSS) 16-18]],0) -> 0 | S42: =IF(VLOOKUP(Table24[[#This Row],[Category]],$V$6:$W$37,2,FALSE)="Special",Table24[[#This Row],[Post-16 Schools (excl. NMSS) 16-18]],0) -> 20 | T42: =Table24[[#This Row],[Post-16 Post School (excl. specialist Post 16 institutions) 16-18]]+Table24[[#This Row],[Post-16 Post School (excl. specialist Post 16 institutions) 19-25]] -> 0
A43: ALBANY CENTRE | B43: 9351103 | C43: 0 | D43: MAINTAINED ALTERNATIVE PROVISION (AP) - PRU | E43: South | F43: East of England | G43: Suffolk | H43: 935 | I43: 0 | J43: 0 | K43: 0 | L43: =Table24[[#This Row],[Pre-16 SEN Units - 2014 to 2015]]+Table24[[#This Row],[Pre-16 Resourced Provision - 2014 to 2015]]+Table24[[#This Row],[Pre-16 SEN Places - 2014 to 2015]] -> 0 | M43: 0 | N43: 0 | O43: 0 | P43: =Table24[[#This Row],[Post-16 Schools (excl. NMSS) 16-18]]+Table24[[#This Row],[Post-16 Post School (excl. specialist Post 16 institutions) 16-18]]+Table24[[#This Row],[Post-16 Post School (excl. specialist Post 16 institutions) 19-25]] -> 0 | Q43: =Table24[[#This Row],[Total Pre-16 (excl. AP)]]+Table24[[#This Row],[Total Post 16 (excl. NMSS and specialist Post 16 institutions)]] -> 0 | R43: =IF(VLOOKUP(Table24[[#This Row],[Category]],$V$6:$W$37,2,FALSE)="Mainstream",Table24[[#This Row],[Post-16 Schools (excl. NMSS) 16-18]],0) -> 0 | S43: =IF(VLOOKUP(Table24[[#This Row],[Category]],$V$6:$W$37,2,FALSE)="Special",Table24[[#This Row],[Post-16 Schools (excl. NMSS) 16-18]],0) -> 0 | T43: =Table24[[#This Row],[Post-16 Post School (excl. specialist Post 16 institutions) 16-18]]+Table24[[#This Row],[Post-16 Post School (excl. specialist Post 16 institutions) 19-25]] -> 0
A44: ALBERT PRITCHARD INFANT SCHOOL | B44: 3332042 | C44: 0 | D44: MAINTAINED SCHOOL - MAINSTREAM | E44: CentralSW | F44: West Midlands | G44: Sandwell | H44: 333 | I44: 0 | J44: 6 | K44: 0 | L44: =Table24[[#This Row],[Pre-16 SEN Units - 2014 to 2015]]+Table24[[#This Row],[Pre-16 Resourced Provision - 2014 to 2015]]+Table24[[#This Row],[Pre-16 SEN Places - 2014 to 2015]] -> 6 | M44: 0 | N44: 0 | O44: 0 | P44: =Table24[[#This Row],[Post-16 Schools (excl. NMSS) 16-18]]+Table24[[#This Row],[Post-16 Post School (excl. specialist Post 16 institutions) 16-18]]+Table24[[#This Row],[Post-16 Post School (excl. specialist Post 16 institutions) 19-25]] -> 0 | Q44: =Table24[[#This Row],[Total Pre-16 (excl. AP)]]+Table24[[#This Row],[Total Post 16 (excl. NMSS and specialist Post 16 institutions)]] -> 6 | R44: =IF(VLOOKUP(Table24[[#This Row],[Category]],$V$6:$W$37,2,FALSE)="Mainstream",Table24[[#This Row],[Post-16 Schools (excl. NMSS) 16-18]],0) -> 0 | S44: =IF(VLOOKUP(Table24[[#This Row],[Category]],$V$6:$W$37,2,FALSE)="Special",Table24[[#This Row],[Post-16 Schools (excl. NMSS) 16-18]],0) -> 0 | T44: =Table24[[#This Row],[Post-16 Post School (excl. specialist Post 16 institutions) 16-18]]+Table24[[#This Row],[Post-16 Post School (excl. specialist Post 16 institutions) 19-25]] -> 0
A45: ALDER BROOK PRIMARY PARTNERSHIP CENTRE | B45: 3551103 | C45: 0 | D45: MAINTAINED ALTERNATIVE PROVISION (AP) - PRU | E45: North | F45: North West | G45: Salford | H45: 355 | I45: 0 | J45: 0 | K45: 0 | L45: =Table24[[#This Row],[Pre-16 SEN Units - 2014 to 2015]]+Table24[[#This Row],[Pre-16 Resourced Provision - 2014 to 2015]]+Table24[[#This Row],[Pre-16 SEN Places - 2014 to 2015]] -> 0 | M45: 0 | N45: 0 | O45: 0 | P45: =Table24[[#This Row],[Post-16 Schools (excl. NMSS) 16-18]]+Table24[[#This Row],[Post-16 Post School (excl. specialist Post 16 institutions) 16-18]]+Table24[[#This Row],[Post-16 Post School (excl. specialist Post 16 institutions) 19-25]] -> 0 | Q45: =Table24[[#This Row],[Total Pre-16 (excl. AP)]]+Table24[[#This Row],[Total Post 16 (excl. NMSS and specialist Post 16 institutions)]] -> 0 | R45: =IF(VLOOKUP(Table24[[#This Row],[Category]],$V$6:$W$37,2,FALSE)="Mainstream",Table24[[#This Row],[Post-16 Schools (excl. NMSS) 16-18]],0) -> 0 | S45: =IF(VLOOKUP(Table24[[#This Row],[Category]],$V$6:$W$37,2,FALSE)="Special",Table24[[#This Row],[Post-16 Schools (excl. NMSS) 16-18]],0) -> 0 | T45: =Table24[[#This Row],[Post-16 Post School (excl. specialist Post 16 institutions) 16-18]]+Table24[[#This Row],[Post-16 Post School (excl. specialist Post 16 institutions) 19-25]] -> 0
A46: ALDERBROOK LEADING EDGE SCHOOL AND ARTS COLLEGE | B46: 3344015 | C46: 119994 | D46: ACADEMY - MAINSTREAM | E46: CentralSW | F46: West Midlands | G46: Solihull | H46: 334 | I46: 40 | J46: 0 | K46: 0 | L46: =Table24[[#This Row],[Pre-16 SEN Units - 2014 to 2015]]+Table24[[#This Row],[Pre-16 Resourced Provision - 2014 to 2015]]+Table24[[#This Row],[Pre-16 SEN Places - 2014 to 2015]] -> 40 | M46: 0 | N46: 0 | O46: 0 | P46: =Table24[[#This Row],[Post-16 Schools (excl. NMSS) 16-18]]+Table24[[#This Row],[Post-16 Post School (excl. specialist Post 16 institutions) 16-18]]+Table24[[#This Row],[Post-16 Post School (excl. specialist Post 16 institutions) 19-25]] -> 0 | Q46: =Table24[[#This Row],[Total Pre-16 (excl. AP)]]+Table24[[#This Row],[Total Post 16 (excl. NMSS and specialist Post 16 institutions)]] -> 40 | R46: =IF(VLOOKUP(Table24[[#This Row],[Category]],$V$6:$W$37,2,FALSE)="Mainstream",Table24[[#This Row],[Post-16 Schools (excl. NMSS) 16-18]],0) -> 0 | S46: =IF(VLOOKUP(Table24[[#This Row],[Category]],$V$6:$W$37,2,FALSE)="Special",Table24[[#This Row],[Post-16 Schools (excl. NMSS) 16-18]],0) -> 0 | T46: =Table24[[#This Row],[Post-16 Post School (excl. specialist Post 16 institutions) 16-18]]+Table24[[#This Row],[Post-16 Post School (excl. specialist Post 16 institutions) 19-25]] -> 0
A47: ALDERCAR COMMUNITY LANGUAGE COLLEGE | B47: 8304089 | C47: 118227 | D47: MAINTAINED SCHOOL - MAINSTREAM | E47: CentralSW | F47: East Midlands | G47: Derbyshire | H47: 830 | I47: 0 | J47: 7 | K47: 0 | L47: =Table24[[#This Row],[Pre-16 SEN Units - 2014 to 2015]]+Table24[[#This Row],[Pre-16 Resourced Provision - 2014 to 2015]]+Table24[[#This Row],[Pre-16 SEN Places - 2014 to 2015]] -> 7 | M47: 11 | N47: 0 | O47: 0 | P47: =Table24[[#This Row],[Post-16 Schools (excl. NMSS) 16-18]]+Table24[[#This Row],[Post-16 Post School (excl. specialist Post 16 institutions) 16-18]]+Table24[[#This Row],[Post-16 Post School (excl. specialist Post 16 institutions) 19-25]] -> 11 | Q47: =Table24[[#This Row],[Total Pre-16 (excl. AP)]]+Table24[[#This Row],[Total Post 16 (excl. NMSS and specialist Post 16 institutions)]] -> 18 | R47: =IF(VLOOKUP(Table24[[#This Row],[Category]],$V$6:$W$37,2,FALSE)="Mainstream",Table24[[#This Row],[Post-16 Schools (excl. NMSS) 16-18]],0) -> 11 | S47: =IF(VLOOKUP(Table24[[#This Row],[Category]],$V$6:$W$37,2,FALSE)="Special",Table24[[#This Row],[Post-16 Schools (excl. NMSS) 16-18]],0) -> 0 | T47: =Table24[[#This Row],[Post-16 Post School (excl. specialist Post 16 institutions) 16-18]]+Table24[[#This Row],[Post-16 Post School (excl. specialist Post 16 institutions) 19-25]] -> 0
A48: ALDERCAR INFANT SCHOOL | B48: 8302116 | C48: 0 | D48: MAINTAINED SCHOOL - MAINSTREAM | E48: CentralSW | F48: East Midlands | G48: Derbyshire | H48: 830 | I48: 0 | J48: 8 | K48: 0 | L48: =Table24[[#This Row],[Pre-16 SEN Units - 2014 to 2015]]+Table24[[#This Row],[Pre-16 Resourced Provision - 2014 to 2015]]+Table24[[#This Row],[Pre-16 SEN Places - 2014 to 2015]] -> 8 | M48: 0 | N48: 0 | O48: 0 | P48: =Table24[[#This Row],[Post-16 Schools (excl. NMSS) 16-18]]+Table24[[#This Row],[Post-16 Post School (excl. specialist Post 16 institutions) 16-18]]+Table24[[#This Row],[Post-16 Post School (excl. specialist Post 16 institutions) 19-25]] -> 0 | Q48: =Table24[[#This Row],[Total Pre-16 (excl. AP)]]+Table24[[#This Row],[Total Post 16 (excl. NMSS and specialist Post 16 institutions)]] -> 8 | R48: =IF(VLOOKUP(Table24[[#This Row],[Category]],$V$6:$W$37,2,FALSE)="Mainstream",Table24[[#This Row],[Post-16 Schools (excl. NMSS) 16-18]],0) -> 0 | S48: =IF(VLOOKUP(Table24[[#This Row],[Category]],$V$6:$W$37,2,FALSE)="Special",Table24[[#This Row],[Post-16 Schools (excl. NMSS) 16-18]],0) -> 0 | T48: =Table24[[#This Row],[Post-16 Post School (excl. specialist Post 16 institutions) 16-18]]+Table24[[#This Row],[Post-16 Post School (excl. specialist Post 16 institutions) 19-25]] -> 0
A49: ALDERMAN KNIGHT SCHOOL | B49: 9167019 | C49: 0 | D49: MAINTAINED SPECIAL SCHOOL | E49: CentralSW | F49: South West | G49: Gloucestershire | H49: 916 | I49: 0 | J49: 0 | K49: 114 | L49: =Table24[[#This Row],[Pre-16 SEN Units - 2014 to 2015]]+Table24[[#This Row],[Pre-16 Resourced Provision - 2014 to 2015]]+Table24[[#This Row],[Pre-16 SEN Places - 2014 to 2015]] -> 114 | M49: 0 | N49: 0 | O49: 0 | P49: =Table24[[#This Row],[Post-16 Schools (excl. NMSS) 16-18]]+Table24[[#This Row],[Post-16 Post School (excl. specialist Post 16 institutions) 16-18]]+Table24[[#This Row],[Post-16 Post School (excl. specialist Post 16 institutions) 19-25]] -> 0 | Q49: =Table24[[#This Row],[Total Pre-16 (excl. AP)]]+Table24[[#This Row],[Total Post 16 (excl. NMSS and specialist Post 16 institutions)]] -> 114 | R49: =IF(VLOOKUP(Table24[[#This Row],[Category]],$V$6:$W$37,2,FALSE)="Mainstream",Table24[[#This Row],[Post-16 Schools (excl. NMSS) 16-18]],0) -> 0 | S49: =IF(VLOOKUP(Table24[[#This Row],[Category]],$V$6:$W$37,2,FALSE)="Special",Table24[[#This Row],[Post-16 Schools (excl. NMSS) 16-18]],0) -> 0 | T49: =Table24[[#This Row],[Post-16 Post School (excl. specialist Post 16 institutions) 16-18]]+Table24[[#This Row],[Post-16 Post School (excl. specialist Post 16 institutions) 19-25]] -> 0
A50: ALDERMAN'S GREEN COMMUNITY PRIMARY SCHOOL | B50: 3312000 | C50: 0 | D50: MAINTAINED SCHOOL - MAINSTREAM | E50: CentralSW | F50: West Midlands | G50: Coventry | H50: 331 | I50: 0 | J50: 12 | K50: 0 | L50: =Table24[[#This Row],[Pre-16 SEN Units - 2014 to 2015]]+Table24[[#This Row],[Pre-16 Resourced Provision - 2014 to 2015]]+Table24[[#This Row],[Pre-16 SEN Places - 2014 to 2015]] -> 12 | M50: 0 | N50: 0 | O50: 0 | P50: =Table24[[#This Row],[Post-16 Schools (excl. NMSS) 16-18]]+Table24[[#This Row],[Post-16 Post School (excl. specialist Post 16 institutions) 16-18]]+Table24[[#This Row],[Post-16 Post School (excl. specialist Post 16 institutions) 19-25]] -> 0 | Q50: =Table24[[#This Row],[Total Pre-16 (excl. AP)]]+Table24[[#This Row],[Total Post 16 (excl. NMSS and specialist Post 16 institutions)]] -> 12 | R50: =IF(VLOOKUP(Table24[[#This Row],[Category]],$V$6:$W$37,2,FALSE)="Mainstream",Table24[[#This Row],[Post-16 Schools (excl. NMSS) 16-18]],0) -> 0 | S50: =IF(VLOOKUP(Table24[[#This Row],[Category]],$V$6:$W$37,2,FALSE)="Special",Table24[[#This Row],[Post-16 Schools (excl. NMSS) 16-18]],0) -> 0 | T50: =Table24[[#This Row],[Post-16 Post School (excl. specialist Post 16 institutions) 16-18]]+Table24[[#This Row],[Post-16 Post School (excl. specialist Post 16 institutions) 19-25]] -> 0
A51: ALDERMOOR FARM PRIMARY SCHOOL | B51: 3312131 | C51: 0 | D51: MAINTAINED SCHOOL - MAINSTREAM | E51: CentralSW | F51: West Midlands | G51: Coventry | H51: 331 | I51: 0 | J51: 8 | K51: 0 | L51: =Table24[[#This Row],[Pre-16 SEN Units - 2014 to 2015]]+Table24[[#This Row],[Pre-16 Resourced Provision - 2014 to 2015]]+Table24[[#This Row],[Pre-16 SEN Places - 2014 to 2015]] -> 8 | M51: 0 | N51: 0 | O51: 0 | P51: =Table24[[#This Row],[Post-16 Schools (excl. NMSS) 16-18]]+Table24[[#This Row],[Post-16 Post School (excl. specialist Post 16 institutions) 16-18]]+Table24[[#This Row],[Post-16 Post School (excl. specialist Post 16 institutions) 19-25]] -> 0 | Q51: =Table24[[#This Row],[Total Pre-16 (excl. AP)]]+Table24[[#This Row],[Total Post 16 (excl. NMSS and specialist Post 16 institutions)]] -> 8 | R51: =IF(VLOOKUP(Table24[[#This Row],[Category]],$V$6:$W$37,2,FALSE)="Mainstream",Table24[[#This Row],[Post-16 Schools (excl. NMSS) 16-18]],0) -> 0 | S51: =IF(VLOOKUP(Table24[[#This Row],[Category]],$V$6:$W$37,2,FALSE)="Special",Table24[[#This Row],[Post-16 Schools (excl. NMSS) 16-18]],0) -> 0 | T51: =Table24[[#This Row],[Post-16 Post School (excl. specialist Post 16 institutions) 16-18]]+Table24[[#This Row],[Post-16 Post School (excl. specialist Post 16 institutions) 19-25]] -> 0
A52: ALDERSLEY HIGH SCHOOL | B52: 3365402 | C52: 122992 | D52: ACADEMY - MAINSTREAM | E52: CentralSW | F52: West Midlands | G52: Wolverhampton | H52: 336 | I52: 0 | J52: 15 | K52: 0 | L52: =Table24[[#This Row],[Pre-16 SEN Units - 2014 to 2015]]+Table24[[#This Row],[Pre-16 Resourced Provision - 2014 to 2015]]+Table24[[#This Row],[Pre-16 SEN Places - 2014 to 2015]] -> 15 | M52: 2 | N52: 0 | O52: 0 | P52: =Table24[[#This Row],[Post-16 Schools (excl. NMSS) 16-18]]+Table24[[#This Row],[Post-16 Post School (excl. specialist Post 16 institutions) 16-18]]+Table24[[#This Row],[Post-16 Post School (excl. specialist Post 16 institutions) 19-25]] -> 2 | Q52: =Table24[[#This Row],[Total Pre-16 (excl. AP)]]+Table24[[#This Row],[Total Post 16 (excl. NMSS and specialist Post 16 institutions)]] -> 17 | R52: =IF(VLOOKUP(Table24[[#This Row],[Category]],$V$6:$W$37,2,FALSE)="Mainstream",Table24[[#This Row],[Post-16 Schools (excl. NMSS) 16-18]],0) -> 2 | S52: =IF(VLOOKUP(Table24[[#This Row],[Category]],$V$6:$W$37,2,FALSE)="Special",Table24[[#This Row],[Post-16 Schools (excl. NMSS) 16-18]],0) -> 0 | T52: =Table24[[#This Row],[Post-16 Post School (excl. specialist Post 16 institutions) 16-18]]+Table24[[#This Row],[Post-16 Post School (excl. specialist Post 16 institutions) 19-25]] -> 0
A53: ALDERWOOD | B53: 9351111 | C53: 0 | D53: MAINTAINED ALTERNATIVE PROVISION (AP) - PRU | E53: South | F53: East of England | G53: Suffolk | H53: 935 | I53: 0 | J53: 0 | K53: 0 | L53: =Table24[[#This Row],[Pre-16 SEN Units - 2014 to 2015]]+Table24[[#This Row],[Pre-16 Resourced Provision - 2014 to 2015]]+Table24[[#This Row],[Pre-16 SEN Places - 2014 to 2015]] -> 0 | M53: 0 | N53: 0 | O53: 0 | P53: =Table24[[#This Row],[Post-16 Schools (excl. NMSS) 16-18]]+Table24[[#This Row],[Post-16 Post School (excl. specialist Post 16 institutions) 16-18]]+Table24[[#This Row],[Post-16 Post School (excl. specialist Post 16 institutions) 19-25]] -> 0 | Q53: =Table24[[#This Row],[Total Pre-16 (excl. AP)]]+Table24[[#This Row],[Total Post 16 (excl. NMSS and specialist Post 16 institutions)]] -> 0 | R53: =IF(VLOOKUP(Table24[[#This Row],[Category]],$V$6:$W$37,2,FALSE)="Mainstream",Table24[[#This Row],[Post-16 Schools (excl. NMSS) 16-18]],0) -> 0 | S53: =IF(VLOOKUP(Table24[[#This Row],[Category]],$V$6:$W$37,2,FALSE)="Special",Table24[[#This Row],[Post-16 Schools (excl. NMSS) 16-18]],0) -> 0 | T53: =Table24[[#This Row],[Post-16 Post School (excl. specialist Post 16 institutions) 16-18]]+Table24[[#This Row],[Post-16 Post School (excl. specialist Post 16 institutions) 19-25]] -> 0
A54: ALDERWOOD PRIMARY SCHOOL | B54: 2032024 | C54: 0 | D54: MAINTAINED SCHOOL - MAINSTREAM | E54: South | F54: London | G54: Greenwich | H54: 203 | I54: 0 | J54: 6 | K54: 0 | L54: =Table24[[#This Row],[Pre-16 SEN Units - 2014 to 2015]]+Table24[[#This Row],[Pre-16 Resourced Provision - 2014 to 2015]]+Table24[[#This Row],[Pre-16 SEN Places - 2014 to 2015]] -> 6 | M54: 0 | N54: 0 | O54: 0 | P54: =Table24[[#This Row],[Post-16 Schools (excl. NMSS) 16-18]]+Table24[[#This Row],[Post-16 Post School (excl. specialist Post 16 institutions) 16-18]]+Table24[[#This Row],[Post-16 Post School (excl. specialist Post 16 institutions) 19-25]] -> 0 | Q54: =Table24[[#This Row],[Total Pre-16 (excl. AP)]]+Table24[[#This Row],[Total Post 16 (excl. NMSS and specialist Post 16 institutions)]] -> 6 | R54: =IF(VLOOKUP(Table24[[#This Row],[Category]],$V$6:$W$37,2,FALSE)="Mainstream",Table24[[#This Row],[Post-16 Schools (excl. NMSS) 16-18]],0) -> 0 | S54: =IF(VLOOKUP(Table24[[#This Row],[Category]],$V$6:$W$37,2,FALSE)="Special",Table24[[#This Row],[Post-16 Schools (excl. NMSS) 16-18]],0) -> 0 | T54: =Table24[[#This Row],[Post-16 Post School (excl. specialist Post 16 institutions) 16-18]]+Table24[[#This Row],[Post-16 Post School (excl. specialist Post 16 institutions) 19-25]] -> 0
A55: ALEXANDRA INFANT SCHOOL | B55: 3052001 | C55: 125230 | D55: ACADEMY - MAINSTREAM | E55: South | F55: London | G55: Bromley | H55: 305 | I55: 18 | J55: 0 | K55: 0 | L55: =Table24[[#This Row],[Pre-16 SEN Units - 2014 to 2015]]+Table24[[#This Row],[Pre-16 Resourced Provision - 2014 to 2015]]+Table24[[#This Row],[Pre-16 SEN Places - 2014 to 2015]] -> 18 | M55: 0 | N55: 0 | O55: 0 | P55: =Table24[[#This Row],[Post-16 Schools (excl. NMSS) 16-18]]+Table24[[#This Row],[Post-16 Post School (excl. specialist Post 16 institutions) 16-18]]+Table24[[#This Row],[Post-16 Post School (excl. specialist Post 16 institutions) 19-25]] -> 0 | Q55: =Table24[[#This Row],[Total Pre-16 (excl. AP)]]+Table24[[#This Row],[Total Post 16 (excl. NMSS and specialist Post 16 institutions)]] -> 18 | R55: =IF(VLOOKUP(Table24[[#This Row],[Category]],$V$6:$W$37,2,FALSE)="Mainstream",Table24[[#This Row],[Post-16 Schools (excl. NMSS) 16-18]],0) -> 0 | S55: =IF(VLOOKUP(Table24[[#This Row],[Category]],$V$6:$W$37,2,FALSE)="Special",Table24[[#This Row],[Post-16 Schools (excl. NMSS) 16-18]],0) -> 0 | T55: =Table24[[#This Row],[Post-16 Post School (excl. specialist Post 16 institutions) 16-18]]+Table24[[#This Row],[Post-16 Post School (excl. specialist Post 16 institutions) 19-25]] -> 0
A56: ALEXANDRA NURSERY SCHOOL | B56: 3501002 | C56: 0 | D56: MAINTAINED SCHOOL - MAINSTREAM | E56: North | F56: North West | G56: Bolton | H56: 350 | I56: 0 | J56: 4 | K56: 0 | L56: =Table24[[#This Row],[Pre-16 SEN Units - 2014 to 2015]]+Table24[[#This Row],[Pre-16 Resourced Provision - 2014 to 2015]]+Table24[[#This Row],[Pre-16 SEN Places - 2014 to 2015]] -> 4 | M56: 0 | N56: 0 | O56: 0 | P56: =Table24[[#This Row],[Post-16 Schools (excl. NMSS) 16-18]]+Table24[[#This Row],[Post-16 Post School (excl. specialist Post 16 institutions) 16-18]]+Table24[[#This Row],[Post-16 Post School (excl. specialist Post 16 institutions) 19-25]] -> 0 | Q56: =Table24[[#This Row],[Total Pre-16 (excl. AP)]]+Table24[[#This Row],[Total Post 16 (excl. NMSS and specialist Post 16 institutions)]] -> 4 | R56: =IF(VLOOKUP(Table24[[#This Row],[Category]],$V$6:$W$37,2,FALSE)="Mainstream",Table24[[#This Row],[Post-16 Schools (excl. NMSS) 16-18]],0) -> 0 | S56: =IF(VLOOKUP(Table24[[#This Row],[Category]],$V$6:$W$37,2,FALSE)="Special",Table24[[#This Row],[Post-16 Schools (excl. NMSS) 16-18]],0) -> 0 | T56: =Table24[[#This Row],[Post-16 Post School (excl. specialist Post 16 institutions) 16-18]]+Table24[[#This Row],[Post-16 Post School (excl. specialist Post 16 institutions) 19-25]] -> 0
A57: ALEXANDRA PARK SCHOOL | B57: 3094036 | C57: 120567 | D57: ACADEMY - MAINSTREAM | E57: South | F57: London | G57: Haringey | H57: 309 | I57: 0 | J57: 0 | K57: 0 | L57: =Table24[[#This Row],[Pre-16 SEN Units - 2014 to 2015]]+Table24[[#This Row],[Pre-16 Resourced Provision - 2014 to 2015]]+Table24[[#This Row],[Pre-16 SEN Places - 2014 to 2015]] -> 0 | M57: 1 | N57: 0 | O57: 0 | P57: =Table24[[#This Row],[Post-16 Schools (excl. NMSS) 16-18]]+Table24[[#This Row],[Post-16 Post School (excl. specialist Post 16 institutions) 16-18]]+Table24[[#This Row],[Post-16 Post School (excl. specialist Post 16 institutions) 19-25]] -> 1 | Q57: =Table24[[#This Row],[Total Pre-16 (excl. AP)]]+Table24[[#This Row],[Total Post 16 (excl. NMSS and specialist Post 16 institutions)]] -> 1 | R57: =IF(VLOOKUP(Table24[[#This Row],[Category]],$V$6:$W$37,2,FALSE)="Mainstream",Table24[[#This Row],[Post-16 Schools (excl. NMSS) 16-18]],0) -> 1 | S57: =IF(VLOOKUP(Table24[[#This Row],[Category]],$V$6:$W$37,2,FALSE)="Special",Table24[[#This Row],[Post-16 Schools (excl. NMSS) 16-18]],0) -> 0 | T57: =Table24[[#This Row],[Post-16 Post School (excl. specialist Post 16 institutions) 16-18]]+Table24[[#This Row],[Post-16 Post School (excl. specialist Post 16 institutions) 19-25]] -> 0
A58: ALEXANDRA SCHOOL | B58: 3107004 | C58: 124171 | D58: ACADEMY - SPECIAL | E58: South | F58: London | G58: Harrow | H58: 310 | I58: 0 | J58: 0 | K58: 80 | L58: =Table24[[#This Row],[Pre-16 SEN Units - 2014 to 2015]]+Table24[[#This Row],[Pre-16 Resourced Provision - 2014 to 2015]]+Table24[[#This Row],[Pre-16 SEN Places - 2014 to 2015]] -> 80 | M58: 0 | N58: 0 | O58: 0 | P58: =Table24[[#This Row],[Post-16 Schools (excl. NMSS) 16-18]]+Table24[[#This Row],[Post-16 Post School (excl. specialist Post 16 institutions) 16-18]]+Table24[[#This Row],[Post-16 Post School (excl. specialist Post 16 institutions) 19-25]] -> 0 | Q58: =Table24[[#This Row],[Total Pre-16 (excl. AP)]]+Table24[[#This Row],[Total Post 16 (excl. NMSS and specialist Post 16 institutions)]] -> 80 | R58: =IF(VLOOKUP(Table24[[#This Row],[Category]],$V$6:$W$37,2,FALSE)="Mainstream",Table24[[#This Row],[Post-16 Schools (excl. NMSS) 16-18]],0) -> 0 | S58: =IF(VLOOKUP(Table24[[#This Row],[Category]],$V$6:$W$37,2,FALSE)="Special",Table24[[#This Row],[Post-16 Schools (excl. NMSS) 16-18]],0) -> 0 | T58: =Table24[[#This Row],[Post-16 Post School (excl. specialist Post 16 institutions) 16-18]]+Table24[[#This Row],[Post-16 Post School (excl. specialist Post 16 institutions) 19-25]] -> 0
A59: ALFRETON GRANGE ARTS COLLEGE | B59: 8304001 | C59: 113137 | D59: MAINTAINED SCHOOL - MAINSTREAM | E59: CentralSW | F59: East Midlands | G59: Derbyshire | H59: 830 | I59: 0 | J59: 0 | K59: 0 | L59: =Table24[[#This Row],[Pre-16 SEN Units - 2014 to 2015]]+Table24[[#This Row],[Pre-16 Resourced Provision - 2014 to 2015]]+Table24[[#This Row],[Pre-16 SEN Places - 2014 to 2015]] -> 0 | M59: 1 | N59: 0 | O59: 0 | P59: =Table24[[#This Row],[Post-16 Schools (excl. NMSS) 16-18]]+Table24[[#This Row],[Post-16 Post School (excl. specialist Post 16 institutions) 16-18]]+Table24[[#This Row],[Post-16 Post School (excl. specialist Post 16 institutions) 19-25]] -> 1 | Q59: =Table24[[#This Row],[Total Pre-16 (excl. AP)]]+Table24[[#This Row],[Total Post 16 (excl. NMSS and specialist Post 16 institutions)]] -> 1 | R59: =IF(VLOOKUP(Table24[[#This Row],[Category]],$V$6:$W$37,2,FALSE)="Mainstream",Table24[[#This Row],[Post-16 Schools (excl. NMSS) 16-18]],0) -> 1 | S59: =IF(VLOOKUP(Table24[[#This Row],[Category]],$V$6:$W$37,2,FALSE)="Special",Table24[[#This Row],[Post-16 Schools (excl. NMSS) 16-18]],0) -> 0 | T59: =Table24[[#This Row],[Post-16 Post School (excl. specialist Post 16 institutions) 16-18]]+Table24[[#This Row],[Post-16 Post School (excl. specialist Post 16 institutions) 19-25]] -> 0
A60: ALFRETON PARK COMMUNITY SPECIAL SCHOOL | B60: 8307018 | C60: 123740 | D60: MAINTAINED SPECIAL SCHOOL | E60: CentralSW | F60: East Midlands | G60: Derbyshire | H60: 830 | I60: 0 | J60: 0 | K60: 61 | L60: =Table24[[#This Row],[Pre-16 SEN Units - 2014 to 2015]]+Table24[[#This Row],[Pre-16 Resourced Provision - 2014 to 2015]]+Table24[[#This Row],[Pre-16 SEN Places - 2014 to 2015]] -> 61 | M60: 17 | N60: 0 | O60: 0 | P60: =Table24[[#This Row],[Post-16 Schools (excl. NMSS) 16-18]]+Table24[[#This Row],[Post-16 Post School (excl. specialist Post 16 institutions) 16-18]]+Table24[[#This Row],[Post-16 Post School (excl. specialist Post 16 institutions) 19-25]] -> 17 | Q60: =Table24[[#This Row],[Total Pre-16 (excl. AP)]]+Table24[[#This Row],[Total Post 16 (excl. NMSS and specialist Post 16 institutions)]] -> 78 | R60: =IF(VLOOKUP(Table24[[#This Row],[Category]],$V$6:$W$37,2,FALSE)="Mainstream",Table24[[#This Row],[Post-16 Schools (excl. NMSS) 16-18]],0) -> 0 | S60: =IF(VLOOKUP(Table24[[#This Row],[Category]],$V$6:$W$37,2,FALSE)="Special",Table24[[#This Row],[Post-16 Schools (excl. NMSS) 16-18]],0) -> 17 | T60: =Table24[[#This Row],[Post-16 Post School (excl. specialist Post 16 institutions) 16-18]]+Table24[[#This Row],[Post-16 Post School (excl. specialist Post 16 institutions) 19-25]] -> 0
A61: ALFRISTON SCHOOL | B61: 8257003 | C61: 120753 | D61: ACADEMY - SPECIAL | E61: South | F61: South East | G61: Buckinghamshire | H61: 825 | I61: 0 | J61: 0 | K61: 114 | L61: =Table24[[#This Row],[Pre-16 SEN Units - 2014 to 2015]]+Table24[[#This Row],[Pre-16 Resourced Provision - 2014 to 2015]]+Table24[[#This Row],[Pre-16 SEN Places - 2014 to 2015]] -> 114 | M61: 24 | N61: 0 | O61: 0 | P61: =Table24[[#This Row],[Post-16 Schools (excl. NMSS) 16-18]]+Table24[[#This Row],[Post-16 Post School (excl. specialist Post 16 institutions) 16-18]]+Table24[[#This Row],[Post-16 Post School (excl. specialist Post 16 institutions) 19-25]] -> 24 | Q61: =Table24[[#This Row],[Total Pre-16 (excl. AP)]]+Table24[[#This Row],[Total Post 16 (excl. NMSS and specialist Post 16 institutions)]] -> 138 | R61: =IF(VLOOKUP(Table24[[#This Row],[Category]],$V$6:$W$37,2,FALSE)="Mainstream",Table24[[#This Row],[Post-16 Schools (excl. NMSS) 16-18]],0) -> 0 | S61: =IF(VLOOKUP(Table24[[#This Row],[Category]],$V$6:$W$37,2,FALSE)="Special",Table24[[#This Row],[Post-16 Schools (excl. NMSS) 16-18]],0) -> 24 | T61: =Table24[[#This Row],[Post-16 Post School (excl. specialist Post 16 institutions) 16-18]]+Table24[[#This Row],[Post-16 Post School (excl. specialist Post 16 institutions) 19-25]] -> 0
A62: ALICE STEVENS SCHOOL | B62: 3317004 | C62: 123556 | D62: MAINTAINED SPECIAL SCHOOL | E62: CentralSW | F62: West Midlands | G62: Coventry | H62: 331 | I62: 0 | J62: 0 | K62: 140 | L62: =Table24[[#This Row],[Pre-16 SEN Units - 2014 to 2015]]+Table24[[#This Row],[Pre-16 Resourced Provision - 2014 to 2015]]+Table24[[#This Row],[Pre-16 SEN Places - 2014 to 2015]] -> 140 | M62: 20 | N62: 0 | O62: 0 | P62: =Table24[[#This Row],[Post-16 Schools (excl. NMSS) 16-18]]+Table24[[#This Row],[Post-16 Post School (excl. specialist Post 16 institutions) 16-18]]+Table24[[#This Row],[Post-16 Post School (excl. specialist Post 16 institutions) 19-25]] -> 20 | Q62: =Table24[[#This Row],[Total Pre-16 (excl. AP)]]+Table24[[#This Row],[Total Post 16 (excl. NMSS and specialist Post 16 institutions)]] -> 160 | R62: =IF(VLOOKUP(Table24[[#This Row],[Category]],$V$6:$W$37,2,FALSE)="Mainstream",Table24[[#This Row],[Post-16 Schools (excl. NMSS) 16-18]],0) -> 0 | S62: =IF(VLOOKUP(Table24[[#This Row],[Category]],$V$6:$W$37,2,FALSE)="Special",Table24[[#This Row],[Post-16 Schools (excl. NMSS) 16-18]],0) -> 20 | T62: =Table24[[#This Row],[Post-16 Post School (excl. specialist Post 16 institutions) 16-18]]+Table24[[#This Row],[Post-16 Post School (excl. specialist Post 16 institutions) 19-25]] -> 0
A63: ALL FAITHS' CHILDREN'S COMMUNITY SCHOOL | B63: 8872600 | C63: 121000 | D63: ACADEMY - MAINSTREAM | E63: South | F63: South East | G63: Medway | H63: 887 | I63: 0 | J63: 34 | K63: 0 | L63: =Table24[[#This Row],[Pre-16 SEN Units - 2014 to 2015]]+Table24[[#This Row],[Pre-16 Resourced Provision - 2014 to 2015]]+Table24[[#This Row],[Pre-16 SEN Places - 2014 to 2015]] -> 34 | M63: 0 | N63: 0 | O63: 0 | P63: =Table24[[#This Row],[Post-16 Schools (excl. NMSS) 16-18]]+Table24[[#This Row],[Post-16 Post School (excl. specialist Post 16 institutions) 16-18]]+Table24[[#This Row],[Post-16 Post School (excl. specialist Post 16 institutions) 19-25]] -> 0 | Q63: =Table24[[#This Row],[Total Pre-16 (excl. AP)]]+Table24[[#This Row],[Total Post 16 (excl. NMSS and specialist Post 16 institutions)]] -> 34 | R63: =IF(VLOOKUP(Table24[[#This Row],[Category]],$V$6:$W$37,2,FALSE)="Mainstream",Table24[[#This Row],[Post-16 Schools (excl. NMSS) 16-18]],0) -> 0 | S63: =IF(VLOOKUP(Table24[[#This Row],[Category]],$V$6:$W$37,2,FALSE)="Special",Table24[[#This Row],[Post-16 Schools (excl. NMSS) 16-18]],0) -> 0 | T63: =Table24[[#This Row],[Post-16 Post School (excl. specialist Post 16 institutions) 16-18]]+Table24[[#This Row],[Post-16 Post School (excl. specialist Post 16 institutions) 19-25]] -> 0
A64: ALL HALLOWS CATHOLIC COLLEGE | B64: 8954801 | C64: 123111 | D64: ACADEMY - MAINSTREAM | E64: North | F64: North West | G64: Cheshire East | H64: 895 | I64: 0 | J64: 0 | K64: 0 | L64: =Table24[[#This Row],[Pre-16 SEN Units - 2014 to 2015]]+Table24[[#This Row],[Pre-16 Resourced Provision - 2014 to 2015]]+Table24[[#This Row],[Pre-16 SEN Places - 2014 to 2015]] -> 0 | M64: 2 | N64: 0 | O64: 0 | P64: =Table24[[#This Row],[Post-16 Schools (excl. NMSS) 16-18]]+Table24[[#This Row],[Post-16 Post School (excl. specialist Post 16 institutions) 16-18]]+Table24[[#This Row],[Post-16 Post School (excl. specialist Post 16 institutions) 19-25]] -> 2 | Q64: =Table24[[#This Row],[Total Pre-16 (excl. AP)]]+Table24[[#This Row],[Total Post 16 (excl. NMSS and specialist Post 16 institutions)]] -> 2 | R64: =IF(VLOOKUP(Table24[[#This Row],[Category]],$V$6:$W$37,2,FALSE)="Mainstream",Table24[[#This Row],[Post-16 Schools (excl. NMSS) 16-18]],0) -> 2 | S64: =IF(VLOOKUP(Table24[[#This Row],[Category]],$V$6:$W$37,2,FALSE)="Special",Table24[[#This Row],[Post-16 Schools (excl. NMSS) 16-18]],0) -> 0 | T64: =Table24[[#This Row],[Post-16 Post School (excl. specialist Post 16 institutions) 16-18]]+Table24[[#This Row],[Post-16 Post School (excl. specialist Post 16 institutions) 19-25]] -> 0
A65: ALL HALLOWS CATHOLIC SCHOOL | B65: 9365415 | C65: 113315 | D65: MAINTAINED SCHOOL - MAINSTREAM | E65: South | F65: South East | G65: Surrey | H65: 936 | I65: 0 | J65: 0 | K65: 0 | L65: =Table24[[#This Row],[Pre-16 SEN Units - 2014 to 2015]]+Table24[[#This Row],[Pre-16 Resourced Provision - 2014 to 2015]]+Table24[[#This Row],[Pre-16 SEN Places - 2014 to 2015]] -> 0 | M65: 1 | N65: 0 | O65: 0 | P65: =Table24[[#This Row],[Post-16 Schools (excl. NMSS) 16-18]]+Table24[[#This Row],[Post-16 Post School (excl. specialist Post 16 institutions) 16-18]]+Table24[[#This Row],[Post-16 Post School (excl. specialist Post 16 institutions) 19-25]] -> 1 | Q65: =Table24[[#This Row],[Total Pre-16 (excl. AP)]]+Table24[[#This Row],[Total Post 16 (excl. NMSS and specialist Post 16 institutions)]] -> 1 | R65: =IF(VLOOKUP(Table24[[#This Row],[Category]],$V$6:$W$37,2,FALSE)="Mainstream",Table24[[#This Row],[Post-16 Schools (excl. NMSS) 16-18]],0) -> 1 | S65: =IF(VLOOKUP(Table24[[#This Row],[Category]],$V$6:$W$37,2,FALSE)="Special",Table24[[#This Row],[Post-16 Schools (excl. NMSS) 16-18]],0) -> 0 | T65: =Table24[[#This Row],[Post-16 Post School (excl. specialist Post 16 institutions) 16-18]]+Table24[[#This Row],[Post-16 Post School (excl. specialist Post 16 institutions) 19-25]] -> 0
A66: ALL HALLOWS RC BUSINESS AND ENTERPRISE COLLEGE | B66: 3554620 | C66: 0 | D66: MAINTAINED SCHOOL - MAINSTREAM | E66: North | F66: North West | G66: Salford | H66: 355 | I66: 0 | J66: 0 | K66: 2 | L66: =Table24[[#This Row],[Pre-16 SEN Units - 2014 to 2015]]+Table24[[#This Row],[Pre-16 Resourced Provision - 2014 to 2015]]+Table24[[#This Row],[Pre-16 SEN Places - 2014 to 2015]] -> 2 | M66: 0 | N66: 0 | O66: 0 | P66: =Table24[[#This Row],[Post-16 Schools (excl. NMSS) 16-18]]+Table24[[#This Row],[Post-16 Post School (excl. specialist Post 16 institutions) 16-18]]+Table24[[#This Row],[Post-16 Post School (excl. specialist Post 16 institutions) 19-25]] -> 0 | Q66: =Table24[[#This Row],[Total Pre-16 (excl. AP)]]+Table24[[#This Row],[Total Post 16 (excl. NMSS and specialist Post 16 institutions)]] -> 2 | R66: =IF(VLOOKUP(Table24[[#This Row],[Category]],$V$6:$W$37,2,FALSE)="Mainstream",Table24[[#This Row],[Post-16 Schools (excl. NMSS) 16-18]],0) -> 0 | S66: =IF(VLOOKUP(Table24[[#This Row],[Category]],$V$6:$W$37,2,FALSE)="Special",Table24[[#This Row],[Post-16 Schools (excl. NMSS) 16-18]],0) -> 0 | T66: =Table24[[#This Row],[Post-16 Post School (excl. specialist Post 16 institutions) 16-18]]+Table24[[#This Row],[Post-16 Post School (excl. specialist Post 16 institutions) 19-25]] -> 0
A67: ALL SAINTS CATHOLIC COLLEGE | B67: 3574604 | C67: 124644 | D67: ACADEMY - MAINSTREAM | E67: North | F67: North West | G67: Tameside | H67: 357 | I67: 0 | J67: 0 | K67: 0 | L67: =Table24[[#This Row],[Pre-16 SEN Units - 2014 to 2015]]+Table24[[#This Row],[Pre-16 Resourced Provision - 2014 to 2015]]+Table24[[#This Row],[Pre-16 SEN Places - 2014 to 2015]] -> 0 | M67: 2 | N67: 0 | O67: 0 | P67: =Table24[[#This Row],[Post-16 Schools (excl. NMSS) 16-18]]+Table24[[#This Row],[Post-16 Post School (excl. specialist Post 16 institutions) 16-18]]+Table24[[#This Row],[Post-16 Post School (excl. specialist Post 16 institutions) 19-25]] -> 2 | Q67: =Table24[[#This Row],[Total Pre-16 (excl. AP)]]+Table24[[#This Row],[Total Post 16 (excl. NMSS and specialist Post 16 institutions)]] -> 2 | R67: =IF(VLOOKUP(Table24[[#This Row],[Category]],$V$6:$W$37,2,FALSE)="Mainstream",Table24[[#This Row],[Post-16 Schools (excl. NMSS) 16-18]],0) -> 2 | S67: =IF(VLOOKUP(Table24[[#This Row],[Category]],$V$6:$W$37,2,FALSE)="Special",Table24[[#This Row],[Post-16 Schools (excl. NMSS) 16-18]],0) -> 0 | T67: =Table24[[#This Row],[Post-16 Post School (excl. specialist Post 16 institutions) 16-18]]+Table24[[#This Row],[Post-16 Post School (excl. specialist Post 16 institutions) 19-25]] -> 0
A68: ALL SAINTS' CATHOLIC HIGH SCHOOL | B68: 3735401 | C68: 121197 | D68: ACADEMY - MAINSTREAM | E68: North | F68: Yorkshire and the Humber | G68: Sheffield | H68: 373 | I68: 0 | J68: 6 | K68: 0 | L68: =Table24[[#This Row],[Pre-16 SEN Units - 2014 to 2015]]+Table24[[#This Row],[Pre-16 Resourced Provision - 2014 to 2015]]+Table24[[#This Row],[Pre-16 SEN Places - 2014 to 2015]] -> 6 | M68: 0 | N68: 0 | O68: 0 | P68: =Table24[[#This Row],[Post-16 Schools (excl. NMSS) 16-18]]+Table24[[#This Row],[Post-16 Post School (excl. specialist Post 16 institutions) 16-18]]+Table24[[#This Row],[Post-16 Post School (excl. specialist Post 16 institutions) 19-25]] -> 0 | Q68: =Table24[[#This Row],[Total Pre-16 (excl. AP)]]+Table24[[#This Row],[Total Post 16 (excl. NMSS and specialist Post 16 institutions)]] -> 6 | R68: =IF(VLOOKUP(Table24[[#This Row],[Category]],$V$6:$W$37,2,FALSE)="Mainstream",Table24[[#This Row],[Post-16 Schools (excl. NMSS) 16-18]],0) -> 0 | S68: =IF(VLOOKUP(Table24[[#This Row],[Category]],$V$6:$W$37,2,FALSE)="Special",Table24[[#This Row],[Post-16 Schools (excl. NMSS) 16-18]],0) -> 0 | T68: =Table24[[#This Row],[Post-16 Post School (excl. specialist Post 16 institutions) 16-18]]+Table24[[#This Row],[Post-16 Post School (excl. specialist Post 16 institutions) 19-25]] -> 0
A69: ALL SAINTS CATHOLIC SCHOOL AND TECHNOLOGY COLLEGE | B69: 3014703 | C69: 114136 | D69: MAINTAINED SCHOOL - MAINSTREAM | E69: South | F69: London | G69: Barking and Dagenham | H69: 301 | I69: 0 | J69: 0 | K69: 0 | L69: =Table24[[#This Row],[Pre-16 SEN Units - 2014 to 2015]]+Table24[[#This Row],[Pre-16 Resourced Provision - 2014 to 2015]]+Table24[[#This Row],[Pre-16 SEN Places - 2014 to 2015]] -> 0 | M69: 2 | N69: 0 | O69: 0 | P69: =Table24[[#This Row],[Post-16 Schools (excl. NMSS) 16-18]]+Table24[[#This Row],[Post-16 Post School (excl. specialist Post 16 institutions) 16-18]]+Table24[[#This Row],[Post-16 Post School (excl. specialist Post 16 institutions) 19-25]] -> 2 | Q69: =Table24[[#This Row],[Total Pre-16 (excl. AP)]]+Table24[[#This Row],[Total Post 16 (excl. NMSS and specialist Post 16 institutions)]] -> 2 | R69: =IF(VLOOKUP(Table24[[#This Row],[Category]],$V$6:$W$37,2,FALSE)="Mainstream",Table24[[#This Row],[Post-16 Schools (excl. NMSS) 16-18]],0) -> 2 | S69: =IF(VLOOKUP(Table24[[#This Row],[Category]],$V$6:$W$37,2,FALSE)="Special",Table24[[#This Row],[Post-16 Schools (excl. NMSS) 16-18]],0) -> 0 | T69: =Table24[[#This Row],[Post-16 Post School (excl. specialist Post 16 institutions) 16-18]]+Table24[[#This Row],[Post-16 Post School (excl. specialist Post 16 institutions) 19-25]] -> 0
A70: ALL SAINTS' CATHOLIC VOLUNTARY AIDED PRIMARY SCHOOL | B70: 3412006 | C70: 0 | D70: MAINTAINED SCHOOL - MAINSTREAM | E70: North | F70: North West | G70: Liverpool | H70: 341 | I70: 0 | J70: 20 | K70: 0 | L70: =Table24[[#This Row],[Pre-16 SEN Units - 2014 to 2015]]+Table24[[#This Row],[Pre-16 Resourced Provision - 2014 to 2015]]+Table24[[#This Row],[Pre-16 SEN Places - 2014 to 2015]] -> 20 | M70: 0 | N70: 0 | O70: 0 | P70: =Table24[[#This Row],[Post-16 Schools (excl. NMSS) 16-18]]+Table24[[#This Row],[Post-16 Post School (excl. specialist Post 16 institutions) 16-18]]+Table24[[#This Row],[Post-16 Post School (excl. specialist Post 16 institutions) 19-25]] -> 0 | Q70: =Table24[[#This Row],[Total Pre-16 (excl. AP)]]+Table24[[#This Row],[Total Post 16 (excl. NMSS and specialist Post 16 institutions)]] -> 20 | R70: =IF(VLOOKUP(Table24[[#This Row],[Category]],$V$6:$W$37,2,FALSE)="Mainstream",Table24[[#This Row],[Post-16 Schools (excl. NMSS) 16-18]],0) -> 0 | S70: =IF(VLOOKUP(Table24[[#This Row],[Category]],$V$6:$W$37,2,FALSE)="Special",Table24[[#This Row],[Post-16 Schools (excl. NMSS) 16-18]],0) -> 0 | T70: =Table24[[#This Row],[Post-16 Post School (excl. specialist Post 16 institutions) 16-18]]+Table24[[#This Row],[Post-16 Post School (excl. specialist Post 16 institutions) 19-25]] -> 0
A71: ALL SAINTS CHURCH OF ENGLAND ACADEMY, PLYMOUTH | B71: 8796905 | C71: 119199 | D71: ACADEMY - MAINSTREAM | E71: CentralSW | F71: South West | G71: Plymouth | H71: 879 | I71: 0 | J71: 0 | K71: 0 | L71: =Table24[[#This Row],[Pre-16 SEN Units - 2014 to 2015]]+Table24[[#This Row],[Pre-16 Resourced Provision - 2014 to 2015]]+Table24[[#This Row],[Pre-16 SEN Places - 2014 to 2015]] -> 0 | M71: 1 | N71: 0 | O71: 0 | P71: =Table24[[#This Row],[Post-16 Schools (excl. NMSS) 16-18]]+Table24[[#This Row],[Post-16 Post School (excl. specialist Post 16 institutions) 16-18]]+Table24[[#This Row],[Post-16 Post School (excl. specialist Post 16 institutions) 19-25]] -> 1 | Q71: =Table24[[#This Row],[Total Pre-16 (excl. AP)]]+Table24[[#This Row],[Total Post 16 (excl. NMSS and specialist Post 16 institutions)]] -> 1 | R71: =IF(VLOOKUP(Table24[[#This Row],[Category]],$V$6:$W$37,2,FALSE)="Mainstream",Table24[[#This Row],[Post-16 Schools (excl. NMSS) 16-18]],0) -> 1 | S71: =IF(VLOOKUP(Table24[[#This Row],[Category]],$V$6:$W$37,2,FALSE)="Special",Table24[[#This Row],[Post-16 Schools (excl. NMSS) 16-18]],0) -> 0 | T71: =Table24[[#This Row],[Post-16 Post School (excl. specialist Post 16 institutions) 16-18]]+Table24[[#This Row],[Post-16 Post School (excl. specialist Post 16 institutions) 19-25]] -> 0
A72: ALL SAINTS' CHURCH OF ENGLAND SCHOOL, WEYMOUTH | B72: 8354801 | C72: 0 | D72: MAINTAINED SCHOOL - MAINSTREAM | E72: CentralSW | F72: South West | G72: Dorset | H72: 835 | I72: 0 | J72: 10 | K72: 0 | L72: =Table24[[#This Row],[Pre-16 SEN Units - 2014 to 2015]]+Table24[[#This Row],[Pre-16 Resourced Provision - 2014 to 2015]]+Table24[[#This Row],[Pre-16 SEN Places - 2014 to 2015]] -> 10 | M72: 0 | N72: 0 | O72: 0 | P72: =Table24[[#This Row],[Post-16 Schools (excl. NMSS) 16-18]]+Table24[[#This Row],[Post-16 Post School (excl. specialist Post 16 institutions) 16-18]]+Table24[[#This Row],[Post-16 Post School (excl. specialist Post 16 institutions) 19-25]] -> 0 | Q72: =Table24[[#This Row],[Total Pre-16 (excl. AP)]]+Table24[[#This Row],[Total Post 16 (excl. NMSS and specialist Post 16 institutions)]] -> 10 | R72: =IF(VLOOKUP(Table24[[#This Row],[Category]],$V$6:$W$37,2,FALSE)="Mainstream",Table24[[#This Row],[Post-16 Schools (excl. NMSS) 16-18]],0) -> 0 | S72: =IF(VLOOKUP(Table24[[#This Row],[Category]],$V$6:$W$37,2,FALSE)="Special",Table24[[#This Row],[Post-16 Schools (excl. NMSS) 16-18]],0) -> 0 | T72: =Table24[[#This Row],[Post-16 Post School (excl. specialist Post 16 institutions) 16-18]]+Table24[[#This Row],[Post-16 Post School (excl. specialist Post 16 institutions) 19-25]] -> 0
A73: ALL SAINTS COFE (AIDED) PRIMARY SCHOOL | B73: 8723372 | C73: 0 | D73: MAINTAINED SCHOOL - MAINSTREAM | E73: South | F73: South East | G73: Wokingham | H73: 872 | I73: 0 | J73: 14 | K73: 0 | L73: =Table24[[#This Row],[Pre-16 SEN Units - 2014 to 2015]]+Table24[[#This Row],[Pre-16 Resourced Provision - 2014 to 2015]]+Table24[[#This Row],[Pre-16 SEN Places - 2014 to 2015]] -> 14 | M73: 0 | N73: 0 | O73: 0 | P73: =Table24[[#This Row],[Post-16 Schools (excl. NMSS) 16-18]]+Table24[[#This Row],[Post-16 Post School (excl. specialist Post 16 institutions) 16-18]]+Table24[[#This Row],[Post-16 Post School (excl. specialist Post 16 institutions) 19-25]] -> 0 | Q73: =Table24[[#This Row],[Total Pre-16 (excl. AP)]]+Table24[[#This Row],[Total Post 16 (excl. NMSS and specialist Post 16 institutions)]] -> 14 | R73: =IF(VLOOKUP(Table24[[#This Row],[Category]],$V$6:$W$37,2,FALSE)="Mainstream",Table24[[#This Row],[Post-16 Schools (excl. NMSS) 16-18]],0) -> 0 | S73: =IF(VLOOKUP(Table24[[#This Row],[Category]],$V$6:$W$37,2,FALSE)="Special",Table24[[#This Row],[Post-16 Schools (excl. NMSS) 16-18]],0) -> 0 | T73: =Table24[[#This Row],[Post-16 Post School (excl. specialist Post 16 institutions) 16-18]]+Table24[[#This Row],[Post-16 Post School (excl. specialist Post 16 institutions) 19-25]] -> 0
A74: ALL SAINTS' COFE SCHOOL | B74: 9093102 | C74: 0 | D74: MAINTAINED SCHOOL - MAINSTREAM | E74: North | F74: North West | G74: Cumbria | H74: 909 | I74: 0 | J74: 20 | K74: 0 | L74: =Table24[[#This Row],[Pre-16 SEN Units - 2014 to 2015]]+Table24[[#This Row],[Pre-16 Resourced Provision - 2014 to 2015]]+Table24[[#This Row],[Pre-16 SEN Places - 2014 to 2015]] -> 20 | M74: 0 | N74: 0 | O74: 0 | P74: =Table24[[#This Row],[Post-16 Schools (excl. NMSS) 16-18]]+Table24[[#This Row],[Post-16 Post School (excl. specialist Post 16 institutions) 16-18]]+Table24[[#This Row],[Post-16 Post School (excl. specialist Post 16 institutions) 19-25]] -> 0 | Q74: =Table24[[#This Row],[Total Pre-16 (excl. AP)]]+Table24[[#This Row],[Total Post 16 (excl. NMSS and specialist Post 16 institutions)]] -> 20 | R74: =IF(VLOOKUP(Table24[[#This Row],[Category]],$V$6:$W$37,2,FALSE)="Mainstream",Table24[[#This Row],[Post-16 Schools (excl. NMSS) 16-18]],0) -> 0 | S74: =IF(VLOOKUP(Table24[[#This Row],[Category]],$V$6:$W$37,2,FALSE)="Special",Table24[[#This Row],[Post-16 Schools (excl. NMSS) 16-18]],0) -> 0 | T74: =Table24[[#This Row],[Post-16 Post School (excl. specialist Post 16 institutions) 16-18]]+Table24[[#This Row],[Post-16 Post School (excl. specialist Post 16 institutions) 19-25]] -> 0
A75: ALLEN EDWARDS PRIMARY SCHOOL | B75: 2082808 | C75: 500292 | D75: MAINTAINED SCHOOL - MAINSTREAM | E75: South | F75: London | G75: Lambeth | H75: 208 | I75: 3 | J75: 0 | K75: 0 | L75: =Table24[[#This Row],[Pre-16 SEN Units - 2014 to 2015]]+Table24[[#This Row],[Pre-16 Resourced Provision - 2014 to 2015]]+Table24[[#This Row],[Pre-16 SEN Places - 2014 to 2015]] -> 3 | M75: 0 | N75: 0 | O75: 0 | P75: =Table24[[#This Row],[Post-16 Schools (excl. NMSS) 16-18]]+Table24[[#This Row],[Post-16 Post School (excl. specialist Post 16 institutions) 16-18]]+Table24[[#This Row],[Post-16 Post School (excl. specialist Post 16 institutions) 19-25]] -> 0 | Q75: =Table24[[#This Row],[Total Pre-16 (excl. AP)]]+Table24[[#This Row],[Total Post 16 (excl. NMSS and specialist Post 16 institutions)]] -> 3 | R75: =IF(VLOOKUP(Table24[[#This Row],[Category]],$V$6:$W$37,2,FALSE)="Mainstream",Table24[[#This Row],[Post-16 Schools (excl. NMSS) 16-18]],0) -> 0 | S75: =IF(VLOOKUP(Table24[[#This Row],[Category]],$V$6:$W$37,2,FALSE)="Special",Table24[[#This Row],[Post-16 Schools (excl. NMSS) 16-18]],0) -> 0 | T75: =Table24[[#This Row],[Post-16 Post School (excl. specialist Post 16 institutions) 16-18]]+Table24[[#This Row],[Post-16 Post School (excl. specialist Post 16 institutions) 19-25]] -> 0
A76: ALLENBOURN MIDDLE SCHOOL | B76: 8354029 | C76: 0 | D76: MAINTAINED SCHOOL - MAINSTREAM | E76: CentralSW | F76: South West | G76: Dorset | H76: 835 | I76: 0 | J76: 10 | K76: 0 | L76: =Table24[[#This Row],[Pre-16 SEN Units - 2014 to 2015]]+Table24[[#This Row],[Pre-16 Resourced Provision - 2014 to 2015]]+Table24[[#This Row],[Pre-16 SEN Places - 2014 to 2015]] -> 10 | M76: 0 | N76: 0 | O76: 0 | P76: =Table24[[#This Row],[Post-16 Schools (excl. NMSS) 16-18]]+Table24[[#This Row],[Post-16 Post School (excl. specialist Post 16 institutions) 16-18]]+Table24[[#This Row],[Post-16 Post School (excl. specialist Post 16 institutions) 19-25]] -> 0 | Q76: =Table24[[#This Row],[Total Pre-16 (excl. AP)]]+Table24[[#This Row],[Total Post 16 (excl. NMSS and specialist Post 16 institutions)]] -> 10 | R76: =IF(VLOOKUP(Table24[[#This Row],[Category]],$V$6:$W$37,2,FALSE)="Mainstream",Table24[[#This Row],[Post-16 Schools (excl. NMSS) 16-18]],0) -> 0 | S76: =IF(VLOOKUP(Table24[[#This Row],[Category]],$V$6:$W$37,2,FALSE)="Special",Table24[[#This Row],[Post-16 Schools (excl. NMSS) 16-18]],0) -> 0 | T76: =Table24[[#This Row],[Post-16 Post School (excl. specialist Post 16 institutions) 16-18]]+Table24[[#This Row],[Post-16 Post School (excl. specialist Post 16 institutions) 19-25]] -> 0
A77: ALLENBY PRIMARY SCHOOL | B77: 3072161 | C77: 0 | D77: MAINTAINED SCHOOL - MAINSTREAM | E77: South | F77: London | G77: Ealing | H77: 307 | I77: 12 | J77: 0 | K77: 0 | L77: =Table24[[#This Row],[Pre-16 SEN Units - 2014 to 2015]]+Table24[[#This Row],[Pre-16 Resourced Provision - 2014 to 2015]]+Table24[[#This Row],[Pre-16 SEN Places - 2014 to 2015]] -> 12 | M77: 0 | N77: 0 | O77: 0 | P77: =Table24[[#This Row],[Post-16 Schools (excl. NMSS) 16-18]]+Table24[[#This Row],[Post-16 Post School (excl. specialist Post 16 institutions) 16-18]]+Table24[[#This Row],[Post-16 Post School (excl. specialist Post 16 institutions) 19-25]] -> 0 | Q77: =Table24[[#This Row],[Total Pre-16 (excl. AP)]]+Table24[[#This Row],[Total Post 16 (excl. NMSS and specialist Post 16 institutions)]] -> 12 | R77: =IF(VLOOKUP(Table24[[#This Row],[Category]],$V$6:$W$37,2,FALSE)="Mainstream",Table24[[#This Row],[Post-16 Schools (excl. NMSS) 16-18]],0) -> 0 | S77: =IF(VLOOKUP(Table24[[#This Row],[Category]],$V$6:$W$37,2,FALSE)="Special",Table24[[#This Row],[Post-16 Schools (excl. NMSS) 16-18]],0) -> 0 | T77: =Table24[[#This Row],[Post-16 Post School (excl. specialist Post 16 institutions) 16-18]]+Table24[[#This Row],[Post-16 Post School (excl. specialist Post 16 institutions) 19-25]] -> 0
A78: ALLERTON GRANGE SCHOOL | B78: 3834040 | C78: 114518 | D78: MAINTAINED SCHOOL - MAINSTREAM | E78: North | F78: Yorkshire and the Humber | G78: Leeds | H78: 383 | I78: 0 | J78: 12 | K78: 0 | L78: =Table24[[#This Row],[Pre-16 SEN Units - 2014 to 2015]]+Table24[[#This Row],[Pre-16 Resourced Provision - 2014 to 2015]]+Table24[[#This Row],[Pre-16 SEN Places - 2014 to 2015]] -> 12 | M78: 2 | N78: 0 | O78: 0 | P78: =Table24[[#This Row],[Post-16 Schools (excl. NMSS) 16-18]]+Table24[[#This Row],[Post-16 Post School (excl. specialist Post 16 institutions) 16-18]]+Table24[[#This Row],[Post-16 Post School (excl. specialist Post 16 institutions) 19-25]] -> 2 | Q78: =Table24[[#This Row],[Total Pre-16 (excl. AP)]]+Table24[[#This Row],[Total Post 16 (excl. NMSS and specialist Post 16 institutions)]] -> 14 | R78: =IF(VLOOKUP(Table24[[#This Row],[Category]],$V$6:$W$37,2,FALSE)="Mainstream",Table24[[#This Row],[Post-16 Schools (excl. NMSS) 16-18]],0) -> 2 | S78: =IF(VLOOKUP(Table24[[#This Row],[Category]],$V$6:$W$37,2,FALSE)="Special",Table24[[#This Row],[Post-16 Schools (excl. NMSS) 16-18]],0) -> 0 | T78: =Table24[[#This Row],[Post-16 Post School (excl. specialist Post 16 institutions) 16-18]]+Table24[[#This Row],[Post-16 Post School (excl. specialist Post 16 institutions) 19-25]] -> 0
A79: ALLERTON HIGH SCHOOL | B79: 3834032 | C79: 114519 | D79: MAINTAINED SCHOOL - MAINSTREAM | E79: North | F79: Yorkshire and the Humber | G79: Leeds | H79: 383 | I79: 0 | J79: 11 | K79: 0 | L79: =Table24[[#This Row],[Pre-16 SEN Units - 2014 to 2015]]+Table24[[#This Row],[Pre-16 Resourced Provision - 2014 to 2015]]+Table24[[#This Row],[Pre-16 SEN Places - 2014 to 2015]] -> 11 | M79: 2 | N79: 0 | O79: 0 | P79: =Table24[[#This Row],[Post-16 Schools (excl. NMSS) 16-18]]+Table24[[#This Row],[Post-16 Post School (excl. specialist Post 16 institutions) 16-18]]+Table24[[#This Row],[Post-16 Post School (excl. specialist Post 16 institutions) 19-25]] -> 2 | Q79: =Table24[[#This Row],[Total Pre-16 (excl. AP)]]+Table24[[#This Row],[Total Post 16 (excl. NMSS and specialist Post 16 institutions)]] -> 13 | R79: =IF(VLOOKUP(Table24[[#This Row],[Category]],$V$6:$W$37,2,FALSE)="Mainstream",Table24[[#This Row],[Post-16 Schools (excl. NMSS) 16-18]],0) -> 2 | S79: =IF(VLOOKUP(Table24[[#This Row],[Category]],$V$6:$W$37,2,FALSE)="Special",Table24[[#This Row],[Post-16 Schools (excl. NMSS) 16-18]],0) -> 0 | T79: =Table24[[#This Row],[Post-16 Post School (excl. specialist Post 16 institutions) 16-18]]+Table24[[#This Row],[Post-16 Post School (excl. specialist Post 16 institutions) 19-25]] -> 0
A80: ALLESTREE WOODLANDS SCHOOL | B80: 8315414 | C80: 121014 | D80: ACADEMY - MAINSTREAM | E80: CentralSW | F80: East Midlands | G80: Derby | H80: 831 | I80: 0 | J80: 14 | K80: 0 | L80: =Table24[[#This Row],[Pre-16 SEN Units - 2014 to 2015]]+Table24[[#This Row],[Pre-16 Resourced Provision - 2014 to 2015]]+Table24[[#This Row],[Pre-16 SEN Places - 2014 to 2015]] -> 14 | M80: 0 | N80: 0 | O80: 0 | P80: =Table24[[#This Row],[Post-16 Schools (excl. NMSS) 16-18]]+Table24[[#This Row],[Post-16 Post School (excl. specialist Post 16 institutions) 16-18]]+Table24[[#This Row],[Post-16 Post School (excl. specialist Post 16 institutions) 19-25]] -> 0 | Q80: =Table24[[#This Row],[Total Pre-16 (excl. AP)]]+Table24[[#This Row],[Total Post 16 (excl. NMSS and specialist Post 16 institutions)]] -> 14 | R80: =IF(VLOOKUP(Table24[[#This Row],[Category]],$V$6:$W$37,2,FALSE)="Mainstream",Table24[[#This Row],[Post-16 Schools (excl. NMSS) 16-18]],0) -> 0 | S80: =IF(VLOOKUP(Table24[[#This Row],[Category]],$V$6:$W$37,2,FALSE)="Special",Table24[[#This Row],[Post-16 Schools (excl. NMSS) 16-18]],0) -> 0 | T80: =Table24[[#This Row],[Post-16 Post School (excl. specialist Post 16 institutions) 16-18]]+Table24[[#This Row],[Post-16 Post School (excl. specialist Post 16 institutions) 19-25]] -> 0
A81: ALLEYNE'S ACADEMY | B81: 8604112 | C81: 123084 | D81: ACADEMY - MAINSTREAM | E81: CentralSW | F81: West Midlands | G81: Staffordshire | H81: 860 | I81: 0 | J81: 0 | K81: 0 | L81: =Table24[[#This Row],[Pre-16 SEN Units - 2014 to 2015]]+Table24[[#This Row],[Pre-16 Resourced Provision - 2014 to 2015]]+Table24[[#This Row],[Pre-16 SEN Places - 2014 to 2015]] -> 0 | M81: 1 | N81: 0 | O81: 0 | P81: =Table24[[#This Row],[Post-16 Schools (excl. NMSS) 16-18]]+Table24[[#This Row],[Post-16 Post School (excl. specialist Post 16 institutions) 16-18]]+Table24[[#This Row],[Post-16 Post School (excl. specialist Post 16 institutions) 19-25]] -> 1 | Q81: =Table24[[#This Row],[Total Pre-16 (excl. AP)]]+Table24[[#This Row],[Total Post 16 (excl. NMSS and specialist Post 16 institutions)]] -> 1 | R81: =IF(VLOOKUP(Table24[[#This Row],[Category]],$V$6:$W$37,2,FALSE)="Mainstream",Table24[[#This Row],[Post-16 Schools (excl. NMSS) 16-18]],0) -> 1 | S81: =IF(VLOOKUP(Table24[[#This Row],[Category]],$V$6:$W$37,2,FALSE)="Special",Table24[[#This Row],[Post-16 Schools (excl. NMSS) 16-18]],0) -> 0 | T81: =Table24[[#This Row],[Post-16 Post School (excl. specialist Post 16 institutions) 16-18]]+Table24[[#This Row],[Post-16 Post School (excl. specialist Post 16 institutions) 19-25]] -> 0
A82: ALMA PARK PRIMARY SCHOOL | B82: 3522006 | C82: 0 | D82: MAINTAINED SCHOOL - MAINSTREAM | E82: North | F82: North West | G82: Manchester | H82: 352 | I82: 0 | J82: 10 | K82: 0 | L82: =Table24[[#This Row],[Pre-16 SEN Units - 2014 to 2015]]+Table24[[#This Row],[Pre-16 Resourced Provision - 2014 to 2015]]+Table24[[#This Row],[Pre-16 SEN Places - 2014 to 2015]] -> 10 | M82: 0 | N82: 0 | O82: 0 | P82: =Table24[[#This Row],[Post-16 Schools (excl. NMSS) 16-18]]+Table24[[#This Row],[Post-16 Post School (excl. specialist Post 16 institutions) 16-18]]+Table24[[#This Row],[Post-16 Post School (excl. specialist Post 16 institutions) 19-25]] -> 0 | Q82: =Table24[[#This Row],[Total Pre-16 (excl. AP)]]+Table24[[#This Row],[Total Post 16 (excl. NMSS and specialist Post 16 institutions)]] -> 10 | R82: =IF(VLOOKUP(Table24[[#This Row],[Category]],$V$6:$W$37,2,FALSE)="Mainstream",Table24[[#This Row],[Post-16 Schools (excl. NMSS) 16-18]],0) -> 0 | S82: =IF(VLOOKUP(Table24[[#This Row],[Category]],$V$6:$W$37,2,FALSE)="Special",Table24[[#This Row],[Post-16 Schools (excl. NMSS) 16-18]],0) -> 0 | T82: =Table24[[#This Row],[Post-16 Post School (excl. specialist Post 16 institutions) 16-18]]+Table24[[#This Row],[Post-16 Post School (excl. specialist Post 16 institutions) 19-25]] -> 0
A83: ALPERTON COMMUNITY SCHOOL | B83: 3045405 | C83: 122325 | D83: ACADEMY - MAINSTREAM | E83: South | F83: London | G83: Brent | H83: 304 | I83: 0 | J83: 16 | K83: 0 | L83: =Table24[[#This Row],[Pre-16 SEN Units - 2014 to 2015]]+Table24[[#This Row],[Pre-16 Resourced Provision - 2014 to 2015]]+Table24[[#This Row],[Pre-16 SEN Places - 2014 to 2015]] -> 16 | M83: 6 | N83: 0 | O83: 0 | P83: =Table24[[#This Row],[Post-16 Schools (excl. NMSS) 16-18]]+Table24[[#This Row],[Post-16 Post School (excl. specialist Post 16 institutions) 16-18]]+Table24[[#This Row],[Post-16 Post School (excl. specialist Post 16 institutions) 19-25]] -> 6 | Q83: =Table24[[#This Row],[Total Pre-16 (excl. AP)]]+Table24[[#This Row],[Total Post 16 (excl. NMSS and specialist Post 16 institutions)]] -> 22 | R83: =IF(VLOOKUP(Table24[[#This Row],[Category]],$V$6:$W$37,2,FALSE)="Mainstream",Table24[[#This Row],[Post-16 Schools (excl. NMSS) 16-18]],0) -> 6 | S83: =IF(VLOOKUP(Table24[[#This Row],[Category]],$V$6:$W$37,2,FALSE)="Special",Table24[[#This Row],[Post-16 Schools (excl. NMSS) 16-18]],0) -> 0 | T83: =Table24[[#This Row],[Post-16 Post School (excl. specialist Post 16 institutions) 16-18]]+Table24[[#This Row],[Post-16 Post School (excl. specialist Post 16 institutions) 19-25]] -> 0
A84: ALSAGER SCHOOL | B84: 8954121 | C84: 124251 | D84: ACADEMY - MAINSTREAM | E84: North | F84: North West | G84: Cheshire East | H84: 895 | I84: 0 | J84: 0 | K84: 0 | L84: =Table24[[#This Row],[Pre-16 SEN Units - 2014 to 2015]]+Table24[[#This Row],[Pre-16 Resourced Provision - 2014 to 2015]]+Table24[[#This Row],[Pre-16 SEN Places - 2014 to 2015]] -> 0 | M84: 1 | N84: 0 | O84: 0 | P84: =Table24[[#This Row],[Post-16 Schools (excl. NMSS) 16-18]]+Table24[[#This Row],[Post-16 Post School (excl. specialist Post 16 institutions) 16-18]]+Table24[[#This Row],[Post-16 Post School (excl. specialist Post 16 institutions) 19-25]] -> 1 | Q84: =Table24[[#This Row],[Total Pre-16 (excl. AP)]]+Table24[[#This Row],[Total Post 16 (excl. NMSS and specialist Post 16 institutions)]] -> 1 | R84: =IF(VLOOKUP(Table24[[#This Row],[Category]],$V$6:$W$37,2,FALSE)="Mainstream",Table24[[#This Row],[Post-16 Schools (excl. NMSS) 16-18]],0) -> 1 | S84: =IF(VLOOKUP(Table24[[#This Row],[Category]],$V$6:$W$37,2,FALSE)="Special",Table24[[#This Row],[Post-16 Schools (excl. NMSS) 16-18]],0) -> 0 | T84: =Table24[[#This Row],[Post-16 Post School (excl. specialist Post 16 institutions) 16-18]]+Table24[[#This Row],[Post-16 Post School (excl. specialist Post 16 institutions) 19-25]] -> 0
A85: ALSOP HIGH SCHOOL TECHNOLOGY & APPLIED LEARNING SPECIALIST COLLEGE | B85: 3414421 | C85: 113460 | D85: MAINTAINED SCHOOL - MAINSTREAM | E85: North | F85: North West | G85: Liverpool | H85: 341 | I85: 0 | J85: 5 | K85: 0 | L85: =Table24[[#This Row],[Pre-16 SEN Units - 2014 to 2015]]+Table24[[#This Row],[Pre-16 Resourced Provision - 2014 to 2015]]+Table24[[#This Row],[Pre-16 SEN Places - 2014 to 2015]] -> 5 | M85: 3 | N85: 0 | O85: 0 | P85: =Table24[[#This Row],[Post-16 Schools (excl. NMSS) 16-18]]+Table24[[#This Row],[Post-16 Post School (excl. specialist Post 16 institutions) 16-18]]+Table24[[#This Row],[Post-16 Post School (excl. specialist Post 16 institutions) 19-25]] -> 3 | Q85: =Table24[[#This Row],[Total Pre-16 (excl. AP)]]+Table24[[#This Row],[Total Post 16 (excl. NMSS and specialist Post 16 institutions)]] -> 8 | R85: =IF(VLOOKUP(Table24[[#This Row],[Category]],$V$6:$W$37,2,FALSE)="Mainstream",Table24[[#This Row],[Post-16 Schools (excl. NMSS) 16-18]],0) -> 3 | S85: =IF(VLOOKUP(Table24[[#This Row],[Category]],$V$6:$W$37,2,FALSE)="Special",Table24[[#This Row],[Post-16 Schools (excl. NMSS) 16-18]],0) -> 0 | T85: =Table24[[#This Row],[Post-16 Post School (excl. specialist Post 16 institutions) 16-18]]+Table24[[#This Row],[Post-16 Post School (excl. specialist Post 16 institutions) 19-25]] -> 0
A86: ALT BRIDGE SECONDARY SUPPORT CENTRE | B86: 3407013 | C86: 123498 | D86: MAINTAINED SPECIAL SCHOOL | E86: North | F86: North West | G86: Knowsley | H86: 340 | I86: 0 | J86: 0 | K86: 101 | L86: =Table24[[#This Row],[Pre-16 SEN Units - 2014 to 2015]]+Table24[[#This Row],[Pre-16 Resourced Provision - 2014 to 2015]]+Table24[[#This Row],[Pre-16 SEN Places - 2014 to 2015]] -> 101 | M86: 0 | N86: 0 | O86: 0 | P86: =Table24[[#This Row],[Post-16 Schools (excl. NMSS) 16-18]]+Table24[[#This Row],[Post-16 Post School (excl. specialist Post 16 institutions) 16-18]]+Table24[[#This Row],[Post-16 Post School (excl. specialist Post 16 institutions) 19-25]] -> 0 | Q86: =Table24[[#This Row],[Total Pre-16 (excl. AP)]]+Table24[[#This Row],[Total Post 16 (excl. NMSS and specialist Post 16 institutions)]] -> 101 | R86: =IF(VLOOKUP(Table24[[#This Row],[Category]],$V$6:$W$37,2,FALSE)="Mainstream",Table24[[#This Row],[Post-16 Schools (excl. NMSS) 16-18]],0) -> 0 | S86: =IF(VLOOKUP(Table24[[#This Row],[Category]],$V$6:$W$37,2,FALSE)="Special",Table24[[#This Row],[Post-16 Schools (excl. NMSS) 16-18]],0) -> 0 | T86: =Table24[[#This Row],[Post-16 Post School (excl. specialist Post 16 institutions) 16-18]]+Table24[[#This Row],[Post-16 Post School (excl. specialist Post 16 institutions) 19-25]] -> 0
A87: ALTERNATIVE CURRICULUM 14-19 | B87: 8691111 | C87: 0 | D87: MAINTAINED ALTERNATIVE PROVISION (AP) - PRU | E87: South | F87: South East | G87: West Berkshire | H87: 869 | I87: 0 | J87: 0 | K87: 0 | L87: =Table24[[#This Row],[Pre-16 SEN Units - 2014 to 2015]]+Table24[[#This Row],[Pre-16 Resourced Provision - 2014 to 2015]]+Table24[[#This Row],[Pre-16 SEN Places - 2014 to 2015]] -> 0 | M87: 0 | N87: 0 | O87: 0 | P87: =Table24[[#This Row],[Post-16 Schools (excl. NMSS) 16-18]]+Table24[[#This Row],[Post-16 Post School (excl. specialist Post 16 institutions) 16-18]]+Table24[[#This Row],[Post-16 Post School (excl. specialist Post 16 institutions) 19-25]] -> 0 | Q87: =Table24[[#This Row],[Total Pre-16 (excl. AP)]]+Table24[[#This Row],[Total Post 16 (excl. NMSS and specialist Post 16 institutions)]] -> 0 | R87: =IF(VLOOKUP(Table24[[#This Row],[Category]],$V$6:$W$37,2,FALSE)="Mainstream",Table24[[#This Row],[Post-16 Schools (excl. NMSS) 16-18]],0) -> 0 | S87: =IF(VLOOKUP(Table24[[#This Row],[Category]],$V$6:$W$37,2,FALSE)="Special",Table24[[#This Row],[Post-16 Schools (excl. NMSS) 16-18]],0) -> 0 | T87: =Table24[[#This Row],[Post-16 Post School (excl. specialist Post 16 institutions) 16-18]]+Table24[[#This Row],[Post-16 Post School (excl. specialist Post 16 institutions) 19-25]] -> 0
A88: ALTERNATIVE EDUCATION SERVICE - THE BEACON CENTRE | B88: 3931100 | C88: 0 | D88: MAINTAINED ALTERNATIVE PROVISION (AP) - PRU | E88: North | F88: North East | G88: South Tyneside | H88: 393 | I88: 0 | J88: 0 | K88: 0 | L88: =Table24[[#This Row],[Pre-16 SEN Units - 2014 to 2015]]+Table24[[#This Row],[Pre-16 Resourced Provision - 2014 to 2015]]+Table24[[#This Row],[Pre-16 SEN Places - 2014 to 2015]] -> 0 | M88: 0 | N88: 0 | O88: 0 | P88: =Table24[[#This Row],[Post-16 Schools (excl. NMSS) 16-18]]+Table24[[#This Row],[Post-16 Post School (excl. specialist Post 16 institutions) 16-18]]+Table24[[#This Row],[Post-16 Post School (excl. specialist Post 16 institutions) 19-25]] -> 0 | Q88: =Table24[[#This Row],[Total Pre-16 (excl. AP)]]+Table24[[#This Row],[Total Post 16 (excl. NMSS and specialist Post 16 institutions)]] -> 0 | R88: =IF(VLOOKUP(Table24[[#This Row],[Category]],$V$6:$W$37,2,FALSE)="Mainstream",Table24[[#This Row],[Post-16 Schools (excl. NMSS) 16-18]],0) -> 0 | S88: =IF(VLOOKUP(Table24[[#This Row],[Category]],$V$6:$W$37,2,FALSE)="Special",Table24[[#This Row],[Post-16 Schools (excl. NMSS) 16-18]],0) -> 0 | T88: =Table24[[#This Row],[Post-16 Post School (excl. specialist Post 16 institutions) 16-18]]+Table24[[#This Row],[Post-16 Post School (excl. specialist Post 16 institutions) 19-25]] -> 0
A89: Alternative Provision | B89: 333X001 | C89: 0 | D89: HNT Funded - Pre-16 Alternate Provision | E89: CentralSW | F89: West Midlands | G89: Sandwell | H89: 333 | I89: 0 | J89: 0 | K89: 0 | L89: =Table24[[#This Row],[Pre-16 SEN Units - 2014 to 2015]]+Table24[[#This Row],[Pre-16 Resourced Provision - 2014 to 2015]]+Table24[[#This Row],[Pre-16 SEN Places - 2014 to 2015]] -> 0 | M89: 0 | N89: 0 | O89: 0 | P89: =Table24[[#This Row],[Post-16 Schools (excl. NMSS) 16-18]]+Table24[[#This Row],[Post-16 Post School (excl. specialist Post 16 institutions) 16-18]]+Table24[[#This Row],[Post-16 Post School (excl. specialist Post 16 institutions) 19-25]] -> 0 | Q89: =Table24[[#This Row],[Total Pre-16 (excl. AP)]]+Table24[[#This Row],[Total Post 16 (excl. NMSS and specialist Post 16 institutions)]] -> 0 | R89: =IF(VLOOKUP(Table24[[#This Row],[Category]],$V$6:$W$37,2,FALSE)="Mainstream",Table24[[#This Row],[Post-16 Schools (excl. NMSS) 16-18]],0) -> 0 | S89: =IF(VLOOKUP(Table24[[#This Row],[Category]],$V$6:$W$37,2,FALSE)="Special",Table24[[#This Row],[Post-16 Schools (excl. NMSS) 16-18]],0) -> 0 | T89: =Table24[[#This Row],[Post-16 Post School (excl. specialist Post 16 institutions) 16-18]]+Table24[[#This Row],[Post-16 Post School (excl. specialist Post 16 institutions) 19-25]] -> 0
A90: Alternative Provision | B90: 320X001 | C90: 0 | D90: HNT Funded - Pre-16 Alternate Provision | E90: South | F90: London | G90: Waltham Forest | H90: 320 | I90: 0 | J90: 0 | K90: 0 | L90: =Table24[[#This Row],[Pre-16 SEN Units - 2014 to 2015]]+Table24[[#This Row],[Pre-16 Resourced Provision - 2014 to 2015]]+Table24[[#This Row],[Pre-16 SEN Places - 2014 to 2015]] -> 0 | M90: 0 | N90: 0 | O90: 0 | P90: =Table24[[#This Row],[Post-16 Schools (excl. NMSS) 16-18]]+Table24[[#This Row],[Post-16 Post School (excl. specialist Post 16 institutions) 16-18]]+Table24[[#This Row],[Post-16 Post School (excl. specialist Post 16 institutions) 19-25]] -> 0 | Q90: =Table24[[#This Row],[Total Pre-16 (excl. AP)]]+Table24[[#This Row],[Total Post 16 (excl. NMSS and specialist Post 16 institutions)]] -> 0 | R90: =IF(VLOOKUP(Table24[[#This Row],[Category]],$V$6:$W$37,2,FALSE)="Mainstream",Table24[[#This Row],[Post-16 Schools (excl. NMSS) 16-18]],0) -> 0 | S90: =IF(VLOOKUP(Table24[[#This Row],[Category]],$V$6:$W$37,2,FALSE)="Special",Table24[[#This Row],[Post-16 Schools (excl. NMSS) 16-18]],0) -> 0 | T90: =Table24[[#This Row],[Post-16 Post School (excl. specialist Post 16 institutions) 16-18]]+Table24[[#This Row],[Post-16 Post School (excl. specialist Post 16 institutions) 19-25]] -> 0
A91: ALTERNATIVE PROVISION CENTRE | B91: 9331121 | C91: 0 | D91: MAINTAINED ALTERNATIVE PROVISION (AP) - PRU | E91: CentralSW | F91: South West | G91: Somerset | H91: 933 | I91: 0 | J91: 0 | K91: 0 | L91: =Table24[[#This Row],[Pre-16 SEN Units - 2014 to 2015]]+Table24[[#This Row],[Pre-16 Resourced Provision - 2014 to 2015]]+Table24[[#This Row],[Pre-16 SEN Places - 2014 to 2015]] -> 0 | M91: 0 | N91: 0 | O91: 0 | P91: =Table24[[#This Row],[Post-16 Schools (excl. NMSS) 16-18]]+Table24[[#This Row],[Post-16 Post School (excl. specialist Post 16 institutions) 16-18]]+Table24[[#This Row],[Post-16 Post School (excl. specialist Post 16 institutions) 19-25]] -> 0 | Q91: =Table24[[#This Row],[Total Pre-16 (excl. AP)]]+Table24[[#This Row],[Total Post 16 (excl. NMSS and specialist Post 16 institutions)]] -> 0 | R91: =IF(VLOOKUP(Table24[[#This Row],[Category]],$V$6:$W$37,2,FALSE)="Mainstream",Table24[[#This Row],[Post-16 Schools (excl. NMSS) 16-18]],0) -> 0 | S91: =IF(VLOOKUP(Table24[[#This Row],[Category]],$V$6:$W$37,2,FALSE)="Special",Table24[[#This Row],[Post-16 Schools (excl. NMSS) 16-18]],0) -> 0 | T91: =Table24[[#This Row],[Post-16 Post School (excl. specialist Post 16 institutions) 16-18]]+Table24[[#This Row],[Post-16 Post School (excl. specialist Post 16 institutions) 19-25]] -> 0
A92: ALTON COLLEGE | B92: 8508605 | C92: 108469 | D92: FURTHER EDUCATION PROVIDER | E92: South | F92: South East | G92: Hampshire | H92: 850 | I92: 0 | J92: 0 | K92: 0 | L92: =Table24[[#This Row],[Pre-16 SEN Units - 2014 to 2015]]+Table24[[#This Row],[Pre-16 Resourced Provision - 2014 to 2015]]+Table24[[#This Row],[Pre-16 SEN Places - 2014 to 2015]] -> 0 | M92: 0 | N92: 17 | O92: 4 | P92: =Table24[[#This Row],[Post-16 Schools (excl. NMSS) 16-18]]+Table24[[#This Row],[Post-16 Post School (excl. specialist Post 16 institutions) 16-18]]+Table24[[#This Row],[Post-16 Post School (excl. specialist Post 16 institutions) 19-25]] -> 21 | Q92: =Table24[[#This Row],[Total Pre-16 (excl. AP)]]+Table24[[#This Row],[Total Post 16 (excl. NMSS and specialist Post 16 institutions)]] -> 21 | R92: =IF(VLOOKUP(Table24[[#This Row],[Category]],$V$6:$W$37,2,FALSE)="Mainstream",Table24[[#This Row],[Post-16 Schools (excl. NMSS) 16-18]],0) -> 0 | S92: =IF(VLOOKUP(Table24[[#This Row],[Category]],$V$6:$W$37,2,FALSE)="Special",Table24[[#This Row],[Post-16 Schools (excl. NMSS) 16-18]],0) -> 0 | T92: =Table24[[#This Row],[Post-16 Post School (excl. specialist Post 16 institutions) 16-18]]+Table24[[#This Row],[Post-16 Post School (excl. specialist Post 16 institutions) 19-25]] -> 21
A93: ALTRINCHAM COLLEGE OF ARTS | B93: 3584024 | C93: 122124 | D93: ACADEMY - MAINSTREAM | E93: North | F93: North West | G93: Trafford | H93: 358 | I93: 0 | J93: 6 | K93: 0 | L93: =Table24[[#This Row],[Pre-16 SEN Units - 2014 to 2015]]+Table24[[#This Row],[Pre-16 Resourced Provision - 2014 to 2015]]+Table24[[#This Row],[Pre-16 SEN Places - 2014 to 2015]] -> 6 | M93: 0 | N93: 0 | O93: 0 | P93: =Table24[[#This Row],[Post-16 Schools (excl. NMSS) 16-18]]+Table24[[#This Row],[Post-16 Post School (excl. specialist Post 16 institutions) 16-18]]+Table24[[#This Row],[Post-16 Post School (excl. specialist Post 16 institutions) 19-25]] -> 0 | Q93: =Table24[[#This Row],[Total Pre-16 (excl. AP)]]+Table24[[#This Row],[Total Post 16 (excl. NMSS and specialist Post 16 institutions)]] -> 6 | R93: =IF(VLOOKUP(Table24[[#This Row],[Category]],$V$6:$W$37,2,FALSE)="Mainstream",Table24[[#This Row],[Post-16 Schools (excl. NMSS) 16-18]],0) -> 0 | S93: =IF(VLOOKUP(Table24[[#This Row],[Category]],$V$6:$W$37,2,FALSE)="Special",Table24[[#This Row],[Post-16 Schools (excl. NMSS) 16-18]],0) -> 0 | T93: =Table24[[#This Row],[Post-16 Post School (excl. specialist Post 16 institutions) 16-18]]+Table24[[#This Row],[Post-16 Post School (excl. specialist Post 16 institutions) 19-25]] -> 0
A94: ALTWOOD COFE SECONDARY SCHOOL | B94: 8684506 | C94: 122326 | D94: ACADEMY - MAINSTREAM | E94: South | F94: South East | G94: Windsor and Maidenhead | H94: 868 | I94: 0 | J94: 2 | K94: 0 | L94: =Table24[[#This Row],[Pre-16 SEN Units - 2014 to 2015]]+Table24[[#This Row],[Pre-16 Resourced Provision - 2014 to 2015]]+Table24[[#This Row],[Pre-16 SEN Places - 2014 to 2015]] -> 2 | M94: 4 | N94: 0 | O94: 0 | P94: =Table24[[#This Row],[Post-16 Schools (excl. NMSS) 16-18]]+Table24[[#This Row],[Post-16 Post School (excl. specialist Post 16 institutions) 16-18]]+Table24[[#This Row],[Post-16 Post School (excl. specialist Post 16 institutions) 19-25]] -> 4 | Q94: =Table24[[#This Row],[Total Pre-16 (excl. AP)]]+Table24[[#This Row],[Total Post 16 (excl. NMSS and specialist Post 16 institutions)]] -> 6 | R94: =IF(VLOOKUP(Table24[[#This Row],[Category]],$V$6:$W$37,2,FALSE)="Mainstream",Table24[[#This Row],[Post-16 Schools (excl. NMSS) 16-18]],0) -> 4 | S94: =IF(VLOOKUP(Table24[[#This Row],[Category]],$V$6:$W$37,2,FALSE)="Special",Table24[[#This Row],[Post-16 Schools (excl. NMSS) 16-18]],0) -> 0 | T94: =Table24[[#This Row],[Post-16 Post School (excl. specialist Post 16 institutions) 16-18]]+Table24[[#This Row],[Post-16 Post School (excl. specialist Post 16 institutions) 19-25]] -> 0
A95: ALVASTON JUNIOR SCHOOL | B95: 8312442 | C95: 0 | D95: MAINTAINED SCHOOL - MAINSTREAM | E95: CentralSW | F95: East Midlands | G95: Derby | H95: 831 | I95: 0 | J95: 12 | K95: 0 | L95: =Table24[[#This Row],[Pre-16 SEN Units - 2014 to 2015]]+Table24[[#This Row],[Pre-16 Resourced Provision - 2014 to 2015]]+Table24[[#This Row],[Pre-16 SEN Places - 2014 to 2015]] -> 12 | M95: 0 | N95: 0 | O95: 0 | P95: =Table24[[#This Row],[Post-16 Schools (excl. NMSS) 16-18]]+Table24[[#This Row],[Post-16 Post School (excl. specialist Post 16 institutions) 16-18]]+Table24[[#This Row],[Post-16 Post School (excl. specialist Post 16 institutions) 19-25]] -> 0 | Q95: =Table24[[#This Row],[Total Pre-16 (excl. AP)]]+Table24[[#This Row],[Total Post 16 (excl. NMSS and specialist Post 16 institutions)]] -> 12 | R95: =IF(VLOOKUP(Table24[[#This Row],[Category]],$V$6:$W$37,2,FALSE)="Mainstream",Table24[[#This Row],[Post-16 Schools (excl. NMSS) 16-18]],0) -> 0 | S95: =IF(VLOOKUP(Table24[[#This Row],[Category]],$V$6:$W$37,2,FALSE)="Special",Table24[[#This Row],[Post-16 Schools (excl. NMSS) 16-18]],0) -> 0 | T95: =Table24[[#This Row],[Post-16 Post School (excl. specialist Post 16 institutions) 16-18]]+Table24[[#This Row],[Post-16 Post School (excl. specialist Post 16 institutions) 19-25]] -> 0
A96: AMBER VALLEY & EREWASH SUPPORT CENTRE | B96: 8301102 | C96: 0 | D96: MAINTAINED ALTERNATIVE PROVISION (AP) - PRU | E96: CentralSW | F96: East Midlands | G96: Derbyshire | H96: 830 | I96: 0 | J96: 0 | K96: 0 | L96: =Table24[[#This Row],[Pre-16 SEN Units - 2014 to 2015]]+Table24[[#This Row],[Pre-16 Resourced Provision - 2014 to 2015]]+Table24[[#This Row],[Pre-16 SEN Places - 2014 to 2015]] -> 0 | M96: 0 | N96: 0 | O96: 0 | P96: =Table24[[#This Row],[Post-16 Schools (excl. NMSS) 16-18]]+Table24[[#This Row],[Post-16 Post School (excl. specialist Post 16 institutions) 16-18]]+Table24[[#This Row],[Post-16 Post School (excl. specialist Post 16 institutions) 19-25]] -> 0 | Q96: =Table24[[#This Row],[Total Pre-16 (excl. AP)]]+Table24[[#This Row],[Total Post 16 (excl. NMSS and specialist Post 16 institutions)]] -> 0 | R96: =IF(VLOOKUP(Table24[[#This Row],[Category]],$V$6:$W$37,2,FALSE)="Mainstream",Table24[[#This Row],[Post-16 Schools (excl. NMSS) 16-18]],0) -> 0 | S96: =IF(VLOOKUP(Table24[[#This Row],[Category]],$V$6:$W$37,2,FALSE)="Special",Table24[[#This Row],[Post-16 Schools (excl. NMSS) 16-18]],0) -> 0 | T96: =Table24[[#This Row],[Post-16 Post School (excl. specialist Post 16 institutions) 16-18]]+Table24[[#This Row],[Post-16 Post School (excl. specialist Post 16 institutions) 19-25]] -> 0
A97: AMBERGATE SPORTS COLLEGE | B97: 9257002 | C97: 0 | D97: MAINTAINED SPECIAL SCHOOL | E97: CentralSW | F97: East Midlands | G97: Lincolnshire | H97: 925 | I97: 0 | J97: 0 | K97: 122 | L97: =Table24[[#This Row],[Pre-16 SEN Units - 2014 to 2015]]+Table24[[#This Row],[Pre-16 Resourced Provision - 2014 to 2015]]+Table24[[#This Row],[Pre-16 SEN Places - 2014 to 2015]] -> 122 | M97: 0 | N97: 0 | O97: 0 | P97: =Table24[[#This Row],[Post-16 Schools (excl. NMSS) 16-18]]+Table24[[#This Row],[Post-16 Post School (excl. specialist Post 16 institutions) 16-18]]+Table24[[#This Row],[Post-16 Post School (excl. specialist Post 16 institutions) 19-25]] -> 0 | Q97: =Table24[[#This Row],[Total Pre-16 (excl. AP)]]+Table24[[#This Row],[Total Post 16 (excl. NMSS and specialist Post 16 institutions)]] -> 122 | R97: =IF(VLOOKUP(Table24[[#This Row],[Category]],$V$6:$W$37,2,FALSE)="Mainstream",Table24[[#This Row],[Post-16 Schools (excl. NMSS) 16-18]],0) -> 0 | S97: =IF(VLOOKUP(Table24[[#This Row],[Category]],$V$6:$W$37,2,FALSE)="Special",Table24[[#This Row],[Post-16 Schools (excl. NMSS) 16-18]],0) -> 0 | T97: =Table24[[#This Row],[Post-16 Post School (excl. specialist Post 16 institutions) 16-18]]+Table24[[#This Row],[Post-16 Post School (excl. specialist Post 16 institutions) 19-25]] -> 0
A98: AMERSHAM AND WYCOMBE COLLEGE | B98: 8258001 | C98: 105019 | D98: FURTHER EDUCATION PROVIDER | E98: South | F98: South East | G98: Buckinghamshire | H98: 825 | I98: 0 | J98: 0 | K98: 0 | L98: =Table24[[#This Row],[Pre-16 SEN Units - 2014 to 2015]]+Table24[[#This Row],[Pre-16 Resourced Provision - 2014 to 2015]]+Table24[[#This Row],[Pre-16 SEN Places - 2014 to 2015]] -> 0 | M98: 0 | N98: 7 | O98: 36 | P98: =Table24[[#This Row],[Post-16 Schools (excl. NMSS) 16-18]]+Table24[[#This Row],[Post-16 Post School (excl. specialist Post 16 institutions) 16-18]]+Table24[[#This Row],[Post-16 Post School (excl. specialist Post 16 institutions) 19-25]] -> 43 | Q98: =Table24[[#This Row],[Total Pre-16 (excl. AP)]]+Table24[[#This Row],[Total Post 16 (excl. NMSS and specialist Post 16 institutions)]] -> 43 | R98: =IF(VLOOKUP(Table24[[#This Row],[Category]],$V$6:$W$37,2,FALSE)="Mainstream",Table24[[#This Row],[Post-16 Schools (excl. NMSS) 16-18]],0) -> 0 | S98: =IF(VLOOKUP(Table24[[#This Row],[Category]],$V$6:$W$37,2,FALSE)="Special",Table24[[#This Row],[Post-16 Schools (excl. NMSS) 16-18]],0) -> 0 | T98: =Table24[[#This Row],[Post-16 Post School (excl. specialist Post 16 institutions) 16-18]]+Table24[[#This Row],[Post-16 Post School (excl. specialist Post 16 institutions) 19-25]] -> 43
A99: AMERSHAM SCHOOL | B99: 8254095 | C99: 120372 | D99: ACADEMY - MAINSTREAM | E99: South | F99: South East | G99: Buckinghamshire | H99: 825 | I99: 0 | J99: 0 | K99: 0 | L99: =Table24[[#This Row],[Pre-16 SEN Units - 2014 to 2015]]+Table24[[#This Row],[Pre-16 Resourced Provision - 2014 to 2015]]+Table24[[#This Row],[Pre-16 SEN Places - 2014 to 2015]] -> 0 | M99: 4 | N99: 0 | O99: 0 | P99: =Table24[[#This Row],[Post-16 Schools (excl. NMSS) 16-18]]+Table24[[#This Row],[Post-16 Post School (excl. specialist Post 16 institutions) 16-18]]+Table24[[#This Row],[Post-16 Post School (excl. specialist Post 16 institutions) 19-25]] -> 4 | Q99: =Table24[[#This Row],[Total Pre-16 (excl. AP)]]+Table24[[#This Row],[Total Post 16 (excl. NMSS and specialist Post 16 institutions)]] -> 4 | R99: =IF(VLOOKUP(Table24[[#This Row],[Category]],$V$6:$W$37,2,FALSE)="Mainstream",Table24[[#This Row],[Post-16 Schools (excl. NMSS) 16-18]],0) -> 4 | S99: =IF(VLOOKUP(Table24[[#This Row],[Category]],$V$6:$W$37,2,FALSE)="Special",Table24[[#This Row],[Post-16 Schools (excl. NMSS) 16-18]],0) -> 0 | T99: =Table24[[#This Row],[Post-16 Post School (excl. specialist Post 16 institutions) 16-18]]+Table24[[#This Row],[Post-16 Post School (excl. specialist Post 16 institutions) 19-25]] -> 0
A100: AMWELL VIEW SCHOOL | B100: 9197028 | C100: 123684 | D100: MAINTAINED SPECIAL SCHOOL | E100: South | F100: East of England | G100: Hertfordshire | H100: 919 | I100: 0 | J100: 0 | K100: 87 | L100: =Table24[[#This Row],[Pre-16 SEN Units - 2014 to 2015]]+Table24[[#This Row],[Pre-16 Resourced Provision - 2014 to 2015]]+Table24[[#This Row],[Pre-16 SEN Places - 2014 to 2015]] -> 87 | M100: 28 | N100: 0 | O100: 0 | P100: =Table24[[#This Row],[Post-16 Schools (excl. NMSS) 16-18]]+Table24[[#This Row],[Post-16 Post School (excl. specialist Post 16 institutions) 16-18]]+Table24[[#This Row],[Post-16 Post School (excl. specialist Post 16 institutions) 19-25]] -> 28 | Q100: =Table24[[#This Row],[Total Pre-16 (excl. AP)]]+Table24[[#This Row],[Total Post 16 (excl. NMSS and specialist Post 16 institutions)]] -> 115 | R100: =IF(VLOOKUP(Table24[[#This Row],[Category]],$V$6:$W$37,2,FALSE)="Mainstream",Table24[[#This Row],[Post-16 Schools (excl. NMSS) 16-18]],0) -> 0 | S100: =IF(VLOOKUP(Table24[[#This Row],[Category]],$V$6:$W$37,2,FALSE)="Special",Table24[[#This Row],[Post-16 Schools (excl. NMSS) 16-18]],0) -> 28 | T100: =Table24[[#This Row],[Post-16 Post School (excl. specialist Post 16 institutions) 16-18]]+Table24[[#This Row],[Post-16 Post School (excl. specialist Post 16 institutions) 19-25]] -> 0
A101: AMY JOHNSON PRIMARY SCHOOL | B101: 3192046 | C101: 0 | D101: MAINTAINED SCHOOL - MAINSTREAM | E101: South | F101: London | G101: Sutton | H101: 319 | I101: 10 | J101: 0 | K101: 0 | L101: =Table24[[#This Row],[Pre-16 SEN Units - 2014 to 2015]]+Table24[[#This Row],[Pre-16 Resourced Provision - 2014 to 2015]]+Table24[[#This Row],[Pre-16 SEN Places - 2014 to 2015]] -> 10 | M101: 0 | N101: 0 | O101: 0 | P101: =Table24[[#This Row],[Post-16 Schools (excl. NMSS) 16-18]]+Table24[[#This Row],[Post-16 Post School (excl. specialist Post 16 institutions) 16-18]]+Table24[[#This Row],[Post-16 Post School (excl. specialist Post 16 institutions) 19-25]] -> 0 | Q101: =Table24[[#This Row],[Total Pre-16 (excl. AP)]]+Table24[[#This Row],[Total Post 16 (excl. NMSS and specialist Post 16 institutions)]] -> 10 | R101: =IF(VLOOKUP(Table24[[#This Row],[Category]],$V$6:$W$37,2,FALSE)="Mainstream",Table24[[#This Row],[Post-16 Schools (excl. NMSS) 16-18]],0) -> 0 | S101: =IF(VLOOKUP(Table24[[#This Row],[Category]],$V$6:$W$37,2,FALSE)="Special",Table24[[#This Row],[Post-16 Schools (excl. NMSS) 16-18]],0) -> 0 | T101: =Table24[[#This Row],[Post-16 Post School (excl. specialist Post 16 institutions) 16-18]]+Table24[[#This Row],[Post-16 Post School (excl. specialist Post 16 institutions) 19-25]] -> 0
A102: ANDOVER EDUCATION CENTRE | B102: 8501104 | C102: 0 | D102: MAINTAINED ALTERNATIVE PROVISION (AP) - PRU | E102: South | F102: South East | G102: Hampshire | H102: 850 | I102: 0 | J102: 0 | K102: 0 | L102: =Table24[[#This Row],[Pre-16 SEN Units - 2014 to 2015]]+Table24[[#This Row],[Pre-16 Resourced Provision - 2014 to 2015]]+Table24[[#This Row],[Pre-16 SEN Places - 2014 to 2015]] -> 0 | M102: 0 | N102: 0 | O102: 0 | P102: =Table24[[#This Row],[Post-16 Schools (excl. NMSS) 16-18]]+Table24[[#This Row],[Post-16 Post School (excl. specialist Post 16 institutions) 16-18]]+Table24[[#This Row],[Post-16 Post School (excl. specialist Post 16 institutions) 19-25]] -> 0 | Q102: =Table24[[#This Row],[Total Pre-16 (excl. AP)]]+Table24[[#This Row],[Total Post 16 (excl. NMSS and specialist Post 16 institutions)]] -> 0 | R102: =IF(VLOOKUP(Table24[[#This Row],[Category]],$V$6:$W$37,2,FALSE)="Mainstream",Table24[[#This Row],[Post-16 Schools (excl. NMSS) 16-18]],0) -> 0 | S102: =IF(VLOOKUP(Table24[[#This Row],[Category]],$V$6:$W$37,2,FALSE)="Special",Table24[[#This Row],[Post-16 Schools (excl. NMSS) 16-18]],0) -> 0 | T102: =Table24[[#This Row],[Post-16 Post School (excl. specialist Post 16 institutions) 16-18]]+Table24[[#This Row],[Post-16 Post School (excl. specialist Post 16 institutions) 19-25]] -> 0
A103: ANGLESEY PRIMARY SCHOOL | B103: 3302479 | C103: 0 | D103: MAINTAINED SCHOOL - MAINSTREAM | E103: CentralSW | F103: West Midlands | G103: Birmingham | H103: 330 | I103: 0 | J103: 10 | K103: 0 | L103: =Table24[[#This Row],[Pre-16 SEN Units - 2014 to 2015]]+Table24[[#This Row],[Pre-16 Resourced Provision - 2014 to 2015]]+Table24[[#This Row],[Pre-16 SEN Places - 2014 to 2015]] -> 10 | M103: 0 | N103: 0 | O103: 0 | P103: =Table24[[#This Row],[Post-16 Schools (excl. NMSS) 16-18]]+Table24[[#This Row],[Post-16 Post School (excl. specialist Post 16 institutions) 16-18]]+Table24[[#This Row],[Post-16 Post School (excl. specialist Post 16 institutions) 19-25]] -> 0 | Q103: =Table24[[#This Row],[Total Pre-16 (excl. AP)]]+Table24[[#This Row],[Total Post 16 (excl. NMSS and specialist Post 16 institutions)]] -> 10 | R103: =IF(VLOOKUP(Table24[[#This Row],[Category]],$V$6:$W$37,2,FALSE)="Mainstream",Table24[[#This Row],[Post-16 Schools (excl. NMSS) 16-18]],0) -> 0 | S103: =IF(VLOOKUP(Table24[[#This Row],[Category]],$V$6:$W$37,2,FALSE)="Special",Table24[[#This Row],[Post-16 Schools (excl. NMSS) 16-18]],0) -> 0 | T103: =Table24[[#This Row],[Post-16 Post School (excl. specialist Post 16 institutions) 16-18]]+Table24[[#This Row],[Post-16 Post School (excl. specialist Post 16 institutions) 19-25]] -> 0
A104: ANSTON HILLCREST PRIMARY SCHOOL | B104: 3722130 | C104: 0 | D104: MAINTAINED SCHOOL - MAINSTREAM | E104: North | F104: Yorkshire and the Humber | G104: Rotherham | H104: 372 | I104: 20 | J104: 0 | K104: 0 | L104: =Table24[[#This Row],[Pre-16 SEN Units - 2014 to 2015]]+Table24[[#This Row],[Pre-16 Resourced Provision - 2014 to 2015]]+Table24[[#This Row],[Pre-16 SEN Places - 2014 to 2015]] -> 20 | M104: 0 | N104: 0 | O104: 0 | P104: =Table24[[#This Row],[Post-16 Schools (excl. NMSS) 16-18]]+Table24[[#This Row],[Post-16 Post School (excl. specialist Post 16 institutions) 16-18]]+Table24[[#This Row],[Post-16 Post School (excl. specialist Post 16 institutions) 19-25]] -> 0 | Q104: =Table24[[#This Row],[Total Pre-16 (excl. AP)]]+Table24[[#This Row],[Total Post 16 (excl. NMSS and specialist Post 16 institutions)]] -> 20 | R104: =IF(VLOOKUP(Table24[[#This Row],[Category]],$V$6:$W$37,2,FALSE)="Mainstream",Table24[[#This Row],[Post-16 Schools (excl. NMSS) 16-18]],0) -> 0 | S104: =IF(VLOOKUP(Table24[[#This Row],[Category]],$V$6:$W$37,2,FALSE)="Special",Table24[[#This Row],[Post-16 Schools (excl. NMSS) 16-18]],0) -> 0 | T104: =Table24[[#This Row],[Post-16 Post School (excl. specialist Post 16 institutions) 16-18]]+Table24[[#This Row],[Post-16 Post School (excl. specialist Post 16 institutions) 19-25]] -> 0
A105: APPLEBY GRAMMAR SCHOOL | B105: 9095407 | C105: 120251 | D105: ACADEMY - MAINSTREAM | E105: North | F105: North West | G105: Cumbria | H105: 909 | I105: 0 | J105: 0 | K105: 0 | L105: =Table24[[#This Row],[Pre-16 SEN Units - 2014 to 2015]]+Table24[[#This Row],[Pre-16 Resourced Provision - 2014 to 2015]]+Table24[[#This Row],[Pre-16 SEN Places - 2014 to 2015]] -> 0 | M105: 2 | N105: 0 | O105: 0 | P105: =Table24[[#This Row],[Post-16 Schools (excl. NMSS) 16-18]]+Table24[[#This Row],[Post-16 Post School (excl. specialist Post 16 institutions) 16-18]]+Table24[[#This Row],[Post-16 Post School (excl. specialist Post 16 institutions) 19-25]] -> 2 | Q105: =Table24[[#This Row],[Total Pre-16 (excl. AP)]]+Table24[[#This Row],[Total Post 16 (excl. NMSS and specialist Post 16 institutions)]] -> 2 | R105: =IF(VLOOKUP(Table24[[#This Row],[Category]],$V$6:$W$37,2,FALSE)="Mainstream",Table24[[#This Row],[Post-16 Schools (excl. NMSS) 16-18]],0) -> 2 | S105: =IF(VLOOKUP(Table24[[#This Row],[Category]],$V$6:$W$37,2,FALSE)="Special",Table24[[#This Row],[Post-16 Schools (excl. NMSS) 16-18]],0) -> 0 | T105: =Table24[[#This Row],[Post-16 Post School (excl. specialist Post 16 institutions) 16-18]]+Table24[[#This Row],[Post-16 Post School (excl. specialist Post 16 institutions) 19-25]] -> 0
A106: APPLEFIELDS SCHOOL | B106: 8167032 | C106: 123732 | D106: MAINTAINED SPECIAL SCHOOL | E106: North | F106: Yorkshire and the Humber | G106: York | H106: 816 | I106: 0 | J106: 0 | K106: 90 | L106: =Table24[[#This Row],[Pre-16 SEN Units - 2014 to 2015]]+Table24[[#This Row],[Pre-16 Resourced Provision - 2014 to 2015]]+Table24[[#This Row],[Pre-16 SEN Places - 2014 to 2015]] -> 90 | M106: 66 | N106: 0 | O106: 0 | P106: =Table24[[#This Row],[Post-16 Schools (excl. NMSS) 16-18]]+Table24[[#This Row],[Post-16 Post School (excl. specialist Post 16 institutions) 16-18]]+Table24[[#This Row],[Post-16 Post School (excl. specialist Post 16 institutions) 19-25]] -> 66 | Q106: =Table24[[#This Row],[Total Pre-16 (excl. AP)]]+Table24[[#This Row],[Total Post 16 (excl. NMSS and specialist Post 16 institutions)]] -> 156 | R106: =IF(VLOOKUP(Table24[[#This Row],[Category]],$V$6:$W$37,2,FALSE)="Mainstream",Table24[[#This Row],[Post-16 Schools (excl. NMSS) 16-18]],0) -> 0 | S106: =IF(VLOOKUP(Table24[[#This Row],[Category]],$V$6:$W$37,2,FALSE)="Special",Table24[[#This Row],[Post-16 Schools (excl. NMSS) 16-18]],0) -> 66 | T106: =Table24[[#This Row],[Post-16 Post School (excl. specialist Post 16 institutions) 16-18]]+Table24[[#This Row],[Post-16 Post School (excl. specialist Post 16 institutions) 19-25]] -> 0
A107: APPLEGARTH ACADEMY | B107: 3062016 | C107: 123941 | D107: ACADEMY - MAINSTREAM | E107: South | F107: London | G107: Croydon | H107: 306 | I107: 18 | J107: 0 | K107: 0 | L107: =Table24[[#This Row],[Pre-16 SEN Units - 2014 to 2015]]+Table24[[#This Row],[Pre-16 Resourced Provision - 2014 to 2015]]+Table24[[#This Row],[Pre-16 SEN Places - 2014 to 2015]] -> 18 | M107: 0 | N107: 0 | O107: 0 | P107: =Table24[[#This Row],[Post-16 Schools (excl. NMSS) 16-18]]+Table24[[#This Row],[Post-16 Post School (excl. specialist Post 16 institutions) 16-18]]+Table24[[#This Row],[Post-16 Post School (excl. specialist Post 16 institutions) 19-25]] -> 0 | Q107: =Table24[[#This Row],[Total Pre-16 (excl. AP)]]+Table24[[#This Row],[Total Post 16 (excl. NMSS and specialist Post 16 institutions)]] -> 18 | R107: =IF(VLOOKUP(Table24[[#This Row],[Category]],$V$6:$W$37,2,FALSE)="Mainstream",Table24[[#This Row],[Post-16 Schools (excl. NMSS) 16-18]],0) -> 0 | S107: =IF(VLOOKUP(Table24[[#This Row],[Category]],$V$6:$W$37,2,FALSE)="Special",Table24[[#This Row],[Post-16 Schools (excl. NMSS) 16-18]],0) -> 0 | T107: =Table24[[#This Row],[Post-16 Post School (excl. specialist Post 16 institutions) 16-18]]+Table24[[#This Row],[Post-16 Post School (excl. specialist Post 16 institutions) 19-25]] -> 0
A108: APPLEMORE COLLEGE | B108: 8505412 | C108: 0 | D108: MAINTAINED SCHOOL - MAINSTREAM | E108: South | F108: South East | G108: Hampshire | H108: 850 | I108: 20 | J108: 0 | K108: 0 | L108: =Table24[[#This Row],[Pre-16 SEN Units - 2014 to 2015]]+Table24[[#This Row],[Pre-16 Resourced Provision - 2014 to 2015]]+Table24[[#This Row],[Pre-16 SEN Places - 2014 to 2015]] -> 20 | M108: 0 | N108: 0 | O108: 0 | P108: =Table24[[#This Row],[Post-16 Schools (excl. NMSS) 16-18]]+Table24[[#This Row],[Post-16 Post School (excl. specialist Post 16 institutions) 16-18]]+Table24[[#This Row],[Post-16 Post School (excl. specialist Post 16 institutions) 19-25]] -> 0 | Q108: =Table24[[#This Row],[Total Pre-16 (excl. AP)]]+Table24[[#This Row],[Total Post 16 (excl. NMSS and specialist Post 16 institutions)]] -> 20 | R108: =IF(VLOOKUP(Table24[[#This Row],[Category]],$V$6:$W$37,2,FALSE)="Mainstream",Table24[[#This Row],[Post-16 Schools (excl. NMSS) 16-18]],0) -> 0 | S108: =IF(VLOOKUP(Table24[[#This Row],[Category]],$V$6:$W$37,2,FALSE)="Special",Table24[[#This Row],[Post-16 Schools (excl. NMSS) 16-18]],0) -> 0 | T108: =Table24[[#This Row],[Post-16 Post School (excl. specialist Post 16 institutions) 16-18]]+Table24[[#This Row],[Post-16 Post School (excl. specialist Post 16 institutions) 19-25]] -> 0
A109: AQUINAS COLLEGE | B109: 3568603 | C109: 108372 | D109: FURTHER EDUCATION PROVIDER | E109: North | F109: North West | G109: Stockport | H109: 356 | I109: 0 | J109: 0 | K109: 0 | L109: =Table24[[#This Row],[Pre-16 SEN Units - 2014 to 2015]]+Table24[[#This Row],[Pre-16 Resourced Provision - 2014 to 2015]]+Table24[[#This Row],[Pre-16 SEN Places - 2014 to 2015]] -> 0 | M109: 0 | N109: 40 | O109: 0 | P109: =Table24[[#This Row],[Post-16 Schools (excl. NMSS) 16-18]]+Table24[[#This Row],[Post-16 Post School (excl. specialist Post 16 institutions) 16-18]]+Table24[[#This Row],[Post-16 Post School (excl. specialist Post 16 institutions) 19-25]] -> 40 | Q109: =Table24[[#This Row],[Total Pre-16 (excl. AP)]]+Table24[[#This Row],[Total Post 16 (excl. NMSS and specialist Post 16 institutions)]] -> 40 | R109: =IF(VLOOKUP(Table24[[#This Row],[Category]],$V$6:$W$37,2,FALSE)="Mainstream",Table24[[#This Row],[Post-16 Schools (excl. NMSS) 16-18]],0) -> 0 | S109: =IF(VLOOKUP(Table24[[#This Row],[Category]],$V$6:$W$37,2,FALSE)="Special",Table24[[#This Row],[Post-16 Schools (excl. NMSS) 16-18]],0) -> 0 | T109: =Table24[[#This Row],[Post-16 Post School (excl. specialist Post 16 institutions) 16-18]]+Table24[[#This Row],[Post-16 Post School (excl. specialist Post 16 institutions) 19-25]] -> 40
A110: ARBORETUM PRIMARY SCHOOL | B110: 8312629 | C110: 0 | D110: MAINTAINED SCHOOL - MAINSTREAM | E110: CentralSW | F110: East Midlands | G110: Derby | H110: 831 | I110: 0 | J110: 5 | K110: 0 | L110: =Table24[[#This Row],[Pre-16 SEN Units - 2014 to 2015]]+Table24[[#This Row],[Pre-16 Resourced Provision - 2014 to 2015]]+Table24[[#This Row],[Pre-16 SEN Places - 2014 to 2015]] -> 5 | M110: 0 | N110: 0 | O110: 0 | P110: =Table24[[#This Row],[Post-16 Schools (excl. NMSS) 16-18]]+Table24[[#This Row],[Post-16 Post School (excl. specialist Post 16 institutions) 16-18]]+Table24[[#This Row],[Post-16 Post School (excl. specialist Post 16 institutions) 19-25]] -> 0 | Q110: =Table24[[#This Row],[Total Pre-16 (excl. AP)]]+Table24[[#This Row],[Total Post 16 (excl. NMSS and specialist Post 16 institutions)]] -> 5 | R110: =IF(VLOOKUP(Table24[[#This Row],[Category]],$V$6:$W$37,2,FALSE)="Mainstream",Table24[[#This Row],[Post-16 Schools (excl. NMSS) 16-18]],0) -> 0 | S110: =IF(VLOOKUP(Table24[[#This Row],[Category]],$V$6:$W$37,2,FALSE)="Special",Table24[[#This Row],[Post-16 Schools (excl. NMSS) 16-18]],0) -> 0 | T110: =Table24[[#This Row],[Post-16 Post School (excl. specialist Post 16 institutions) 16-18]]+Table24[[#This Row],[Post-16 Post School (excl. specialist Post 16 institutions) 19-25]] -> 0
A111: ARBOUR VALE SCHOOL | B111: 8717035 | C111: 123985 | D111: MAINTAINED SPECIAL SCHOOL | E111: South | F111: South East | G111: Slough | H111: 871 | I111: 0 | J111: 0 | K111: 256 | L111: =Table24[[#This Row],[Pre-16 SEN Units - 2014 to 2015]]+Table24[[#This Row],[Pre-16 Resourced Provision - 2014 to 2015]]+Table24[[#This Row],[Pre-16 SEN Places - 2014 to 2015]] -> 256 | M111: 34 | N111: 0 | O111: 0 | P111: =Table24[[#This Row],[Post-16 Schools (excl. NMSS) 16-18]]+Table24[[#This Row],[Post-16 Post School (excl. specialist Post 16 institutions) 16-18]]+Table24[[#This Row],[Post-16 Post School (excl. specialist Post 16 institutions) 19-25]] -> 34 | Q111: =Table24[[#This Row],[Total Pre-16 (excl. AP)]]+Table24[[#This Row],[Total Post 16 (excl. NMSS and specialist Post 16 institutions)]] -> 290 | R111: =IF(VLOOKUP(Table24[[#This Row],[Category]],$V$6:$W$37,2,FALSE)="Mainstream",Table24[[#This Row],[Post-16 Schools (excl. NMSS) 16-18]],0) -> 0 | S111: =IF(VLOOKUP(Table24[[#This Row],[Category]],$V$6:$W$37,2,FALSE)="Special",Table24[[#This Row],[Post-16 Schools (excl. NMSS) 16-18]],0) -> 34 | T111: =Table24[[#This Row],[Post-16 Post School (excl. specialist Post 16 institutions) 16-18]]+Table24[[#This Row],[Post-16 Post School (excl. specialist Post 16 institutions) 19-25]] -> 0
A112: ARBOURTHORNE COMMUNITY PRIMARY SCHOOL | B112: 3733429 | C112: 0 | D112: MAINTAINED SCHOOL - MAINSTREAM | E112: North | F112: Yorkshire and the Humber | G112: Sheffield | H112: 373 | I112: 0 | J112: 12 | K112: 0 | L112: =Table24[[#This Row],[Pre-16 SEN Units - 2014 to 2015]]+Table24[[#This Row],[Pre-16 Resourced Provision - 2014 to 2015]]+Table24[[#This Row],[Pre-16 SEN Places - 2014 to 2015]] -> 12 | M112: 0 | N112: 0 | O112: 0 | P112: =Table24[[#This Row],[Post-16 Schools (excl. NMSS) 16-18]]+Table24[[#This Row],[Post-16 Post School (excl. specialist Post 16 institutions) 16-18]]+Table24[[#This Row],[Post-16 Post School (excl. specialist Post 16 institutions) 19-25]] -> 0 | Q112: =Table24[[#This Row],[Total Pre-16 (excl. AP)]]+Table24[[#This Row],[Total Post 16 (excl. NMSS and specialist Post 16 institutions)]] -> 12 | R112: =IF(VLOOKUP(Table24[[#This Row],[Category]],$V$6:$W$37,2,FALSE)="Mainstream",Table24[[#This Row],[Post-16 Schools (excl. NMSS) 16-18]],0) -> 0 | S112: =IF(VLOOKUP(Table24[[#This Row],[Category]],$V$6:$W$37,2,FALSE)="Special",Table24[[#This Row],[Post-16 Schools (excl. NMSS) 16-18]],0) -> 0 | T112: =Table24[[#This Row],[Post-16 Post School (excl. specialist Post 16 institutions) 16-18]]+Table24[[#This Row],[Post-16 Post School (excl. specialist Post 16 institutions) 19-25]] -> 0
A113: ARCHBISHOP HOLGATE'S SCHOOL, A CHURCH OF ENGLAND ACADEMY | B113: 8164500 | C113: 119523 | D113: ACADEMY - MAINSTREAM | E113: North | F113: Yorkshire and the Humber | G113: York | H113: 816 | I113: 0 | J113: 0 | K113: 0 | L113: =Table24[[#This Row],[Pre-16 SEN Units - 2014 to 2015]]+Table24[[#This Row],[Pre-16 Resourced Provision - 2014 to 2015]]+Table24[[#This Row],[Pre-16 SEN Places - 2014 to 2015]] -> 0 | M113: 3 | N113: 0 | O113: 0 | P113: =Table24[[#This Row],[Post-16 Schools (excl. NMSS) 16-18]]+Table24[[#This Row],[Post-16 Post School (excl. specialist Post 16 institutions) 16-18]]+Table24[[#This Row],[Post-16 Post School (excl. specialist Post 16 institutions) 19-25]] -> 3 | Q113: =Table24[[#This Row],[Total Pre-16 (excl. AP)]]+Table24[[#This Row],[Total Post 16 (excl. NMSS and specialist Post 16 institutions)]] -> 3 | R113: =IF(VLOOKUP(Table24[[#This Row],[Category]],$V$6:$W$37,2,FALSE)="Mainstream",Table24[[#This Row],[Post-16 Schools (excl. NMSS) 16-18]],0) -> 3 | S113: =IF(VLOOKUP(Table24[[#This Row],[Category]],$V$6:$W$37,2,FALSE)="Special",Table24[[#This Row],[Post-16 Schools (excl. NMSS) 16-18]],0) -> 0 | T113: =Table24[[#This Row],[Post-16 Post School (excl. specialist Post 16 institutions) 16-18]]+Table24[[#This Row],[Post-16 Post School (excl. specialist Post 16 institutions) 19-25]] -> 0
A114: ARCHBISHOP SENTAMU ACADEMY | B114: 8106905 | C114: 119095 | D114: ACADEMY - MAINSTREAM | E114: North | F114: Yorkshire and the Humber | G114: Kingston upon Hull, City of | H114: 810 | I114: 0 | J114: 0 | K114: 0 | L114: =Table24[[#This Row],[Pre-16 SEN Units - 2014 to 2015]]+Table24[[#This Row],[Pre-16 Resourced Provision - 2014 to 2015]]+Table24[[#This Row],[Pre-16 SEN Places - 2014 to 2015]] -> 0 | M114: 6 | N114: 0 | O114: 0 | P114: =Table24[[#This Row],[Post-16 Schools (excl. NMSS) 16-18]]+Table24[[#This Row],[Post-16 Post School (excl. specialist Post 16 institutions) 16-18]]+Table24[[#This Row],[Post-16 Post School (excl. specialist Post 16 institutions) 19-25]] -> 6 | Q114: =Table24[[#This Row],[Total Pre-16 (excl. AP)]]+Table24[[#This Row],[Total Post 16 (excl. NMSS and specialist Post 16 institutions)]] -> 6 | R114: =IF(VLOOKUP(Table24[[#This Row],[Category]],$V$6:$W$37,2,FALSE)="Mainstream",Table24[[#This Row],[Post-16 Schools (excl. NMSS) 16-18]],0) -> 6 | S114: =IF(VLOOKUP(Table24[[#This Row],[Category]],$V$6:$W$37,2,FALSE)="Special",Table24[[#This Row],[Post-16 Schools (excl. NMSS) 16-18]],0) -> 0 | T114: =Table24[[#This Row],[Post-16 Post School (excl. specialist Post 16 institutions) 16-18]]+Table24[[#This Row],[Post-16 Post School (excl. specialist Post 16 institutions) 19-25]] -> 0
A115: ARCHBISHOP SUMNER CHURCH OF ENGLAND PRIMARY SCHOOL | B115: 2083307 | C115: 500305 | D115: MAINTAINED SCHOOL - MAINSTREAM | E115: South | F115: London | G115: Lambeth | H115: 208 | I115: 3 | J115: 0 | K115: 0 | L115: =Table24[[#This Row],[Pre-16 SEN Units - 2014 to 2015]]+Table24[[#This Row],[Pre-16 Resourced Provision - 2014 to 2015]]+Table24[[#This Row],[Pre-16 SEN Places - 2014 to 2015]] -> 3 | M115: 0 | N115: 0 | O115: 0 | P115: =Table24[[#This Row],[Post-16 Schools (excl. NMSS) 16-18]]+Table24[[#This Row],[Post-16 Post School (excl. specialist Post 16 institutions) 16-18]]+Table24[[#This Row],[Post-16 Post School (excl. specialist Post 16 institutions) 19-25]] -> 0 | Q115: =Table24[[#This Row],[Total Pre-16 (excl. AP)]]+Table24[[#This Row],[Total Post 16 (excl. NMSS and specialist Post 16 institutions)]] -> 3 | R115: =IF(VLOOKUP(Table24[[#This Row],[Category]],$V$6:$W$37,2,FALSE)="Mainstream",Table24[[#This Row],[Post-16 Schools (excl. NMSS) 16-18]],0) -> 0 | S115: =IF(VLOOKUP(Table24[[#This Row],[Category]],$V$6:$W$37,2,FALSE)="Special",Table24[[#This Row],[Post-16 Schools (excl. NMSS) 16-18]],0) -> 0 | T115: =Table24[[#This Row],[Post-16 Post School (excl. specialist Post 16 institutions) 16-18]]+Table24[[#This Row],[Post-16 Post School (excl. specialist Post 16 institutions) 19-25]] -> 0
